Workbook

Sheet START

Sheet Instructions
D2: 2020
X4: Yes
X5: No
W7: Type of Entities Range:
X8: Parent Municipality
X9: Consolidated Information
F14: START
F15: Instructions
F16: Template names
F17: Lookup and lists | W17: MTREF Range: | X17: 2013
F18: Org structure | X18: 2014
F19: Contacts | X19: 2015
F20: A1-Sum | X20: 2016
F21: A2-FinPerf SC | X21: 2017
F22: A2A | X22: 2018
F23: A3-FinPerf V | X23: 2019
F24: A3A | X24: 2020
F25: A4-FinPerf RE | X25: 2021
F26: A5-Capex | X26: 2022
F27: A5A | X27: 2023
F28: A6-FinPos | X28: 2024
F29: A7-CFlow | X29: 2025
F30: A8-ResRecon | X30: 2026
F31: A9-Asset | X31: 2027
F32: A10-SerDel
F33: SA1 | W33: MTREF Linked: | X33: 10
F34: SA2 | W34: MTREF: | X34: =INDEX(X17:X26,X33,1) -> 2022
F35: SA3
F36: SA4 | W36: Fin Year: | X36: =MTREF&"/"&RIGHT(MTREF,2)+1 -> 2022/23
F37: SA5
F38: SA6
F39: SA7
F40: SA8
F41: SA9
F42: SA10
F43: SA11
F44: SA12a
F45: SA12b
F46: SA13a
F47: SA13b
F48: SA14
F49: SA15
F50: SA16
F51: SA17
F52: SA18
F53: SA19
F54: SA20
F55: SA21
F56: SA22
F57: SA23
F58: SA24
F59: SA25
F60: SA26
F61: SA27
F62: SA28
F63: SA29
F64: SA30
F65: SA31
F66: SA32
F67: SA33
F68: SA34a
F69: SA34b
F70: SA34c
F71: SA34d
F72: SA34e
F73: SA35
F74: SA36
F75: SA37
F76: SA38
F77: LGDB_EXPORT

Sheet Template names (hidden)
A1: Common sheet headings
A2: Head1 | B2: =HLOOKUP(MTREF,Headings,2) -> 2020/21 | C2: Prior year -1
A3: Head1A | B3: =HLOOKUP(MTREF,Headings,3) -> 2019/20 | C3: Prior year -2
A4: Head1B | B4: =HLOOKUP(MTREF,Headings,4) -> 2018/19 | C4: Prior year -3
A5: Head2 | B5: =HLOOKUP(MTREF,Headings,5) -> Current Year 2021/22 | C5: Year in which budget is being prepared
A6: Head2A | B6: =HLOOKUP(MTREF,Headings,6) -> 2021/22 | C6: Year in which budget is being prepared
A7: Head3 | B7: =HLOOKUP(MTREF,Headings,7) -> 2022/23 Medium Term Revenue & Expenditure Framework | C7: MTREF name
A8: Head4 | B8: LTFS | C8: Long term financial strategy
A9: Head5 | B9: Audited Outcome
A10: Head5A | B10: Outcome
A11: Head5B | B11: Pre-audit outcome
A12: Head6 | B12: Original Budget
A13: Head7 | B13: Adjusted Budget
A14: Head8 | B14: Full Year Forecast
A15: Head9 | B15: =HLOOKUP(MTREF,Headings,8) -> Budget Year 2022/23 | C15: 1st year of MTREF | D15: Year1
A16: Head10 | B16: =HLOOKUP(MTREF,Headings,9) -> Budget Year +1 2023/24 | C16: 2nd year of MTREF | D16: Year2
A17: Head11 | B17: =HLOOKUP(MTREF,Headings,10) -> Budget Year +2 2024/25 | C17: 3rd year of MTREF | D17: Year3
A18: Head12 | B18: =HLOOKUP(MTREF,Headings,11) -> Forecast 2025/26 | C18: 1st yr of long term forecast | D18: Year4
A19: Head13 | B19: =HLOOKUP(MTREF,Headings,12) -> Forecast 2026/27 | C19: Next yr of long term forecast | D19: Year5
A20: Head14 | B20: =HLOOKUP(MTREF,Headings,13) -> Forecast 2027/28 | C20: Next yr of long term forecast | D20: Year6
A21: Head15 | B21: =HLOOKUP(MTREF,Headings,14) -> Forecast 2028/29 | C21: Next yr of long term forecast | D21: Year7
A22: Head16 | B22: =HLOOKUP(MTREF,Headings,15) -> Forecast 2029/30 | C22: Next yr of long term forecast | D22: Year8
A23: Head17 | B23: =HLOOKUP(MTREF,Headings,16) -> Forecast 2030/31 | C23: Next yr of long term forecast | D23: Year9
A24: Head18 | B24: =HLOOKUP(MTREF,Headings,17) -> Forecast 2031/32 | C24: Next yr of long term forecast | D24: Year10
A25: Head19 | B25: =HLOOKUP(MTREF,Headings,18) -> Forecast 2032/33 | C25: Next yr of long term forecast | D25: Year11
A26: Head20 | B26: =HLOOKUP(MTREF,Headings,19) -> Forecast 2033/34 | C26: Next yr of long term forecast | D26: Year12
A27: Head21 | B27: =HLOOKUP(MTREF,Headings,20) -> Forecast 2034/35 | C27: Next yr of long term forecast | D27: Year13
A28: Head22 | B28: =HLOOKUP(MTREF,Headings,21) -> Forecast 2035/36 | C28: Next yr of long term forecast | D28: Year14
A29: Head23 | B29: =HLOOKUP(MTREF,Headings,22) -> Forecast 2036/37 | C29: Next yr of long term forecast | D29: Year15
A30: Head24 | B30: Description
A31: Head25
A32: Head26 | B32: Vote Description
A33: Head27 | B33: Ref
A34: Head27a | B34: References
A35: Head28 | B35: Surplus/(Deficit) for the year | D35: Result
A36: Head29 | B36: =HLOOKUP(MTREF,Headings,23) -> Annual target 2022/23
A37: Head30 | B37: =HLOOKUP(MTREF,Headings,24) -> Revised target 2022/23
A38: Head31 | B38: Quarter ended 30 September
A39: Head32 | B39: Quarter ended 31 December
A40: Head33 | B40: Quarter ended 31 March
A41: Head34 | B41: Quarter ended 30 June
A42: Head35 | B42: Variance explanation
A43: Head36 | B43: YTD Actual 31 Dec
A44: Head37 | B44: YTD Budget 31 Dec
A45: Head38 | B45: Monthly actual
A46: Head39 | B46: YTD actual
A47: Head40 | B47: YTD budget
A48: Head41 | B48: YTD variance
A49: Head42 | B49: Surplus/ (Deficit) for the yr/period
A50: Head43 | B50: =Head3&" Summary" -> 2022/23 Medium Term Revenue & Expenditure Framework Summary
A51: Head44 | B51: 2001 Census
A52: Head45 | B52: 2011 Census
A53: Head46 | B53: - Adjustments Budget - January 2007
A54: Head47 | B54: Previous target year to complete
A55: Head48 | B55: Present value
A56: Head49
A57: Head50 | B57: Other Adjusts.
A58: Head51 | B58: Accum. Funds
A59: Head52 | B59: Multi-year capital
A60: Head53 | B60: Unfore. Unavoid.
A61: Head54 | B61: Prior Adjusted
A62: Head55 | B62: Nat. or Prov. Govt
A63: Head56 | B63: Total Adjusts.
A64: SFPerf1 | B64: Budgeted Financial Performance
A65: SFPerf2 | B65: Forecast Financial Performance
A66: SFPos1 | B66: Budgeted Financial Position
A67: SFPos2 | B67: Forecast Financial Position
A68: Cash1 | B68: Budget Cash Flow
A69: Cash2 | B69: Forecast Cash Flow
A70: RandM | B70: Expenditure includes repairs & maintenance of R'000
A71: Depart1 | B71: Department 1 - | D71: DEP1
A72: Depart2 | B72: Department 2 - | D72: DEP2
A73: Depart3 | B73: Department 3 - | D73: DEP3
A74: Depart4 | B74: Department 4 - | D74: DEP4
A75: Depart5 | B75: Department 5 - | D75: DEP5
A76: Depart6 | B76: Department 6 - | D76: DEP6
A77: Depart7 | B77: Department 7 - | D77: DEP7
A78: Depart8 | B78: Department 8 - | D78: DEP8
A79: Depart9 | B79: Department 9 - | D79: DEP9
A80: Depart10 | B80: Department 10 - | D80: DEP10
A81: Depart11 | B81: Department 11 - | D81: DEP11
A82: Depart12 | B82: Department 12 - | D82: DEP12
A83: Depart13 | B83: Department 13 - | D83: DEP13
A84: Depart14 | B84: Department 14 - | D84: DEP14
A87: Base year of forecast column selection names
A88: Choose | B88: ACT
B89: APP
B90: ADJ
A92: Standard nomenclature
A93: Muni | B93: ='Lookup and lists'!B28 -> LIM353 Molemole
A94: Municipal Entities | B94: 2 | C94: Type of report: | D94: 1
A95: =IF((MuniEntities=1)*(MuniType=2),"YES","NO") -> NO | B95: Does this municipality have entities (consolidated budget and entity budgets required)? YES/NO
A96: Entity 1 | B96: (Pty) Ltd Example 1 - Municipal entity - | D96: Ent1
A97: Entity 2 | B97: (Pty) Ltd Example 2 - Municipal entity - | D97: Ent2
A98: Entity 3 | B98: Municipal Entity Example 3 | D98: Ent3
A99: Budget approval tables | C99: Chart x-ref | D99: Sch/Tab/Ch | E99: Alternative for municipalities without entities | F99: Alternative for municipalities without entities
B100: =IF(Consolques="YES",E100,F100) -> Table A1 Budget Summary | D100: Table A1 | E100: =D100&"Consolidated Budget Summary" -> Table A1 Consolidated Budget Summary | F100: =D100&"Budget Summary" -> Table A1 Budget Summary
B101: Table A2 Budgeted Financial Performance (revenue and expenditure by functional classification) | C101: Charts 5, 6 | D101: Table A2 | E101: =D101&"Consolidated Budgeted Financial Performance (revenue and expenditure by functional classification)" -> Table A2 Consolidated Budgeted Financial Performance (revenue and expenditure by functional classification) | F101: =D101&"Budgeted Financial Performance (revenue and expenditure by functional classification)" -> Table A2 Budgeted Financial Performance (revenue and expenditure by functional classification)
B102: Table A3 Budgeted Financial Performance (revenue and expenditure by municipal vote) | D102: Table A3 | E102: =D102&"Consolidated Budgeted Financial Performance (revenue and expenditure by municipal vote)" -> Table A3 Consolidated Budgeted Financial Performance (revenue and expenditure by municipal vote) | F102: =D102&"Budgeted Financial Performance (revenue and expenditure by municipal vote)" -> Table A3 Budgeted Financial Performance (revenue and expenditure by municipal vote)
B103: Table A4 Budgeted Financial Performance (revenue and expenditure) | C103: Charts 1, 2, 3, 4 | D103: Table A4 | E103: =D103&"Consolidated Budgeted Financial Performance (revenue and expenditure)" -> Table A4 Consolidated Budgeted Financial Performance (revenue and expenditure) | F103: =D103&"Budgeted Financial Performance (revenue and expenditure)" -> Table A4 Budgeted Financial Performance (revenue and expenditure)
B104: Table A5 Budgeted Capital Expenditure by vote, functional classification and funding | C104: Charts 7, 8, 9, 10, 20 | D104: Table A5 | E104: =D104&"Consolidated Budgeted Capital Expenditure by vote, functional classification and funding" -> Table A5 Consolidated Budgeted Capital Expenditure by vote, functional classification and funding | F104: =D104&"Budgeted Capital Expenditure by vote, functional classification and funding" -> Table A5 Budgeted Capital Expenditure by vote, functional classification and funding
B105: Table A6 Budgeted Financial Position | D105: Table A6 | E105: =D105&"Consolidated Budgeted Financial Position" -> Table A6 Consolidated Budgeted Financial Position | F105: =D105&"Budgeted Financial Position" -> Table A6 Budgeted Financial Position
B106: Table A7 Budgeted Cash Flows | D106: Table A7 | E106: =D106&"Consolidated Budgeted Cash Flows" -> Table A7 Consolidated Budgeted Cash Flows | F106: =D106&"Budgeted Cash Flows" -> Table A7 Budgeted Cash Flows
B107: Table A8 Cash backed reserves/accumulated surplus reconciliation | D107: Table A8 | E107: =D107&"Consolidated Cash backed reserves/accumulated surplus reconciliation" -> Table A8 Consolidated Cash backed reserves/accumulated surplus reconciliation | F107: =D107&"Cash backed reserves/accumulated surplus reconciliation" -> Table A8 Cash backed reserves/accumulated surplus reconciliation
B108: Table A9 Asset Management | D108: Table A9 | E108: =D108&"Consolidated Asset Management" -> Table A9 Consolidated Asset Management | F108: =D108&"Asset Management" -> Table A9 Asset Management
B109: Table A10 Basic service delivery measurement | D109: Table A10 | E109: =D109&"Consolidated basic service delivery measurement" -> Table A10 Consolidated basic service delivery measurement | F109: =D109&"Basic service delivery measurement" -> Table A10 Basic service delivery measurement
A110: Supportinging Tables to the Budget Approval Tables | C110: =$C$99 -> Chart x-ref | D110: =$D$99 -> Sch/Tab/Ch
A111: Supporting Table SA1 | B111: =A111&" Supportinging detail to 'Budgeted Financial Performance'" -> Supporting Table SA1 Supportinging detail to 'Budgeted Financial Performance'
A112: Supporting Table SA2 | B112: =IF(Consolques="YES",E112,F112) -> Supporting Table SA2 Matrix Financial Performance Budget (revenue source/expenditure type and dept.) | E112: =A112&"Consolidated Matrix Financial Performance Budget (revenue source/expenditure type & dept.)" -> Supporting Table SA2 Consolidated Matrix Financial Performance Budget (revenue source/expenditure type & dept.) | F112: =A112&"Matrix Financial Performance Budget (revenue source/expenditure type and dept.)" -> Supporting Table SA2 Matrix Financial Performance Budget (revenue source/expenditure type and dept.)
A113: Supporting Table SA3 | B113: =A113&"Supportinging detail to 'Budgeted Financial Position'" -> Supporting Table SA3 Supportinging detail to 'Budgeted Financial Position'
A114: Supporting Table SA4 | B114: =A114&"Reconciliation of IDP strategic objectives and budget (revenue)" -> Supporting Table SA4 Reconciliation of IDP strategic objectives and budget (revenue) | C114: Chart 11
A115: Supporting Table SA5 | B115: =A115&"Reconciliation of IDP strategic objectives and budget (operating expenditure)" -> Supporting Table SA5 Reconciliation of IDP strategic objectives and budget (operating expenditure) | C115: Chart 12
A116: Supporting Table SA6 | B116: =A116&"Reconciliation of IDP strategic objectives and budget (capital expenditure)" -> Supporting Table SA6 Reconciliation of IDP strategic objectives and budget (capital expenditure) | C116: Chart 13
A117: Supporting Table SA7 | B117: =A117&" Measureable performance objectives" -> Supporting Table SA7 Measureable performance objectives
A118: Supporting Table SA8 | B118: =A118&" Performance indicators and benchmarks" -> Supporting Table SA8 Performance indicators and benchmarks | C118: Chts 15-19
A119: Supporting Table SA9 | B119: =A119&" Social, economic and demographic statistics and assumptions" -> Supporting Table SA9 Social, economic and demographic statistics and assumptions
A120: Supporting Table SA10 | B120: =A120&" Funding measurement" -> Supporting Table SA10 Funding measurement | C120: Chart 14
A121: Supporting Table SA11 | B121: =A121&" Property rates summary" -> Supporting Table SA11 Property rates summary
A122: Supporting Table SA12a | B122: =A122&" Property rates by category (current year)" -> Supporting Table SA12a Property rates by category (current year)
A123: Supporting Table SA12b | B123: =A123&" Property rates by category (budget year)" -> Supporting Table SA12b Property rates by category (budget year)
A124: Supporting Table SA13a | B124: =A124&" Service Tariffs by category" -> Supporting Table SA13a Service Tariffs by category
A125: Supporting Table SA13b | B125: =A125&" Service Tariffs by category - explanatory" -> Supporting Table SA13b Service Tariffs by category - explanatory
A126: Supporting Table SA14 | B126: =A126&" Household bills" -> Supporting Table SA14 Household bills
A127: Supporting Table SA15 | B127: =A127&" Investment particulars by type" -> Supporting Table SA15 Investment particulars by type
A128: Supporting Table SA16 | B128: =A128&" Investment particulars by maturity" -> Supporting Table SA16 Investment particulars by maturity
A129: Supporting Table SA17 | B129: =A129&" Borrowing" -> Supporting Table SA17 Borrowing
A130: Supporting Table SA18 | B130: =A130&" Transfers and grant receipts" -> Supporting Table SA18 Transfers and grant receipts
A131: Supporting Table SA19 | B131: =A131&" Expenditure on transfers and grant programme" -> Supporting Table SA19 Expenditure on transfers and grant programme
A132: Supporting Table SA20 | B132: =A132&" Reconciliation of transfers, grant receipts and unspent funds" -> Supporting Table SA20 Reconciliation of transfers, grant receipts and unspent funds
A133: Supporting Table SA21 | B133: =A133&" Transfers and grants made by the municipality" -> Supporting Table SA21 Transfers and grants made by the municipality
A134: Supporting Table SA22 | B134: =A134&" Summary councillor and staff benefits" -> Supporting Table SA22 Summary councillor and staff benefits
A135: Supporting Table SA23 | B135: =A135&" Salaries, allowances & benefits (political office bearers/councillors/senior managers)" -> Supporting Table SA23 Salaries, allowances & benefits (political office bearers/councillors/senior managers)
A136: Supporting Table SA24 | B136: =A136&" Summary of personnel numbers" -> Supporting Table SA24 Summary of personnel numbers
A137: Supporting Table SA25 | B137: =IF(Consolques="YES",E137,F137) -> Supporting Table SA25 Budgeted monthly revenue and expenditure | E137: =A137&" Consolidated budgeted monthly revenue and expenditure" -> Supporting Table SA25 Consolidated budgeted monthly revenue and expenditure | F137: =A137&" Budgeted monthly revenue and expenditure" -> Supporting Table SA25 Budgeted monthly revenue and expenditure
A138: Supporting Table SA26 | B138: Supporting Table SA26 Budgeted monthly revenue and expenditure (municipal vote) | E138: =A138&" Consolidated budgeted monthly revenue and expenditure (municipal vote)" -> Supporting Table SA26 Consolidated budgeted monthly revenue and expenditure (municipal vote) | F138: =A138&" Budgeted monthly revenue and expenditure (municipal vote)" -> Supporting Table SA26 Budgeted monthly revenue and expenditure (municipal vote)
A139: Supporting Table SA27 | B139: Supporting Table SA27 Budgeted monthly revenue and expenditure (functional classification) | E139: =A139&" Consolidated budgeted monthly revenue and expenditure (functional classification)" -> Supporting Table SA27 Consolidated budgeted monthly revenue and expenditure (functional classification) | F139: =A139&" Budgeted monthly revenue and expenditure (functional classification)" -> Supporting Table SA27 Budgeted monthly revenue and expenditure (functional classification)
A140: Supporting Table SA28 | B140: Supporting Table SA28 Budgeted monthly capital expenditure (municipal vote) | E140: =A140&" Consolidated budgeted monthly capital expenditure (municipal vote)" -> Supporting Table SA28 Consolidated budgeted monthly capital expenditure (municipal vote) | F140: =A140&" Budgeted monthly capital expenditure (municipal vote)" -> Supporting Table SA28 Budgeted monthly capital expenditure (municipal vote)
A141: Supporting Table SA29 | B141: Supporting Table SA29 Budgeted monthly capital expenditure (functional classification) | E141: =A141&" Consolidated budgeted monthly capital expenditure (functional classification)" -> Supporting Table SA29 Consolidated budgeted monthly capital expenditure (functional classification) | F141: =A141&" Budgeted monthly capital expenditure (functional classification)" -> Supporting Table SA29 Budgeted monthly capital expenditure (functional classification)
A142: Supporting Table SA30 | B142: Supporting Table SA30 Budgeted monthly cash flow | E142: =A142&" Consolidated budgeted monthly cash flow" -> Supporting Table SA30 Consolidated budgeted monthly cash flow | F142: =A142&" Budgeted monthly cash flow" -> Supporting Table SA30 Budgeted monthly cash flow
A143: Supporting Table SA31 | B143: NOT REQUIRED - municipality does not have entities | E143: =A143&" Aggregated entity budget" -> Supporting Table SA31 Aggregated entity budget | F143: NOT REQUIRED - municipality does not have entities
A144: Supporting Table SA32 | B144: =A144&" List of external mechanisms" -> Supporting Table SA32 List of external mechanisms
A145: Supporting Table SA33 | B145: =A145&" Contracts having future budgetary implications" -> Supporting Table SA33 Contracts having future budgetary implications
A146: Supporting Table SA34a | B146: =IF(Consolques="YES",E146,F146) -> Supporting Table SA34a Capital expenditure on new assets by asset class | E146: =A146&" Consolidated capital expenditure on new assets by asset class" -> Supporting Table SA34a Consolidated capital expenditure on new assets by asset class | F146: =A146&" Capital expenditure on new assets by asset class" -> Supporting Table SA34a Capital expenditure on new assets by asset class
A147: Supporting Table SA34b | B147: Supporting Table SA34b Capital expenditure on the renewal of existing assets by asset class | E147: =A147&" Consolidated capital expenditure on the renewal of existing assets by asset class" -> Supporting Table SA34b Consolidated capital expenditure on the renewal of existing assets by asset class | F147: =A147&" Capital expenditure on the renewal of existing assets by asset class" -> Supporting Table SA34b Capital expenditure on the renewal of existing assets by asset class
A148: Supporting Table SA34c | B148: Supporting Table SA34c Repairs and maintenance expenditure by asset class | E148: =A148&" Consolidated repairs and maintenance by asset class" -> Supporting Table SA34c Consolidated repairs and maintenance by asset class | F148: =A148&" Repairs and maintenance expenditure by asset class" -> Supporting Table SA34c Repairs and maintenance expenditure by asset class
A149: Supporting Table SA34d | B149: =IF(Consolques="YES",E149,F149) -> Supporting Table SA34d Depreciation by asset class | E149: =A149&" Consolidated Depreciation by asset class" -> Supporting Table SA34d Consolidated Depreciation by asset class | F149: =A149&" Depreciation by asset class" -> Supporting Table SA34d Depreciation by asset class
A150: Supporting Table SA34e | B150: =IF(Consolques="YES",E150,F150) -> Supporting Table SA34e Capital expenditure on the upgrading of existing assets by asset class | E150: =A150&" Consolidated capital expenditure on the upgrading of existing assets by asset class" -> Supporting Table SA34e Consolidated capital expenditure on the upgrading of existing assets by asset class | F150: =A150&" Capital expenditure on the upgrading of existing assets by asset class" -> Supporting Table SA34e Capital expenditure on the upgrading of existing assets by asset class
A151: Supporting Table SA35 | B151: Supporting Table SA35 Future financial implications of the capital budget | E151: =A151&" Consolidated future financial implications of the capital budget" -> Supporting Table SA35 Consolidated future financial implications of the capital budget | F151: =A151& " Future financial implications of the capital budget" -> Supporting Table SA35 Future financial implications of the capital budget
A152: Supporting Table SA36 | B152: Supporting Table SA36 Detailed capital budget | E152: =A152&" Consolidated detailed capital budget" -> Supporting Table SA36 Consolidated detailed capital budget | F152: =A152& " Detailed capital budget" -> Supporting Table SA36 Detailed capital budget
A153: Supporting Table SA37 | B153: Supporting Table SA37 Projects delayed from previous financial year/s | E153: =A153&" Consolidated projects delayed from previous financial year/s" -> Supporting Table SA37 Consolidated projects delayed from previous financial year/s | F153: =A153& " Projects delayed from previous financial year/s" -> Supporting Table SA37 Projects delayed from previous financial year/s
A154: Supporting Table SA38 | B154: =IF(Consolques="YES",E154,F154) -> Supporting Table SA38 Detailed operational projects | E154: =A154&" Consolidated detailed operational projects" -> Supporting Table SA38 Consolidated detailed operational projects | F154: =A154& " Detailed operational projects" -> Supporting Table SA38 Detailed operational projects
A156: Budget Charts | B156: Charts | C156: Cross reference
A157: Chart A1 | B157: =A157&"Revenue by Municipal Vote" -> Chart A1 Revenue by Municipal Vote
A158: Chart A2 | B158: =A158&"Expenditure by Municipal Vote" -> Chart A2 Expenditure by Municipal Vote
A159: Chart A3 | B159: =A159&"Revenue by Standard Classification" -> Chart A3 Revenue by Standard Classification | C159: A2
A160: Chart A4 | B160: =A160&"Expenditure by Standard Classification" -> Chart A4 Expenditure by Standard Classification | C160: A2
A161: Chart A5 | B161: =A161&"Revenue by Major Source (refer 'Minor' source for 'Other Revenue' allocation" -> Chart A5 Revenue by Major Source (refer 'Minor' source for 'Other Revenue' allocation | C161: A3
A162: Chart A6 | B162: =A162&"Revenue by Minor Source (Other)" -> Chart A6 Revenue by Minor Source (Other) | C162: A3
A163: Chart A7 | B163: =A163&"Expenditure by Major Type" -> Chart A7 Expenditure by Major Type | C163: A3
A164: Chart A8 | B164: =A164&"Expenditure by Minor Type (Other)" -> Chart A8 Expenditure by Minor Type (Other) | C164: A3
A165: Chart A9 | B165: =A165&"Capital Expenditure by Municipal Vote/Appropriation (Major)" -> Chart A9 Capital Expenditure by Municipal Vote/Appropriation (Major) | C165: A5
A166: Chart A10 | B166: =A166&"Capital Expenditure by Municipal Vote/Appropriation (Minor)" -> Chart A10 Capital Expenditure by Municipal Vote/Appropriation (Minor) | C166: A5
A167: Chart A11 | B167: =A166&"Capital Expenditure by Standard Classification" -> Chart A10 Capital Expenditure by Standard Classification | C167: A5
A168: Chart A12 | B168: =A168&"Capital expenditure performance trend" -> Chart A12 Capital expenditure performance trend | C168: A5
A169: Chart A13 | B169: =A169&"Capital funding by Source" -> Chart A13 Capital funding by Source | C169: A5
A170: Chart A14 | B170: =A170&"Cash flow trend" -> Chart A14 Cash flow trend | C170: A7
A171: Chart A15 | B171: =A171&"IDP Strategic Objective - Revenue" -> Chart A15 IDP Strategic Objective - Revenue | C171: Table A4
A172: Chart A16 | B172: =A172&"IDP Strategic Objective - Expenditure" -> Chart A16 IDP Strategic Objective - Expenditure | C172: Table A5
A173: Chart A17 | B173: =A173&"IDP Strategic Objective - Capital Expenditure" -> Chart A17 IDP Strategic Objective - Capital Expenditure | C173: Table A6
A174: Chart A18 | B174: =A174&"Debt (borrowing to Total Revenue)" -> Chart A18 Debt (borrowing to Total Revenue) | C174: Table A8
A175: Chart A19 | B175: =A175&"Debtors' trend analysis" -> Chart A19 Debtors' trend analysis | C175: Table A8
A176: Chart A20 | B176: =A176&"Distribution losses" -> Chart A20 Distribution losses | C176: Table A8
A177: Chart A21 | B177: =A177&"Borrowed funding of capital expenditure" -> Chart A21 Borrowed funding of capital expenditure | C177: Table A8
A178: Chart A22 | B178: =A178&"Expenditure analysis (% of Revenue)" -> Chart A22 Expenditure analysis (% of Revenue) | C178: Table A8
A179: Chart A23 | B179: =A179&"Increases in service charges" -> Chart A23 Increases in service charges | C179: Table A10

Sheet Lookup and lists (hidden)
A1: Description | B1: 2013 | C1: 2014 | D1: 2015 | E1: 2016 | F1: 2017 | G1: 2018 | H1: 2019 | I1: 2020 | J1: 2021 | K1: 2022 | L1: 2023 | M1: 2024 | N1: 2025 | O1: 2026 | Q1: Lists | Y1: Grants: | Z1: National - opex | AA1: Provincial - opex | AB1: National - capex | AC1: Provincial - capex
A2: ='Template names'!C2 -> Prior year -1 | B2: =B1-2&"/"&RIGHT(B1,2)-1 -> 2011/12 | C2: 2012/13 | D2: 2013/14 | E2: 2014/15 | F2: 2015/16 | G2: 2016/17 | H2: 2017/18 | I2: 2018/19 | J2: =J1-2&"/"&RIGHT(J1,2)-1 -> 2019/20 | K2: 2020/21 | L2: 2021/22 | M2: 2022/23 | N2: 2023/24 | O2: 2024/25 | Q2: Yes | R2: <1 | S2: <4 | T2: Market | U2: Land & impr. | V2: Yes | W2: Uniform | X2: Yrs | Z2: Local Government Equitable Share | AA2: Health subsidy | AB2: Municipal Infrastructure Grant (MIG) | AC2: Agriculture
A3: ='Template names'!C3 -> Prior year -2 | B3: =B1-3&"/"&RIGHT(B1,2)-2 -> 2010/11 | C3: 2011/12 | D3: 2012/13 | E3: 2013/14 | F3: 2014/15 | G3: 2015/16 | H3: 2016/17 | I3: 2017/18 | J3: =J1-3&"/"&RIGHT(J1,2)-2 -> 2018/19 | K3: 2019/20 | L3: 2020/21 | M3: 2021/22 | N3: 2022/23 | O3: 2023/24 | Q3: No | R3: 1 | S3: 4 | T3: Dep.Replace | U3: Land only | V3: No | W3: Variable | X3: Mths | Z3: RSC Levy Replacement | AA3: Ambulance subsidy | AB3: Public Transport and Systems | AC3: Education
A4: ='Template names'!C4 -> Prior year -3 | B4: =B1-4&"/"&RIGHT(B1,2)-3 -> 2009/10 | C4: 2010/11 | D4: 2011/12 | E4: 2012/13 | F4: 2013/14 | G4: 2014/15 | H4: 2015/16 | I4: 2016/17 | J4: =J1-4&"/"&RIGHT(J1,2)-3 -> 2017/18 | K4: 2018/19 | L4: 2019/20 | M4: 2020/21 | N4: 2021/22 | O4: 2022/23 | R4: 2 | S4: 5 | T4: Other | U4: Other | Z4: Finance Management | AA4: Housing | AB4: Rural Transport Services and Infrastructure | AC4: Health
A5: ='Template names'!C5 -> Year in which budget is being prepared | B5: ="Current Year "& B1-1&"/"&RIGHT(B1,2) -> Current Year 2012/13 | C5: Current Year 2013/14 | D5: Current Year 2014/15 | E5: Current Year 2015/16 | F5: Current Year 2016/17 | G5: Current Year 2017/18 | H5: Current Year 2018/19 | I5: Current Year 2019/20 | J5: ="Current Year "& J1-1&"/"&RIGHT(J1,2) -> Current Year 2020/21 | K5: Current Year 2021/22 | L5: Current Year 2022/23 | M5: Current Year 2023/24 | N5: Current Year 2024/25 | O5: Current Year 2025/26 | R5: 3 | S5: 6 | Z5: Municipal Systems Improvement | AA5: Sport and Recreation | AB5: Regional Bulk Infrastructure | AC5: Housing and Local Government
A6: ='Template names'!C6 -> Year in which budget is being prepared | B6: =B1-1&"/"&RIGHT(B1,2) -> 2012/13 | C6: 2013/14 | D6: 2014/15 | E6: 2015/16 | F6: 2016/17 | G6: 2017/18 | H6: 2018/19 | I6: 2019/20 | J6: =J1-1&"/"&RIGHT(J1,2) -> 2020/21 | K6: 2021/22 | L6: 2022/23 | M6: 2023/24 | N6: 2024/25 | O6: 2025/26 | R6: 4 | S6: 6-10 | Z6: Water Services Operating Subsidy | AB6: Rural Households Infrastructure | AC6: Other Departments
A7: ='Template names'!C7 -> MTREF name | B7: =B1&"/"&RIGHT(B1,2)+1&" Medium Term Revenue & Expenditure Framework" -> 2013/14 Medium Term Revenue & Expenditure Framework | C7: 2014/15 Medium Term Revenue & Expenditure Framework | D7: 2015/16 Medium Term Revenue & Expenditure Framework | E7: 2016/17 Medium Term Revenue & Expenditure Framework | F7: 2017/18 Medium Term Revenue & Expenditure Framework | G7: 2018/19 Medium Term Revenue & Expenditure Framework | H7: 2019/20 Medium Term Revenue & Expenditure Framework | I7: 2020/21 Medium Term Revenue & Expenditure Framework | J7: =J1&"/"&RIGHT(J1,2)+1&" Medium Term Revenue & Expenditure Framework" -> 2021/22 Medium Term Revenue & Expenditure Framework | K7: 2022/23 Medium Term Revenue & Expenditure Framework | L7: 2023/24 Medium Term Revenue & Expenditure Framework | M7: 2024/25 Medium Term Revenue & Expenditure Framework | N7: 2025/26 Medium Term Revenue & Expenditure Framework | O7: 2026/27 Medium Term Revenue & Expenditure Framework | R7: 5 | S7: >10 | Z7: Energy Efficiency and Demand Management | AB7: Neighbourhood Development Partnership | AC7: Public Works, Roads, Transport
A8: ='Template names'!C15 -> 1st year of MTREF | B8: ="Budget Year "&B1&"/"&RIGHT(B1,2)+1 -> Budget Year 2013/14 | C8: Budget Year 2014/15 | D8: Budget Year 2015/16 | E8: Budget Year 2016/17 | F8: Budget Year 2017/18 | G8: Budget Year 2018/19 | H8: Budget Year 2019/20 | I8: Budget Year 2020/21 | J8: ="Budget Year "&J1&"/"&RIGHT(J1,2)+1 -> Budget Year 2021/22 | K8: Budget Year 2022/23 | L8: Budget Year 2023/24 | M8: Budget Year 2024/25 | N8: Budget Year 2025/26 | O8: Budget Year 2026/27 | R8: >5 | Z8: Integrated National Electrification Programme | AB8: 2010 FIFA World Cup Stadiums Development | AC8: Sport and Recreation
A9: ='Template names'!C16 -> 2nd year of MTREF | B9: ="Budget Year +1 "&B1+1&"/"&RIGHT(B1,2)+2 -> Budget Year +1 2014/15 | C9: Budget Year +1 2015/16 | D9: Budget Year +1 2016/17 | E9: Budget Year +1 2017/18 | F9: Budget Year +1 2018/19 | G9: Budget Year +1 2019/20 | H9: Budget Year +1 2020/21 | I9: Budget Year +1 2021/22 | J9: ="Budget Year +1 "&J1+1&"/"&RIGHT(J1,2)+2 -> Budget Year +1 2022/23 | K9: Budget Year +1 2023/24 | L9: Budget Year +1 2024/25 | M9: Budget Year +1 2025/26 | N9: Budget Year +1 2026/27 | O9: Budget Year +1 2027/28 | Z9: Municipal Drought Relief
A10: ='Template names'!C17 -> 3rd year of MTREF | B10: ="Budget Year +2 "&B1+2&"/"&RIGHT(B1,2)+3 -> Budget Year +2 2015/16 | C10: Budget Year +2 2016/17 | D10: Budget Year +2 2017/18 | E10: Budget Year +2 2018/19 | F10: Budget Year +2 2019/20 | G10: Budget Year +2 2020/21 | H10: Budget Year +2 2021/22 | I10: Budget Year +2 2022/23 | J10: ="Budget Year +2 "&J1+2&"/"&RIGHT(J1,2)+3 -> Budget Year +2 2023/24 | K10: Budget Year +2 2024/25 | L10: Budget Year +2 2025/26 | M10: Budget Year +2 2026/27 | N10: Budget Year +2 2027/28 | O10: Budget Year +2 2028/29 | Z10: 2010 FIFA World Cup Operating
A11: ='Template names'!C18 -> 1st yr of long term forecast | B11: ="Forecast "&B1+3&"/"&RIGHT(B1,2)+4 -> Forecast 2016/17 | C11: Forecast 2017/18 | D11: Forecast 2018/19 | E11: Forecast 2019/20 | F11: Forecast 2020/21 | G11: Forecast 2021/22 | H11: Forecast 2022/23 | I11: Forecast 2023/24 | J11: ="Forecast "&J1+3&"/"&RIGHT(J1,2)+4 -> Forecast 2024/25 | K11: Forecast 2025/26 | L11: Forecast 2026/27 | M11: Forecast 2027/28 | N11: Forecast 2028/29 | O11: Forecast 2029/30 | Z11: Electricity Demand Side Management
A12: ='Template names'!C19 -> Next yr of long term forecast | B12: ="Forecast "&B1+4&"/"&RIGHT(B1,2)+5 -> Forecast 2017/18 | C12: Forecast 2018/19 | D12: Forecast 2019/20 | E12: Forecast 2020/21 | F12: Forecast 2021/22 | G12: Forecast 2022/23 | H12: Forecast 2023/24 | I12: Forecast 2024/25 | J12: ="Forecast "&J1+4&"/"&RIGHT(J1,2)+5 -> Forecast 2025/26 | K12: Forecast 2026/27 | L12: Forecast 2027/28 | M12: Forecast 2028/29 | N12: Forecast 2029/30 | O12: Forecast 2030/31 | Z12: EPWP Incentive
A13: ='Template names'!C20 -> Next yr of long term forecast | B13: ="Forecast "&B1+5&"/"&RIGHT(B1,2)+6 -> Forecast 2018/19 | C13: Forecast 2019/20 | D13: Forecast 2020/21 | E13: Forecast 2021/22 | F13: Forecast 2022/23 | G13: Forecast 2023/24 | H13: Forecast 2024/25 | I13: Forecast 2025/26 | J13: ="Forecast "&J1+5&"/"&RIGHT(J1,2)+6 -> Forecast 2026/27 | K13: Forecast 2027/28 | L13: Forecast 2028/29 | M13: Forecast 2029/30 | N13: Forecast 2030/31 | O13: Forecast 2031/32
A14: ='Template names'!C21 -> Next yr of long term forecast | B14: ="Forecast "&B1+6&"/"&RIGHT(B1,2)+7 -> Forecast 2019/20 | C14: Forecast 2020/21 | D14: Forecast 2021/22 | E14: Forecast 2022/23 | F14: Forecast 2023/24 | G14: Forecast 2024/25 | H14: Forecast 2025/26 | I14: Forecast 2026/27 | J14: ="Forecast "&J1+6&"/"&RIGHT(J1,2)+7 -> Forecast 2027/28 | K14: Forecast 2028/29 | L14: Forecast 2029/30 | M14: Forecast 2030/31 | N14: Forecast 2031/32 | O14: Forecast 2032/33 | Z14: Asset Class | AA14: Asset sub-class old | AB14: Asset sub-class | AC14: IUDF | AD14: MTSF
A15: ='Template names'!C22 -> Next yr of long term forecast | B15: ="Forecast "&B1+7&"/"&RIGHT(B1,2)+8 -> Forecast 2020/21 | C15: Forecast 2021/22 | D15: Forecast 2022/23 | E15: Forecast 2023/24 | F15: Forecast 2024/25 | G15: Forecast 2025/26 | H15: Forecast 2026/27 | I15: Forecast 2027/28 | J15: ="Forecast "&J1+7&"/"&RIGHT(J1,2)+8 -> Forecast 2028/29 | K15: Forecast 2029/30 | L15: Forecast 2030/31 | M15: Forecast 2031/32 | N15: Forecast 2032/33 | O15: Forecast 2033/34
A16: ='Template names'!C23 -> Next yr of long term forecast | B16: ="Forecast "&B1+8&"/"&RIGHT(B1,2)+9 -> Forecast 2021/22 | C16: Forecast 2022/23 | D16: Forecast 2023/24 | E16: Forecast 2024/25 | F16: Forecast 2025/26 | G16: Forecast 2026/27 | H16: Forecast 2027/28 | I16: Forecast 2028/29 | J16: ="Forecast "&J1+8&"/"&RIGHT(J1,2)+9 -> Forecast 2029/30 | K16: Forecast 2030/31 | L16: Forecast 2031/32 | M16: Forecast 2032/33 | N16: Forecast 2033/34 | O16: Forecast 2034/35 | Z16: Roads Infrastructure | AA16: Roads, Pavements & Bridges | AB16: Roads | AC16: Spatial integration | AD16: Quality basic education
A17: ='Template names'!C24 -> Next yr of long term forecast | B17: ="Forecast "&B1+9&"/"&RIGHT(B1,2)+10 -> Forecast 2022/23 | C17: Forecast 2023/24 | D17: Forecast 2024/25 | E17: Forecast 2025/26 | F17: Forecast 2026/27 | G17: Forecast 2027/28 | H17: Forecast 2028/29 | I17: Forecast 2029/30 | J17: ="Forecast "&J1+9&"/"&RIGHT(J1,2)+10 -> Forecast 2030/31 | K17: Forecast 2031/32 | L17: Forecast 2032/33 | M17: Forecast 2033/34 | N17: Forecast 2034/35 | O17: Forecast 2035/36 | Z17: Storm water Infrastructure | AA17: Storm water | AB17: Road Structures | AC17: Inclusion and access | AD17: A long and healthy life for all South Africans
A18: ='Template names'!C25 -> Next yr of long term forecast | B18: ="Forecast "&B1+10&"/"&RIGHT(B1,2)+11 -> Forecast 2023/24 | C18: Forecast 2024/25 | D18: Forecast 2025/26 | E18: Forecast 2026/27 | F18: Forecast 2027/28 | G18: Forecast 2028/29 | H18: Forecast 2029/30 | I18: Forecast 2030/31 | J18: ="Forecast "&J1+10&"/"&RIGHT(J1,2)+11 -> Forecast 2031/32 | K18: Forecast 2032/33 | L18: Forecast 2033/34 | M18: Forecast 2034/35 | N18: Forecast 2035/36 | O18: Forecast 2036/37 | Z18: Electrical Infrastructure | AA18: Generation | AB18: Road Furniture | AC18: Growth | AD18: All people in South Africa are and feel safe
A19: ='Template names'!C26 -> Next yr of long term forecast | B19: ="Forecast "&B1+11&"/"&RIGHT(B1,2)+12 -> Forecast 2024/25 | C19: Forecast 2025/26 | D19: Forecast 2026/27 | E19: Forecast 2027/28 | F19: Forecast 2028/29 | G19: Forecast 2029/30 | H19: Forecast 2030/31 | I19: Forecast 2031/32 | J19: ="Forecast "&J1+11&"/"&RIGHT(J1,2)+12 -> Forecast 2032/33 | K19: Forecast 2033/34 | L19: Forecast 2034/35 | M19: Forecast 2035/36 | N19: Forecast 2036/37 | O19: Forecast 2037/38 | Z19: Water Supply Infrastructure | AA19: Transmission & Reticulation | AB19: Capital Spares | AC19: Governance | AD19: Decent employment through inclusive growth
A20: ='Template names'!C27 -> Next yr of long term forecast | B20: ="Forecast "&B1+12&"/"&RIGHT(B1,2)+13 -> Forecast 2025/26 | C20: Forecast 2026/27 | D20: Forecast 2027/28 | E20: Forecast 2028/29 | F20: Forecast 2029/30 | G20: Forecast 2030/31 | H20: Forecast 2031/32 | I20: Forecast 2032/33 | J20: ="Forecast "&J1+12&"/"&RIGHT(J1,2)+13 -> Forecast 2033/34 | K20: Forecast 2034/35 | L20: Forecast 2035/36 | M20: Forecast 2036/37 | N20: Forecast 2037/38 | O20: Forecast 2038/39 | Z20: Sanitation Infrastructure | AA20: Street Lighting | AB20: Drainage Collection | AD20: A skilled and capable workforce to support an inclusive growth path
A21: ='Template names'!C28 -> Next yr of long term forecast | B21: ="Forecast "&B1+13&"/"&RIGHT(B1,2)+14 -> Forecast 2026/27 | C21: Forecast 2027/28 | D21: Forecast 2028/29 | E21: Forecast 2029/30 | F21: Forecast 2030/31 | G21: Forecast 2031/32 | H21: Forecast 2032/33 | I21: Forecast 2033/34 | J21: ="Forecast "&J1+13&"/"&RIGHT(J1,2)+14 -> Forecast 2034/35 | K21: Forecast 2035/36 | L21: Forecast 2036/37 | M21: Forecast 2037/38 | N21: Forecast 2038/39 | O21: Forecast 2039/40 | Z21: Solid Waste Infrastructure | AA21: Dams & Reservoirs | AB21: Storm water Conveyance | AD21: An efficient, competitive and responsive economic infrastructure network
A22: ='Template names'!C29 -> Next yr of long term forecast | B22: ="Forecast "&B1+14&"/"&RIGHT(B1,2)+15 -> Forecast 2027/28 | C22: Forecast 2028/29 | D22: Forecast 2029/30 | E22: Forecast 2030/31 | F22: Forecast 2031/32 | G22: Forecast 2032/33 | H22: Forecast 2033/34 | I22: Forecast 2034/35 | J22: ="Forecast "&J1+14&"/"&RIGHT(J1,2)+15 -> Forecast 2035/36 | K22: Forecast 2036/37 | L22: Forecast 2037/38 | M22: Forecast 2038/39 | N22: Forecast 2039/40 | O22: Forecast 2040/41 | Z22: Rail Infrastructure | AA22: Water purification | AB22: Attenuation | AD22: Vibrant, equitable, sustainable rural communities contributing towards food security for all
A23: Adjustments Budget | B23: ="Annual target " & B1&"/"&RIGHT(B1,2)+1 -> Annual target 2013/14 | C23: Annual target 2014/15 | D23: Annual target 2015/16 | E23: Annual target 2016/17 | F23: Annual target 2017/18 | G23: Annual target 2018/19 | H23: Annual target 2019/20 | I23: Annual target 2020/21 | J23: ="Annual target " & J1&"/"&RIGHT(J1,2)+1 -> Annual target 2021/22 | K23: Annual target 2022/23 | L23: Annual target 2023/24 | M23: Annual target 2024/25 | N23: Annual target 2025/26 | O23: Annual target 2026/27 | Z23: Coastal Infrastructure | AA23: Reticulation | AB23: Power Plants | AD23: Sustainable human settlements and improved quality of household life
A24: =A23 -> Adjustments Budget | B24: ="Revised target "& B1&"/"&RIGHT(B1,2)+1 -> Revised target 2013/14 | C24: Revised target 2014/15 | D24: Revised target 2015/16 | E24: Revised target 2016/17 | F24: Revised target 2017/18 | G24: Revised target 2018/19 | H24: Revised target 2019/20 | I24: Revised target 2020/21 | J24: ="Revised target "& J1&"/"&RIGHT(J1,2)+1 -> Revised target 2021/22 | K24: Revised target 2022/23 | L24: Revised target 2023/24 | M24: Revised target 2024/25 | N24: Revised target 2025/26 | O24: Revised target 2026/27 | Z24: Information and Communication Infrastructure | AA24: Sewerage purification | AB24: HV Substations | AD24: Responsive, accountable, effective and efficient local government
A25: NOTE: This sheet should not be directly amended - select headings from sheet 'S' | Z25: Community Facilities | AA25: Waste Management | AB25: HV Switching Station | AD25: Protect and enhance our environmental assets and natural resources
Z26: Sport and Recreation Facilities | AA26: Transportation | AB26: HV Transmission Conductors | AD26: Create a better South Africa and contribute to a better Africa and a better world
A27: Name link | B27: 141 | Z27: Heritage assets | AA27: Gas | AB27: MV Substations | AD27: An efficient, effective and development-oriented public service
A28: Name of Muni | B28: =INDEX(B29:B307,B27,1) -> LIM353 Molemole | Z28: Revenue Generating | AA28: Parks & gardens | AB28: MV Switching Stations | AD28: A comprehensive, responsive and sustainable social protection system
B29: Choose name from list | C29: Set name on 'Instructions' sheet | Z29: Non-revenue Generating | AA29: Sportsfields & stadia | AB29: MV Networks | AD29: A diverse, socially cohesive society with a common national identity
B30: BUF Buffalo City | C30: EC EASTERN CAPE | Z30: Operational Buildings | AA30: Swimming pools | AB30: LV Networks
B31: NMA Nelson Mandela Bay | C31: EC EASTERN CAPE | Z31: Housing | AA31: Community halls | AB31: Capital Spares
B32: EC101 Dr Beyers Naude | C32: EC EASTERN CAPE | Z32: Biological or Cultivated Assets | AA32: Libraries | AB32: Dams and Weirs
B33: EC102 Blue Crane Route | C33: EC EASTERN CAPE | Z33: Servitudes | AA33: Recreational facilities | AB33: Boreholes
B34: EC104 Makana | C34: EC EASTERN CAPE | Z34: Licences and Rights | AA34: Fire, safety & emergency | AB34: Reservoirs
B35: EC105 Ndlambe | C35: EC EASTERN CAPE | Z35: Computer Equipment | AA35: Security and policing | AB35: Pump Stations
B36: EC106 Sundays River Valley | C36: EC EASTERN CAPE | Z36: Furniture and Office Equipment | AA36: Buses | AB36: Water Treatment Works
B37: EC108 Kouga | C37: EC EASTERN CAPE | Z37: Machinery and Equipment | AA37: Clinics | AB37: Bulk Mains
B38: EC109 Kou-Kamma | C38: EC EASTERN CAPE | Z38: Transport Assets | AA38: Museums & Art Galleries | AB38: Distribution
B39: DC10 Sarah Baartman | C39: EC EASTERN CAPE | Z39: Land | AA39: Cemeteries | AB39: Distribution Points
B40: EC121 Mbhashe | C40: EC EASTERN CAPE | Z40: Zoo's, Marine and Non-biological Animals | AA40: Social rental housing | AB40: PRV Stations
B41: EC122 Mnquma | C41: EC EASTERN CAPE | AA41: Buildings | AB41: Capital Spares
B42: EC123 Great Kei | C42: EC EASTERN CAPE | AA42: Housing development | AB42: Pump Station
B43: EC124 Amahlathi | C43: EC EASTERN CAPE | AA43: General vehicles | AB43: Reticulation
B44: EC126 Ngqushwa | C44: EC EASTERN CAPE | AA44: Specialised vehicles - Refuse | AB44: Waste Water Treatment Works
B45: EC129 Raymond Mhlaba | C45: EC EASTERN CAPE | AA45: Specialised vehicles - Fire | AB45: Outfall Sewers
B46: DC12 Amathole | C46: EC EASTERN CAPE | AA46: Specialised vehicles - Conservancy | AB46: Toilet Facilities
B47: EC131 Inxuba Yethemba | C47: EC EASTERN CAPE | AA47: Specialised vehicles - Ambulances | AB47: Capital Spares
B48: EC135 Intsika Yethu | C48: EC EASTERN CAPE | AA48: Plant & equipment | AB48: Landfill Sites
B49: EC136 Emalahleni (Ec) | C49: EC EASTERN CAPE | AA49: Computers - hardware/equipment | AB49: Waste Transfer Stations
B50: EC137 Engcobo | C50: EC EASTERN CAPE | AA50: Furniture and other office equipment | AB50: Waste Processing Facilities
B51: EC138 Sakhisizwe | C51: EC EASTERN CAPE | AA51: Abattoirs | AB51: Waste Drop-off Points
B52: EC139 Enoch Mgijima | C52: EC EASTERN CAPE | AA52: Markets | AB52: Waste Separation Facilities
B53: DC13 Chris Hani | C53: EC EASTERN CAPE | AA53: Civic Land and Buildings | AB53: Electricity Generation Facilities
B54: EC141 Elundini | C54: EC EASTERN CAPE | AA54: Other Buildings | AB54: Capital Spares
B55: EC142 Senqu | C55: EC EASTERN CAPE | AA55: Other Land | AB55: Rail Lines
B56: EC145 Walter Sisulu | C56: EC EASTERN CAPE | AA56: Surplus Assets - (Investment or Inventory) | AB56: Rail Structures
B57: DC14 Joe Gqabi | C57: EC EASTERN CAPE | AA57: Computers - software & programming | AB57: Rail Furniture
B58: EC153 Ngquza Hills | C58: EC EASTERN CAPE | AA58: Other | AB58: Drainage Collection
B59: EC154 Port St Johns | C59: EC EASTERN CAPE | AB59: Storm water Conveyance
B60: EC155 Nyandeni | C60: EC EASTERN CAPE | Z60: SA16 - Investments | AB60: Attenuation
B61: EC156 Mhlontlo | C61: EC EASTERN CAPE | Z61: Security | AA61: Interest rate | AB61: MV Substations
B62: EC157 King Sabata Dalindyebo | C62: EC EASTERN CAPE | Z62: Yes | AA62: Fixed | AB62: LV Networks
B63: DC15 O .R. Tambo | C63: EC EASTERN CAPE | Z63: No | AA63: Variable | AB63: Capital Spares
B64: EC441 Matatiele | C64: EC EASTERN CAPE | AB64: Sand Pumps
B65: EC442 Umzimvubu | C65: EC EASTERN CAPE | AB65: Piers
B66: EC443 Winnie Madikizela Mandela | C66: EC EASTERN CAPE | Z66: SA36, SA37 - Capital projects | AB66: Revetments
B67: EC444 Ntabankulu | C67: EC EASTERN CAPE | Z67: Yes | AB67: Promenades
B68: DC44 Alfred Nzo | C68: EC EASTERN CAPE | Z68: No | AB68: Capital Spares
B69: MAN Mangaung | C69: FS FREE STATE | AB69: Data Centres
B70: FS161 Letsemeng | C70: FS FREE STATE | AB70: Core Layers
B71: FS162 Kopanong | C71: FS FREE STATE | AB71: Distribution Layers
B72: FS163 Mohokare | C72: FS FREE STATE | AB72: Capital Spares
B73: DC16 Xhariep | C73: FS FREE STATE | AB73: Halls
B74: FS181 Masilonyana | C74: FS FREE STATE | AB74: Centres
B75: FS182 Tokologo | C75: FS FREE STATE | AB75: Crèches
B76: FS183 Tswelopele | C76: FS FREE STATE | AB76: Clinics/Care Centres
B77: FS184 Matjhabeng | C77: FS FREE STATE | AB77: Fire/Ambulance Stations
B78: FS185 Nala | C78: FS FREE STATE | AB78: Testing Stations
B79: DC18 Lejweleputswa | C79: FS FREE STATE | AB79: Museums
B80: FS191 Setsoto | C80: FS FREE STATE | AB80: Galleries
B81: FS192 Dihlabeng | C81: FS FREE STATE | AB81: Theatres
B82: FS193 Nketoana | C82: FS FREE STATE | AB82: Libraries
B83: FS194 Maluti-a-Phofung | C83: FS FREE STATE | AB83: Cemeteries/Crematoria
B84: FS195 Phumelela | C84: FS FREE STATE | AB84: Police
B85: FS196 Mantsopa | C85: FS FREE STATE | AB85: Purls
B86: DC19 Thabo Mofutsanyana | C86: FS FREE STATE | AB86: Public Open Space
B87: FS201 Moqhaka | C87: FS FREE STATE | AB87: Nature Reserves
B88: FS203 Ngwathe | C88: FS FREE STATE | AB88: Public Ablution Facilities
B89: FS204 Metsimaholo | C89: FS FREE STATE | AB89: Markets
B90: FS205 Mafube | C90: FS FREE STATE | AB90: Stalls
B91: DC20 Fezile Dabi | C91: FS FREE STATE | AB91: Abattoirs
B92: EKU City of Ekurhuleni | C92: GT GAUTENG | AB92: Airports
B93: JHB City Of Johannesburg | C93: GT GAUTENG | AB93: Taxi Ranks/Bus Terminals
B94: TSH City Of Tshwane | C94: GT GAUTENG | AB94: Capital Spares
B95: GT421 Emfuleni | C95: GT GAUTENG | AB95: Indoor Facilities
B96: GT422 Midvaal | C96: GT GAUTENG | AB96: Outdoor Facilities
B97: GT423 Lesedi | C97: GT GAUTENG | AB97: Capital Spares
B98: DC42 Sedibeng | C98: GT GAUTENG | AB98: Monuments
B99: GT481 Mogale City | C99: GT GAUTENG | AB99: Historic Buildings
B100: GT484 Merafong City | C100: GT GAUTENG | AB100: Works of Art
B101: GT485 Rand West City | C101: GT GAUTENG | AB101: Conservation Areas
B102: DC48 West Rand | C102: GT GAUTENG | AB102: Other Heritage
B103: ETH eThekwini | C103: KZN KWAZULU-NATAL | AB103: Improved Property
B104: KZN212 Umdoni | C104: KZN KWAZULU-NATAL | AB104: Unimproved Property
B105: KZN213 Umzumbe | C105: KZN KWAZULU-NATAL | AB105: Municipal Offices
B106: KZN214 uMuziwabantu | C106: KZN KWAZULU-NATAL | AB106: Pay/Enquiry Points
B107: KZN216 Ray Nkonyeni | C107: KZN KWAZULU-NATAL | AB107: Building Plan Offices
B108: DC21 Ugu | C108: KZN KWAZULU-NATAL | AB108: Workshops
B109: KZN221 uMshwathi | C109: KZN KWAZULU-NATAL | AB109: Yards
B110: KZN222 uMngeni | C110: KZN KWAZULU-NATAL | AB110: Stores
B111: KZN223 Mpofana | C111: KZN KWAZULU-NATAL | AB111: Laboratories
B112: KZN224 Impendle | C112: KZN KWAZULU-NATAL | AB112: Training Centres
B113: KZN225 Msunduzi | C113: KZN KWAZULU-NATAL | AB113: Manufacturing Plant
B114: KZN226 Mkhambathini | C114: KZN KWAZULU-NATAL | AB114: Depots
B115: KZN227 Richmond | C115: KZN KWAZULU-NATAL | AB115: Capital Spares
B116: DC22 uMgungundlovu | C116: KZN KWAZULU-NATAL | AB116: Staff Housing
B117: KZN235 Okhahlamba | C117: KZN KWAZULU-NATAL | AB117: Social Housing
B118: KZN237 Inkosi Langalibalele | C118: KZN KWAZULU-NATAL | AB118: Capital Spares
B119: KZN238 Alfred Duma | C119: KZN KWAZULU-NATAL | AB119: Water Rights
B120: DC23 Uthukela | C120: KZN KWAZULU-NATAL | AB120: Effluent Licenses
B121: KZN241 Endumeni | C121: KZN KWAZULU-NATAL | AB121: Solid Waste Licenses
B122: KZN242 Nquthu | C122: KZN KWAZULU-NATAL | AB122: Computer Software and Applications
B123: KZN244 Msinga | C123: KZN KWAZULU-NATAL | AB123: Load Settlement Software Applications
B124: KZN245 Umvoti | C124: KZN KWAZULU-NATAL | AB124: Unspecified
B125: DC24 Umzinyathi | C125: KZN KWAZULU-NATAL
B126: KZN252 Newcastle | C126: KZN KWAZULU-NATAL
B127: KZN253 Emadlangeni | C127: KZN KWAZULU-NATAL
B128: KZN254 Dannhauser | C128: KZN KWAZULU-NATAL
B129: DC25 Amajuba | C129: KZN KWAZULU-NATAL
B130: KZN261 eDumbe | C130: KZN KWAZULU-NATAL
B131: KZN262 uPhongolo | C131: KZN KWAZULU-NATAL
B132: KZN263 Abaqulusi | C132: KZN KWAZULU-NATAL
B133: KZN265 Nongoma | C133: KZN KWAZULU-NATAL
B134: KZN266 Ulundi | C134: KZN KWAZULU-NATAL
B135: DC26 Zululand | C135: KZN KWAZULU-NATAL
B136: KZN271 Umhlabuyalingana | C136: KZN KWAZULU-NATAL
B137: KZN272 Jozini | C137: KZN KWAZULU-NATAL
B138: KZN275 Mtubatuba | C138: KZN KWAZULU-NATAL
B139: KZN276 Hlabisa Big Five | C139: KZN KWAZULU-NATAL
B140: DC27 Umkhanyakude | C140: KZN KWAZULU-NATAL
B141: KZN281 Mfolozi | C141: KZN KWAZULU-NATAL
B142: KZN282 uMhlathuze | C142: KZN KWAZULU-NATAL
B143: KZN284 uMlalazi | C143: KZN KWAZULU-NATAL
B144: KZN285 Mthonjaneni | C144: KZN KWAZULU-NATAL
B145: KZN286 Nkandla | C145: KZN KWAZULU-NATAL
B146: DC28 King Cetshwayo | C146: KZN KWAZULU-NATAL
B147: KZN291 Mandeni | C147: KZN KWAZULU-NATAL
B148: KZN292 KwaDukuza | C148: KZN KWAZULU-NATAL
B149: KZN293 Ndwedwe | C149: KZN KWAZULU-NATAL
B150: KZN294 Maphumulo | C150: KZN KWAZULU-NATAL
B151: DC29 iLembe | C151: KZN KWAZULU-NATAL
B152: KZN433 Greater Kokstad | C152: KZN KWAZULU-NATAL
B153: KZN434 Ubuhlebezwe | C153: KZN KWAZULU-NATAL
B154: KZN435 Umzimkhulu | C154: KZN KWAZULU-NATAL
B155: KZN436 Dr Nkosazana Dlamini Zuma | C155: KZN KWAZULU-NATAL
B156: DC43 Harry Gwala | C156: KZN KWAZULU-NATAL
B157: LIM331 Greater Giyani | C157: LIM LIMPOPO
B158: LIM332 Greater Letaba | C158: LIM LIMPOPO
B159: LIM333 Greater Tzaneen | C159: LIM LIMPOPO
B160: LIM334 Ba-Phalaborwa | C160: LIM LIMPOPO
B161: LIM335 Maruleng | C161: LIM LIMPOPO
B162: DC33 Mopani | C162: LIM LIMPOPO
B163: LIM341 Musina | C163: LIM LIMPOPO
B164: LIM343 Thulamela | C164: LIM LIMPOPO
B165: LIM344 Makhado | C165: LIM LIMPOPO
B166: LIM345 Collins Chabane | C166: LIM LIMPOPO
B167: DC34 Vhembe | C167: LIM LIMPOPO
B168: LIM351 Blouberg | C168: LIM LIMPOPO
B169: LIM353 Molemole | C169: LIM LIMPOPO
B170: LIM354 Polokwane | C170: LIM LIMPOPO
B171: LIM355 Lepelle-Nkumpi | C171: LIM LIMPOPO
B172: DC35 Capricorn | C172: LIM LIMPOPO
B173: LIM361 Thabazimbi | C173: LIM LIMPOPO
B174: LIM362 Lephalale | C174: LIM LIMPOPO
B175: LIM366 Bela Bela | C175: LIM LIMPOPO
B176: LIM367 Mogalakwena | C176: LIM LIMPOPO
B177: LIM368 Modimolle-Mookgopong | C177: LIM LIMPOPO
B178: DC36 Waterberg | C178: LIM LIMPOPO
B179: LIM471 Ephraim Mogale | C179: LIM LIMPOPO
B180: LIM472 Elias Motsoaledi | C180: LIM LIMPOPO
B181: LIM473 Makhuduthamaga | C181: LIM LIMPOPO
B182: LIM476 Tubatse Fetakgomo | C182: LIM LIMPOPO
B183: DC47 Sekhukhune | C183: LIM LIMPOPO
B184: MP301 Albert Luthuli | C184: MP MPUMALANGA
B185: MP302 Msukaligwa | C185: MP MPUMALANGA
B186: MP303 Mkhondo | C186: MP MPUMALANGA
B187: MP304 Pixley Ka Seme (MP) | C187: MP MPUMALANGA
B188: MP305 Lekwa | C188: MP MPUMALANGA
B189: MP306 Dipaleseng | C189: MP MPUMALANGA
B190: MP307 Govan Mbeki | C190: MP MPUMALANGA
B191: DC30 Gert Sibande | C191: MP MPUMALANGA
B192: MP311 Victor Khanye | C192: MP MPUMALANGA
B193: MP312 Emalahleni (Mp) | C193: MP MPUMALANGA
B194: MP313 Steve Tshwete | C194: MP MPUMALANGA
B195: MP314 Emakhazeni | C195: MP MPUMALANGA
B196: MP315 Thembisile Hani | C196: MP MPUMALANGA
B197: MP316 Dr J.S. Moroka | C197: MP MPUMALANGA
B198: DC31 Nkangala | C198: MP MPUMALANGA
B199: MP321 Thaba Chweu | C199: MP MPUMALANGA
B200: MP324 Nkomazi | C200: MP MPUMALANGA
... 87 more rows

Sheet Org structure
A1: Organisational Structure Votes | C1: Organisational Structure Sub-Votes | E1: Display Sub-Votes
A2: =B2&" - "&C2 -> Vote 01 - Corporate Services | B2: Vote 01 | C2: Corporate Services
A3: =B11&" - "&C11 -> Vote 02 - Municipal Manager | B3: 01.1 | C3: Corporate Services Admin | D3: =CONCATENATE(B3, " - ", C3) -> 01.1 - Corporate Services Admin | E3: 01.1 - Corporate Services Admin
A4: =B17&" - "&C17 -> Vote 03 - Mayors Office | B4: 01.2 | C4: Human Resources | D4: 01.2 - Human Resources | E4: 01.2 - Human Resources
A5: =B23&" - "&C23 -> Vote 04 - Budget And Treasury | B5: 01.3 | C5: Information Technology Services | D5: 01.3 - Information Technology Services | E5: 01.3 - Information Technology Services
A6: =B31&" - "&C31 -> Vote 05 - Community Services | B6: 01.4 | C6: Council Support | D6: 01.4 - Council Support | E6: 01.4 - Council Support
A7: =B39&" - "&C39 -> Vote 06 - Technical Services | B7: 01.5 | C7: Local Economic Development | D7: 01.5 - Local Economic Development | E7: 01.5 - Local Economic Development
A8: =B48&" - "&C48 -> Vote 07 - | B8: 01.6 | C8: Municipal Planning Idp | D8: 01.6 - Municipal Planning Idp | E8: 01.6 - Municipal Planning Idp
A9: Vote 08 - | B9: 01.7 | C9: Town & Regional Planning | D9: 01.7 - Town & Regional Planning | E9: 01.7 - Town & Regional Planning
A10: Vote 09 - | B10: 01.8 | C10: Led Administration | D10: 01.8 - Led Administration | E10: 01.8 - Led Administration
A11: Vote 10 - | B11: Vote 02 | C11: Municipal Manager
A12: Vote 11 - | B12: 02.1 | C12: Municipal Manager Admin | D12: =CONCATENATE(B12, " - ", C12) -> 02.1 - Municipal Manager Admin | E12: 02.1 - Municipal Manager Admin
A13: Vote 12 - | B13: 02.2 | C13: Legal Services | D13: =CONCATENATE(B13, " - ", C13) -> 02.2 - Legal Services | E13: 02.2 - Legal Services
A14: Vote 13 - | B14: 02.3 | C14: Political Office Beares | D14: =CONCATENATE(B14, " - ", C14) -> 02.3 - Political Office Beares | E14: 02.3 - Political Office Beares
A15: Vote 14 - | B15: 02.4 | C15: Pms | D15: =CONCATENATE(B15, " - ", C15) -> 02.4 - Pms | E15: 02.4 - Pms
A16: Vote 15 - Other | B16: 02.5 | C16: Internal Audit | D16: =CONCATENATE(B16, " - ", C16) -> 02.5 - Internal Audit | E16: 02.5 - Internal Audit
B17: Vote 03 | C17: Mayors Office
B18: 03.1 | C18: Mayors Office Admin | D18: =CONCATENATE(B18, " - ", C18) -> 03.1 - Mayors Office Admin | E18: 03.1 - Mayors Office Admin
B19: 03.2 | C19: Office Of The Speaker | D19: =CONCATENATE(B19, " - ", C19) -> 03.2 - Office Of The Speaker | E19: 03.2 - Office Of The Speaker
B20: 03.3 | C20: Office Of The Chief Whip | D20: =CONCATENATE(B20, " - ", C20) -> 03.3 - Office Of The Chief Whip | E20: 03.3 - Office Of The Chief Whip
B21: 03.4 | C21: Exco Members | D21: =CONCATENATE(B21, " - ", C21) -> 03.4 - Exco Members | E21: 03.4 - Exco Members
B22: 03.5 | C22: Council General Administration | D22: =CONCATENATE(B22, " - ", C22) -> 03.5 - Council General Administration | E22: 03.5 - Council General Administration
B23: Vote 04 | C23: Budget And Treasury
B24: 04.1 | C24: Budget And Treasury Admin | D24: =CONCATENATE(B24, " - ", C24) -> 04.1 - Budget And Treasury Admin | E24: 04.1 - Budget And Treasury Admin
B25: 04.2 | C25: Chief Financial Officer Admin | D25: 04.2 - Chief Financial Officer Admin | E25: 04.2 - Chief Financial Officer Admin
B26: 04.3 | C26: Budget & Reporting | D26: 04.3 - Budget & Reporting | E26: 04.3 - Budget & Reporting
B27: 04.4 | C27: Budget & Reporting | D27: 04.4 - Budget & Reporting | E27: 04.4 - Budget & Reporting
B28: 04.5 | C28: Revenue Management | D28: 04.5 - Revenue Management | E28: 04.5 - Revenue Management
B29: 04.6 | C29: Supply Chain Management | D29: 04.6 - Supply Chain Management | E29: 04.6 - Supply Chain Management
B30: 04.7 | C30: Expenditure | D30: 04.7 - Expenditure | E30: 04.7 - Expenditure
B31: Vote 05 | C31: Community Services
B32: 05.1 | C32: Community Services Admin | D32: =CONCATENATE(B32, " - ", C32) -> 05.1 - Community Services Admin | E32: 05.1 - Community Services Admin
B33: 05.2 | C33: Libraries | D33: 05.2 - Libraries | E33: 05.2 - Libraries
B34: 05.3 | C34: Sports Recreation & Social Amenitie | D34: 05.3 - Sports Recreation & Social Amenitie | E34: 05.3 - Sports Recreation & Social Amenitie
B35: 05.4 | C35: Traffic Service | D35: 05.4 - Traffic Service | E35: 05.4 - Traffic Service
B36: 05.5 | C36: Traffic Service | D36: 05.5 - Traffic Service | E36: 05.5 - Traffic Service
B37: 05.6 | C37: Parks; Cemeteries | D37: 05.6 - Parks; Cemeteries | E37: 05.6 - Parks; Cemeteries
B38: 05.7 | C38: Refuse | D38: 05.7 - Refuse | E38: 05.7 - Refuse
B39: Vote 06 | C39: Technical Services
B40: 06.1 | C40: Mpac | D40: =CONCATENATE(B40, " - ", C40) -> 06.1 - Mpac | E40: 06.1 - Mpac
B41: 06.2 | C41: Technical Services Admin | D41: 06.2 - Technical Services Admin | E41: 06.2 - Technical Services Admin
B42: 06.3 | C42: Techn Serv-Roads: Admin | D42: 06.3 - Techn Serv-Roads: Admin | E42: 06.3 - Techn Serv-Roads: Admin
B43: 06.4 | C43: Techn Serv-Stormwater: Admin | D43: 06.4 - Techn Serv-Stormwater: Admin | E43: 06.4 - Techn Serv-Stormwater: Admin
B44: 06.5 | C44: Project Management Unit | D44: 06.5 - Project Management Unit | E44: 06.5 - Project Management Unit
B45: 06.6 | C45: Electrical & Machinery | D45: 06.6 - Electrical & Machinery | E45: 06.6 - Electrical & Machinery
B46: 06.7 | C46: Water | D46: 06.7 - Water | E46: 06.7 - Water
B47: 06.8 | C47: Sanitation | D47: 06.8 - Sanitation | E47: 06.8 - Sanitation
B48: Vote 07
B49: Vote 08
B50: Vote 09
B51: Vote 10
B52: Vote 11
B53: Vote 12
B54: Vote 13
B55: Vote 14
B56: Vote 15 | C56: Other

Sheet Contacts
A1: =muni&" - "&" Contact Information" -> LIM353 Molemole - Contact Information
A3: A. GENERAL INFORMATION
A4: Municipality | B4: =muni -> LIM353 Molemole | C4: =IF(B4="Choose name from List","Set name on 'Instructions' sheet", "") -> 
A6: Grade | C6: 1 Grade in terms of the Remuneration of Public Office Bearers Act.
A8: Province | B8: =IF(B4>" ",VLOOKUP(B4,'Lookup and lists'!B29:C307,2, FALSE)," ") -> LIM LIMPOPO
A10: Web Address
A12: e-mail Address
A14: B. CONTACT INFORMATION
A15: Postal address:
A16: P.O. Box
A17: City / Town
A18: Postal Code
A20: Street address
A21: Building
A22: Street No. & Name
A23: City / Town
A24: Postal Code
A26: General Contacts
A27: Telephone number
A28: Fax number
A30: C. POLITICAL LEADERSHIP
A31: Speaker: | C31: Secretary/PA to the Speaker:
A32: ID Number | B32: 560618 0882 808 | C32: ID Number | D32: 820119 0609 087
A33: Title | B33: Mrs | C33: Title | D33: Ms
A34: Name | B34: MOREROA M.S | C34: Name | D34: MACHAKA SEBOLLA
A35: Telephone number | B35: 015 501 0243 | C35: Telephone number | D35: 015 501 0243
A36: Cell number | B36: 079 220 7523 | C36: Cell number | D36: 079 728 8360
A37: Fax number | B37: 015 501 0419 | C37: Fax number | D37: 015 501 0419
A38: E-mail address | B38: moreroams@molemole.gov.za | C38: E-mail address | D38: machakas@molemole.gov.za
A40: Mayor/Executive Mayor: | C40: Secretary/PA to the Mayor/Executive Mayor:
A41: ID Number | B41: 660312 5428 081 | C41: ID Number | D41: 850930 1072 080
A42: Title | B42: Mr | C42: Title | D42: Ms
A43: Name | B43: PAYA E | C43: Name | D43: RATHETE MAKETA
A44: Telephone number | B44: 015 501 0243 | C44: Telephone number | D44: 015 501 0243
A45: Cell number | B45: 082 474 2858 | C45: Cell number | D45: 072 958 1970
A46: Fax number | B46: 086 515 8809 | C46: Fax number | D46: 015 501 0419
A47: E-mail address | B47: payae@molemole.gov.za | C47: E-mail address | D47: rathetem@molemole.go.za
A49: Deputy Mayor/Executive Mayor: | C49: Secretary/PA to the Deputy Mayor/Executive Mayor:
A50: ID Number | C50: ID Number
A51: Title | C51: Title
A52: Name | C52: Name
A53: Telephone number | C53: Telephone number
A54: Cell number | C54: Cell number
A55: Fax number | C55: Fax number
A56: E-mail address | C56: E-mail address
A58: D. MANAGEMENT LEADERSHIP
A59: Municipal Manager: | C59: Secretary/PA to the Municipal Manager:
A60: ID Number | B60: 670616 5811 080 | C60: ID Number | D60: 720712 0880 087
A61: Title | B61: Mr | C61: Title | D61: Mrs
A62: Name | B62: MOSENA MAPHALA LAZARUS | C62: Name | D62: SEABELA SUSAN
A63: Telephone number | B63: 015 501 0243 | C63: Telephone number | D63: 015 501 0243
A64: Cell number | B64: 079 803 9833 | C64: Cell number | D64: 079 217 3250
A65: Fax number | B65: 015 501 0419 | C65: Fax number | D65: 015 501 0419
A66: E-mail address | B66: 079 803 9833 | C66: E-mail address | D66: lebepes@molemole.gov.za
A68: Chief Financial Officer | C68: Secretary/PA to the Chief Financial Officer
A69: ID Number | B69: 840716 0427 083 | C69: ID Number | D69: 900906 1348 084
A70: Title | B70: Miss | C70: Title | D70: Miss
A71: Name | B71: ZULU KCW | C71: Name | D71: MAROPENG PHOSA
A72: Telephone number | B72: 015 501 0243 | C72: Telephone number | D72: 015 501 0243
A73: Cell number | B73: 063 878 8894 | C73: Cell number | D73: 073 916 3639
A74: Fax number | B74: 015 501 0419 | C74: Fax number | D74: 015 501 0419
A75: E-mail address | B75: zuluk@molemole.gov.za | C75: E-mail address | D75: phosam@molemole.gov.za
A77: Official responsible for submitting financial information | C77: Official responsible for submitting financial information
A78: ID Number | B78: 820214 0303 086 | C78: ID Number
A79: Title | B79: Mrs | C79: Title
A80: Name | B80: WISO PORTIA | C80: Name
A81: Telephone number | B81: 015 501 0243 | C81: Telephone number
A82: Cell number | B82: 082 488 3823 | C82: Cell number
A83: Fax number | B83: 015 501 0419 | C83: Fax number
A84: E-mail address | B84: mamabolomp@molemole.gov.za | C84: E-mail address
A85: Official responsible for submitting financial information | C85: Official responsible for submitting financial information
A86: ID Number | C86: ID Number
A87: Title | C87: Title
A88: Name | C88: Name
A89: Telephone number | C89: Telephone number
A90: Cell number | C90: Cell number
A91: Fax number | C91: Fax number
A92: E-mail address | C92: E-mail address
A93: Official responsible for submitting financial information | C93: Official responsible for submitting financial information
A94: ID Number | C94: ID Number
A95: Title | C95: Title
A96: Name | C96: Name
A97: Telephone number | C97: Telephone number
A98: Cell number | C98: Cell number
A99: Fax number | C99: Fax number
A100: E-mail address | C100: E-mail address
A101: Official responsible for submitting financial information | C101: Official responsible for submitting financial information
A102: ID Number | C102: ID Number
A103: Title | C103: Title
A104: Name | C104: Name
A105: Telephone number | C105: Telephone number
A106: Cell number | C106: Cell number
A107: Fax number | C107: Fax number
A108: E-mail address | C108: E-mail address
A109: Official responsible for submitting financial information | C109: Official responsible for submitting financial information
A110: ID Number | C110: ID Number
A111: Title | C111: Title
A112: Name | C112: Name
A113: Telephone number | C113: Telephone number
A114: Cell number | C114: Cell number
A115: Fax number | C115: Fax number
A116: E-mail address | C116: E-mail address
A117: Official responsible for submitting financial information | C117: Official responsible for submitting financial information
A118: ID Number | C118: ID Number
A119: Title | C119: Title
A120: Name | C120: Name
A121: Telephone number | C121: Telephone number
A122: Cell number | C122: Cell number
A123: Fax number | C123: Fax number
A124: E-mail address | C124: E-mail address
A125: Official responsible for submitting financial information | C125: Official responsible for submitting financial information
A126: ID Number | C126: ID Number
A127: Title | C127: Title
A128: Name | C128: Name
A129: Telephone number | C129: Telephone number
A130: Cell number | C130: Cell number
A131: Fax number | C131: Fax number
A132: E-mail address | C132: E-mail address
A133: Official responsible for submitting financial information
A134: ID Number
A135: Title
A136: Name
A137: Telephone number
A138: Cell number
A139: Fax number
A140: E-mail address

Sheet A1-Sum
A1: =muni&" - "&Approve1 -> LIM353 Molemole - Table A1 Budget Summary
A2: =desc -> Description | B2: =head1b -> 2018/19 | C2: =head1A -> 2019/20 | D2: =Head1 -> 2020/21 | E2: =Head2 -> Current Year 2021/22 | I2: =Head3 -> 2022/23 Medium Term Revenue & Expenditure Framework
A3: R thousands | B3: =Head5 -> Audited Outcome | C3: =Head5 -> Audited Outcome | D3: =Head5 -> Audited Outcome | E3: =Head6 -> Original Budget | F3: =Head7 -> Adjusted Budget | G3: =Head8 -> Full Year Forecast | H3: =Head5b -> Pre-audit outcome | I3: =Head9 -> Budget Year 2022/23 | J3: =Head10 -> Budget Year +1 2023/24 | K3: =Head11 -> Budget Year +2 2024/25
A4: Financial Performance
A5: Property rates | B5: ='A4-FinPerf RE'!C5 -> 14578847.33 | C5: ='A4-FinPerf RE'!D5 -> 20010885.63 | D5: ='A4-FinPerf RE'!E5 -> 49558002.71 | E5: ='A4-FinPerf RE'!F5 -> 51482069 | F5: ='A4-FinPerf RE'!G5 -> 39609853 | G5: ='A4-FinPerf RE'!H5 -> 39609853 | H5: ='A4-FinPerf RE'!I5 -> 22604429.2 | I5: ='A4-FinPerf RE'!J5 -> 41194250 | J5: ='A4-FinPerf RE'!K5 -> 43006797 | K5: ='A4-FinPerf RE'!L5 -> 44942102
A6: Service charges | B6: =SUM('A4-FinPerf RE'!C6:C9) -> 4584778.09 | C6: =SUM('A4-FinPerf RE'!D6:D9) -> 10503008.53 | D6: =SUM('A4-FinPerf RE'!E6:E9) -> 11061887.67 | E6: =SUM('A4-FinPerf RE'!F6:F9) -> 14195880 | F6: =SUM('A4-FinPerf RE'!G6:G9) -> 14195880 | G6: =SUM('A4-FinPerf RE'!H6:H9) -> 14195880 | H6: =SUM('A4-FinPerf RE'!I6:I9) -> 2254639.24 | I6: =SUM('A4-FinPerf RE'!J6:J9) -> 16044689 | J6: =SUM('A4-FinPerf RE'!K6:K9) -> 15706304 | K6: =SUM('A4-FinPerf RE'!L6:L9) -> 16412727
A7: Investment revenue | B7: ='A4-FinPerf RE'!C12 -> 0 | C7: ='A4-FinPerf RE'!D12 -> 1729419.11 | D7: ='A4-FinPerf RE'!E12 -> 2543772.73 | E7: ='A4-FinPerf RE'!F12 -> 2708206 | F7: ='A4-FinPerf RE'!G12 -> 2708206 | G7: ='A4-FinPerf RE'!H12 -> 2708206 | H7: ='A4-FinPerf RE'!I12 -> 1680845.81 | I7: ='A4-FinPerf RE'!J12 -> 3000000 | J7: ='A4-FinPerf RE'!K12 -> 3132000 | K7: ='A4-FinPerf RE'!L12 -> 3272940
A8: Transfers recognised - operational | B8: ='A4-FinPerf RE'!C18 -> 134056601.1 | C8: ='A4-FinPerf RE'!D18 -> 148235565 | D8: ='A4-FinPerf RE'!E18 -> 185288433.8 | E8: ='A4-FinPerf RE'!F18 -> 161092000 | F8: ='A4-FinPerf RE'!G18 -> 162092000 | G8: ='A4-FinPerf RE'!H18 -> 162092000 | H8: ='A4-FinPerf RE'!I18 -> 157907471.3 | I8: ='A4-FinPerf RE'!J18 -> 174457600 | J8: ='A4-FinPerf RE'!K18 -> 181751900 | K8: ='A4-FinPerf RE'!L18 -> 191275600
A9: Other own revenue | B9: ='A4-FinPerf RE'!C11+'A4-FinPerf RE'!C13+'A4-FinPerf RE'!C14+'A4-FinPerf RE'!C15+'A4-FinPerf RE'!C16+'A4-FinPerf RE'!C17+'A4-FinPerf RE'!C19+'A4-FinPerf RE'!C20 -> 8499643.22 | C9: ='A4-FinPerf RE'!D11+'A4-FinPerf RE'!D13+'A4-FinPerf RE'!D14+'A4-FinPerf RE'!D15+'A4-FinPerf RE'!D16+'A4-FinPerf RE'!D17+'A4-FinPerf RE'!D19+'A4-FinPerf RE'!D20 -> 6087635.4 | D9: ='A4-FinPerf RE'!E11+'A4-FinPerf RE'!E13+'A4-FinPerf RE'!E14+'A4-FinPerf RE'!E15+'A4-FinPerf RE'!E16+'A4-FinPerf RE'!E17+'A4-FinPerf RE'!E19+'A4-FinPerf RE'!E20 -> 7825791.04 | E9: ='A4-FinPerf RE'!F11+'A4-FinPerf RE'!F13+'A4-FinPerf RE'!F14+'A4-FinPerf RE'!F15+'A4-FinPerf RE'!F16+'A4-FinPerf RE'!F17+'A4-FinPerf RE'!F19+'A4-FinPerf RE'!F20 -> 38693903 | F9: ='A4-FinPerf RE'!G11+'A4-FinPerf RE'!G13+'A4-FinPerf RE'!G14+'A4-FinPerf RE'!G15+'A4-FinPerf RE'!G16+'A4-FinPerf RE'!G17+'A4-FinPerf RE'!G19+'A4-FinPerf RE'!G20 -> 26672542 | G9: ='A4-FinPerf RE'!H11+'A4-FinPerf RE'!H13+'A4-FinPerf RE'!H14+'A4-FinPerf RE'!H15+'A4-FinPerf RE'!H16+'A4-FinPerf RE'!H17+'A4-FinPerf RE'!H19+'A4-FinPerf RE'!H20 -> 26672542 | H9: ='A4-FinPerf RE'!I11+'A4-FinPerf RE'!I13+'A4-FinPerf RE'!I14+'A4-FinPerf RE'!I15+'A4-FinPerf RE'!I16+'A4-FinPerf RE'!I17+'A4-FinPerf RE'!I19+'A4-FinPerf RE'!I20 -> 10501539.47 | I9: ='A4-FinPerf RE'!J11+'A4-FinPerf RE'!J13+'A4-FinPerf RE'!J14+'A4-FinPerf RE'!J15+'A4-FinPerf RE'!J16+'A4-FinPerf RE'!J17+'A4-FinPerf RE'!J19+'A4-FinPerf RE'!J20 -> 12385952 | J9: ='A4-FinPerf RE'!K11+'A4-FinPerf RE'!K13+'A4-FinPerf RE'!K14+'A4-FinPerf RE'!K15+'A4-FinPerf RE'!K16+'A4-FinPerf RE'!K17+'A4-FinPerf RE'!K19+'A4-FinPerf RE'!K20 -> 12930937 | K9: ='A4-FinPerf RE'!L11+'A4-FinPerf RE'!L13+'A4-FinPerf RE'!L14+'A4-FinPerf RE'!L15+'A4-FinPerf RE'!L16+'A4-FinPerf RE'!L17+'A4-FinPerf RE'!L19+'A4-FinPerf RE'!L20 -> 13512828
A10: ='A4-FinPerf RE'!A21 -> Total Revenue (excluding capital transfers and contributions) | B10: =SUM(B5:B9) -> 161719869.8 | C10: 186566513.7 | D10: 256277888 | E10: 268172058 | F10: 245278481 | G10: 245278481 | H10: 194948925.1 | I10: 247082491 | J10: 256527938 | K10: 269416197
A11: Employee costs | B11: ='A4-FinPerf RE'!C24 -> 78988941.68 | C11: ='A4-FinPerf RE'!D24 -> 84279697.15 | D11: ='A4-FinPerf RE'!E24 -> 91655492.25 | E11: ='A4-FinPerf RE'!F24 -> 105732276 | F11: ='A4-FinPerf RE'!G24 -> 98229953 | G11: ='A4-FinPerf RE'!H24 -> 98229953 | H11: ='A4-FinPerf RE'!I24 -> 62052837.1 | I11: ='A4-FinPerf RE'!J24 -> 103550105 | J11: ='A4-FinPerf RE'!K24 -> 107880543 | K11: ='A4-FinPerf RE'!L24 -> 112568220
A12: Remuneration of councillors | B12: ='A4-FinPerf RE'!C25 -> 12328369.95 | C12: ='A4-FinPerf RE'!D25 -> 12879611.9 | D12: ='A4-FinPerf RE'!E25 -> 12930254.27 | E12: ='A4-FinPerf RE'!F25 -> 15010262 | F12: ='A4-FinPerf RE'!G25 -> 14347013 | G12: ='A4-FinPerf RE'!H25 -> 14347013 | H12: ='A4-FinPerf RE'!I25 -> 8436933.35 | I12: ='A4-FinPerf RE'!J25 -> 13510536 | J12: ='A4-FinPerf RE'!K25 -> 13971097 | K12: ='A4-FinPerf RE'!L25 -> 14535861
A13: Depreciation & asset impairment | B13: ='A4-FinPerf RE'!C27 -> 12277161.1 | C13: ='A4-FinPerf RE'!D27 -> 15880078.4 | D13: ='A4-FinPerf RE'!E27 -> 12114558.47 | E13: ='A4-FinPerf RE'!F27 -> 18994790 | F13: ='A4-FinPerf RE'!G27 -> 18994790 | G13: ='A4-FinPerf RE'!H27 -> 18994790 | H13: ='A4-FinPerf RE'!I27 -> 15099518.18 | I13: ='A4-FinPerf RE'!J27 -> 19754629 | J13: ='A4-FinPerf RE'!K27 -> 20623834 | K13: ='A4-FinPerf RE'!L27 -> 21551907
A14: Finance charges | B14: ='A4-FinPerf RE'!C28 -> 1154597.65 | C14: ='A4-FinPerf RE'!D28 -> 421586.14 | D14: ='A4-FinPerf RE'!E28 -> 183629.4 | E14: ='A4-FinPerf RE'!F28 -> 1055833 | F14: ='A4-FinPerf RE'!G28 -> 111490 | G14: ='A4-FinPerf RE'!H28 -> 111490 | H14: ='A4-FinPerf RE'!I28 -> -1.42 | I14: ='A4-FinPerf RE'!J28 -> 115950 | J14: ='A4-FinPerf RE'!K28 -> 121052 | K14: ='A4-FinPerf RE'!L28 -> 126499
A15: Inventory consumed and bulk purchases | B15: ='A4-FinPerf RE'!C29+'A4-FinPerf RE'!C30 -> 9385538.62 | C15: ='A4-FinPerf RE'!D29+'A4-FinPerf RE'!D30 -> 11163929.93 | D15: ='A4-FinPerf RE'!E29+'A4-FinPerf RE'!E30 -> 11837037.12 | E15: ='A4-FinPerf RE'!F29+'A4-FinPerf RE'!F30 -> 18057652 | F15: ='A4-FinPerf RE'!G29+'A4-FinPerf RE'!G30 -> 17657652 | G15: ='A4-FinPerf RE'!H29+'A4-FinPerf RE'!H30 -> 17657652 | H15: ='A4-FinPerf RE'!I29+'A4-FinPerf RE'!I30 -> 10255638.59 | I15: ='A4-FinPerf RE'!J29+'A4-FinPerf RE'!J30 -> 18626109 | J15: ='A4-FinPerf RE'!K29+'A4-FinPerf RE'!K30 -> 19445657 | K15: ='A4-FinPerf RE'!L29+'A4-FinPerf RE'!L30 -> 20320713
A16: Transfers and grants | B16: ='A4-FinPerf RE'!C32 -> 0 | C16: ='A4-FinPerf RE'!D32 -> 0 | D16: ='A4-FinPerf RE'!E32 -> 0 | E16: ='A4-FinPerf RE'!F32 -> 0 | F16: ='A4-FinPerf RE'!G32 -> 0 | G16: ='A4-FinPerf RE'!H32 -> 0 | H16: ='A4-FinPerf RE'!I32 -> 0 | I16: ='A4-FinPerf RE'!J32 -> 0 | J16: ='A4-FinPerf RE'!K32 -> 0 | K16: ='A4-FinPerf RE'!L32 -> 0
A17: Other expenditure | B17: ='A4-FinPerf RE'!C26+'A4-FinPerf RE'!C31+'A4-FinPerf RE'!C33+'A4-FinPerf RE'!C34 -> 75563870.62 | C17: ='A4-FinPerf RE'!D26+'A4-FinPerf RE'!D31+'A4-FinPerf RE'!D33+'A4-FinPerf RE'!D34 -> 62968391.47 | D17: ='A4-FinPerf RE'!E26+'A4-FinPerf RE'!E31+'A4-FinPerf RE'!E33+'A4-FinPerf RE'!E34 -> 89243144.38 | E17: ='A4-FinPerf RE'!F26+'A4-FinPerf RE'!F31+'A4-FinPerf RE'!F33+'A4-FinPerf RE'!F34 -> 89077812 | F17: ='A4-FinPerf RE'!G26+'A4-FinPerf RE'!G31+'A4-FinPerf RE'!G33+'A4-FinPerf RE'!G34 -> 78398783 | G17: ='A4-FinPerf RE'!H26+'A4-FinPerf RE'!H31+'A4-FinPerf RE'!H33+'A4-FinPerf RE'!H34 -> 78398783 | H17: ='A4-FinPerf RE'!I26+'A4-FinPerf RE'!I31+'A4-FinPerf RE'!I33+'A4-FinPerf RE'!I34 -> 35493244.36 | I17: ='A4-FinPerf RE'!J26+'A4-FinPerf RE'!J31+'A4-FinPerf RE'!J33+'A4-FinPerf RE'!J34 -> 80475494 | J17: ='A4-FinPerf RE'!K26+'A4-FinPerf RE'!K31+'A4-FinPerf RE'!K33+'A4-FinPerf RE'!K34 -> 82086099 | K17: ='A4-FinPerf RE'!L26+'A4-FinPerf RE'!L31+'A4-FinPerf RE'!L33+'A4-FinPerf RE'!L34 -> 85623295
A18: ='A4-FinPerf RE'!A35 -> Total Expenditure | B18: =SUM(B11:B17) -> 189698479.6 | C18: =SUM(C11:C17) -> 187593295 | D18: 217964115.9 | E18: 247928625 | F18: 227739681 | G18: 227739681 | H18: 131338170.2 | I18: 236032823 | J18: 244128282 | K18: 254726495
A19: ='A4-FinPerf RE'!A37 -> Surplus/(Deficit) | B19: =B10-B18 -> -27978609.87 | C19: -1026781.28 | D19: 38313772.11 | E19: 20243433 | F19: 17538800 | G19: 17538800 | H19: 63610754.91 | I19: 11049668 | J19: 12399656 | K19: 14689702
A20: ='A4-FinPerf RE'!A38 -> Transfers and subsidies - capital (monetary allocations) (National / Provincial and District) | B20: ='A4-FinPerf RE'!C38 -> 43126493.38 | C20: ='A4-FinPerf RE'!D38 -> 33909773.81 | D20: ='A4-FinPerf RE'!E38 -> 45027638.97 | E20: ='A4-FinPerf RE'!F38 -> 45150000 | F20: ='A4-FinPerf RE'!G38 -> 46150000 | G20: ='A4-FinPerf RE'!H38 -> 46150000 | H20: ='A4-FinPerf RE'!I38 -> 15354953.18 | I20: ='A4-FinPerf RE'!J38 -> 37802400 | J20: ='A4-FinPerf RE'!K38 -> 49385100 | K20: ='A4-FinPerf RE'!L38 -> 51070400
A21: ='A4-FinPerf RE'!A39&" & "&'A4-FinPerf RE'!A40 -> Transfers and subsidies - capital (monetary allocations) (National / Provincial Departmental Agencies, Households, Non-profit Institutions, Private Enterprises, Public Corporatons, Higher Educational Institutions) & Transfers and subsidies - capital (in-kind - all) | B21: ='A4-FinPerf RE'!C39+'A4-FinPerf RE'!C40 -> 0 | C21: ='A4-FinPerf RE'!D39+'A4-FinPerf RE'!D40 -> 0 | D21: ='A4-FinPerf RE'!E39+'A4-FinPerf RE'!E40 -> 1234955.28 | E21: ='A4-FinPerf RE'!F39+'A4-FinPerf RE'!F40 -> 0 | F21: ='A4-FinPerf RE'!G39+'A4-FinPerf RE'!G40 -> 0 | G21: ='A4-FinPerf RE'!H39+'A4-FinPerf RE'!H40 -> 0 | H21: ='A4-FinPerf RE'!I39+'A4-FinPerf RE'!I40 -> 0 | I21: ='A4-FinPerf RE'!J39+'A4-FinPerf RE'!J40 -> 0 | J21: ='A4-FinPerf RE'!K39+'A4-FinPerf RE'!K40 -> 0 | K21: ='A4-FinPerf RE'!L39+'A4-FinPerf RE'!L40 -> 0
A22: ='A4-FinPerf RE'!A41 -> Surplus/(Deficit) after capital transfers & contributions | B22: =B19+SUM(B20:B21) -> 15147883.51 | C22: =C19+SUM(C20:C21) -> 32882992.53 | E22: 65393433 | F22: 63688800 | G22: 63688800 | H22: 78965708.09 | I22: 48852068 | J22: 61784756 | K22: 65760102
A23: ='A4-FinPerf RE'!A46 -> Share of surplus/ (deficit) of associate | B23: ='A4-FinPerf RE'!C46 -> 0 | C23: ='A4-FinPerf RE'!D46 -> 0 | D23: ='A4-FinPerf RE'!E46 -> 0 | E23: ='A4-FinPerf RE'!F46 -> 0 | F23: ='A4-FinPerf RE'!G46 -> 0 | G23: ='A4-FinPerf RE'!H46 -> 0 | H23: ='A4-FinPerf RE'!I46 -> 0 | I23: ='A4-FinPerf RE'!J46 -> 0 | J23: ='A4-FinPerf RE'!K46 -> 0 | K23: ='A4-FinPerf RE'!L46 -> 0
A24: ='A4-FinPerf RE'!A47 -> Surplus/(Deficit) for the year | B24: =B22+B23 -> 15147883.51 | C24: =C22+C23 -> 32882992.53 | D24: 0 | E24: 65393433 | F24: 63688800 | G24: 63688800 | H24: 78965708.09 | I24: 48852068 | J24: 61784756 | K24: 65760102
A26: Capital expenditure & funds sources
A27: Capital expenditure | B27: ='A5-Capex'!C63 -> 45682357.98 | C27: ='A5-Capex'!D63 -> 38284503.29 | D27: ='A5-Capex'!E63 -> 50056507.07 | E27: ='A5-Capex'!F63 -> 65393793 | F27: ='A5-Capex'!G63 -> 64688807 | G27: ='A5-Capex'!H63 -> 64688807 | H27: ='A5-Capex'!I63 -> 27214699.18 | I27: ='A5-Capex'!J63 -> 48852400 | J27: ='A5-Capex'!K63 -> 61785100 | K27: ='A5-Capex'!L63 -> 65760440
A28: Transfers recognised - capital | B28: ='A5-Capex'!C70 -> 38798653.46 | C28: ='A5-Capex'!D70 -> 29015957.46 | D28: ='A5-Capex'!E70 -> 40289895.24 | E28: ='A5-Capex'!F70 -> 45437793 | F28: ='A5-Capex'!G70 -> 46342500 | G28: ='A5-Capex'!H70 -> 46342500 | H28: ='A5-Capex'!I70 -> 20674904.88 | I28: ='A5-Capex'!J70 -> 30850000 | J28: ='A5-Capex'!K70 -> 41680519 | K28: ='A5-Capex'!L70 -> 39686781
A30: ='A5-Capex'!A72 -> Borrowing | B30: ='A5-Capex'!C72 -> 0 | C30: ='A5-Capex'!D72 -> 0 | D30: ='A5-Capex'!E72 -> 0 | E30: ='A5-Capex'!F72 -> 0 | F30: ='A5-Capex'!G72 -> 0 | G30: ='A5-Capex'!H72 -> 0 | H30: ='A5-Capex'!I72 -> 0 | I30: ='A5-Capex'!J72 -> 0 | J30: ='A5-Capex'!K72 -> 0 | K30: ='A5-Capex'!L72 -> 0
A31: ='A5-Capex'!A73 -> Internally generated funds | B31: ='A5-Capex'!C73 -> 4637152.15 | C31: ='A5-Capex'!D73 -> 9268545.83 | D31: ='A5-Capex'!E73 -> 9766611.83 | E31: ='A5-Capex'!F73 -> 19956000 | F31: ='A5-Capex'!G73 -> 18346307 | G31: ='A5-Capex'!H73 -> 18346307 | H31: ='A5-Capex'!I73 -> 6539794.3 | I31: ='A5-Capex'!J73 -> 18002400 | J31: ='A5-Capex'!K73 -> 20104581 | K31: ='A5-Capex'!L73 -> 26073659
A32: Total sources of capital funds | B32: =+B28+B30+B31 -> 43435805.61 | C32: =+C28+C30+C31 -> 38284503.29 | D32: 50056507.07 | E32: 65393793 | F32: 64688807 | G32: 64688807 | H32: 27214699.18 | I32: 48852400 | J32: 61785100 | K32: 65760440
A34: Financial position
A35: ='A6-FinPos'!A12 -> Total current assets | B35: ='A6-FinPos'!C12 -> 108943351.3 | C35: ='A6-FinPos'!D12 -> 118017095.7 | D35: ='A6-FinPos'!E12 -> 170568001.8 | E35: ='A6-FinPos'!F12 -> 162340450 | F35: ='A6-FinPos'!G12 -> 233907858 | G35: ='A6-FinPos'!H12 -> 233907858 | H35: ='A6-FinPos'!I12 -> 276391704.6 | I35: ='A6-FinPos'!J12 -> 228373346 | J35: ='A6-FinPos'!K12 -> 240320348 | K35: ='A6-FinPos'!L12 -> 250288731
A36: ='A6-FinPos'!A24 -> Total non current assets | B36: ='A6-FinPos'!C24 -> 252715918.4 | C36: ='A6-FinPos'!D24 -> 272780971.3 | D36: ='A6-FinPos'!E24 -> 305416197.8 | E36: ='A6-FinPos'!F24 -> 375938641 | F36: ='A6-FinPos'!G24 -> 375233655 | G36: ='A6-FinPos'!H24 -> 375233655 | H36: ='A6-FinPos'!I24 -> 317531378.8 | I36: ='A6-FinPos'!J24 -> 336412025 | J36: ='A6-FinPos'!K24 -> 364056772 | K36: ='A6-FinPos'!L24 -> 383471642
A37: ='A6-FinPos'!A34 -> Total current liabilities | B37: ='A6-FinPos'!C34 -> 42609902.45 | C37: ='A6-FinPos'!D34 -> 41956870.12 | D37: ='A6-FinPos'!E34 -> 36536097.26 | E37: ='A6-FinPos'!F34 -> 52250925 | F37: ='A6-FinPos'!G34 -> 42271762 | G37: ='A6-FinPos'!H34 -> 42271762 | H37: ='A6-FinPos'!I34 -> 74212366.29 | I37: ='A6-FinPos'!J34 -> 36878545 | J37: ='A6-FinPos'!K34 -> 38695939 | K37: ='A6-FinPos'!L34 -> 40604201
A38: ='A6-FinPos'!A39 -> Total non current liabilities | B38: ='A6-FinPos'!C39 -> 23525663.94 | C38: ='A6-FinPos'!D39 -> 22965829.8 | D38: ='A6-FinPos'!E39 -> 26098177.59 | E38: ='A6-FinPos'!F39 -> 29939246 | F38: ='A6-FinPos'!G39 -> 29939246 | G38: ='A6-FinPos'!H39 -> 29939246 | H38: ='A6-FinPos'!I39 -> 26050432.59 | I38: ='A6-FinPos'!J39 -> 30007362 | J38: ='A6-FinPos'!K39 -> 31802038 | K38: ='A6-FinPos'!L39 -> 32885336
A39: Community wealth/Equity | B39: ='A6-FinPos'!C48 -> 295318733.8 | C39: ='A6-FinPos'!D48 -> 328689160.9 | D39: ='A6-FinPos'!E48 -> 415930525.6 | E39: ='A6-FinPos'!F48 -> 455339568 | F39: ='A6-FinPos'!G48 -> 535904129 | G39: ='A6-FinPos'!H48 -> 535904129 | H39: ='A6-FinPos'!I48 -> 491786446.4 | I39: ='A6-FinPos'!J48 -> 497899465 | J39: ='A6-FinPos'!K48 -> 533879145 | K39: ='A6-FinPos'!L48 -> 560270837
A41: Cash flows
A42: Net cash from (used) operating | B42: ='A7-CFlow'!C17 -> 0 | C42: ='A7-CFlow'!D17 -> 0 | D42: ='A7-CFlow'!E17 -> 60795478.6 | E42: ='A7-CFlow'!F17 -> 0 | F42: ='A7-CFlow'!G17 -> -4943548 | G42: ='A7-CFlow'!H17 -> -4943548 | H42: ='A7-CFlow'!I17 -> 214324196.6 | I42: ='A7-CFlow'!J17 -> 64146093 | J42: ='A7-CFlow'!K17 -> 83476178 | K42: ='A7-CFlow'!L17 -> 88508974
A43: Net cash from (used) investing | B43: ='A7-CFlow'!C27 -> 0 | C43: ='A7-CFlow'!D27 -> 0 | D43: ='A7-CFlow'!E27 -> -26519736.97 | E43: ='A7-CFlow'!F27 -> 0 | F43: ='A7-CFlow'!G27 -> 704986 | G43: ='A7-CFlow'!H27 -> 704986 | H43: ='A7-CFlow'!I27 -> -26571676.58 | I43: ='A7-CFlow'!J27 -> -48852400 | J43: ='A7-CFlow'!K27 -> -61785100 | K43: ='A7-CFlow'!L27 -> -65760440
A44: Net cash from (used) financing | B44: ='A7-CFlow'!C36 -> -503126.48 | C44: ='A7-CFlow'!D36 -> -1350 | D44: ='A7-CFlow'!E36 -> -900 | E44: ='A7-CFlow'!F36 -> -180989.52 | F44: ='A7-CFlow'!G36 -> 90000 | G44: ='A7-CFlow'!H36 -> 90000 | H44: ='A7-CFlow'!I36 -> -1650 | I44: ='A7-CFlow'!J36 -> -65720 | J44: ='A7-CFlow'!K36 -> 0 | K44: ='A7-CFlow'!L36 -> 0
A45: =LEFT('A7-CFlow'!A40,37) -> Cash/cash equivalents at the year end | B45: ='A7-CFlow'!C40 -> 41078007.27 | C45: ='A7-CFlow'!D40 -> 19362175.35 | D45: ='A7-CFlow'!E40 -> 57285806.78 | E45: ='A7-CFlow'!F40 -> -180989.52 | F45: ='A7-CFlow'!G40 -> 85400582 | G45: ='A7-CFlow'!H40 -> 85400582 | H45: ='A7-CFlow'!I40 -> 187750870 | I45: ='A7-CFlow'!J40 -> 104777115 | J45: ='A7-CFlow'!K40 -> 126468193 | K45: ='A7-CFlow'!L40 -> 149216727
A47: Cash backing/surplus reconciliation
A48: ='A8-ResRecon'!A4 -> Cash and investments available | B48: ='A8-ResRecon'!C8 -> 19363525.35 | C48: ='A8-ResRecon'!D8 -> 23010965.15 | D48: ='A8-ResRecon'!E8 -> 90532961.28 | E48: ='A8-ResRecon'!F8 -> 23345252 | F48: ='A8-ResRecon'!G8 -> 109264492 | G48: ='A8-ResRecon'!H8 -> 109264492 | H48: ='A8-ResRecon'!I8 -> 199917280.2 | I48: ='A8-ResRecon'!J8 -> 108640985 | J48: ='A8-ResRecon'!K8 -> 113624152 | K48: ='A8-ResRecon'!L8 -> 116176077
A49: ='A8-ResRecon'!A10 -> Application of cash and investments | B49: ='A8-ResRecon'!C18 -> 88110570.45 | C49: ='A8-ResRecon'!D18 -> 87538565.99 | D49: ='A8-ResRecon'!E18 -> -104585697.8 | E49: ='A8-ResRecon'!F18 -> 106431100 | F49: ='A8-ResRecon'!G18 -> 127884937 | G49: ='A8-ResRecon'!H18 -> 127884937 | H49: ='A8-ResRecon'!I18 -> -656370227.6 | I49: ='A8-ResRecon'!J18 -> -23462275 | J49: ='A8-ResRecon'!K18 -> -32910840 | K49: ='A8-ResRecon'!L18 -> -35815533
A50: Balance - surplus (shortfall) | B50: =B48-B49 -> -68747045.1 | C50: =C48-C49 -> -64527600.84 | D50: 195118659.1 | E50: -83085848 | F50: -18620445 | G50: -18620445 | H50: 856287507.7 | I50: 132103260 | J50: 146534992 | K50: 151991610
A52: Asset management
A53: Asset register summary (WDV) | B53: ='A9-Asset'!C165 -> 243857294.8 | C53: ='A9-Asset'!D165 -> 237053425.8 | D53: ='A9-Asset'!E165 -> 299792338.4 | E53: ='A9-Asset'!F165 -> 366194152 | F53: ='A9-Asset'!G165 -> 365489166 | G53: ='A9-Asset'!H165 -> 365489166 | H53: ='A9-Asset'!H165 -> 365489166 | I53: ='A9-Asset'!I165 -> 330788165 | J53: ='A9-Asset'!J165 -> 358151720 | K53: ='A9-Asset'!K165 -> 377271337
A54: ='A9-Asset'!A168 -> Depreciation | B54: ='A9-Asset'!C168 -> 12277161.1 | C54: ='A9-Asset'!D168 -> 15880078.4 | D54: ='A9-Asset'!E168 -> 12114558.47 | E54: ='A9-Asset'!F168 -> 18994790 | F54: ='A9-Asset'!G168 -> 18994790 | G54: ='A9-Asset'!H168 -> 18994790 | H54: ='A9-Asset'!H168 -> 18994790 | I54: ='A9-Asset'!I168 -> 19754629 | J54: ='A9-Asset'!J168 -> 20623834 | K54: ='A9-Asset'!K168 -> 21551907
A55: Renewal and Upgrading of Existing Assets | B55: ='A9-Asset'!C37+'A9-Asset'!C69 -> 11741584.51 | C55: ='A9-Asset'!D37+'A9-Asset'!D69 -> 3523130.65 | D55: ='A9-Asset'!E37+'A9-Asset'!E69 -> 6868592.78 | E55: ='A9-Asset'!F37+'A9-Asset'!F69 -> 1810000 | F55: ='A9-Asset'!G37+'A9-Asset'!G69 -> 1620000 | G55: ='A9-Asset'!H37+'A9-Asset'!H69 -> 1620000 | H55: ='A9-Asset'!H37+'A9-Asset'!H69 -> 1620000 | I55: ='A9-Asset'!I37+'A9-Asset'!I69 -> 9061981 | J55: ='A9-Asset'!J37+'A9-Asset'!J69 -> 0 | K55: ='A9-Asset'!K37+'A9-Asset'!K69 -> 18686781
A56: Repairs and Maintenance | B56: ='A9-Asset'!C169 -> 7862314.46 | C56: ='A9-Asset'!D169 -> 6280208.17 | D56: ='A9-Asset'!E169 -> 18199300.71 | E56: ='A9-Asset'!F169 -> 18077244 | F56: ='A9-Asset'!G169 -> 17382244 | G56: ='A9-Asset'!H169 -> 17382244 | H56: ='A9-Asset'!H169 -> 17382244 | I56: ='A9-Asset'!I169 -> 13139000 | J56: ='A9-Asset'!J169 -> 13717118 | K56: ='A9-Asset'!K169 -> 14334388
A58: Free services
A59: Cost of Free Basic Services provided | B59: ='A10-SerDel'!C60 -> 0 | C59: ='A10-SerDel'!D60 -> -5930933.57 | D59: ='A10-SerDel'!E60 -> -6496579.78 | E59: ='A10-SerDel'!F60 -> -2894209 | F59: ='A10-SerDel'!G60 -> -2976721 | G59: ='A10-SerDel'!H60 -> -2976721 | H59: ='A10-SerDel'!I60 -> -3095790 | I59: ='A10-SerDel'!I60 -> -3095790 | J59: ='A10-SerDel'!J60 -> -3232005 | K59: ='A10-SerDel'!K60 -> -3377445
A60: Revenue cost of free services provided | B60: ='A10-SerDel'!C79 -> 5521868.3 | C60: ='A10-SerDel'!D79 -> 5894776.07 | D60: ='A10-SerDel'!E79 -> 6093885.48 | E60: ='A10-SerDel'!F79 -> 1853874 | F60: ='A10-SerDel'!G79 -> 1853874 | G60: ='A10-SerDel'!H79 -> 1853874 | H60: ='A10-SerDel'!I79 -> 1928029 | I60: ='A10-SerDel'!I79 -> 1928029 | J60: ='A10-SerDel'!J79 -> 2012863 | K60: ='A10-SerDel'!K79 -> 2103442
A61: Households below minimum service level
A62: ='A10-SerDel'!A5 -> Water: | B62: ='A10-SerDel'!C14 -> 0 | C62: ='A10-SerDel'!D14 -> 0 | D62: ='A10-SerDel'!E14 -> 0 | E62: ='A10-SerDel'!F14 -> 0 | F62: ='A10-SerDel'!G14 -> 0 | G62: ='A10-SerDel'!H14 -> 0 | H62: ='A10-SerDel'!I14 -> 0 | I62: ='A10-SerDel'!I14 -> 0 | J62: ='A10-SerDel'!J14 -> 0 | K62: ='A10-SerDel'!K14 -> 0
A63: ='A10-SerDel'!A16 -> Sanitation/sewerage: | B63: ='A10-SerDel'!C26 -> 0 | C63: ='A10-SerDel'!D26 -> 0 | D63: ='A10-SerDel'!E26 -> 0 | E63: ='A10-SerDel'!F26 -> 0 | F63: ='A10-SerDel'!G26 -> 0 | G63: ='A10-SerDel'!H26 -> 0 | H63: ='A10-SerDel'!I26 -> 0 | I63: ='A10-SerDel'!I26 -> 0 | J63: ='A10-SerDel'!J26 -> 0 | K63: ='A10-SerDel'!K26 -> 0
A64: ='A10-SerDel'!A28 -> Energy: | B64: ='A10-SerDel'!C35 -> 0 | C64: ='A10-SerDel'!D35 -> 0 | D64: ='A10-SerDel'!E35 -> 0 | E64: ='A10-SerDel'!F35 -> 0 | F64: ='A10-SerDel'!G35 -> 0 | G64: ='A10-SerDel'!H35 -> 0 | H64: ='A10-SerDel'!I35 -> 0 | I64: ='A10-SerDel'!I35 -> 0 | J64: ='A10-SerDel'!J35 -> 0 | K64: ='A10-SerDel'!K35 -> 0
A65: ='A10-SerDel'!A37 -> Refuse: | B65: ='A10-SerDel'!C45 -> 0 | C65: ='A10-SerDel'!D45 -> 0 | D65: ='A10-SerDel'!E45 -> 0 | E65: ='A10-SerDel'!F45 -> 0 | F65: ='A10-SerDel'!G45 -> 0 | G65: ='A10-SerDel'!H45 -> 0 | H65: ='A10-SerDel'!I45 -> 0 | I65: ='A10-SerDel'!I45 -> 0 | J65: ='A10-SerDel'!J45 -> 0 | K65: ='A10-SerDel'!K45 -> 0

Sheet A2-FinPerf SC
A1: =muni&" - "&Approve3 -> LIM353 Molemole - Table A2 Budgeted Financial Performance (revenue and expenditure by functional classification)
A2: ="Functional Classification "&desc -> Functional Classification Description | B2: =head27 -> Ref | C2: =head1b -> 2018/19 | D2: =head1A -> 2019/20 | E2: =Head1 -> 2020/21 | F2: =Head2 -> Current Year 2021/22 | I2: =Head3 -> 2022/23 Medium Term Revenue & Expenditure Framework
A3: R thousand | B3: 1 | C3: =Head5 -> Audited Outcome | D3: =Head5 -> Audited Outcome | E3: =Head5 -> Audited Outcome | F3: =Head6 -> Original Budget | G3: =Head7 -> Adjusted Budget | H3: =Head8 -> Full Year Forecast | I3: =Head9 -> Budget Year 2022/23 | J3: =Head10 -> Budget Year +1 2023/24 | K3: =Head11 -> Budget Year +2 2024/25
A4: Revenue - Functional
A5: Governance and administration | C5: =SUM(C6:C8) -> 148157868.4 | D5: =SUM(D6:D8) -> 167736344.2 | E5: 235257470.5 | F5: 233378292 | G5: 207845155 | H5: 207845155 | I5: 216234615 | J5: 226840254 | K5: 238397509
A6: Executive and council | C6: =A2A!C6 -> 0 | D6: =A2A!D6 -> 0 | E6: =A2A!E6 -> 12150 | F6: =A2A!F6 -> 0 | G6: =A2A!G6 -> 0 | H6: =A2A!H6 -> 0 | I6: =A2A!I6 -> 0 | J6: =A2A!J6 -> 0 | K6: =A2A!K6 -> 0
A7: Finance and administration | C7: =A2A!C9 -> 148157868.4 | D7: =A2A!D9 -> 167736344.2 | E7: =A2A!E9 -> 235245320.5 | F7: =A2A!F9 -> 233378292 | G7: =A2A!G9 -> 207845155 | H7: =A2A!H9 -> 207845155 | I7: =A2A!I9 -> 216234615 | J7: =A2A!J9 -> 226840254 | K7: =A2A!K9 -> 238397509
A8: Internal audit | C8: =A2A!C23 -> 0 | D8: =A2A!D23 -> 0 | E8: =A2A!E23 -> 0 | F8: =A2A!F23 -> 0 | G8: =A2A!G23 -> 0 | H8: =A2A!H23 -> 0 | I8: =A2A!I23 -> 0 | J8: =A2A!J23 -> 0 | K8: =A2A!K23 -> 0
A9: Community and public safety | C9: =SUM(C10:C14) -> 5729943.72 | D9: =SUM(D10:D14) -> 5412608.88 | E9: 8107750.62 | F9: 10691864 | G9: 10691864 | H9: 10691864 | I9: 11040380 | J9: 10057251 | K9: 10509827
A10: Community and social services | C10: =A2A!C26 -> 1139285 | D10: =A2A!D26 -> 1174268.89 | E10: =A2A!E26 -> 2515686.28 | F10: =A2A!F26 -> 1442644 | G10: =A2A!G26 -> 1442644 | H10: =A2A!H26 -> 1442644 | I10: =A2A!I26 -> 1421190 | J10: =A2A!J26 -> 14815 | K10: =A2A!K26 -> 15481
A11: Sport and recreation | C11: =A2A!C48 -> 354630.05 | D11: =A2A!D48 -> 211716.96 | E11: =A2A!E48 -> 214680.5 | F11: =A2A!F48 -> 257623 | G11: =A2A!G48 -> 257623 | H11: =A2A!H48 -> 257623 | I11: =A2A!I48 -> 267929 | J11: =A2A!J48 -> 279718 | K11: =A2A!K48 -> 292307
A12: Public safety | C12: =A2A!C54 -> 4236028.67 | D12: =A2A!D54 -> 4026623.03 | E12: =A2A!E54 -> 5377383.84 | F12: =A2A!F54 -> 8991597 | G12: =A2A!G54 -> 8991597 | H12: =A2A!H54 -> 8991597 | I12: =A2A!I54 -> 9351261 | J12: =A2A!J54 -> 9762718 | K12: =A2A!K54 -> 10202039
A13: Housing | C13: =A2A!C63 -> 0 | D13: =A2A!D63 -> 0 | E13: =A2A!E63 -> 0 | F13: =A2A!F63 -> 0 | G13: =A2A!G63 -> 0 | H13: =A2A!H63 -> 0 | I13: =A2A!I63 -> 0 | J13: =A2A!J63 -> 0 | K13: =A2A!K63 -> 0
A14: Health | C14: =A2A!C66 -> 0 | D14: =A2A!D66 -> 0 | E14: =A2A!E66 -> 0 | F14: =A2A!F66 -> 0 | G14: =A2A!G66 -> 0 | H14: =A2A!H66 -> 0 | I14: =A2A!I66 -> 0 | J14: =A2A!J66 -> 0 | K14: =A2A!K66 -> 0
A15: Economic and environmental services | C15: =SUM(C16:C18) -> 45055756.76 | D15: =SUM(D16:D18) -> 35739049.46 | E15: 35537755.33 | F15: 43506508 | G15: 45146068 | H15: 45146068 | I15: 39953711 | J15: 41626826 | K15: 43408423
A16: Planning and development | C16: =A2A!C75 -> 45055756.76 | D16: =A2A!D75 -> 35739049.46 | E16: =A2A!E75 -> 35537755.33 | F16: =A2A!F75 -> 43506508 | G16: =A2A!G75 -> 45146068 | H16: =A2A!H75 -> 45146068 | I16: =A2A!I75 -> 39953711 | J16: =A2A!J75 -> 41626826 | K16: =A2A!K75 -> 43408423
A17: Road transport | C17: =A2A!C86 -> 0 | D17: =A2A!D86 -> 0 | E17: =A2A!E86 -> 0 | F17: =A2A!F86 -> 0 | G17: =A2A!G86 -> 0 | H17: =A2A!H86 -> 0 | I17: =A2A!I86 -> 0 | J17: =A2A!J86 -> 0 | K17: =A2A!K86 -> 0
A18: Environmental protection | C18: =A2A!C91 -> 0 | D18: =A2A!D91 -> 0 | E18: =A2A!E91 -> 0 | F18: =A2A!F91 -> 0 | G18: =A2A!G91 -> 0 | H18: =A2A!H91 -> 0 | I18: =A2A!I91 -> 0 | J18: =A2A!J91 -> 0 | K18: =A2A!K91 -> 0
A19: Trading services | C19: =SUM(C20:C23) -> 11108673.98 | D19: =SUM(D20:D23) -> 11588284.95 | E19: 23637505.82 | F19: 25745394 | G19: 27745394 | H19: 27745394 | I19: 17656185 | J19: =SUM(J20:J23) -> 27388707 | K19: 28170838
A20: Energy sources | C20: =A2A!C99 -> 8396818.49 | D20: =A2A!D99 -> 8487575.06 | E20: =A2A!E99 -> 19907231.84 | F20: =A2A!F99 -> 22300209 | G20: =A2A!G99 -> 22300209 | H20: =A2A!H99 -> 22300209 | I20: =A2A!I99 -> 14073191 | J20: =A2A!J99 -> 23648060 | K20: =A2A!K99 -> 24261863
A21: Water management | C21: =A2A!C103 -> 1010545.86 | D21: =A2A!D103 -> 295708.09 | E21: =A2A!E103 -> 328420.18 | F21: =A2A!F103 -> 438143 | G21: =A2A!G103 -> 438143 | H21: =A2A!H103 -> 438143 | I21: =A2A!I103 -> 455669 | J21: =A2A!J103 -> 475719 | K21: =A2A!K103 -> 497126
A22: Waste water management | C22: =A2A!C107 -> -336378.88 | D22: =A2A!D107 -> 387682.44 | E22: =A2A!E107 -> 519063.53 | F22: =A2A!F107 -> 283566 | G22: =A2A!G107 -> 2283566 | H22: =A2A!H107 -> 2283566 | I22: =A2A!I107 -> 294909 | J22: =A2A!J107 -> 307885 | K22: =A2A!K107 -> 321740
A23: Waste management | C23: =A2A!C112 -> 2037688.51 | D23: =A2A!D112 -> 2417319.36 | E23: =A2A!E112 -> 2882790.27 | F23: =A2A!F112 -> 2723476 | G23: =A2A!G112 -> 2723476 | H23: =A2A!H112 -> 2723476 | I23: =A2A!I112 -> 2832416 | J23: =A2A!J112 -> 2957043 | K23: =A2A!K112 -> 3090109
A24: Other | B24: 4 | C24: =A2A!C117 -> 0 | D24: =A2A!D117 -> 0 | E24: =A2A!E117 -> 0 | F24: =A2A!F117 -> 0 | G24: =A2A!G117 -> 0 | H24: =A2A!H117 -> 0 | I24: =A2A!I117 -> 0 | J24: =A2A!J117 -> 0 | K24: =A2A!K117 -> 0
A25: ="Total "&A4 -> Total Revenue - Functional | B25: 2 | C25: =C5+C9+C15+C19+C24 -> 210052242.8 | D25: =D5+D9+D15+D19+D24 -> 220476287.5 | E25: =E5+E9+E15+E19+E24 -> 302540482.2 | F25: 313322058 | G25: 291428481 | H25: 291428481 | I25: =I5+I9+I15+I19+I24 -> 284884891 | J25: 305913038 | K25: 320486597
A27: Expenditure - Functional
A28: Governance and administration | C28: =SUM(C29:C31) -> 100302058.4 | D28: =SUM(D29:D31) -> 104710501.1 | E28: 126504542 | F28: 137751459 | G28: 121459884 | H28: 121459884 | I28: 124026789 | J28: 129778131 | K28: 135335301
A29: Executive and council | C29: =A2A!C128 -> 31357338.36 | D29: =A2A!D128 -> 31093537.34 | E29: =A2A!E128 -> 36700574.25 | F29: =A2A!F128 -> 38116518 | G29: =A2A!G128 -> 33562986 | H29: =A2A!H128 -> 33562986 | I29: =A2A!I128 -> 33616568 | J29: =A2A!J128 -> 34879315 | K29: =A2A!K128 -> 36359322
A30: Finance and administration | C30: =A2A!C131 -> 63055140.01 | D30: =A2A!D131 -> 67000204.33 | E30: =A2A!E131 -> 82673326.21 | F30: =A2A!F131 -> 90852180 | G30: =A2A!G131 -> 79715513 | H30: =A2A!H131 -> 79715513 | I30: =A2A!I131 -> 80669991 | J30: =A2A!J131 -> 84736202 | K30: =A2A!K131 -> 88366423
A31: Internal audit | C31: =A2A!C145 -> 5889580.04 | D31: =A2A!D145 -> 6616759.45 | E31: =A2A!E145 -> 7130641.56 | F31: =A2A!F145 -> 8782761 | G31: =A2A!G145 -> 8181385 | H31: =A2A!H145 -> 8181385 | I31: =A2A!I145 -> 9740230 | J31: =A2A!J145 -> 10162614 | K31: =A2A!K145 -> 10609556
A32: Community and public safety | C32: =SUM(C33:C37) -> 21482121.93 | D32: =SUM(D33:D37) -> 24511118.75 | E32: 25382535.16 | F32: 26202515 | G32: 25493197 | H32: 25493197 | I32: 27641088 | J32: 28805385 | K32: 30048521
A33: Community and social services | C33: =A2A!C148 -> 4523084.19 | D33: =A2A!D148 -> 6220010.77 | E33: =A2A!E148 -> 5328179.42 | F33: =A2A!F148 -> 7269984 | G33: =A2A!G148 -> 6795194 | H33: =A2A!H148 -> 6795194 | I33: =A2A!I148 -> 7852022 | J33: =A2A!J148 -> 8186125 | K33: =A2A!K148 -> 8542844
A34: Sport and recreation | C34: =A2A!C170 -> 3139055.4 | D34: =A2A!D170 -> 3281417.92 | E34: =A2A!E170 -> 3853917.1 | F34: =A2A!F170 -> 3332043 | G34: =A2A!G170 -> 3097515 | H34: =A2A!H170 -> 3097515 | I34: =A2A!I170 -> 2825846 | J34: =A2A!J170 -> 2948437 | K34: =A2A!K170 -> 3079329
A35: Public safety | C35: =A2A!C176 -> 13819982.34 | D35: =A2A!D176 -> 15009690.06 | E35: =A2A!E176 -> 16200438.64 | F35: =A2A!F176 -> 15600488 | G35: =A2A!G176 -> 15600488 | H35: =A2A!H176 -> 15600488 | I35: =A2A!I176 -> 16963220 | J35: =A2A!J176 -> 17670823 | K35: =A2A!K176 -> 18426348
A36: Housing | C36: =A2A!C185 -> 0 | D36: =A2A!D185 -> 0 | E36: =A2A!E185 -> 0 | F36: =A2A!F185 -> 0 | G36: =A2A!G185 -> 0 | H36: =A2A!H185 -> 0 | I36: =A2A!I185 -> 0 | J36: =A2A!J185 -> 0 | K36: =A2A!K185 -> 0
A37: Health | C37: =A2A!C188 -> 0 | D37: =A2A!D188 -> 0 | E37: =A2A!E188 -> 0 | F37: =A2A!F188 -> 0 | G37: =A2A!G188 -> 0 | H37: =A2A!H188 -> 0 | I37: =A2A!I188 -> 0 | J37: =A2A!J188 -> 0 | K37: =A2A!K188 -> 0
A38: Economic and environmental services | C38: =SUM(C39:C41) -> 13169272.81 | D38: =SUM(D39:D41) -> 12600212.85 | E38: 11221967.77 | F38: 15439515 | G38: 13803725 | H38: 13803725 | I38: 18232187 | J38: 17983267 | K38: 18753381
A39: Planning and development | C39: =A2A!C197 -> 10131053.5 | D39: =A2A!D197 -> 9646016.62 | E39: =A2A!E197 -> 9050448.45 | F39: =A2A!F197 -> 11831023 | G39: =A2A!G197 -> 10413872 | H39: =A2A!H197 -> 10413872 | I39: =A2A!I197 -> 14635291 | J39: =A2A!J197 -> 14237829 | K39: =A2A!K197 -> 14849341
A40: Road transport | C40: =A2A!C208 -> 3038219.31 | D40: =A2A!D208 -> 2954196.23 | E40: =A2A!E208 -> 2171519.32 | F40: =A2A!F208 -> 3608492 | G40: =A2A!G208 -> 3389853 | H40: =A2A!H208 -> 3389853 | I40: =A2A!I208 -> 3596896 | J40: =A2A!J208 -> 3745438 | K40: =A2A!K208 -> 3904040
A41: Environmental protection | C41: =A2A!C213 -> 0 | D41: =A2A!D213 -> 0 | E41: =A2A!E213 -> 0 | F41: =A2A!F213 -> 0 | G41: =A2A!G213 -> 0 | H41: =A2A!H213 -> 0 | I41: =A2A!I213 -> 0 | J41: =A2A!J213 -> 0 | K41: =A2A!K213 -> 0
A42: Trading services | C42: =SUM(C43:C46) -> 59241559.68 | D42: =SUM(D43:D46) -> 48585256 | E42: 57964858.16 | F42: =SUM(F43:F46) -> 68535136 | G42: 66982875 | H42: 66982875 | I42: 66132760 | J42: 67561501 | K42: =SUM(K43:K46) -> 70589293
A43: Energy sources | C43: =A2A!C221 -> 13550677.41 | D43: =A2A!D221 -> 18939096.99 | E43: =A2A!E221 -> 21345355 | F43: =A2A!F221 -> 23932536 | G43: =A2A!G221 -> 24432536 | H43: =A2A!H221 -> 24432536 | I43: =A2A!I221 -> 25013024 | J43: =A2A!J221 -> 26109017 | K43: =A2A!K221 -> 27279240
A44: Water management | C44: =A2A!C225 -> 7741390.77 | D44: =A2A!D225 -> 6543208.32 | E44: =A2A!E225 -> 6378865.08 | F44: =A2A!F225 -> 8083668 | G44: =A2A!G225 -> 7811892 | H44: =A2A!H225 -> 7811892 | I44: =A2A!I225 -> 5959405 | J44: =A2A!J225 -> 6219787 | K44: =A2A!K225 -> 6497801
A45: Waste water management | C45: =A2A!C229 -> 29413899.93 | D45: =A2A!D229 -> 16752158.54 | E45: =A2A!E229 -> 23788074.01 | F45: =A2A!F229 -> 28806018 | G45: =A2A!G229 -> 27269409 | H45: =A2A!H229 -> 27269409 | I45: =A2A!I229 -> 25460660 | J45: =A2A!J229 -> 26579248 | K45: =A2A!K229 -> 27773595
A46: Waste management | C46: =A2A!C234 -> 8535591.57 | D46: =A2A!D234 -> 6350792.15 | E46: =A2A!E234 -> 6452564.07 | F46: =A2A!F234 -> 7712914 | G46: =A2A!G234 -> 7469038 | H46: =A2A!H234 -> 7469038 | I46: =A2A!I234 -> 9699671 | J46: =A2A!J234 -> 8653449 | K46: =A2A!K234 -> 9038657
A47: Other | B47: 4 | C47: =A2A!C239 -> 0 | D47: =A2A!D239 -> 0 | E47: =A2A!E239 -> 0 | F47: =A2A!F239 -> 0 | G47: =A2A!G239 -> 0 | H47: =A2A!H239 -> 0 | I47: =A2A!I239 -> 0 | J47: =A2A!J239 -> 0 | K47: =A2A!K239 -> 0
A48: ="Total "&A27 -> Total Expenditure - Functional | B48: 3 | C48: =C28+C32+C38+C42+C47 -> 194195012.8 | D48: =D28+D32+D38+D42+D47 -> 190407088.7 | E48: =E28+E32+E38+E42+E47 -> 221073903.1 | F48: =F28+F32+F38+F42+F47 -> 247928625 | G48: 227739681 | H48: 227739681 | I48: 236032824 | J48: 244128284 | K48: 254726496
A49: =result -> Surplus/(Deficit) for the year | C49: =C25-C48 -> 15857230 | D49: =D25-D48 -> 30069198.8 | E49: 81466579.14 | F49: 65393433 | G49: 63688800 | H49: 63688800 | I49: 48852067 | J49: 61784754 | K49: 65760101
A50: =head27a -> References
A51: 1. Government Finance Statistics Functions and Sub-functions are standardised to assist the compilation of national and international accounts for comparison purposes
A52: 2. Total Revenue by functional classification must reconcile to Total Operating Revenue shown in Budgeted Financial Performance (revenue and expenditure)
A53: 3. Total Expenditure by Functional Classification must reconcile to Total Operating Expenditure shown in Budgeted Financial Performance (revenue and expenditure)
A54: 4. All amounts must be classified under a functional classification . The GFS function 'Other' is only for Abbatoirs, Air Transport, Forestry, Licensing and Regulation, Markets and Tourism - and if used must be supported by footnotes. Nothing else may be placed under 'Other'. Assign associate share to relevant classification.
A57: check oprev balance | C57: =C25-'A4-FinPerf RE'!C59 -> 5205879.7 | D57: =D25-'A4-FinPerf RE'!D59 -> 0 | E57: =E25-'A4-FinPerf RE'!E59 -> 0 | F57: =F25-'A4-FinPerf RE'!F59 -> 0 | G57: =G25-'A4-FinPerf RE'!G59 -> 0 | H57: =H25-'A4-FinPerf RE'!H59 -> 0 | I57: =I25-'A4-FinPerf RE'!J59 -> 0 | J57: =J25-'A4-FinPerf RE'!K59 -> 0 | K57: =K25-'A4-FinPerf RE'!L59 -> 0
A58: check opexp balance | C58: =C48-'A4-FinPerf RE'!C35 -> 4496533.21 | D58: =D48-'A4-FinPerf RE'!D35 -> 2813793.73 | E58: =E48-'A4-FinPerf RE'!E35 -> 3109787.22 | F58: =F48-'A4-FinPerf RE'!F35 -> 0 | G58: =G48-'A4-FinPerf RE'!G35 -> 0 | H58: =H48-'A4-FinPerf RE'!H35 -> 0 | I58: =I48-'A4-FinPerf RE'!J35 -> 1 | J58: =J48-'A4-FinPerf RE'!K35 -> 2 | K58: =K48-'A4-FinPerf RE'!L35 -> 1

Sheet A2A
A1: =muni&" - "&Approve3 -> LIM353 Molemole - Table A2 Budgeted Financial Performance (revenue and expenditure by functional classification)
A2: ="Functional Classification "&desc -> Functional Classification Description | B2: =head27 -> Ref | C2: =head1b -> 2018/19 | D2: =head1A -> 2019/20 | E2: =Head1 -> 2020/21 | F2: =Head2 -> Current Year 2021/22 | I2: =Head3 -> 2022/23 Medium Term Revenue & Expenditure Framework
A3: R thousand | B3: 1 | C3: =Head5 -> Audited Outcome | D3: =Head5 -> Audited Outcome | E3: =Head5 -> Audited Outcome | F3: =Head6 -> Original Budget | G3: =Head7 -> Adjusted Budget | H3: =Head8 -> Full Year Forecast | I3: =Head9 -> Budget Year 2022/23 | J3: =Head10 -> Budget Year +1 2023/24 | K3: =Head11 -> Budget Year +2 2024/25
A4: Revenue - Functional
A5: Municipal governance and administration | C5: =C6+C9+C23 -> 148157868.4 | D5: 167736344.2 | E5: 235257470.5 | F5: 233378292 | G5: 207845155 | H5: 207845155 | I5: 216234615 | J5: 226840254 | K5: 238397509
A6: Executive and council | C6: =SUM(C7:C8) -> 0 | D6: =SUM(D7:D8) -> 0 | E6: 12150 | F6: 0 | G6: 0 | H6: 0 | I6: 0 | J6: 0 | K6: 0
A7: Mayor and Council | C7: 0 | D7: 0 | E7: 12150 | F7: 0 | G7: 0 | H7: 0 | I7: 0 | J7: 0 | K7: 0
A8: Municipal Manager, Town Secretary and Chief Executive | C8: 0 | D8: 0 | E8: 0 | F8: 0 | G8: 0 | H8: 0 | I8: 0 | J8: 0 | K8: 0
A9: Finance and administration | C9: =SUM(C10:C22) -> 148157868.4 | D9: 167736344.2 | E9: 235245320.5 | F9: 233378292 | G9: 207845155 | H9: 207845155 | I9: 216234615 | J9: 226840254 | K9: 238397509
A10: Administrative and Corporate Support | C10: 146165620.6 | D10: 165494796 | E10: 232590492.6 | F10: 209983966 | G10: 198111750 | H10: 198111750 | I10: 212971703 | J10: 223433774 | K10: 234837738
A11: Asset Management
A12: Finance | C12: 1839509.58 | D12: 1759035.19 | E12: 2574466.45 | F12: 23172487 | G12: 9511566 | H12: 9511566 | I12: 3032199 | J12: 3165616 | K12: 3308068
A13: Fleet Management
A14: Human Resources | C14: 152738.23 | D14: 482513.02 | E14: 80361.4 | F14: 221839 | G14: 221839 | H14: 221839 | I14: 230713 | J14: 240864 | K14: 251703
A15: Information Technology | C15: 0 | D15: 0 | E15: 0 | F15: 0 | G15: 0 | H15: 0 | I15: 0 | J15: 0 | K15: 0
A16: Legal Services | C16: 0 | D16: 0 | E16: 0 | F16: 0 | G16: 0 | H16: 0 | I16: 0 | J16: 0 | K16: 0
A17: Marketing, Customer Relations, Publicity and Media Co-ordination
A18: Property Services
A19: Risk Management | C19: 0 | D19: 0 | E19: 0 | F19: 0 | G19: 0 | H19: 0 | I19: 0 | J19: 0 | K19: 0
A20: Security Services
A21: Supply Chain Management | C21: 0 | D21: 0 | E21: 0 | F21: 0 | G21: 0 | H21: 0 | I21: 0 | J21: 0 | K21: 0
A22: Valuation Service
A23: Internal audit | C23: =SUM(C24:C24) -> 0 | D23: 0 | E23: 0 | F23: 0 | G23: 0 | H23: 0 | I23: 0 | J23: 0 | K23: 0
A24: Governance Function | C24: 0 | D24: 0 | E24: 0 | F24: 0 | G24: 0 | H24: 0 | I24: 0 | J24: 0 | K24: 0
A25: Community and public safety | C25: =C26+C48+C54+C63+C66 -> 5729943.72 | D25: 5412608.88 | E25: 8107750.62 | F25: 10691864 | G25: 10691864 | H25: 10691864 | I25: 11040380 | J25: 10057251 | K25: 10509827
A26: Community and social services | C26: =SUM(C27:C47) -> 1139285 | D26: =SUM(D27:D47) -> 1174268.89 | E26: 2515686.28 | F26: 1442644 | G26: 1442644 | H26: 1442644 | I26: 1421190 | J26: 14815 | K26: 15481
A27: Aged Care
A28: Agricultural
A29: Animal Care and Diseases
A30: Cemeteries, Funeral Parlours and Crematoriums | C30: 5850 | D30: 7268.89 | E30: 18283.95 | F30: 13644 | G30: 13644 | H30: 13644 | I30: 14190 | J30: 14815 | K30: 15481
A31: Child Care Facilities
A32: Community Halls and Facilities | C32: 1133435 | D32: 1167000 | E32: 2497402.33 | F32: 1429000 | G32: 1429000 | H32: 1429000 | I32: 1407000 | J32: 0 | K32: 0
A33: Consumer Protection
A34: Cultural Matters
A35: Disaster Management
A36: Education
A37: Indigenous and Customary Law
A38: Industrial Promotion
A39: Language Policy
A40: Libraries and Archives | C40: 0 | D40: 0 | E40: 0 | F40: 0 | G40: 0 | H40: 0 | I40: 0 | J40: 0 | K40: 0
A41: Literacy Programmes
A42: Media Services
A43: Museums and Art Galleries
A44: Population Development
A45: Provincial Cultural Matters
A46: Theatres
A47: Zoo's
A48: Sport and recreation | C48: =SUM(C49:C53) -> 354630.05 | D48: =SUM(D49:D53) -> 211716.96 | E48: 214680.5 | F48: 257623 | G48: 257623 | H48: 257623 | I48: 267929 | J48: 279718 | K48: 292307
A49: Beaches and Jetties
A50: Casinos, Racing, Gambling, Wagering
A51: Community Parks (including Nurseries)
A52: Recreational Facilities | C52: 354630.05 | D52: 211716.96 | E52: 214680.5 | F52: 257623 | G52: 257623 | H52: 257623 | I52: 267929 | J52: 279718 | K52: 292307
A53: Sports Grounds and Stadiums
A54: Public safety | C54: =SUM(C55:C62) -> 4236028.67 | D54: 4026623.03 | E54: 5377383.84 | F54: 8991597 | G54: 8991597 | H54: 8991597 | I54: 9351261 | J54: 9762718 | K54: 10202039
A55: Civil Defence
A56: Cleansing
A57: Control of Public Nuisances
A58: Fencing and Fences
A59: Fire Fighting and Protection
A60: Licensing and Control of Animals
A61: Police Forces, Traffic and Street Parking Control | C61: 4236028.67 | D61: 4026623.03 | E61: 5377383.84 | F61: 8991597 | G61: 8991597 | H61: 8991597 | I61: 9351261 | J61: 9762718 | K61: 10202039
A62: Pounds
A63: Housing | C63: =SUM(C64:C65) -> 0 | D63: =SUM(D64:D65) -> 0 | E63: 0 | F63: 0 | G63: 0 | H63: 0 | I63: 0 | J63: 0 | K63: 0
A64: Housing
A65: Informal Settlements
A66: Health | C66: =SUM(C67:C73) -> 0 | D66: =SUM(D67:D73) -> 0 | E66: 0 | F66: 0 | G66: 0 | H66: 0 | I66: 0 | J66: 0 | K66: 0
A67: Ambulance
A68: Health Services
A69: Laboratory Services
A70: Food Control
A71: Health Surveillance and Prevention of Communicable Diseases including immunizations
A72: Vector Control
A73: Chemical Safety
A74: Economic and environmental services | C74: =C75+C86+C91 -> 45055756.76 | D74: 35739049.46 | E74: 35537755.33 | F74: 43506508 | G74: 45146068 | H74: 45146068 | I74: 39953711 | J74: 41626826 | K74: 43408423
A75: Planning and development | C75: =SUM(C76:C85) -> 45055756.76 | D75: =SUM(D76:D85) -> 35739049.46 | E75: 35537755.33 | F75: 43506508 | G75: 45146068 | H75: 45146068 | I75: 39953711 | J75: 41626826 | K75: 43408423
A76: Billboards
A77: Corporate Wide Strategic Planning (IDPs, LEDs) | C77: 132097.48 | D77: 43334.4 | E77: 40312.32 | F77: 36810 | G77: 36810 | H77: 36810 | I77: 38284 | J77: 39968 | K77: 41766
A78: Central City Improvement District
A79: Development Facilitation
A80: Economic Development/Planning | C80: 35200 | D80: 0 | E80: 0 | F80: 0 | G80: 0 | H80: 0 | I80: 0 | J80: 0 | K80: 0
A81: Regional Planning and Development
A82: Town Planning, Building Regulations and Enforcement, and City Engineer | C82: 12151.36 | D82: 34271.21 | E82: 14725.45 | F82: 6469698 | G82: 8109258 | H82: 8109258 | I82: 123427 | J82: 128858 | K82: 134657
A83: Project Management Unit | C83: 44876307.92 | D83: 35661443.85 | E83: 35482717.56 | F83: 37000000 | G83: 37000000 | H83: 37000000 | I83: 39792000 | J83: 41458000 | K83: 43232000
A84: Provincial Planning
A85: Support to Local Municipalities
A86: Road transport | C86: =SUM(C87:C90) -> 0 | D86: 0 | E86: 0 | F86: 0 | G86: 0 | H86: 0 | I86: 0 | J86: 0 | K86: 0
A87: Public Transport
A88: Road and Traffic Regulation
A89: Roads | C89: 0 | D89: 0 | E89: 0 | F89: 0 | G89: 0 | H89: 0 | I89: 0 | J89: 0 | K89: 0
A90: Taxi Ranks
A91: Environmental protection | C91: =SUM(C92:C97) -> 0 | D91: =SUM(D92:D97) -> 0 | E91: 0 | F91: 0 | G91: 0 | H91: 0 | I91: 0 | J91: 0 | K91: 0
A92: Biodiversity and Landscape
A93: Coastal Protection
A94: Indigenous Forests
A95: Nature Conservation
A96: Pollution Control
A97: Soil Conservation
A98: Trading services | C98: =C99+C103+C107+C112 -> 11108673.98 | D98: =D99+D103+D107+D112 -> 11588284.95 | E98: 23637505.82 | F98: 25745394 | G98: 27745394 | H98: 27745394 | I98: 17656185 | J98: 27388707 | K98: =K99+K103+K107+K112 -> 28170838
A99: Energy sources | C99: =SUM(C100:C102) -> 8396818.49 | D99: =SUM(D100:D102) -> 8487575.06 | E99: 19907231.84 | F99: 22300209 | G99: 22300209 | H99: 22300209 | I99: 14073191 | J99: 23648060 | K99: 24261863
A100: Electricity | C100: 8396818.49 | D100: 8487575.06 | E100: 19907231.84 | F100: 22300209 | G100: 22300209 | H100: 22300209 | I100: 14073191 | J100: 23648060 | K100: 24261863
A101: Street Lighting and Signal Systems
A102: Nonelectric Energy
A103: Water management | C103: =SUM(C104:C106) -> 1010545.86 | D103: =SUM(D104:D106) -> 295708.09 | E103: 328420.18 | F103: 438143 | G103: 438143 | H103: 438143 | I103: 455669 | J103: 475719 | K103: 497126
A104: Water Treatment
A105: Water Distribution | C105: 1010545.86 | D105: 295708.09 | E105: 328420.18 | F105: 438143 | G105: 438143 | H105: 438143 | I105: 455669 | J105: 475719 | K105: 497126
A106: Water Storage
A107: Waste water management | C107: =SUM(C108:C111) -> -336378.88 | D107: =SUM(D108:D111) -> 387682.44 | E107: 519063.53 | F107: 283566 | G107: 2283566 | H107: 2283566 | I107: 294909 | J107: 307885 | K107: 321740
A108: Public Toilets
A109: Sewerage | C109: -336378.88 | D109: 387682.44 | E109: 519063.53 | F109: 283566 | G109: 283566 | H109: 283566 | I109: 294909 | J109: 307885 | K109: 321740
A110: Storm Water Management | C110: 0 | D110: 0 | E110: 0 | F110: 0 | G110: 2000000 | H110: 2000000 | I110: 0 | J110: 0 | K110: 0
A111: Waste Water Treatment
A112: Waste management | C112: =SUM(C113:C116) -> 2037688.51 | D112: =SUM(D113:D116) -> 2417319.36 | E112: 2882790.27 | F112: 2723476 | G112: 2723476 | H112: 2723476 | I112: 2832416 | J112: 2957043 | K112: 3090109
A113: Recycling
A114: Solid Waste Disposal (Landfill Sites)
A115: Solid Waste Removal | C115: 2037688.51 | D115: 2417319.36 | E115: 2882790.27 | F115: 2723476 | G115: 2723476 | H115: 2723476 | I115: 2832416 | J115: 2957043 | K115: 3090109
A116: Street Cleaning
A117: Other | C117: =SUM(C118:C123) -> 0 | D117: =SUM(D118:D123) -> 0 | E117: 0 | F117: 0 | G117: 0 | H117: 0 | I117: 0 | J117: 0 | K117: 0
A118: Abattoirs
A119: Air Transport
A120: Forestry
A121: Licensing and Regulation
A122: Markets
A123: Tourism
A124: ="Total "&A4 -> Total Revenue - Functional | B124: 2 | C124: =C5+C25+C74+C98+C117 -> 210052242.8 | D124: 220476287.5 | E124: 302540482.2 | F124: 313322058 | G124: 291428481 | H124: 291428481 | I124: 284884891 | J124: 305913038 | K124: 320486597
A126: Expenditure - Functional
A127: =A5 -> Municipal governance and administration | C127: =C128+C131+C145 -> 100302058.4 | D127: 104710501.1 | E127: 126504542 | F127: 137751459 | G127: 121459884 | H127: 121459884 | I127: 124026789 | J127: 129778131 | K127: 135335301
A128: Executive and council | C128: =SUM(C129:C130) -> 31357338.36 | D128: 31093537.34 | E128: 36700574.25 | F128: 38116518 | G128: 33562986 | H128: 33562986 | I128: 33616568 | J128: 34879315 | K128: 36359322
A129: Mayor and Council | C129: 23240016.78 | D129: 23048968.57 | E129: 23126708.41 | F129: 28198752 | G129: 25106151 | H129: 25106151 | I129: 24640185 | J129: 25589423 | K129: 26672777
A130: Municipal Manager, Town Secretary and Chief Executive | C130: 8117321.58 | D130: 8044568.77 | E130: 13573865.84 | F130: 9917766 | G130: 8456835 | H130: 8456835 | I130: 8976383 | J130: 9289892 | K130: 9686545
A131: Finance and administration | C131: =SUM(C132:C144) -> 63055140.01 | D131: 67000204.33 | E131: 82673326.21 | F131: 90852180 | G131: 79715513 | H131: 79715513 | I131: 80669991 | J131: 84736202 | K131: 88366423
A132: Administrative and Corporate Support | C132: 27491675.9 | D132: 30645109.21 | E132: 34650783.48 | F132: 40000635 | G132: 34697524 | H132: 34697524 | I132: 37315778 | J132: 39542495 | K132: 41208750
A133: Asset Management
A134: Finance | C134: 16941622.23 | D134: 16518927.02 | E134: 27178349.86 | F134: 25282300 | G134: 20814438 | H134: 20814438 | I134: 19586316 | J134: 20405697 | K134: 21280568
A135: Fleet Management
A136: Human Resources | C136: 6178757.14 | D136: 7234551.76 | E136: 6525399.55 | F136: 7258307 | G136: 7140957 | H136: 7140957 | I136: 6871173 | J136: 7163364 | K136: 7475342
A137: Information Technology | C137: 5069950.79 | D137: 5297843.64 | E137: 6373679 | F137: 7873604 | G137: 7577547 | H137: 7577547 | I137: 7097580 | J137: 7406996 | K137: 7737368
A138: Legal Services | C138: 1586863.61 | D138: 1783687.83 | E138: 2156226.17 | F138: 3015679 | G138: 2995679 | H138: 2995679 | I138: 3189071 | J138: 3326985 | K138: 3474236
A139: Marketing, Customer Relations, Publicity and Media Co-ordination
A140: Property Services
A141: Risk Management | C141: 1944412.3 | D141: 1814194.98 | E141: 1514114.78 | F141: 2347610 | G141: 2183109 | H141: 2183109 | I141: 2229893 | J141: 2325804 | K141: 2428111
A142: Security Services
A143: Supply Chain Management | C143: 3841858.04 | D143: 3705889.89 | E143: 4274773.37 | F143: 5074045 | G143: 4306259 | H143: 4306259 | I143: 4380180 | J143: 4564861 | K143: 4762048
A144: Valuation Service
A145: Internal audit | C145: =SUM(C146:C146) -> 5889580.04 | D145: 6616759.45 | E145: 7130641.56 | F145: 8782761 | G145: 8181385 | H145: 8181385 | I145: 9740230 | J145: 10162614 | K145: 10609556
A146: Governance Function | C146: 5889580.04 | D146: 6616759.45 | E146: 7130641.56 | F146: 8782761 | G146: 8181385 | H146: 8181385 | I146: 9740230 | J146: 10162614 | K146: 10609556
A147: Community and public safety | C147: =C148+C170+C176+C185+C188 -> 21482121.93 | D147: 24511118.75 | E147: 25382535.16 | F147: 26202515 | G147: 25493197 | H147: 25493197 | I147: 27641088 | J147: 28805385 | K147: 30048521
A148: Community and social services | C148: =SUM(C149:C169) -> 4523084.19 | D148: =SUM(D149:D169) -> 6220010.77 | E148: 5328179.42 | F148: 7269984 | G148: 6795194 | H148: 6795194 | I148: 7852022 | J148: 8186125 | K148: 8542844
A149: Aged Care
A150: Agricultural
A151: Animal Care and Diseases
A152: Cemeteries, Funeral Parlours and Crematoriums | C152: 1018891.49 | D152: 1197154.18 | E152: 1242347.81 | F152: 1471894 | G152: 1474594 | H152: 1474594 | I152: 1570886 | J152: 1638959 | K152: 1711631
A153: Child Care Facilities
A154: Community Halls and Facilities | C154: 3081561.75 | D154: 4355559.43 | E154: 3561387.56 | F154: 4549410 | G154: 4380224 | H154: 4380224 | I154: 4828617 | J154: 5031357 | K154: 5247828
A155: Consumer Protection
A156: Cultural Matters
A157: Disaster Management
A158: Education
A159: =A37 -> Indigenous and Customary Law
A160: Industrial Promotion
A161: Language Policy
A162: Libraries and Archives | C162: 422630.95 | D162: 667297.16 | E162: 524444.05 | F162: 1248680 | G162: 940376 | H162: 940376 | I162: 1452519 | J162: 1515809 | K162: 1583385
A163: Literacy Programmes
A164: Media Services
A165: Museums and Art Galleries
A166: Population Development
A167: Provincial Cultural Matters
A168: Theatres
A169: Zoo's
A170: Sport and recreation | C170: =SUM(C171:C175) -> 3139055.4 | D170: 3281417.92 | E170: 3853917.1 | F170: 3332043 | G170: 3097515 | H170: 3097515 | I170: 2825846 | J170: 2948437 | K170: 3079329
A171: Beaches and Jetties
A172: Casinos, Racing, Gambling, Wagering
A173: Community Parks (including Nurseries)
A174: Recreational Facilities | C174: 3139055.4 | D174: 3281417.92 | E174: 3853917.1 | F174: 3332043 | G174: 3097515 | H174: 3097515 | I174: 2825846 | J174: 2948437 | K174: 3079329
A175: Sports Grounds and Stadiums
A176: Public safety | C176: =SUM(C177:C184) -> 13819982.34 | D176: 15009690.06 | E176: 16200438.64 | F176: 15600488 | G176: 15600488 | H176: 15600488 | I176: 16963220 | J176: 17670823 | K176: 18426348
A177: Civil Defence
A178: Cleansing
A179: =A57 -> Control of Public Nuisances
A180: Fencing and Fences
A181: Fire Fighting and Protection
A182: Licensing and Control of Animals
A183: Police Forces, Traffic and Street Parking Control | C183: 13819982.34 | D183: 15009690.06 | E183: 16200438.64 | F183: 15600488 | G183: 15600488 | H183: 15600488 | I183: 16963220 | J183: 17670823 | K183: 18426348
A184: Pounds
A185: =A63 -> Housing | C185: =SUM(C186:C187) -> 0 | D185: 0 | E185: 0 | F185: 0 | G185: 0 | H185: 0 | I185: 0 | J185: 0 | K185: 0
A186: Housing
A187: Informal Settlements
A188: Health | C188: =SUM(C189:C195) -> 0 | D188: =SUM(D189:D195) -> 0 | E188: 0 | F188: 0 | G188: 0 | H188: 0 | I188: 0 | J188: 0 | K188: 0
A189: Ambulance
A190: Health Services
A191: Laboratory Services
A192: Food Control
A193: Health Surveillance and Prevention of Communicable Diseases including immunizations
A194: Vector Control
A195: Chemical Safety
A196: Economic and environmental services | C196: =C197+C208+C213 -> 13169272.81 | D196: 12600212.85 | E196: 11221967.77 | F196: 15439515 | G196: 13803725 | H196: 13803725 | I196: 18232187 | J196: 17983267 | K196: 18753381
A197: Planning and development | C197: =SUM(C198:C207) -> 10131053.5 | D197: =SUM(D198:D207) -> 9646016.62 | E197: 9050448.45 | F197: 11831023 | G197: 10413872 | H197: 10413872 | I197: 14635291 | J197: 14237829 | K197: 14849341
A198: Billboards
A199: Corporate Wide Strategic Planning (IDPs, LEDs) | C199: 4029535.13 | D199: 3029998.72 | E199: 3205750.49 | F199: 4368503 | G199: 2938489 | H199: 2938489 | I199: 2937958 | J199: 3067228 | K199: 3204245
A200: Central City Improvement District
A201: Development Facilitation
... 53 more rows

Sheet A3-FinPerf V
A1: =muni&" - "&Approve2 -> LIM353 Molemole - Table A3 Budgeted Financial Performance (revenue and expenditure by municipal vote)
A2: =Vdesc -> Vote Description | B2: =head27 -> Ref | C2: =head1b -> 2018/19 | D2: =head1A -> 2019/20 | E2: =Head1 -> 2020/21 | F2: =Head2 -> Current Year 2021/22 | I2: =Head3 -> 2022/23 Medium Term Revenue & Expenditure Framework | L2: =Head4 -> LTFS
A3: R thousand | C3: =Head5 -> Audited Outcome | D3: =Head5 -> Audited Outcome | E3: =Head5 -> Audited Outcome | F3: =Head6 -> Original Budget | G3: =Head7 -> Adjusted Budget | H3: =Head8 -> Full Year Forecast | I3: =Head9 -> Budget Year 2022/23 | J3: =Head10 -> Budget Year +1 2023/24 | K3: =Head11 -> Budget Year +2 2024/25 | L3: =Head12 -> Forecast 2025/26 | M3: =Head13 -> Forecast 2026/27 | N3: =Head14 -> Forecast 2027/28 | O3: =Head15 -> Forecast 2028/29 | P3: =Head16 -> Forecast 2029/30 | Q3: =Head17 -> Forecast 2030/31 | R3: =Head18 -> Forecast 2031/32 | S3: =Head19 -> Forecast 2032/33 | T3: =Head20 -> Forecast 2033/34 | U3: =Head21 -> Forecast 2034/35 | V3: =Head22 -> Forecast 2035/36 | W3: =Head23 -> Forecast 2036/37
A4: Revenue by Vote | B4: 1
A5: =A3A!A5 -> Vote 01 - Corporate Services | C5: =A3A!C5 -> 332347.07 | D5: =A3A!D5 -> 577474.54 | E5: =A3A!E5 -> 147701.19 | F5: =A3A!F5 -> 6728347 | G5: =A3A!G5 -> 8367907 | H5: =A3A!H5 -> 8367907 | I5: =A3A!I5 -> 392424 | J5: =A3A!J5 -> 409690 | K5: =A3A!K5 -> 428126
A6: =A3A!A14 -> Vote 02 - Municipal Manager | C6: =A3A!C14 -> 0 | D6: =A3A!D14 -> 0 | E6: =A3A!E14 -> 0 | F6: =A3A!F14 -> 0 | G6: =A3A!G14 -> 0 | H6: =A3A!H14 -> 0 | I6: =A3A!I14 -> 0 | J6: =A3A!J14 -> 0 | K6: =A3A!K14 -> 0
A7: =A3A!A20 -> Vote 03 - Mayors Office | C7: =A3A!C20 -> 0 | D7: =A3A!D20 -> 0 | E7: =A3A!E20 -> 0 | F7: =A3A!F20 -> 0 | G7: =A3A!G20 -> 0 | H7: =A3A!H20 -> 0 | I7: =A3A!I20 -> 0 | J7: =A3A!J20 -> 0 | K7: =A3A!K20 -> 0
A8: =A3A!A26 -> Vote 04 - Budget And Treasury | C8: =A3A!C26 -> 148004970.1 | D8: =A3A!D26 -> 167236475.3 | E8: =A3A!E26 -> 235164807.1 | F8: =A3A!F26 -> 233156453 | G8: =A3A!G26 -> 207623316 | H8: =A3A!H26 -> 207623316 | I8: =A3A!I26 -> 216003902 | J8: =A3A!J26 -> 226599390 | K8: =A3A!K26 -> 238145806
A9: =A3A!A34 -> Vote 05 - Community Services | C9: =A3A!C34 -> 7767632.23 | D9: =A3A!D34 -> 7829928.24 | E9: =A3A!E34 -> 10990540.89 | F9: =A3A!F34 -> 13415340 | G9: =A3A!G34 -> 13415340 | H9: =A3A!H34 -> 13415340 | I9: =A3A!I34 -> 13872796 | J9: =A3A!J34 -> 13014294 | K9: =A3A!K34 -> 13599936
A10: =A3A!A42 -> Vote 06 - Technical Services | C10: =A3A!C42 -> 53947293.39 | D10: =A3A!D42 -> 44832409.44 | E10: =A3A!E42 -> 56237433.11 | F10: =A3A!F42 -> 60021918 | G10: =A3A!G42 -> 62021918 | H10: =A3A!H42 -> 62021918 | I10: =A3A!I42 -> 54615769 | J10: =A3A!J42 -> 65889664 | K10: =A3A!K42 -> 68312729
A11: ='Org structure'!A8 -> Vote 07 - | C11: =A3A!C51 -> 0 | D11: =A3A!D51 -> 0 | E11: =A3A!E51 -> 0 | F11: =A3A!F51 -> 0 | G11: =A3A!G51 -> 0 | H11: =A3A!H51 -> 0 | I11: =A3A!I51 -> 0 | J11: =A3A!J51 -> 0 | K11: =A3A!K51 -> 0
A12: ='Org structure'!A9 -> Vote 08 - | C12: =A3A!C52 -> 0 | D12: =A3A!D52 -> 0 | E12: =A3A!E52 -> 0 | F12: =A3A!F52 -> 0 | G12: =A3A!G52 -> 0 | H12: =A3A!H52 -> 0 | I12: =A3A!I52 -> 0 | J12: =A3A!J52 -> 0 | K12: =A3A!K52 -> 0
A13: ='Org structure'!A10 -> Vote 09 - | C13: =A3A!C53 -> 0 | D13: =A3A!D53 -> 0 | E13: =A3A!E53 -> 0 | F13: =A3A!F53 -> 0 | G13: =A3A!G53 -> 0 | H13: =A3A!H53 -> 0 | I13: =A3A!I53 -> 0 | J13: =A3A!J53 -> 0 | K13: =A3A!K53 -> 0
A14: ='Org structure'!A11 -> Vote 10 - | C14: =A3A!C54 -> 0 | D14: =A3A!D54 -> 0 | E14: =A3A!E54 -> 0 | F14: =A3A!F54 -> 0 | G14: =A3A!G54 -> 0 | H14: =A3A!H54 -> 0 | I14: =A3A!I54 -> 0 | J14: =A3A!J54 -> 0 | K14: =A3A!K54 -> 0
A15: ='Org structure'!A12 -> Vote 11 - | C15: =A3A!C55 -> 0 | D15: =A3A!D55 -> 0 | E15: =A3A!E55 -> 0 | F15: =A3A!F55 -> 0 | G15: =A3A!G55 -> 0 | H15: =A3A!H55 -> 0 | I15: =A3A!I55 -> 0 | J15: =A3A!J55 -> 0 | K15: =A3A!K55 -> 0 | L15: =A5A!#REF! -> 
A16: ='Org structure'!A13 -> Vote 12 - | C16: =A3A!C56 -> 0 | D16: =A3A!D56 -> 0 | E16: =A3A!E56 -> 0 | F16: =A3A!F56 -> 0 | G16: =A3A!G56 -> 0 | H16: =A3A!H56 -> 0 | I16: =A3A!I56 -> 0 | J16: =A3A!J56 -> 0 | K16: =A3A!K56 -> 0 | L16: =A5A!#REF! -> 
A17: ='Org structure'!A14 -> Vote 13 - | C17: =A3A!C57 -> 0 | D17: =A3A!D57 -> 0 | E17: =A3A!E57 -> 0 | F17: =A3A!F57 -> 0 | G17: =A3A!G57 -> 0 | H17: =A3A!H57 -> 0 | I17: =A3A!I57 -> 0 | J17: =A3A!J57 -> 0 | K17: =A3A!K57 -> 0 | L17: =A5A!#REF! -> 
A18: ='Org structure'!A15 -> Vote 14 - | C18: =A3A!C58 -> 0 | D18: =A3A!D58 -> 0 | E18: =A3A!E58 -> 0 | F18: =A3A!F58 -> 0 | G18: =A3A!G58 -> 0 | H18: =A3A!H58 -> 0 | I18: =A3A!I58 -> 0 | J18: =A3A!J58 -> 0 | K18: =A3A!K58 -> 0 | L18: =A5A!#REF! -> 
A19: ='Org structure'!A16 -> Vote 15 - Other | C19: =A3A!C59 -> 0 | D19: =A3A!D59 -> 0 | E19: =A3A!E59 -> 0 | F19: =A3A!F59 -> 0 | G19: =A3A!G59 -> 0 | H19: =A3A!H59 -> 0 | I19: =A3A!I59 -> 0 | J19: =A3A!J59 -> 0 | K19: =A3A!K59 -> 0 | L19: =A5A!#REF! -> 
A20: Total Revenue by Vote | B20: 2 | C20: =SUM(C5:C19) -> 210052242.8 | D20: =SUM(D5:D19) -> 220476287.5 | E20: 302540482.2 | F20: 313322058 | G20: 291428481 | H20: 291428481 | I20: 284884891 | J20: 305913038 | K20: 320486597
A22: Expenditure by Vote to be appropriated | B22: 1
A23: =A3A!A63 -> Vote 01 - Corporate Services | C23: =A3A!C63 -> 46054184.83 | D23: =A3A!D63 -> 49067395.36 | E23: =A3A!E63 -> 53987525.21 | F23: =A3A!F63 -> 61955753 | G23: =A3A!G63 -> 54714980 | H23: =A3A!H63 -> 54714980 | I23: =A3A!I63 -> 58589930 | J23: =A3A!J63 -> 61146845 | K23: =A3A!K63 -> 63886334
A24: =A3A!A72 -> Vote 02 - Municipal Manager | C24: =A3A!C72 -> 17538177.53 | D24: =A3A!D72 -> 18259211.03 | E24: =A3A!E72 -> 24374848.35 | F24: =A3A!F72 -> 24063816 | G24: =A3A!G72 -> 21817008 | H24: =A3A!H72 -> 21817008 | I24: =A3A!I72 -> 24135577 | J24: =A3A!J72 -> 25105295 | K24: =A3A!K72 -> 26198448
A25: =A3A!A78 -> Vote 03 - Mayors Office | C25: =A3A!C78 -> 17345098.18 | D25: =A3A!D78 -> 16741560.77 | E25: =A3A!E78 -> 16496856.64 | F25: =A3A!F78 -> 19016432 | G25: =A3A!G78 -> 17296258 | H25: =A3A!H78 -> 17296258 | I25: =A3A!I78 -> 16930124 | J25: =A3A!J78 -> 17545101 | K25: =A3A!K78 -> 18271553
A26: =A3A!A84 -> Vote 04 - Budget And Treasury | C26: =A3A!C84 -> 27502559.47 | D26: =A3A!D84 -> 27610389.72 | E26: =A3A!E84 -> 38992258.39 | F26: =A3A!F84 -> 41597622 | G26: =A3A!G84 -> 35001358 | H26: =A3A!H84 -> 35001358 | I26: =A3A!I84 -> 33672779 | J26: =A3A!J84 -> 35703592 | K26: =A3A!K84 -> 37119676
A27: =A3A!A92 -> Vote 05 - Community Services | C27: =A3A!C92 -> 30017713.5 | D27: =A3A!D92 -> 30861910.9 | E27: =A3A!E92 -> 31835099.23 | F27: =A3A!F92 -> 33915429 | G27: =A3A!G92 -> 32962235 | H27: =A3A!H92 -> 32962235 | I27: =A3A!I92 -> 37340759 | J27: =A3A!J92 -> 37458834 | K27: =A3A!K92 -> 39087178
A28: =A3A!A100 -> Vote 06 - Technical Services | C28: =A3A!C100 -> 55737279.32 | D28: =A3A!D100 -> 47866620.94 | E28: =A3A!E100 -> 55387315.29 | F28: =A3A!F100 -> 67379573 | G28: =A3A!G100 -> 65947842 | H28: =A3A!H100 -> 65947842 | I28: =A3A!I100 -> 65363655 | J28: =A3A!J100 -> 67168617 | K28: =A3A!K100 -> 70163307
A29: ='Org structure'!A8 -> Vote 07 - | C29: =A3A!C109 -> 0 | D29: =A3A!D109 -> 0 | E29: =A3A!E109 -> 0 | F29: =A3A!F109 -> 0 | G29: =A3A!G109 -> 0 | H29: =A3A!H109 -> 0 | I29: =A3A!I109 -> 0 | J29: =A3A!J109 -> 0 | K29: =A3A!K109 -> 0
A30: ='Org structure'!A9 -> Vote 08 - | C30: =A3A!C110 -> 0 | D30: =A3A!D110 -> 0 | E30: =A3A!E110 -> 0 | F30: =A3A!F110 -> 0 | G30: =A3A!G110 -> 0 | H30: =A3A!H110 -> 0 | I30: =A3A!I110 -> 0 | J30: =A3A!J110 -> 0 | K30: =A3A!K110 -> 0
A31: ='Org structure'!A10 -> Vote 09 - | C31: =A3A!C111 -> 0 | D31: =A3A!D111 -> 0 | E31: =A3A!E111 -> 0 | F31: =A3A!F111 -> 0 | G31: =A3A!G111 -> 0 | H31: =A3A!H111 -> 0 | I31: =A3A!I111 -> 0 | J31: =A3A!J111 -> 0 | K31: =A3A!K111 -> 0
A32: ='Org structure'!A11 -> Vote 10 - | C32: =A3A!C112 -> 0 | D32: =A3A!D112 -> 0 | E32: =A3A!E112 -> 0 | F32: =A3A!F112 -> 0 | G32: =A3A!G112 -> 0 | H32: =A3A!H112 -> 0 | I32: =A3A!I112 -> 0 | J32: =A3A!J112 -> 0 | K32: =A3A!K112 -> 0
A33: ='Org structure'!A12 -> Vote 11 - | C33: =A3A!C113 -> 0 | D33: =A3A!D113 -> 0 | E33: =A3A!E113 -> 0 | F33: =A3A!F113 -> 0 | G33: =A3A!G113 -> 0 | H33: =A3A!H113 -> 0 | I33: =A3A!I113 -> 0 | J33: =A3A!J113 -> 0 | K33: =A3A!K113 -> 0 | L33: =A3A!#REF! -> 
A34: ='Org structure'!A13 -> Vote 12 - | C34: =A3A!C114 -> 0 | D34: =A3A!D114 -> 0 | E34: =A3A!E114 -> 0 | F34: =A3A!F114 -> 0 | G34: =A3A!G114 -> 0 | H34: =A3A!H114 -> 0 | I34: =A3A!I114 -> 0 | J34: =A3A!J114 -> 0 | K34: =A3A!K114 -> 0 | L34: =A3A!#REF! -> 
A35: ='Org structure'!A14 -> Vote 13 - | C35: =A3A!C115 -> 0 | D35: =A3A!D115 -> 0 | E35: =A3A!E115 -> 0 | F35: =A3A!F115 -> 0 | G35: =A3A!G115 -> 0 | H35: =A3A!H115 -> 0 | I35: =A3A!I115 -> 0 | J35: =A3A!J115 -> 0 | K35: =A3A!K115 -> 0 | L35: =A3A!#REF! -> 
A36: ='Org structure'!A15 -> Vote 14 - | C36: =A3A!C116 -> 0 | D36: =A3A!D116 -> 0 | E36: =A3A!E116 -> 0 | F36: =A3A!F116 -> 0 | G36: =A3A!G116 -> 0 | H36: =A3A!H116 -> 0 | I36: =A3A!I116 -> 0 | J36: =A3A!J116 -> 0 | K36: =A3A!K116 -> 0 | L36: =A3A!#REF! -> 
A37: ='Org structure'!A16 -> Vote 15 - Other | C37: =A3A!C117 -> 0 | D37: =A3A!D117 -> 0 | E37: =A3A!E117 -> 0 | F37: =A3A!F117 -> 0 | G37: =A3A!G117 -> 0 | H37: =A3A!H117 -> 0 | I37: =A3A!I117 -> 0 | J37: =A3A!J117 -> 0 | K37: =A3A!K117 -> 0 | L37: =A3A!#REF! -> 
A38: Total Expenditure by Vote | B38: 2 | C38: =SUM(C23:C37) -> 194195012.8 | D38: =SUM(D23:D37) -> 190407088.7 | E38: 221073903.1 | F38: 247928625 | G38: 227739681 | H38: 227739681 | I38: 236032824 | J38: 244128284 | K38: 254726496 | L38: =SUM(L23:L29) -> 0 | M38: 0 | N38: 0 | O38: 0 | P38: 0 | Q38: 0 | R38: 0 | S38: 0 | T38: 0 | U38: 0 | V38: 0 | W38: 0
A39: =result -> Surplus/(Deficit) for the year | B39: 2 | C39: =C20-C38 -> 15857230 | D39: 30069198.8 | E39: 81466579.14 | F39: 65393433 | G39: 63688800 | H39: 63688800 | I39: 48852067 | J39: 61784754 | K39: 65760101 | L39: 0 | M39: 0 | N39: 0 | O39: 0 | P39: 0 | Q39: 0 | R39: 0 | S39: 0 | T39: 0 | U39: 0 | V39: 0 | W39: 0
A40: =head27a -> References
A41: 1. Insert 'Vote'; e.g. department, if different to functional classification structure
A42: 2. Must reconcile to Budgeted Financial Performance (revenue and expenditure)
A43: 3. Assign share in 'associate' to relevant Vote
A45: ="check "&A39 -> check Surplus/(Deficit) for the year | C45: =C39-A3A!C120 -> 0 | D45: =D39-A3A!D120 -> 0 | E45: =E39-A3A!E120 -> 0 | F45: =F39-A3A!F120 -> 0 | G45: =G39-A3A!G120 -> 0 | H45: =H39-A3A!H120 -> 0 | I45: =I39-A3A!I120 -> 0 | J45: =J39-A3A!J120 -> 0 | K45: =K39-A3A!K120 -> 0

Sheet A3A
A1: =muni&" - "&Approve2&"A" -> LIM353 Molemole - Table A3 Budgeted Financial Performance (revenue and expenditure by municipal vote)A
A2: =Vdesc -> Vote Description | B2: =head27 -> Ref | C2: =head1b -> 2018/19 | D2: =head1A -> 2019/20 | E2: =Head1 -> 2020/21 | F2: =Head2 -> Current Year 2021/22 | I2: =Head3 -> 2022/23 Medium Term Revenue & Expenditure Framework | L2: =Head4 -> LTFS
A3: R thousand | C3: =Head5 -> Audited Outcome | D3: =Head5 -> Audited Outcome | E3: =Head5 -> Audited Outcome | F3: =Head6 -> Original Budget | G3: =Head7 -> Adjusted Budget | H3: =Head8 -> Full Year Forecast | I3: =Head9 -> Budget Year 2022/23 | J3: =Head10 -> Budget Year +1 2023/24 | K3: =Head11 -> Budget Year +2 2024/25 | L3: =Head12 -> Forecast 2025/26 | M3: =Head13 -> Forecast 2026/27 | N3: =Head14 -> Forecast 2027/28 | O3: =Head15 -> Forecast 2028/29 | P3: =Head16 -> Forecast 2029/30 | Q3: =Head17 -> Forecast 2030/31 | R3: =Head18 -> Forecast 2031/32 | S3: =Head19 -> Forecast 2032/33 | T3: =Head20 -> Forecast 2033/34 | U3: =Head21 -> Forecast 2034/35 | V3: =Head22 -> Forecast 2035/36 | W3: =Head23 -> Forecast 2036/37
A4: Revenue by Vote | B4: 1
A5: ='Org structure'!A2 -> Vote 01 - Corporate Services | C5: =SUM(C6:C13) -> 332347.07 | D5: 577474.54 | E5: 147701.19 | F5: 6728347 | G5: 8367907 | H5: 8367907 | I5: 392424 | J5: 409690 | K5: 428126
A6: ='Org structure'!E3 -> 01.1 - Corporate Services Admin | C6: 160 | D6: 17355.91 | E6: 152.02 | F6: 0 | G6: 0 | H6: 0 | I6: 0 | J6: 0 | K6: 0
A7: ='Org structure'!E4 -> 01.2 - Human Resources | C7: 152738.23 | D7: 482513.02 | E7: 80361.4 | F7: 221839 | G7: 221839 | H7: 221839 | I7: 230713 | J7: 240864 | K7: 251703
A8: ='Org structure'!E5 -> 01.3 - Information Technology Services | C8: 0 | D8: 0 | E8: 0 | F8: 0 | G8: 0 | H8: 0 | I8: 0 | J8: 0 | K8: 0
A9: ='Org structure'!E6 -> 01.4 - Council Support | C9: 0 | D9: 0 | E9: 12150 | F9: 0 | G9: 0 | H9: 0 | I9: 0 | J9: 0 | K9: 0
A10: ='Org structure'!E7 -> 01.5 - Local Economic Development | C10: 35200 | D10: 0 | E10: 0 | F10: 0 | G10: 0 | H10: 0 | I10: 0 | J10: 0 | K10: 0
A11: ='Org structure'!E8 -> 01.6 - Municipal Planning Idp | C11: 132097.48 | D11: 43334.4 | E11: 40312.32 | F11: 36810 | G11: 36810 | H11: 36810 | I11: 38284 | J11: 39968 | K11: 41766
A12: ='Org structure'!E9 -> 01.7 - Town & Regional Planning | C12: 12151.36 | D12: 34271.21 | E12: 14725.45 | F12: 6469698 | G12: 8109258 | H12: 8109258 | I12: 123427 | J12: 128858 | K12: 134657
A13: ='Org structure'!E10 -> 01.8 - Led Administration | C13: 0 | D13: 0 | E13: 0 | F13: 0 | G13: 0 | H13: 0 | I13: 0 | J13: 0 | K13: 0
A14: ='Org structure'!A3 -> Vote 02 - Municipal Manager | C14: =SUM(C15:C19) -> 0 | D14: 0 | E14: 0 | F14: 0 | G14: 0 | H14: 0 | I14: 0 | J14: 0 | K14: 0
A15: ='Org structure'!E12 -> 02.1 - Municipal Manager Admin | C15: 0 | D15: 0 | E15: 0 | F15: 0 | G15: 0 | H15: 0 | I15: 0 | J15: 0 | K15: 0
A16: ='Org structure'!E13 -> 02.2 - Legal Services | C16: 0 | D16: 0 | E16: 0 | F16: 0 | G16: 0 | H16: 0 | I16: 0 | J16: 0 | K16: 0
A17: ='Org structure'!E14 -> 02.3 - Political Office Beares | C17: 0 | D17: 0 | E17: 0 | F17: 0 | G17: 0 | H17: 0 | I17: 0 | J17: 0 | K17: 0
A18: ='Org structure'!E15 -> 02.4 - Pms | C18: 0 | D18: 0 | E18: 0 | F18: 0 | G18: 0 | H18: 0 | I18: 0 | J18: 0 | K18: 0
A19: ='Org structure'!E16 -> 02.5 - Internal Audit | C19: 0 | D19: 0 | E19: 0 | F19: 0 | G19: 0 | H19: 0 | I19: 0 | J19: 0 | K19: 0
A20: ='Org structure'!A4 -> Vote 03 - Mayors Office | C20: =SUM(C21:C25) -> 0 | D20: 0 | E20: 0 | F20: 0 | G20: 0 | H20: 0 | I20: 0 | J20: 0 | K20: 0
A21: ='Org structure'!E18 -> 03.1 - Mayors Office Admin | C21: 0 | D21: 0 | E21: 0 | F21: 0 | G21: 0 | H21: 0 | I21: 0 | J21: 0 | K21: 0
A22: ='Org structure'!E19 -> 03.2 - Office Of The Speaker | C22: 0 | D22: 0 | E22: 0 | F22: 0 | G22: 0 | H22: 0 | I22: 0 | J22: 0 | K22: 0
A23: ='Org structure'!E20 -> 03.3 - Office Of The Chief Whip | C23: 0 | D23: 0 | E23: 0 | F23: 0 | G23: 0 | H23: 0 | I23: 0 | J23: 0 | K23: 0
A24: ='Org structure'!E21 -> 03.4 - Exco Members | C24: 0 | D24: 0 | E24: 0 | F24: 0 | G24: 0 | H24: 0 | I24: 0 | J24: 0 | K24: 0
A25: ='Org structure'!E22 -> 03.5 - Council General Administration | C25: 0 | D25: 0 | E25: 0 | F25: 0 | G25: 0 | H25: 0 | I25: 0 | J25: 0 | K25: 0
A26: ='Org structure'!A5 -> Vote 04 - Budget And Treasury | C26: =SUM(C27:C33) -> 148004970.1 | D26: 167236475.3 | E26: 235164807.1 | F26: 233156453 | G26: 207623316 | H26: 207623316 | I26: 216003902 | J26: 226599390 | K26: 238145806
A27: ='Org structure'!E24 -> 04.1 - Budget And Treasury Admin | C27: 146165460.6 | D27: 165477440.1 | E27: 232590340.6 | F27: 209983966 | G27: 198111750 | H27: 198111750 | I27: 212971703 | J27: 223433774 | K27: 234837738
A28: ='Org structure'!E25 -> 04.2 - Chief Financial Officer Admin | C28: 0 | D28: 0 | E28: 0 | F28: 0 | G28: 0 | H28: 0 | I28: 0 | J28: 0 | K28: 0
A29: ='Org structure'!E26 -> 04.3 - Budget & Reporting | C29: 1820125.31 | D29: 0 | E29: 0 | F29: 0 | G29: 0 | H29: 0 | I29: 0 | J29: 0 | K29: 0
A30: ='Org structure'!E27 -> 04.4 - Budget & Reporting | C30: 0 | D30: 1729419.11 | E30: 2543772.73 | F30: 2708206 | G30: 2708206 | H30: 2708206 | I30: 3000000 | J30: 3132000 | K30: 3272940
A31: ='Org structure'!E28 -> 04.5 - Revenue Management | C31: 19384.27 | D31: 29616.08 | E31: 30693.72 | F31: 20464281 | G31: 6803360 | H31: 6803360 | I31: 32199 | J31: 33616 | K31: 35128
A32: ='Org structure'!E29 -> 04.6 - Supply Chain Management | C32: 0 | D32: 0 | E32: 0 | F32: 0 | G32: 0 | H32: 0 | I32: 0 | J32: 0 | K32: 0
A33: ='Org structure'!E30 -> 04.7 - Expenditure | C33: 0 | D33: 0 | E33: 0 | F33: 0 | G33: 0 | H33: 0 | I33: 0 | J33: 0 | K33: 0
A34: ='Org structure'!A6 -> Vote 05 - Community Services | C34: =SUM(C35:C41) -> 7767632.23 | D34: 7829928.24 | E34: 10990540.89 | F34: 13415340 | G34: 13415340 | H34: 13415340 | I34: 13872796 | J34: 13014294 | K34: 13599936
A35: ='Org structure'!E32 -> 05.1 - Community Services Admin | C35: 1133435 | D35: 1167000 | E35: 2497402.33 | F35: 1429000 | G35: 1429000 | H35: 1429000 | I35: 1407000 | J35: 0 | K35: 0
A36: ='Org structure'!E33 -> 05.2 - Libraries | C36: 0 | D36: 0 | E36: 0 | F36: 0 | G36: 0 | H36: 0 | I36: 0 | J36: 0 | K36: 0
A37: ='Org structure'!E34 -> 05.3 - Sports Recreation & Social Amenitie | C37: 354630.05 | D37: 211716.96 | E37: 214680.5 | F37: 257623 | G37: 257623 | H37: 257623 | I37: 267929 | J37: 279718 | K37: 292307
A38: ='Org structure'!E35 -> 05.4 - Traffic Service | C38: 3598078.67 | D38: 0 | E38: 0 | F38: 0 | G38: 0 | H38: 0 | I38: 0 | J38: 0 | K38: 0
A39: ='Org structure'!E36 -> 05.5 - Traffic Service | C39: 637950 | D39: 4026623.03 | E39: 5377383.84 | F39: 8991597 | G39: 8991597 | H39: 8991597 | I39: 9351261 | J39: 9762718 | K39: 10202039
A40: ='Org structure'!E37 -> 05.6 - Parks; Cemeteries | C40: 5850 | D40: 7268.89 | E40: 18283.95 | F40: 13644 | G40: 13644 | H40: 13644 | I40: 14190 | J40: 14815 | K40: 15481
A41: ='Org structure'!E38 -> 05.7 - Refuse | C41: 2037688.51 | D41: 2417319.36 | E41: 2882790.27 | F41: 2723476 | G41: 2723476 | H41: 2723476 | I41: 2832416 | J41: 2957043 | K41: 3090109
A42: ='Org structure'!A7 -> Vote 06 - Technical Services | C42: =SUM(C43:C50) -> 53947293.39 | D42: 44832409.44 | E42: 56237433.11 | F42: 60021918 | G42: 62021918 | H42: 62021918 | I42: 54615769 | J42: 65889664 | K42: 68312729
A43: ='Org structure'!E40 -> 06.1 - Mpac | C43: 0 | D43: 0 | E43: 0 | F43: 0 | G43: 0 | H43: 0 | I43: 0 | J43: 0 | K43: 0
A44: ='Org structure'!E41 -> 06.2 - Technical Services Admin | C44: 0 | D44: 0 | E44: 0 | F44: 0 | G44: 0 | H44: 0 | I44: 0 | J44: 0 | K44: 0
A45: ='Org structure'!E42 -> 06.3 - Techn Serv-Roads: Admin | C45: 0 | D45: 0 | E45: 0 | F45: 0 | G45: 0 | H45: 0 | I45: 0 | J45: 0 | K45: 0
A46: ='Org structure'!E43 -> 06.4 - Techn Serv-Stormwater: Admin | C46: 0 | D46: 0 | E46: 0 | F46: 0 | G46: 2000000 | H46: 2000000 | I46: 0 | J46: 0 | K46: 0
A47: ='Org structure'!E44 -> 06.5 - Project Management Unit | C47: 44876307.92 | D47: 35661443.85 | E47: 35482717.56 | F47: 37000000 | G47: 37000000 | H47: 37000000 | I47: 39792000 | J47: 41458000 | K47: 43232000
A48: ='Org structure'!E45 -> 06.6 - Electrical & Machinery | C48: 8396818.49 | D48: 8487575.06 | E48: 19907231.84 | F48: 22300209 | G48: 22300209 | H48: 22300209 | I48: 14073191 | J48: 23648060 | K48: 24261863
A49: ='Org structure'!E46 -> 06.7 - Water | C49: 1010545.86 | D49: 295708.09 | E49: 328420.18 | F49: 438143 | G49: 438143 | H49: 438143 | I49: 455669 | J49: 475719 | K49: 497126
A50: ='Org structure'!E47 -> 06.8 - Sanitation | C50: -336378.88 | D50: 387682.44 | E50: 519063.53 | F50: 283566 | G50: 283566 | H50: 283566 | I50: 294909 | J50: 307885 | K50: 321740
A51: ='Org structure'!A8 -> Vote 07 - | C51: 0 | D51: 0 | E51: 0 | F51: 0 | G51: 0 | H51: 0 | I51: 0 | J51: 0 | K51: 0
A52: ='Org structure'!A9 -> Vote 08 - | C52: 0 | D52: 0 | E52: 0 | F52: 0 | G52: 0 | H52: 0 | I52: 0 | J52: 0 | K52: 0
A53: ='Org structure'!A10 -> Vote 09 - | C53: 0 | D53: 0 | E53: 0 | F53: 0 | G53: 0 | H53: 0 | I53: 0 | J53: 0 | K53: 0
A54: ='Org structure'!A11 -> Vote 10 - | C54: 0 | D54: 0 | E54: 0 | F54: 0 | G54: 0 | H54: 0 | I54: 0 | J54: 0 | K54: 0
A55: ='Org structure'!A12 -> Vote 11 - | C55: 0 | D55: 0 | E55: 0 | F55: 0 | G55: 0 | H55: 0 | I55: 0 | J55: 0 | K55: 0
A56: ='Org structure'!A13 -> Vote 12 - | C56: 0 | D56: 0 | E56: 0 | F56: 0 | G56: 0 | H56: 0 | I56: 0 | J56: 0 | K56: 0
A57: ='Org structure'!A14 -> Vote 13 - | C57: 0 | D57: 0 | E57: 0 | F57: 0 | G57: 0 | H57: 0 | I57: 0 | J57: 0 | K57: 0
A58: ='Org structure'!A15 -> Vote 14 - | C58: 0 | D58: 0 | E58: 0 | F58: 0 | G58: 0 | H58: 0 | I58: 0 | J58: 0 | K58: 0
A59: ='Org structure'!A16 -> Vote 15 - Other | C59: 0 | D59: 0 | E59: 0 | F59: 0 | G59: 0 | H59: 0 | I59: 0 | J59: 0 | K59: 0
A60: Total Revenue by Vote | B60: 2 | C60: =C5+C14+C20+C26+C34+C42+C51+C52+C53+C54+C55+C56+C57+C58+C59 -> 210052242.8 | D60: 220476287.5 | E60: 302540482.2 | F60: 313322058 | G60: 291428481 | H60: 291428481 | I60: 284884891 | J60: 305913038 | K60: 320486597 | L60: =SUM(#REF!) ->  | M60: =SUM(#REF!) ->  | N60: =SUM(#REF!) ->  | O60: =SUM(#REF!) ->  | P60: =SUM(#REF!) ->  | Q60: =SUM(#REF!) ->  | R60: =SUM(#REF!) ->  | S60: =SUM(#REF!) ->  | T60: =SUM(#REF!) ->  | U60: =SUM(#REF!) ->  | V60: =SUM(#REF!) ->  | W60: =SUM(#REF!) -> 
A62: Expenditure by Vote | B62: 1
A63: ='Org structure'!A2 -> Vote 01 - Corporate Services | C63: =SUM(C64:C71) -> 46054184.83 | D63: 49067395.36 | E63: 53987525.21 | F63: 61955753 | G63: 54714980 | H63: 54714980 | I63: 58589930 | J63: 61146845 | K63: 63886334
A64: ='Org structure'!E3 -> 01.1 - Corporate Services Admin | C64: 20772596.7 | D64: 23259536.4 | E64: 27111648.32 | F64: 28759358 | G64: 24816863 | H64: 24816863 | I64: 27609495 | J64: 28809461 | K64: 30131690
A65: ='Org structure'!E4 -> 01.2 - Human Resources | C65: 6178757.14 | D65: 7234551.76 | E65: 6525399.55 | F65: 7258307 | G65: 7140957 | H65: 7140957 | I65: 6871173 | J65: 7163364 | K65: 7475342
A66: ='Org structure'!E5 -> 01.3 - Information Technology Services | C66: 5069950.79 | D66: 5297843.64 | E66: 6373679 | F66: 7873604 | G66: 7577547 | H66: 7577547 | I66: 7097580 | J66: 7406996 | K66: 7737368
A67: ='Org structure'!E6 -> 01.4 - Council Support | C67: 5894918.6 | D67: 6307407.8 | E67: 6629851.77 | F67: 7871935 | G67: 6499508 | H67: 6499508 | I67: 7282294 | J67: 7599688 | K67: 7938579
A68: ='Org structure'!E7 -> 01.5 - Local Economic Development | C68: 2424043.26 | D68: 1985744.53 | E68: 2212283.26 | F68: 3665439 | G68: 3585158 | H68: 3585158 | I68: 4367196 | J68: 4573157 | K68: 4762490
A69: ='Org structure'!E8 -> 01.6 - Municipal Planning Idp | C69: 3764915.83 | D69: 3029486.41 | E69: 3205750.49 | F69: 3951503 | G69: 2695819 | H69: 2695819 | I69: 2583842 | J69: 2697531 | K69: 2818921
A70: ='Org structure'!E9 -> 01.7 - Town & Regional Planning | C70: 1684383.21 | D70: 1952312.51 | E70: 1928912.82 | F70: 2158607 | G70: 2156458 | H70: 2156458 | I70: 2424234 | J70: 2526951 | K70: 2636620
A71: ='Org structure'!E10 -> 01.8 - Led Administration | C71: 264619.3 | D71: 512.31 | E71: 0 | F71: 417000 | G71: 242670 | H71: 242670 | I71: 354116 | J71: 369697 | K71: 385324
A72: ='Org structure'!A3 -> Vote 02 - Municipal Manager | C72: =SUM(C73:C77) -> 17538177.53 | D72: 18259211.03 | E72: 24374848.35 | F72: 24063816 | G72: 21817008 | H72: 21817008 | I72: 24135577 | J72: 25105295 | K72: 26198448
A73: ='Org structure'!E12 -> 02.1 - Municipal Manager Admin | C73: 6625670.76 | D73: 5473818.51 | E73: 11590845.54 | F73: 7315303 | G73: 6094923 | H73: 6094923 | I73: 6325458 | J73: 6518966 | K73: 6801756
A74: ='Org structure'!E13 -> 02.2 - Legal Services | C74: 1586863.61 | D74: 1783687.83 | E74: 2156226.17 | F74: 3015679 | G74: 2995679 | H74: 2995679 | I74: 3189071 | J74: 3326985 | K74: 3474236
A75: ='Org structure'!E14 -> 02.3 - Political Office Beares | C75: 1944412.3 | D75: 1814194.98 | E75: 1514114.78 | F75: 2347610 | G75: 2183109 | H75: 2183109 | I75: 2229893 | J75: 2325804 | K75: 2428111
A76: ='Org structure'!E15 -> 02.4 - Pms | C76: 1491650.82 | D76: 2570750.26 | E76: 1983020.3 | F76: 2602463 | G76: 2361912 | H76: 2361912 | I76: 2650925 | J76: 2770926 | K76: 2884789
A77: ='Org structure'!E16 -> 02.5 - Internal Audit | C77: 5889580.04 | D77: 6616759.45 | E77: 7130641.56 | F77: 8782761 | G77: 8181385 | H77: 8181385 | I77: 9740230 | J77: 10162614 | K77: 10609556
A78: ='Org structure'!A4 -> Vote 03 - Mayors Office | C78: =SUM(C79:C83) -> 17345098.18 | D78: 16741560.77 | E78: 16496856.64 | F78: 19016432 | G78: 17296258 | H78: 17296258 | I78: 16930124 | J78: 17545101 | K78: 18271553
A79: ='Org structure'!E18 -> 03.1 - Mayors Office Admin | C79: 3957859.88 | D79: 2796149.81 | E79: 2658816.82 | F79: 4620808 | G79: 3570314 | H79: 3570314 | I79: 3327537 | J79: 3471055 | K79: 3624292
A80: ='Org structure'!E19 -> 03.2 - Office Of The Speaker | C80: 1044174.82 | D80: 1046311.5 | E80: 856695.29 | F80: 1248305 | G80: 1252854 | H80: 1252854 | I80: 1206581 | J80: 1260746 | K80: 1315393
A81: ='Org structure'!E20 -> 03.3 - Office Of The Chief Whip | C81: 788271.53 | D81: 756623.64 | E81: 996374.36 | F81: 855148 | G81: 855148 | H81: 855148 | I81: 504026 | J81: 524160 | K81: 545660
A82: ='Org structure'!E21 -> 03.4 - Exco Members | C82: 3433324.15 | D82: 3614576.41 | E82: 3167080.79 | F82: 3484399 | G82: 2892351 | H82: 2892351 | I82: 3478381 | J82: 3619707 | K82: 3770607
A83: ='Org structure'!E22 -> 03.5 - Council General Administration | C83: 8121467.8 | D83: 8527899.41 | E83: 8817889.38 | F83: 8807772 | G83: 8725591 | H83: 8725591 | I83: 8413599 | J83: 8669433 | K83: 9015601
A84: ='Org structure'!A5 -> Vote 04 - Budget And Treasury | C84: =SUM(C85:C91) -> 27502559.47 | D84: 27610389.72 | E84: 38992258.39 | F84: 41597622 | G84: 35001358 | H84: 35001358 | I84: 33672779 | J84: 35703592 | K84: 37119676
A85: ='Org structure'!E24 -> 04.1 - Budget And Treasury Admin | C85: 6719079.2 | D85: 7385572.81 | E85: 7539135.16 | F85: 11241277 | G85: 9880661 | H85: 9880661 | I85: 9706283 | J85: 10733034 | K85: 11077060
A86: ='Org structure'!E25 -> 04.2 - Chief Financial Officer Admin | C86: 21229.82 | D86: -79842.62 | E86: 101700.14 | F86: 13713 | G86: 13713 | H86: 13713 | I86: 14263 | J86: 14890 | K86: 15560
A87: ='Org structure'!E26 -> 04.3 - Budget & Reporting | C87: 0 | D87: 0 | E87: 0 | F87: 0 | G87: 0 | H87: 0 | I87: 0 | J87: 0 | K87: 0
A88: ='Org structure'!E27 -> 04.4 - Budget & Reporting | C88: 3338979.16 | D88: 2519665.86 | E88: 1916674.29 | F88: 3129713 | G88: 3189149 | H88: 3189149 | I88: 3067685 | J88: 3193864 | K88: 3328590
A89: ='Org structure'!E28 -> 04.5 - Revenue Management | C89: 10471477.56 | D89: 10443985.99 | E89: 21376770.7 | F89: 17867511 | G89: 13455362 | H89: 13455362 | I89: 11972657 | J89: 12469994 | K89: 13001011
A90: ='Org structure'!E29 -> 04.6 - Supply Chain Management | C90: 3841858.04 | D90: 3705889.89 | E90: 4274773.37 | F90: 5074045 | G90: 4306259 | H90: 4306259 | I90: 4380180 | J90: 4564861 | K90: 4762048
A91: ='Org structure'!E30 -> 04.7 - Expenditure | C91: 3109935.69 | D91: 3635117.79 | E91: 3783204.73 | F91: 4271363 | G91: 4156214 | H91: 4156214 | I91: 4531711 | J91: 4726949 | K91: 4935407
A92: ='Org structure'!A6 -> Vote 05 - Community Services | C92: =SUM(C93:C99) -> 30017713.5 | D92: 30861910.9 | E92: 31835099.23 | F92: 33915429 | G92: 32962235 | H92: 32962235 | I92: 37340759 | J92: 37458834 | K92: 39087178
A93: ='Org structure'!E32 -> 05.1 - Community Services Admin | C93: 3081561.75 | D93: 4355559.43 | E93: 3561387.56 | F93: 4549410 | G93: 4380224 | H93: 4380224 | I93: 4828617 | J93: 5031357 | K93: 5247828
A94: ='Org structure'!E33 -> 05.2 - Libraries | C94: 422630.95 | D94: 667297.16 | E94: 524444.05 | F94: 1248680 | G94: 940376 | H94: 940376 | I94: 1452519 | J94: 1515809 | K94: 1583385
A95: ='Org structure'!E34 -> 05.3 - Sports Recreation & Social Amenitie | C95: 3139055.4 | D95: 3281417.92 | E95: 3853917.1 | F95: 3332043 | G95: 3097515 | H95: 3097515 | I95: 2825846 | J95: 2948437 | K95: 3079329
A96: ='Org structure'!E35 -> 05.4 - Traffic Service | C96: 0 | D96: 0 | E96: 0 | F96: 0 | G96: 0 | H96: 0 | I96: 0 | J96: 0 | K96: 0
A97: ='Org structure'!E36 -> 05.5 - Traffic Service | C97: 13819982.34 | D97: 15009690.06 | E97: 16200438.64 | F97: 15600488 | G97: 15600488 | H97: 15600488 | I97: 16963220 | J97: 17670823 | K97: 18426348
A98: ='Org structure'!E37 -> 05.6 - Parks; Cemeteries | C98: 1018891.49 | D98: 1197154.18 | E98: 1242347.81 | F98: 1471894 | G98: 1474594 | H98: 1474594 | I98: 1570886 | J98: 1638959 | K98: 1711631
A99: ='Org structure'!E38 -> 05.7 - Refuse | C99: 8535591.57 | D99: 6350792.15 | E99: 6452564.07 | F99: 7712914 | G99: 7469038 | H99: 7469038 | I99: 9699671 | J99: 8653449 | K99: 9038657
A100: ='Org structure'!A7 -> Vote 06 - Technical Services | C100: =SUM(C101:C108) -> 55737279.32 | D100: 47866620.94 | E100: 55387315.29 | F100: 67379573 | G100: 65947842 | H100: 65947842 | I100: 65363655 | J100: 67168617 | K100: 70163307
A101: ='Org structure'!E40 -> 06.1 - Mpac | C101: 0 | D101: 0 | E101: 0 | F101: 1310385 | G101: 1310385 | H101: 1310385 | I101: 427767 | J101: 444634 | K101: 462645
A102: ='Org structure'!E41 -> 06.2 - Technical Services Admin | C102: 130910.85 | D102: 162334.5 | E102: 155566.97 | F102: 144869 | G102: 144869 | H102: 144869 | I102: 150664 | J102: 157294 | K102: 164372
A103: ='Org structure'!E42 -> 06.3 - Techn Serv-Roads: Admin | C103: 3038219.31 | D103: 2954196.23 | E103: 2171519.32 | F103: 3608492 | G103: 3389853 | H103: 3389853 | I103: 3596896 | J103: 3745438 | K103: 3904040
A104: ='Org structure'!E43 -> 06.4 - Techn Serv-Stormwater: Admin | C104: 26963822.18 | D104: 14234546.57 | E104: 20886516.6 | F104: 25850796 | G104: 24624188 | H104: 24624188 | I104: 24372769 | J104: 25443490 | K104: 26586727
A105: ='Org structure'!E44 -> 06.5 - Project Management Unit | C105: 1993091.9 | D105: 2677960.86 | E105: 1703501.88 | F105: 1638474 | G105: 1733767 | H105: 1733767 | I105: 4905903 | J105: 4070493 | K105: 4245986
A106: ='Org structure'!E45 -> 06.6 - Electrical & Machinery | C106: 13419766.56 | D106: 18776762.49 | E106: 21189788.03 | F106: 23787667 | G106: 24287667 | H106: 24287667 | I106: 24862360 | J106: 25951723 | K106: 27114868
A107: ='Org structure'!E46 -> 06.7 - Water | C107: 7741390.77 | D107: 6543208.32 | E107: 6378865.08 | F107: 8083668 | G107: 7811892 | H107: 7811892 | I107: 5959405 | J107: 6219787 | K107: 6497801
A108: ='Org structure'!E47 -> 06.8 - Sanitation | C108: 2450077.75 | D108: 2517611.97 | E108: 2901557.41 | F108: 2955222 | G108: 2645221 | H108: 2645221 | I108: 1087891 | J108: 1135758 | K108: 1186868
A109: ='Org structure'!A8 -> Vote 07 - | C109: 0 | D109: 0 | E109: 0 | F109: 0 | G109: 0 | H109: 0 | I109: 0 | J109: 0 | K109: 0
A110: ='Org structure'!A9 -> Vote 08 - | C110: 0 | D110: 0 | E110: 0 | F110: 0 | G110: 0 | H110: 0 | I110: 0 | J110: 0 | K110: 0
A111: ='Org structure'!A10 -> Vote 09 - | C111: 0 | D111: 0 | E111: 0 | F111: 0 | G111: 0 | H111: 0 | I111: 0 | J111: 0 | K111: 0
A112: ='Org structure'!A11 -> Vote 10 - | C112: 0 | D112: 0 | E112: 0 | F112: 0 | G112: 0 | H112: 0 | I112: 0 | J112: 0 | K112: 0
A113: ='Org structure'!A12 -> Vote 11 - | C113: 0 | D113: 0 | E113: 0 | F113: 0 | G113: 0 | H113: 0 | I113: 0 | J113: 0 | K113: 0
A114: ='Org structure'!A13 -> Vote 12 - | C114: 0 | D114: 0 | E114: 0 | F114: 0 | G114: 0 | H114: 0 | I114: 0 | J114: 0 | K114: 0
A115: ='Org structure'!A14 -> Vote 13 - | C115: 0 | D115: 0 | E115: 0 | F115: 0 | G115: 0 | H115: 0 | I115: 0 | J115: 0 | K115: 0
A116: ='Org structure'!A15 -> Vote 14 - | C116: 0 | D116: 0 | E116: 0 | F116: 0 | G116: 0 | H116: 0 | I116: 0 | J116: 0 | K116: 0
A117: ='Org structure'!A16 -> Vote 15 - Other | C117: 0 | D117: 0 | E117: 0 | F117: 0 | G117: 0 | H117: 0 | I117: 0 | J117: 0 | K117: 0
A118: Total Expenditure by Vote | B118: 2 | C118: =C63+C72+C78+C84+C92+C100+C109+C110+C111+C112+C113+C114+C115+C116+C117 -> 194195012.8 | D118: 190407088.7 | E118: 221073903.1 | F118: 247928625 | G118: 227739681 | H118: 227739681 | I118: 236032824 | J118: 244128284 | K118: 254726496 | L118: =SUM(L63:L109) -> 0 | M118: 0 | N118: 0 | O118: 0 | P118: 0 | Q118: 0 | R118: 0 | S118: 0 | T118: 0 | U118: 0 | V118: 0 | W118: 0
A120: =result -> Surplus/(Deficit) for the year | B120: 2 | C120: =C60-C118 -> 15857230 | D120: 30069198.8 | E120: 81466579.14 | F120: 65393433 | G120: 63688800 | H120: 63688800 | I120: 48852067 | J120: 61784754 | K120: 65760101
A121: =head27a -> References
A122: 1. Insert 'Vote'; e.g. Department, if different to Functional structure
A123: 2. Must reconcile to Financial Performance ('Revenue and Expenditure by Functional Classification' and 'Revenue and Expenditure')
A124: 3. Assign share in 'associate' to relevant Vote
A126: check revenue | C126: =C60-'A4-FinPerf RE'!C59 -> 5205879.7 | D126: =D60-'A4-FinPerf RE'!D59 -> 0 | E126: =E60-'A4-FinPerf RE'!E59 -> 0 | F126: =F60-'A4-FinPerf RE'!F59 -> 0 | G126: =G60-'A4-FinPerf RE'!G59 -> 0 | H126: =H60-'A4-FinPerf RE'!H59 -> 0 | I126: =I60-'A4-FinPerf RE'!J59 -> 0 | J126: =J60-'A4-FinPerf RE'!K59 -> 0 | K126: =K60-'A4-FinPerf RE'!L59 -> 0
A127: check expenditure | C127: =C118-'A4-FinPerf RE'!C35 -> 4496533.21 | D127: =D118-'A4-FinPerf RE'!D35 -> 2813793.73 | E127: =E118-'A4-FinPerf RE'!E35 -> 3109787.22 | F127: =F118-'A4-FinPerf RE'!F35 -> 0 | G127: =G118-'A4-FinPerf RE'!G35 -> 0 | H127: =H118-'A4-FinPerf RE'!H35 -> 0 | I127: =I118-'A4-FinPerf RE'!J35 -> 1 | J127: =J118-'A4-FinPerf RE'!K35 -> 2 | K127: =K118-'A4-FinPerf RE'!L35 -> 1

Sheet A4-FinPerf RE
A1: =muni&" - "&Approve4 -> LIM353 Molemole - Table A4 Budgeted Financial Performance (revenue and expenditure)
A2: =desc -> Description | B2: =head27 -> Ref | C2: =head1b -> 2018/19 | D2: =head1A -> 2019/20 | E2: =Head1 -> 2020/21 | F2: =Head2 -> Current Year 2021/22 | J2: =Head3 -> 2022/23 Medium Term Revenue & Expenditure Framework | M2: =Head4 -> LTFS
A3: R thousand | B3: 1 | C3: =Head5 -> Audited Outcome | D3: =Head5 -> Audited Outcome | E3: =Head5 -> Audited Outcome | F3: =Head6 -> Original Budget | G3: =Head7 -> Adjusted Budget | H3: =Head8 -> Full Year Forecast | I3: =Head5b -> Pre-audit outcome | J3: =Head9 -> Budget Year 2022/23 | K3: =Head10 -> Budget Year +1 2023/24 | L3: =Head11 -> Budget Year +2 2024/25 | M3: =Head12 -> Forecast 2025/26 | N3: =Head13 -> Forecast 2026/27 | O3: =Head14 -> Forecast 2027/28 | P3: =Head15 -> Forecast 2028/29 | Q3: =Head16 -> Forecast 2029/30 | R3: =Head17 -> Forecast 2030/31 | S3: =Head18 -> Forecast 2031/32 | T3: =Head19 -> Forecast 2032/33 | U3: =Head20 -> Forecast 2033/34 | V3: =Head21 -> Forecast 2034/35 | W3: =Head22 -> Forecast 2035/36 | X3: =Head23 -> Forecast 2036/37
A4: Revenue By Source
A5: Property rates | B5: 2 | C5: ='SA1'!C9 -> 14578847.33 | D5: ='SA1'!D9 -> 20010885.63 | E5: ='SA1'!E9 -> 49558002.71 | F5: ='SA1'!F9 -> 51482069 | G5: ='SA1'!G9 -> 39609853 | H5: ='SA1'!H9 -> 39609853 | I5: ='SA1'!I9 -> 22604429.2 | J5: ='SA1'!J9 -> 41194250 | K5: ='SA1'!K9 -> 43006797 | L5: ='SA1'!L9 -> 44942102
A6: Service charges - electricity revenue | B6: 2 | C6: ='SA1'!C15 -> 2736711.65 | D6: ='SA1'!D15 -> 8284595.91 | E6: ='SA1'!E15 -> 8433035.23 | F6: ='SA1'!F15 -> 11711304 | G6: ='SA1'!G15 -> 11711304 | H6: ='SA1'!H15 -> 11711304 | I6: ='SA1'!I15 -> 314730.32 | J6: ='SA1'!J15 -> 13460729 | K6: ='SA1'!K15 -> 13008650 | L6: ='SA1'!L15 -> 13593679
A7: Service charges - water revenue | B7: 2 | C7: ='SA1'!C21 -> 0 | D7: ='SA1'!D21 -> 0 | E7: ='SA1'!E21 -> 0 | F7: ='SA1'!F21 -> 0 | G7: ='SA1'!G21 -> 0 | H7: ='SA1'!H21 -> 0 | I7: ='SA1'!I21 -> -7360.1 | J7: ='SA1'!J21 -> 0 | K7: ='SA1'!K21 -> 0 | L7: ='SA1'!L21 -> 0
A8: Service charges - sanitation revenue | B8: 2 | C8: ='SA1'!C27 -> 0 | D8: ='SA1'!D27 -> 0 | E8: ='SA1'!E27 -> 0 | F8: ='SA1'!F27 -> 0 | G8: ='SA1'!G27 -> 0 | H8: ='SA1'!H27 -> 0 | I8: ='SA1'!I27 -> -1329.6 | J8: ='SA1'!J27 -> 0 | K8: ='SA1'!K27 -> 0 | L8: ='SA1'!L27 -> 0
A9: Service charges - refuse revenue | B9: 2 | C9: ='SA1'!C34 -> 1848066.44 | D9: ='SA1'!D34 -> 2218412.62 | E9: ='SA1'!E34 -> 2628852.44 | F9: ='SA1'!F34 -> 2484576 | G9: ='SA1'!G34 -> 2484576 | H9: ='SA1'!H34 -> 2484576 | I9: ='SA1'!I34 -> 1948598.62 | J9: ='SA1'!J34 -> 2583960 | K9: ='SA1'!K34 -> 2697654 | L9: ='SA1'!L34 -> 2819048
A11: Rental of facilities and equipment | C11: 351403.97 | D11: 211370.88 | E11: 214680.5 | F11: 253998 | G11: 253998 | H11: 253998 | I11: 163450.71 | J11: 264158 | K11: 275781 | L11: 288192
A12: Interest earned - external investments | C12: 0 | D12: 1729419.11 | E12: 2543772.73 | F12: 2708206 | G12: 2708206 | H12: 2708206 | I12: 1680845.81 | J12: 3000000 | K12: 3132000 | L12: 3272940
A13: Interest earned - outstanding debtors | C13: 1066848.29 | D13: 912778.17 | E13: 1342317.05 | F13: 1515294 | G13: 1515294 | H13: 1515294 | I13: 986476.77 | J13: 1575907 | K13: 1645248 | L13: 1719283
A14: Dividends received | C14: 1820125.31 | D14: 0 | E14: 0 | F14: 0 | G14: 0 | H14: 0 | I14: 0 | J14: 0 | K14: 0 | L14: 0
A15: Fines, penalties and forfeits | C15: 4281671.17 | D15: 4539294.11 | E15: 493491.44 | F15: 1338690 | G15: 1338690 | H15: 1338690 | I15: 31150 | J15: 1392238 | K15: 1453498 | L15: 1518905
A16: Licences and permits | C16: 0 | D16: -506139.63 | E16: 4890683.84 | F16: 7686174 | G16: 7686174 | H16: 7686174 | I16: 7499726.26 | J16: 7993621 | K16: 8345341 | L16: 8720881
A17: Agency services | C17: 660533.8 | D17: 681680.78 | E17: 919463.97 | F17: 721709 | G17: 721709 | H17: 721709 | I17: 1636170.32 | J17: 750578 | K17: 783604 | L17: 818866
A18: Transfers and subsidies | C18: 134056601.1 | D18: 148235565 | E18: 185288433.8 | F18: 161092000 | G18: 162092000 | H18: 162092000 | I18: 157907471.3 | J18: 174457600 | K18: 181751900 | L18: 191275600
A19: Other revenue | B19: 2 | C19: ='SA1'!C49 -> 319060.68 | D19: ='SA1'!D49 -> 248651.09 | E19: ='SA1'!E49 -> -46995.76 | F19: ='SA1'!F49 -> 27178038 | G19: ='SA1'!G49 -> 15156677 | H19: ='SA1'!H49 -> 15156677 | I19: ='SA1'!I49 -> 184565.41 | J19: ='SA1'!J49 -> 409450 | K19: ='SA1'!K49 -> 427465 | L19: ='SA1'!L49 -> 446701
A20: Gains | C20: 0 | D20: 0 | E20: 12150 | F20: 0 | G20: 0 | H20: 0 | I20: 0 | J20: 0 | K20: 0 | L20: 0
A21: Total Revenue (excluding capital transfers and contributions) | C21: =SUM(C5:C9)+SUM(C11:C20) -> 161719869.8 | D21: =SUM(D5:D9)+SUM(D11:D20) -> 186566513.7 | E21: 256277888 | F21: 268172058 | G21: 245278481 | H21: 245278481 | I21: 194948925.1 | J21: 247082491 | K21: 256527938 | L21: 269416197 | M21: =SUM(M5:M20) -> 0 | N21: 0 | O21: 0 | P21: 0 | Q21: 0 | R21: 0 | S21: 0 | T21: 0 | U21: 0 | V21: 0 | W21: 0 | X21: 0
A23: Expenditure By Type
A24: Employee related costs | B24: 2 | C24: ='SA1'!C67 -> 78988941.68 | D24: ='SA1'!D67 -> 84279697.15 | E24: ='SA1'!E67 -> 91655492.25 | F24: ='SA1'!F67 -> 105732276 | G24: ='SA1'!G67 -> 98229953 | H24: ='SA1'!H67 -> 98229953 | I24: ='SA1'!I67 -> 62052837.1 | J24: ='SA1'!J67 -> 103550105 | K24: ='SA1'!K67 -> 107880543 | L24: ='SA1'!L67 -> 112568220
A25: Remuneration of councillors | C25: 12328369.95 | D25: 12879611.9 | E25: 12930254.27 | F25: 15010262 | G25: 14347013 | H25: 14347013 | I25: 8436933.35 | J25: 13510536 | K25: 13971097 | L25: 14535861
A26: Debt impairment | B26: 3 | C26: 4494247.44 | D26: 5824884.71 | E26: 8871388.24 | F26: 6337664 | G26: 3337664 | H26: 3337664 | I26: 0 | J26: 3471171 | K26: 3623903 | L26: 3786978
A27: Depreciation & asset impairment | B27: 2 | C27: ='SA1'!C83 -> 12277161.1 | D27: ='SA1'!D83 -> 15880078.4 | E27: ='SA1'!E83 -> 12114558.47 | F27: ='SA1'!F83 -> 18994790 | G27: ='SA1'!G83 -> 18994790 | H27: ='SA1'!H83 -> 18994790 | I27: ='SA1'!I83 -> 15099518.18 | J27: ='SA1'!J83 -> 19754629 | K27: ='SA1'!K83 -> 20623834 | L27: ='SA1'!L83 -> 21551907
A28: Finance charges | C28: 1154597.65 | D28: 421586.14 | E28: 183629.4 | F28: 1055833 | G28: 111490 | H28: 111490 | I28: -1.42 | J28: 115950 | K28: 121052 | L28: 126499
A29: Bulk purchases - electricity | B29: 2 | C29: ='SA1'!C88 -> 9419062.61 | D29: ='SA1'!D88 -> 10107195.66 | E29: ='SA1'!E88 -> 11026472.76 | F29: ='SA1'!F88 -> 11468179 | G29: ='SA1'!G88 -> 11468179 | H29: ='SA1'!H88 -> 11468179 | I29: ='SA1'!I88 -> 10255638.59 | J29: ='SA1'!J88 -> 11926907 | K29: ='SA1'!K88 -> 12451691 | L29: ='SA1'!L88 -> 13012017
A30: Inventory consumed | B30: 8 | C30: ='SA1'!C169 -> -33523.99 | D30: ='SA1'!D169 -> 1056734.27 | E30: ='SA1'!E169 -> 810564.36 | F30: ='SA1'!F169 -> 6589473 | G30: ='SA1'!G169 -> 6189473 | H30: ='SA1'!H169 -> 6189473 | I30: ='SA1'!I169 -> 0 | J30: ='SA1'!J169 -> 6699202 | K30: ='SA1'!K169 -> 6993966 | L30: ='SA1'!L169 -> 7308696
A31: Contracted services | C31: ='SA1'!C127 -> 27322894 | D31: ='SA1'!D127 -> 26876466.16 | E31: ='SA1'!E127 -> 39119436.44 | F31: ='SA1'!F127 -> 43843741 | G31: ='SA1'!G127 -> 40403213 | H31: ='SA1'!H127 -> 40403213 | I31: ='SA1'!I127 -> 23104978.19 | J31: ='SA1'!J127 -> 40396103 | K31: ='SA1'!K127 -> 41056299 | L31: ='SA1'!L127 -> 42828696
A32: Transfers and subsidies | C32: ='SA1'!C93 -> 0 | D32: ='SA1'!D93 -> 0 | E32: ='SA1'!E93 -> 0 | F32: ='SA1'!F93 -> 0 | G32: ='SA1'!G93 -> 0 | H32: ='SA1'!H93 -> 0 | I32: ='SA1'!I93 -> 0 | J32: ='SA1'!J93 -> 0 | K32: ='SA1'!K93 -> 0 | L32: ='SA1'!L93 -> 0
A33: Other expenditure | B33: 4, 5 | C33: ='SA1'!C157 -> 42196189.65 | D33: ='SA1'!D157 -> 28870414.67 | E33: ='SA1'!E157 -> 34166105.41 | F33: ='SA1'!F157 -> 38896407 | G33: ='SA1'!G157 -> 34657906 | H33: ='SA1'!H157 -> 34657906 | I33: ='SA1'!I157 -> 12388266.17 | J33: ='SA1'!J157 -> 36608220 | K33: ='SA1'!K157 -> 37405897 | L33: ='SA1'!L157 -> 39007621
A34: Losses | C34: 1550539.53 | D34: 1396625.93 | E34: 7086214.29 | F34: 0 | G34: 0 | H34: 0 | I34: 0 | J34: 0 | K34: 0 | L34: 0
A35: Total Expenditure | C35: =SUM(C24:C34) -> 189698479.6 | D35: =SUM(D24:D34) -> 187593295 | E35: 217964115.9 | F35: 247928625 | G35: 227739681 | H35: 227739681 | I35: 131338170.2 | J35: 236032823 | K35: 244128282 | L35: 254726495 | M35: =SUM(M24:M34) -> 0 | N35: 0 | O35: 0 | P35: 0 | Q35: 0 | R35: 0 | S35: 0 | T35: 0 | U35: 0 | V35: 0 | W35: 0 | X35: 0
A37: Surplus/(Deficit) | C37: =C21-C35 -> -27978609.87 | D37: -1026781.28 | E37: 38313772.11 | F37: 20243433 | G37: 17538800 | H37: 17538800 | I37: 63610754.91 | J37: 11049668 | K37: 12399656 | L37: 14689702 | M37: =M21+M35 -> 0 | N37: 0 | O37: 0 | P37: 0 | Q37: 0 | R37: 0 | S37: 0 | T37: 0 | U37: 0 | V37: 0 | W37: 0 | X37: 0
A38: Transfers and subsidies - capital (monetary allocations) (National / Provincial and District) | C38: 43126493.38 | D38: 33909773.81 | E38: 45027638.97 | F38: 45150000 | G38: 46150000 | H38: 46150000 | I38: 15354953.18 | J38: 37802400 | K38: 49385100 | L38: 51070400
A39: Transfers and subsidies - capital (monetary allocations) (National / Provincial Departmental Agencies, Households, Non-profit Institutions, Private Enterprises, Public Corporatons, Higher Educational Institutions) | B39: 6
A40: Transfers and subsidies - capital (in-kind - all) | C40: 0 | D40: 0 | E40: 1234955.28 | F40: 0 | G40: 0 | H40: 0 | I40: 0 | J40: 0 | K40: 0 | L40: 0
A41: Surplus/(Deficit) after capital transfers & contributions | C41: =SUM(C37:C40) -> 15147883.51 | D41: 32882992.53 | E41: 84576366.36 | F41: 65393433 | G41: 63688800 | H41: 63688800 | I41: 78965708.09 | J41: 48852068 | K41: 61784756 | L41: 65760102
A42: Taxation
A43: Surplus/(Deficit) after taxation | C43: =C41-C42 -> 15147883.51 | D43: 32882992.53 | E43: 84576366.36 | F43: 65393433 | G43: 63688800 | H43: 63688800 | I43: 78965708.09 | J43: 48852068 | K43: 61784756 | L43: 65760102
A44: Attributable to minorities
A45: Surplus/(Deficit) attributable to municipality | C45: =SUM(C43:C44) -> 15147883.51 | D45: 32882992.53 | E45: 84576366.36 | F45: 65393433 | G45: 63688800 | H45: 63688800 | I45: 78965708.09 | J45: 48852068 | K45: 61784756 | L45: 65760102
A46: Share of surplus/ (deficit) of associate | B46: 7
A47: =result -> Surplus/(Deficit) for the year | C47: =SUM(C45:C46) -> 15147883.51 | D47: 32882992.53 | E47: 84576366.36 | F47: 65393433 | G47: 63688800 | H47: 63688800 | I47: 78965708.09 | J47: 48852068 | K47: 61784756 | L47: 65760102 | M47: =M25+M46 -> 0 | N47: 0 | O47: 0 | P47: 0 | Q47: 0 | R47: 0 | S47: 0 | T47: 0 | U47: 0 | V47: 0 | W47: 0 | X47: 0
A48: =head27a -> References
A49: 1. Classifications are revenue sources and expenditure type
A50: 2. Detail to be provided in Table SA1
A51: 3. Previously described as 'bad or doubtful debts' - amounts shown should reflect the change in the provision for debt impairment
A52: 4. Expenditure type components previously shown under repairs and maintenance should be allocated back to the originating expenditure group/item; e.g. employee costs
A53: 5. Repairs & maintenance detailed in Table A9 and Table SA34c
A54: 6. Contributions are funds provided by external organisations to assist with infrastructure development; e.g. developer contributions (detail to be provided in Table SA1)
A55: 7. Equity method ( Includes Joint Ventures)
A56: 8. All materials not part of 'bulk' e.g road making materials, pipe, cable etc.
A57: check balance | C57: =C45-'A3-FinPerf V'!C39 -> -709346.49 | D57: =D45-'A3-FinPerf V'!D39 -> 2813793.73 | E57: =E45-'A3-FinPerf V'!E39 -> 3109787.22 | F57: =F45-'A3-FinPerf V'!F39 -> 0 | G57: =G45-'A3-FinPerf V'!G39 -> 0 | H57: =H45-'A3-FinPerf V'!H39 -> 0 | J57: =J45-'A3-FinPerf V'!I39 -> 1 | K57: =K45-'A3-FinPerf V'!J39 -> 2 | L57: =L45-'A3-FinPerf V'!K39 -> 1
A59: Total revenue | C59: =C21+SUM(C38:C40) -> 204846363.1 | D59: 220476287.5 | E59: 302540482.2 | F59: 313322058 | G59: 291428481 | H59: 291428481 | I59: 210303878.2 | J59: 284884891 | K59: 305913038 | L59: 320486597

Sheet A5-Capex
A2: =Vdesc -> Vote Description | B2: =head27 -> Ref | C2: =head1b -> 2018/19 | D2: =head1A -> 2019/20 | E2: =Head1 -> 2020/21 | F2: =Head2 -> Current Year 2021/22 | J2: =Head3 -> 2022/23 Medium Term Revenue & Expenditure Framework
A3: R thousand | B3: 1 | C3: =Head5 -> Audited Outcome | D3: =Head5 -> Audited Outcome | E3: =Head5 -> Audited Outcome | F3: =Head6 -> Original Budget | G3: =Head7 -> Adjusted Budget | H3: =Head8 -> Full Year Forecast | I3: =Head5b -> Pre-audit outcome | J3: =Head9 -> Budget Year 2022/23 | K3: =Head10 -> Budget Year +1 2023/24 | L3: =Head11 -> Budget Year +2 2024/25
A4: Capital expenditure - Vote
A5: Multi-year expenditure to be appropriated | B5: 2
A6: =A5A!A6 -> Vote 01 - Corporate Services | C6: =A5A!C6 -> 2103497.83 | D6: =A5A!D6 -> 1344645.21 | E6: =A5A!E6 -> 4660939.51 | F6: =A5A!F6 -> 4286000 | G6: =A5A!G6 -> 4241456 | H6: =A5A!H6 -> 4241456 | I6: =A5A!I6 -> 1816834.14 | J6: =A5A!J6 -> 3000000 | K6: =A5A!K6 -> 2300000 | L6: =A5A!L6 -> 0
A7: =A5A!A15 -> Vote 02 - Municipal Manager | C7: =A5A!C15 -> 1024742.38 | D7: =A5A!D15 -> 111398 | E7: =A5A!E15 -> 136993.77 | F7: =A5A!F15 -> 100000 | G7: =A5A!G15 -> 90000 | H7: =A5A!H15 -> 90000 | I7: =A5A!I15 -> 65640 | J7: =A5A!J15 -> 0 | K7: =A5A!K15 -> 0 | L7: =A5A!L15 -> 0
A8: =A5A!A21 -> Vote 03 - Mayors Office | C8: =A5A!C21 -> 0 | D8: =A5A!D21 -> 0 | E8: =A5A!E21 -> 0 | F8: =A5A!F21 -> 0 | G8: =A5A!G21 -> 0 | H8: =A5A!H21 -> 0 | I8: =A5A!I21 -> 0 | J8: =A5A!J21 -> 0 | K8: =A5A!K21 -> 0 | L8: =A5A!L21 -> 0
A9: =A5A!A27 -> Vote 04 - Budget And Treasury | C9: =A5A!C27 -> 346521.74 | D9: =A5A!D27 -> 58650 | E9: =A5A!E27 -> 0 | F9: =A5A!F27 -> 300000 | G9: =A5A!G27 -> 300000 | H9: =A5A!H27 -> 300000 | I9: =A5A!I27 -> 0 | J9: =A5A!J27 -> 500000 | K9: =A5A!K27 -> 0 | L9: =A5A!L27 -> 0
A10: =A5A!A35 -> Vote 05 - Community Services | C10: =A5A!C35 -> 6628277.06 | D10: =A5A!D35 -> 714276 | E10: =A5A!E35 -> 1156205.28 | F10: =A5A!F35 -> 1010000 | G10: =A5A!G35 -> 1010000 | H10: =A5A!H35 -> 1010000 | I10: =A5A!I35 -> 600000 | J10: =A5A!J35 -> 0 | K10: =A5A!K35 -> 0 | L10: =A5A!L35 -> 0
A11: =A5A!A43 -> Vote 06 - Technical Services | C11: =A5A!C43 -> 35579318.97 | D11: =A5A!D43 -> 36055534.08 | E11: =A5A!E43 -> 44102368.51 | F11: =A5A!F43 -> 59697793 | G11: =A5A!G43 -> 59047351 | H11: =A5A!H43 -> 59047351 | I11: =A5A!I43 -> 24732225.04 | J11: =A5A!J43 -> 45352400 | K11: =A5A!K43 -> 59485100 | L11: =A5A!L43 -> 65760440
A12: ='Org structure'!A8 -> Vote 07 - | C12: =A5A!C52 -> 0 | D12: =A5A!D52 -> 0 | E12: =A5A!E52 -> 0 | F12: =A5A!F52 -> 0 | G12: =A5A!G52 -> 0 | H12: =A5A!H52 -> 0 | I12: =A5A!I52 -> 0 | J12: =A5A!J52 -> 0 | K12: =A5A!K52 -> 0 | L12: =A5A!L52 -> 0
A13: ='Org structure'!A9 -> Vote 08 - | C13: =A5A!C53 -> 0 | D13: =A5A!D53 -> 0 | E13: =A5A!E53 -> 0 | F13: =A5A!F53 -> 0 | G13: =A5A!G53 -> 0 | H13: =A5A!H53 -> 0 | I13: =A5A!I53 -> 0 | J13: =A5A!J53 -> 0 | K13: =A5A!K53 -> 0 | L13: =A5A!L53 -> 0
A14: ='Org structure'!A10 -> Vote 09 - | C14: =A5A!C54 -> 0 | D14: =A5A!D54 -> 0 | E14: =A5A!E54 -> 0 | F14: =A5A!F54 -> 0 | G14: =A5A!G54 -> 0 | H14: =A5A!H54 -> 0 | I14: =A5A!I54 -> 0 | J14: =A5A!J54 -> 0 | K14: =A5A!K54 -> 0 | L14: =A5A!L54 -> 0
A15: ='Org structure'!A11 -> Vote 10 - | C15: =A5A!C55 -> 0 | D15: =A5A!D55 -> 0 | E15: =A5A!E55 -> 0 | F15: =A5A!F55 -> 0 | G15: =A5A!G55 -> 0 | H15: =A5A!H55 -> 0 | I15: =A5A!I55 -> 0 | J15: =A5A!J55 -> 0 | K15: =A5A!K55 -> 0 | L15: =A5A!L55 -> 0
A16: ='Org structure'!A12 -> Vote 11 - | C16: =A5A!C56 -> 0 | D16: =A5A!D56 -> 0 | E16: =A5A!E56 -> 0 | F16: =A5A!F56 -> 0 | G16: =A5A!G56 -> 0 | H16: =A5A!H56 -> 0 | I16: =A5A!I56 -> 0 | J16: =A5A!J56 -> 0 | K16: =A5A!K56 -> 0 | L16: =A5A!L56 -> 0
A17: ='Org structure'!A13 -> Vote 12 - | C17: =A5A!C57 -> 0 | D17: =A5A!D57 -> 0 | E17: =A5A!E57 -> 0 | F17: =A5A!F57 -> 0 | G17: =A5A!G57 -> 0 | H17: =A5A!H57 -> 0 | I17: =A5A!I57 -> 0 | J17: =A5A!J57 -> 0 | K17: =A5A!K57 -> 0 | L17: =A5A!L57 -> 0
A18: ='Org structure'!A14 -> Vote 13 - | C18: =A5A!C58 -> 0 | D18: =A5A!D58 -> 0 | E18: =A5A!E58 -> 0 | F18: =A5A!F58 -> 0 | G18: =A5A!G58 -> 0 | H18: =A5A!H58 -> 0 | I18: =A5A!I58 -> 0 | J18: =A5A!J58 -> 0 | K18: =A5A!K58 -> 0 | L18: =A5A!L58 -> 0
A19: ='Org structure'!A15 -> Vote 14 - | C19: =A5A!C59 -> 0 | D19: =A5A!D59 -> 0 | E19: =A5A!E59 -> 0 | F19: =A5A!F59 -> 0 | G19: =A5A!G59 -> 0 | H19: =A5A!H59 -> 0 | I19: =A5A!I59 -> 0 | J19: =A5A!J59 -> 0 | K19: =A5A!K59 -> 0 | L19: =A5A!L59 -> 0
A20: ='Org structure'!A16 -> Vote 15 - Other | C20: =A5A!C60 -> 0 | D20: =A5A!D60 -> 0 | E20: =A5A!E60 -> 0 | F20: =A5A!F60 -> 0 | G20: =A5A!G60 -> 0 | H20: =A5A!H60 -> 0 | I20: =A5A!I60 -> 0 | J20: =A5A!J60 -> 0 | K20: =A5A!K60 -> 0 | L20: =A5A!L60 -> 0
A21: Capital multi-year expenditure sub-total | B21: 7 | C21: =SUM(C6:C20) -> 45682357.98 | D21: =SUM(D6:D20) -> 38284503.29 | E21: 50056507.07 | F21: 65393793 | G21: 64688807 | H21: =SUM(H6:H20) -> 64688807 | I21: 27214699.18 | J21: 48852400 | K21: 61785100 | L21: 65760440
A23: Single-year expenditure to be appropriated | B23: 2
A24: =A5A!A65 -> Vote 01 - Corporate Services | C24: =A5A!C65 -> 0 | D24: =A5A!D65 -> 0 | E24: =A5A!E65 -> 0 | F24: =A5A!F65 -> 0 | G24: =A5A!G65 -> 0 | H24: =A5A!H65 -> 0 | I24: =A5A!I65 -> 0 | J24: =A5A!J65 -> 0 | K24: =A5A!K65 -> 0 | L24: =A5A!L65 -> 0
A25: =A5A!A74 -> Vote 02 - Municipal Manager | C25: =A5A!C74 -> 0 | D25: =A5A!D74 -> 0 | E25: =A5A!E74 -> 0 | F25: =A5A!F74 -> 0 | G25: =A5A!G74 -> 0 | H25: =A5A!H74 -> 0 | I25: =A5A!I74 -> 0 | J25: =A5A!J74 -> 0 | K25: =A5A!K74 -> 0 | L25: =A5A!L74 -> 0
A26: =A5A!A80 -> Vote 03 - Mayors Office | C26: =A5A!C80 -> 0 | D26: =A5A!D80 -> 0 | E26: =A5A!E80 -> 0 | F26: =A5A!F80 -> 0 | G26: =A5A!G80 -> 0 | H26: =A5A!H80 -> 0 | I26: =A5A!I80 -> 0 | J26: =A5A!J80 -> 0 | K26: =A5A!K80 -> 0 | L26: =A5A!L80 -> 0
A27: =A5A!A86 -> Vote 04 - Budget And Treasury | C27: =A5A!C86 -> 0 | D27: =A5A!D86 -> 0 | E27: =A5A!E86 -> 0 | F27: =A5A!F86 -> 0 | G27: =A5A!G86 -> 0 | H27: =A5A!H86 -> 0 | I27: =A5A!I86 -> 0 | J27: =A5A!J86 -> 0 | K27: =A5A!K86 -> 0 | L27: =A5A!L86 -> 0
A28: =A5A!A94 -> Vote 05 - Community Services | C28: =A5A!C94 -> 0 | D28: =A5A!D94 -> 0 | E28: =A5A!E94 -> 0 | F28: =A5A!F94 -> 0 | G28: =A5A!G94 -> 0 | H28: =A5A!H94 -> 0 | I28: =A5A!I94 -> 0 | J28: =A5A!J94 -> 0 | K28: =A5A!K94 -> 0 | L28: =A5A!L94 -> 0
A29: =A5A!A102 -> Vote 06 - Technical Services | C29: =A5A!C102 -> 0 | D29: =A5A!D102 -> 0 | E29: =A5A!E102 -> 0 | F29: =A5A!F102 -> 0 | G29: =A5A!G102 -> 0 | H29: =A5A!H102 -> 0 | I29: =A5A!I102 -> 0 | J29: =A5A!J102 -> 0 | K29: =A5A!K102 -> 0 | L29: =A5A!L102 -> 0
A30: ='Org structure'!A8 -> Vote 07 - | C30: =A5A!C111 -> 0 | D30: =A5A!D111 -> 0 | E30: =A5A!E111 -> 0 | F30: =A5A!F111 -> 0 | G30: =A5A!G111 -> 0 | H30: =A5A!H111 -> 0 | I30: =A5A!I111 -> 0 | J30: =A5A!J111 -> 0 | K30: =A5A!K111 -> 0 | L30: =A5A!L111 -> 0
A31: ='Org structure'!A9 -> Vote 08 - | C31: =A5A!C112 -> 0 | D31: =A5A!D112 -> 0 | E31: =A5A!E112 -> 0 | F31: =A5A!F112 -> 0 | G31: =A5A!G112 -> 0 | H31: =A5A!H112 -> 0 | I31: =A5A!I112 -> 0 | J31: =A5A!J112 -> 0 | K31: =A5A!K112 -> 0 | L31: =A5A!L112 -> 0
A32: ='Org structure'!A10 -> Vote 09 - | C32: =A5A!C113 -> 0 | D32: =A5A!D113 -> 0 | E32: =A5A!E113 -> 0 | F32: =A5A!F113 -> 0 | G32: =A5A!G113 -> 0 | H32: =A5A!H113 -> 0 | I32: =A5A!I113 -> 0 | J32: =A5A!J113 -> 0 | K32: =A5A!K113 -> 0 | L32: =A5A!L113 -> 0
A33: ='Org structure'!A11 -> Vote 10 - | C33: =A5A!C114 -> 0 | D33: =A5A!D114 -> 0 | E33: =A5A!E114 -> 0 | F33: =A5A!F114 -> 0 | G33: =A5A!G114 -> 0 | H33: =A5A!H114 -> 0 | I33: =A5A!I114 -> 0 | J33: =A5A!J114 -> 0 | K33: =A5A!K114 -> 0 | L33: =A5A!L114 -> 0
A34: ='Org structure'!A12 -> Vote 11 - | C34: =A5A!C115 -> 0 | D34: =A5A!D115 -> 0 | E34: =A5A!E115 -> 0 | F34: =A5A!F115 -> 0 | G34: =A5A!G115 -> 0 | H34: =A5A!H115 -> 0 | I34: =A5A!I115 -> 0 | J34: =A5A!J115 -> 0 | K34: =A5A!K115 -> 0 | L34: =A5A!L115 -> 0
A35: ='Org structure'!A13 -> Vote 12 - | C35: =A5A!C116 -> 0 | D35: =A5A!D116 -> 0 | E35: =A5A!E116 -> 0 | F35: =A5A!F116 -> 0 | G35: =A5A!G116 -> 0 | H35: =A5A!H116 -> 0 | I35: =A5A!I116 -> 0 | J35: =A5A!J116 -> 0 | K35: =A5A!K116 -> 0 | L35: =A5A!L116 -> 0
A36: ='Org structure'!A14 -> Vote 13 - | C36: =A5A!C117 -> 0 | D36: =A5A!D117 -> 0 | E36: =A5A!E117 -> 0 | F36: =A5A!F117 -> 0 | G36: =A5A!G117 -> 0 | H36: =A5A!H117 -> 0 | I36: =A5A!I117 -> 0 | J36: =A5A!J117 -> 0 | K36: =A5A!K117 -> 0 | L36: =A5A!L117 -> 0
A37: ='Org structure'!A15 -> Vote 14 - | C37: =A5A!C118 -> 0 | D37: =A5A!D118 -> 0 | E37: =A5A!E118 -> 0 | F37: =A5A!F118 -> 0 | G37: =A5A!G118 -> 0 | H37: =A5A!H118 -> 0 | I37: =A5A!I118 -> 0 | J37: =A5A!J118 -> 0 | K37: =A5A!K118 -> 0 | L37: =A5A!L118 -> 0
A38: ='Org structure'!A16 -> Vote 15 - Other | C38: =A5A!C119 -> 0 | D38: =A5A!D119 -> 0 | E38: =A5A!E119 -> 0 | F38: =A5A!F119 -> 0 | G38: =A5A!G119 -> 0 | H38: =A5A!H119 -> 0 | I38: =A5A!I119 -> 0 | J38: =A5A!J119 -> 0 | K38: =A5A!K119 -> 0 | L38: =A5A!L119 -> 0
A39: Capital single-year expenditure sub-total | C39: =SUM(C24:C38) -> 0 | D39: =SUM(D24:D38) -> 0 | E39: 0 | F39: 0 | G39: 0 | H39: 0 | I39: 0 | J39: 0 | K39: 0 | L39: 0
A40: Total Capital Expenditure - Vote | C40: =C39+C21 -> 45682357.98 | D40: =D39+D21 -> 38284503.29 | E40: 50056507.07 | F40: 65393793 | G40: 64688807 | H40: 64688807 | I40: 27214699.18 | J40: 48852400 | K40: 61785100 | L40: 65760440
A42: Capital Expenditure - Functional
A43: Governance and administration | C43: =SUM(C44:C46) -> 3474761.95 | D43: =SUM(D44:D46) -> 1514693.21 | E43: 4797933.28 | F43: 4686000 | G43: 4631456 | H43: 4631456 | I43: 1882474.14 | J43: 3500000 | K43: 2300000 | L43: 0
A44: Executive and council | C44: 888633.68 | D44: 0 | E44: 0 | F44: 0 | G44: 0 | H44: 0 | I44: 0 | J44: 0 | K44: 0 | L44: 0
A45: Finance and administration | C45: 2586128.27 | D45: 1514693.21 | E45: 4797933.28 | F45: 4686000 | G45: 4631456 | H45: 4631456 | I45: 1882474.14 | J45: 3500000 | K45: 2300000 | L45: 0
A46: Internal audit | C46: 0 | D46: 0 | E46: 0 | F46: 0 | G46: 0 | H46: 0 | I46: 0 | J46: 0 | K46: 0 | L46: 0
A47: Community and public safety | C47: =SUM(C48:C52) -> 6628277.06 | D47: =SUM(D48:D52) -> 714276 | E47: 1156205.28 | F47: 1010000 | G47: 1010000 | H47: 1010000 | I47: 600000 | J47: 0 | K47: 0 | L47: 0
A48: Community and social services | C48: 473409.75 | D48: 0 | E48: 1156205.28 | F48: 0 | G48: 0 | H48: 0 | I48: 0 | J48: 0 | K48: 0 | L48: 0
A49: Sport and recreation | C49: 6142854.28 | D49: 714276 | E49: 0 | F49: 700000 | G49: 700000 | H49: 700000 | I49: 600000 | J49: 0 | K49: 0 | L49: 0
A50: Public safety | C50: 12013.03 | D50: 0 | E50: 0 | F50: 310000 | G50: 310000 | H50: 310000 | I50: 0 | J50: 0 | K50: 0 | L50: 0
A51: Housing
A52: Health
A53: Economic and environmental services | C53: =SUM(C54:C56) -> 0 | D53: =SUM(D54:D56) -> 0 | E53: 0 | F53: 287793 | G53: 192500 | H53: 192500 | I53: 192500 | J53: 0 | K53: 0 | L53: 0
A54: Planning and development | C54: 0 | D54: 0 | E54: 0 | F54: 287793 | G54: 192500 | H54: 192500 | I54: 192500 | J54: 0 | K54: 0 | L54: 0
A55: Road transport
A56: Environmental protection
A57: Trading services | C57: =SUM(C58:C61) -> 35579318.97 | D57: =SUM(D58:D61) -> 36055534.08 | E57: 44102368.51 | F57: 59410000 | G57: 58854851 | H57: 58854851 | I57: 24539725.04 | J57: 45352400 | K57: 59485100 | L57: 65760440
A58: Energy sources | C58: 1315138.92 | D58: 3329856 | E58: 11793428.42 | F58: 15500000 | G58: 14682147 | H58: 14682147 | I58: 4594674.68 | J58: 4550000 | K58: 15600000 | L58: 13900000
A59: Water management
A60: Waste water management | C60: 34264180.05 | D60: 32725678.08 | E60: 32308940.09 | F60: 43910000 | G60: 44172704 | H60: 44172704 | I60: 19945050.36 | J60: 40802400 | K60: 43885100 | L60: 51860440
A61: Waste management
A62: Other
A63: Total Capital Expenditure - Functional | B63: 3 | C63: =C43+C47+C53+C57+C62 -> 45682357.98 | D63: =D43+D47+D53+D57+D62 -> 38284503.29 | E63: 50056507.07 | F63: 65393793 | G63: 64688807 | H63: 64688807 | I63: 27214699.18 | J63: 48852400 | K63: 61785100 | L63: =L43+L47+L53+L57+L62 -> 65760440
A65: Funded by:
A66: National Government | C66: 37557011.22 | D66: 29015957.46 | E66: 39133689.96 | F66: 45437793 | G66: 46342500 | H66: 46342500 | I66: 20674904.88 | J66: 30850000 | K66: 41680519 | L66: 39686781
A67: Provincial Government | C67: 531721.74 | D67: 0 | E67: 0 | F67: 0 | G67: 0 | H67: 0 | I67: 0 | J67: 0 | K67: 0 | L67: 0
A68: District Municipality | C68: 29400 | D68: 0 | E68: 1156205.28 | F68: 0 | G68: 0 | H68: 0 | I68: 0 | J68: 0 | K68: 0 | L68: 0
A69: ='A4-FinPerf RE'!A39 -> Transfers and subsidies - capital (monetary allocations) (National / Provincial Departmental Agencies, Households, Non-profit Institutions, Private Enterprises, Public Corporatons, Higher Educational Institutions) | C69: 680520.5 | D69: 0 | E69: 0 | F69: 0 | G69: 0 | H69: 0 | I69: 0 | J69: 0 | K69: 0 | L69: 0
A70: Transfers recognised - capital | B70: 4 | C70: =SUM(C66:C69) -> 38798653.46 | D70: 29015957.46 | E70: 40289895.24 | F70: 45437793 | G70: 46342500 | H70: 46342500 | I70: 20674904.88 | J70: 30850000 | K70: 41680519 | L70: 39686781
A72: Borrowing | B72: 6
A73: Internally generated funds | C73: 4637152.15 | D73: 9268545.83 | E73: 9766611.83 | F73: 19956000 | G73: 18346307 | H73: 18346307 | I73: 6539794.3 | J73: 18002400 | K73: 20104581 | L73: 26073659
A74: Total Capital Funding | B74: 7 | C74: =+C70+C72+C73 -> 43435805.61 | D74: =+D70+D72+D73 -> 38284503.29 | E74: 50056507.07 | F74: 65393793 | G74: 64688807 | H74: 64688807 | I74: 27214699.18 | J74: 48852400 | K74: 61785100 | L74: 65760440
A75: =head27a -> References
A76: 1. Municipalities may choose to appropriate for capital expenditure for three years or for one year (if one year appropriation projected expenditure required for yr2 and yr3).
A77: 2. Include capital component of PPP unitary payment. Note that capital transfers are only appropriated to municipalities for the budget year
A78: 3. Capital expenditure by functional classification must reconcile to the appropriations by vote
A79: 4. Must reconcile to supporting table SA20 and to Budgeted Financial Performance (revenue and expenditure)
A81: 6. Include finance leases and PPP capital funding component of unitary payment - total borrowing/repayments to reconcile to changes in Table SA17
A82: 7. Total Capital Funding must balance with Total Capital Expenditure
A83: 8. Include any capitalised interest (MFMA section 46) as part of relevant capital budget
A85: check balance | C85: =IF((C63-C74)=0,0,"Unbalanced") -> Unbalanced | D85: =IF((D63-D74)=0,0,"Unbalanced") -> 0 | E85: 0 | F85: 0 | G85: 0 | H85: 0 | I85: 0 | J85: 0 | K85: 0 | L85: 0

Sheet A5A
A1: =muni&" - "&Approve5 -> LIM353 Molemole - Table A5 Budgeted Capital Expenditure by vote, functional classification and funding
A2: =Vdesc -> Vote Description | B2: =head27 -> Ref | C2: =head1b -> 2018/19 | D2: =head1A -> 2019/20 | E2: =Head1 -> 2020/21 | F2: =Head2 -> Current Year 2021/22 | J2: =Head3 -> 2022/23 Medium Term Revenue & Expenditure Framework | N2: ="Multi-year appropriation for "&Head9& " in the "&Head2A&" Annual Budget" -> Multi-year appropriation for Budget Year 2022/23 in the 2021/22 Annual Budget | R2: ="Multi-year appropriation for "&RIGHT(Head10,7)& " in the "&Head2A&" Annual Budget" -> Multi-year appropriation for 2023/24 in the 2021/22 Annual Budget | V2: New multi-year appropriations (funds for new and existing projects)
A3: R thousand | B3: 1 | C3: =Head5 -> Audited Outcome | D3: =Head5 -> Audited Outcome | E3: =Head5 -> Audited Outcome | F3: =Head6 -> Original Budget | G3: =Head7 -> Adjusted Budget | H3: =Head8 -> Full Year Forecast | I3: =Head5b -> Pre-audit outcome | J3: =Head9 -> Budget Year 2022/23 | K3: =Head10 -> Budget Year +1 2023/24 | L3: =Head11 -> Budget Year +2 2024/25 | N3: ="Appropriation for "&RIGHT(Head9,7) -> Appropriation for 2022/23 | O3: ="Adjustments in "&Head2A -> Adjustments in 2021/22 | P3: ="Downward adjustments for "&RIGHT(Head9,7) -> Downward adjustments for 2022/23 | Q3: Appropriation carried forward | R3: ="Appropriation for "&RIGHT(Head9,7) -> Appropriation for 2022/23 | S3: ="Adjustments in "&Head2A -> Adjustments in 2021/22 | T3: ="Downward adjustments for "&RIGHT(Head9,7) -> Downward adjustments for 2022/23 | U3: Appropriation carried forward | V3: =Head9 -> Budget Year 2022/23 | W3: =Head10 -> Budget Year +1 2023/24 | X3: =Head11 -> Budget Year +2 2024/25
A4: Capital expenditure - Municipal Vote
A5: Multi-year expenditure appropriation | B5: 2
A6: ='Org structure'!A2 -> Vote 01 - Corporate Services | C6: =SUM(C7:C14) -> 2103497.83 | D6: 1344645.21 | E6: 4660939.51 | F6: 4286000 | G6: 4241456 | H6: 4241456 | I6: 1816834.14 | J6: 3000000 | K6: 2300000 | L6: 0 | N6: =SUM(N7:N14) -> 3000000 | O6: 0 | P6: 0 | Q6: 3000000 | R6: 2300000 | S6: 0 | T6: 0 | U6: 2300000 | V6: 0 | W6: 0 | X6: 0
A7: ='Org structure'!E3 -> 01.1 - Corporate Services Admin | C7: 1637651.33 | D7: 320578.69 | E7: 299643.69 | F7: 3800000 | G7: 3605456 | H7: 3605456 | I7: 1588795.18 | J7: =Q7+V7 -> 2200000 | K7: =U7+W7 -> 2300000 | L7: =X7 -> 0 | N7: 2200000 | O7: 0 | P7: 0 | Q7: =SUM(N7:P7) -> 2200000 | R7: 2300000 | S7: 0 | T7: 0 | U7: =SUM(R7:T7) -> 2300000 | V7: 0 | W7: 0 | X7: 0
A8: ='Org structure'!E4 -> 01.2 - Human Resources | C8: 45950 | D8: 28720 | E8: 0 | F8: 50000 | G8: 0 | H8: 0 | I8: 29950 | J8: 0 | K8: 0 | L8: 0 | N8: 0 | O8: 0 | P8: 0 | Q8: 0 | R8: 0 | S8: 0 | T8: 0 | U8: 0 | V8: 0 | W8: 0 | X8: 0
A9: ='Org structure'!E5 -> 01.3 - Information Technology Services | C9: 419896.5 | D9: 995346.52 | E9: 4361295.82 | F9: 436000 | G9: 636000 | H9: 636000 | I9: 198088.96 | J9: 800000 | K9: 0 | L9: 0 | N9: 800000 | O9: 0 | P9: 0 | Q9: 800000 | R9: 0 | S9: 0 | T9: 0 | U9: 0 | V9: 0 | W9: 0 | X9: 0
A10: ='Org structure'!E6 -> 01.4 - Council Support | C10: 0 | D10: 0 | E10: 0 | F10: 0 | G10: 0 | H10: 0 | I10: 0 | J10: 0 | K10: 0 | L10: 0 | N10: 0 | O10: 0 | P10: 0 | Q10: 0 | R10: 0 | S10: 0 | T10: 0 | U10: 0 | V10: 0 | W10: 0 | X10: 0
A11: ='Org structure'!E7 -> 01.5 - Local Economic Development | C11: 0 | D11: 0 | E11: 0 | F11: 0 | G11: 0 | H11: 0 | I11: 0 | J11: 0 | K11: 0 | L11: 0 | N11: 0 | O11: 0 | P11: 0 | Q11: 0 | R11: 0 | S11: 0 | T11: 0 | U11: 0 | V11: 0 | W11: 0 | X11: 0
A12: ='Org structure'!E8 -> 01.6 - Municipal Planning Idp | C12: 0 | D12: 0 | E12: 0 | F12: 0 | G12: 0 | H12: 0 | I12: 0 | J12: 0 | K12: 0 | L12: 0 | N12: 0 | O12: 0 | P12: 0 | Q12: 0 | R12: 0 | S12: 0 | T12: 0 | U12: 0 | V12: 0 | W12: 0 | X12: 0
A13: ='Org structure'!E9 -> 01.7 - Town & Regional Planning | C13: 0 | D13: 0 | E13: 0 | F13: 0 | G13: 0 | H13: 0 | I13: 0 | J13: 0 | K13: 0 | L13: 0 | N13: 0 | O13: 0 | P13: 0 | Q13: 0 | R13: 0 | S13: 0 | T13: 0 | U13: 0 | V13: 0 | W13: 0 | X13: 0
A14: ='Org structure'!E10 -> 01.8 - Led Administration | C14: 0 | D14: 0 | E14: 0 | F14: 0 | G14: 0 | H14: 0 | I14: 0 | J14: 0 | K14: 0 | L14: 0 | N14: 0 | O14: 0 | P14: 0 | Q14: 0 | R14: 0 | S14: 0 | T14: 0 | U14: 0 | V14: 0 | W14: 0 | X14: 0
A15: ='Org structure'!A3 -> Vote 02 - Municipal Manager | C15: =SUM(C16:C20) -> 1024742.38 | D15: 111398 | E15: 136993.77 | F15: 100000 | G15: 90000 | H15: 90000 | I15: 65640 | J15: 0 | K15: 0 | L15: 0 | N15: =SUM(N16:N20) -> 0 | O15: 0 | P15: 0 | Q15: 0 | R15: 0 | S15: 0 | T15: 0 | U15: 0 | V15: 0 | W15: 0 | X15: 0
A16: ='Org structure'!E12 -> 02.1 - Municipal Manager Admin | C16: 0 | D16: 0 | E16: 0 | F16: 0 | G16: 0 | H16: 0 | I16: 0 | J16: =Q16+V16 -> 0 | K16: =U16+W16 -> 0 | L16: =X16 -> 0 | N16: 0 | O16: 0 | P16: 0 | Q16: =SUM(N16:P16) -> 0 | R16: 0 | S16: 0 | T16: 0 | U16: =SUM(R16:T16) -> 0 | V16: 0 | W16: 0 | X16: 0
A17: ='Org structure'!E13 -> 02.2 - Legal Services | C17: 0 | D17: 0 | E17: 0 | F17: 0 | G17: 0 | H17: 0 | I17: 0 | J17: =Q17+V17 -> 0 | K17: =U17+W17 -> 0 | L17: =X17 -> 0 | N17: 0 | O17: 0 | P17: 0 | Q17: =SUM(N17:P17) -> 0 | R17: 0 | S17: 0 | T17: 0 | U17: =SUM(R17:T17) -> 0 | V17: 0 | W17: 0 | X17: 0
A18: ='Org structure'!E14 -> 02.3 - Political Office Beares | C18: 136108.7 | D18: 111398 | E18: 136993.77 | F18: 100000 | G18: 90000 | H18: 90000 | I18: 65640 | J18: =Q18+V18 -> 0 | K18: =U18+W18 -> 0 | L18: =X18 -> 0 | N18: 0 | O18: 0 | P18: 0 | Q18: =SUM(N18:P18) -> 0 | R18: 0 | S18: 0 | T18: 0 | U18: =SUM(R18:T18) -> 0 | V18: 0 | W18: 0 | X18: 0
A19: ='Org structure'!E15 -> 02.4 - Pms | C19: 888633.68 | D19: 0 | E19: 0 | F19: 0 | G19: 0 | H19: 0 | I19: 0 | J19: =Q19+V19 -> 0 | K19: =U19+W19 -> 0 | L19: =X19 -> 0 | N19: 0 | O19: 0 | P19: 0 | Q19: =SUM(N19:P19) -> 0 | R19: 0 | S19: 0 | T19: 0 | U19: =SUM(R19:T19) -> 0 | V19: 0 | W19: 0 | X19: 0
A20: ='Org structure'!E16 -> 02.5 - Internal Audit | C20: 0 | D20: 0 | E20: 0 | F20: 0 | G20: 0 | H20: 0 | I20: 0 | J20: =Q20+V20 -> 0 | K20: =U20+W20 -> 0 | L20: =X20 -> 0 | N20: 0 | O20: 0 | P20: 0 | Q20: =SUM(N20:P20) -> 0 | R20: 0 | S20: 0 | T20: 0 | U20: =SUM(R20:T20) -> 0 | V20: 0 | W20: 0 | X20: 0
A21: ='Org structure'!A4 -> Vote 03 - Mayors Office | C21: =SUM(C22:C26) -> 0 | D21: 0 | E21: 0 | F21: 0 | G21: 0 | H21: 0 | I21: 0 | J21: 0 | K21: 0 | L21: 0 | N21: =SUM(N22:N26) -> 0 | O21: 0 | P21: 0 | Q21: 0 | R21: 0 | S21: 0 | T21: 0 | U21: 0 | V21: 0 | W21: 0 | X21: 0
A22: ='Org structure'!E18 -> 03.1 - Mayors Office Admin | C22: 0 | D22: 0 | E22: 0 | F22: 0 | G22: 0 | H22: 0 | I22: 0 | J22: =Q22+V22 -> 0 | K22: =U22+W22 -> 0 | L22: =X22 -> 0 | N22: 0 | O22: 0 | P22: 0 | Q22: =SUM(N22:P22) -> 0 | R22: 0 | S22: 0 | T22: 0 | U22: =SUM(R22:T22) -> 0 | V22: 0 | W22: 0 | X22: 0
A23: ='Org structure'!E19 -> 03.2 - Office Of The Speaker | C23: 0 | D23: 0 | E23: 0 | F23: 0 | G23: 0 | H23: 0 | I23: 0 | J23: =Q23+V23 -> 0 | K23: =U23+W23 -> 0 | L23: =X23 -> 0 | N23: 0 | O23: 0 | P23: 0 | Q23: =SUM(N23:P23) -> 0 | R23: 0 | S23: 0 | T23: 0 | U23: =SUM(R23:T23) -> 0 | V23: 0 | W23: 0 | X23: 0
A24: ='Org structure'!E20 -> 03.3 - Office Of The Chief Whip | C24: 0 | D24: 0 | E24: 0 | F24: 0 | G24: 0 | H24: 0 | I24: 0 | J24: =Q24+V24 -> 0 | K24: =U24+W24 -> 0 | L24: =X24 -> 0 | N24: 0 | O24: 0 | P24: 0 | Q24: =SUM(N24:P24) -> 0 | R24: 0 | S24: 0 | T24: 0 | U24: =SUM(R24:T24) -> 0 | V24: 0 | W24: 0 | X24: 0
A25: ='Org structure'!E21 -> 03.4 - Exco Members | C25: 0 | D25: 0 | E25: 0 | F25: 0 | G25: 0 | H25: 0 | I25: 0 | J25: =Q25+V25 -> 0 | K25: =U25+W25 -> 0 | L25: =X25 -> 0 | N25: 0 | O25: 0 | P25: 0 | Q25: =SUM(N25:P25) -> 0 | R25: 0 | S25: 0 | T25: 0 | U25: =SUM(R25:T25) -> 0 | V25: 0 | W25: 0 | X25: 0
A26: ='Org structure'!E22 -> 03.5 - Council General Administration | C26: 0 | D26: 0 | E26: 0 | F26: 0 | G26: 0 | H26: 0 | I26: 0 | J26: =Q26+V26 -> 0 | K26: =U26+W26 -> 0 | L26: =X26 -> 0 | N26: 0 | O26: 0 | P26: 0 | Q26: =SUM(N26:P26) -> 0 | R26: 0 | S26: 0 | T26: 0 | U26: =SUM(R26:T26) -> 0 | V26: 0 | W26: 0 | X26: 0
A27: ='Org structure'!A5 -> Vote 04 - Budget And Treasury | C27: =SUM(C28:C34) -> 346521.74 | D27: 58650 | E27: 0 | F27: 300000 | G27: 300000 | H27: 300000 | I27: 0 | J27: 500000 | K27: 0 | L27: 0 | N27: =SUM(N28:N34) -> 500000 | O27: 0 | P27: 0 | Q27: 500000 | R27: 0 | S27: 0 | T27: 0 | U27: 0 | V27: 0 | W27: 0 | X27: 0
A28: ='Org structure'!E24 -> 04.1 - Budget And Treasury Admin | C28: 0 | D28: 0 | E28: 0 | F28: 0 | G28: 0 | H28: 0 | I28: 0 | J28: =Q28+V28 -> 0 | K28: =U28+W28 -> 0 | L28: =X28 -> 0 | N28: 0 | O28: 0 | P28: 0 | Q28: =SUM(N28:P28) -> 0 | R28: 0 | S28: 0 | T28: 0 | U28: =SUM(R28:T28) -> 0 | V28: 0 | W28: 0 | X28: 0
A29: ='Org structure'!E25 -> 04.2 - Chief Financial Officer Admin | C29: 0 | D29: 0 | E29: 0 | F29: 0 | G29: 0 | H29: 0 | I29: 0 | J29: 0 | K29: 0 | L29: 0 | N29: 0 | O29: 0 | P29: 0 | Q29: 0 | R29: 0 | S29: 0 | T29: 0 | U29: 0 | V29: 0 | W29: 0 | X29: 0
A30: ='Org structure'!E26 -> 04.3 - Budget & Reporting | C30: 0 | D30: 0 | E30: 0 | F30: 0 | G30: 0 | H30: 0 | I30: 0 | J30: 0 | K30: 0 | L30: 0 | N30: 0 | O30: 0 | P30: 0 | Q30: 0 | R30: 0 | S30: 0 | T30: 0 | U30: 0 | V30: 0 | W30: 0 | X30: 0
A31: ='Org structure'!E27 -> 04.4 - Budget & Reporting | C31: 0 | D31: 0 | E31: 0 | F31: 0 | G31: 0 | H31: 0 | I31: 0 | J31: 0 | K31: 0 | L31: 0 | N31: 0 | O31: 0 | P31: 0 | Q31: 0 | R31: 0 | S31: 0 | T31: 0 | U31: 0 | V31: 0 | W31: 0 | X31: 0
A32: ='Org structure'!E28 -> 04.5 - Revenue Management | C32: 346521.74 | D32: 58650 | E32: 0 | F32: 300000 | G32: 300000 | H32: 300000 | I32: 0 | J32: 500000 | K32: 0 | L32: 0 | N32: 500000 | O32: 0 | P32: 0 | Q32: 500000 | R32: 0 | S32: 0 | T32: 0 | U32: 0 | V32: 0 | W32: 0 | X32: 0
A33: ='Org structure'!E29 -> 04.6 - Supply Chain Management | C33: 0 | D33: 0 | E33: 0 | F33: 0 | G33: 0 | H33: 0 | I33: 0 | J33: 0 | K33: 0 | L33: 0 | N33: 0 | O33: 0 | P33: 0 | Q33: 0 | R33: 0 | S33: 0 | T33: 0 | U33: 0 | V33: 0 | W33: 0 | X33: 0
A34: ='Org structure'!E30 -> 04.7 - Expenditure | C34: 0 | D34: 0 | E34: 0 | F34: 0 | G34: 0 | H34: 0 | I34: 0 | J34: 0 | K34: 0 | L34: 0 | N34: 0 | O34: 0 | P34: 0 | Q34: 0 | R34: 0 | S34: 0 | T34: 0 | U34: 0 | V34: 0 | W34: 0 | X34: 0
A35: ='Org structure'!A6 -> Vote 05 - Community Services | C35: =SUM(C36:C42) -> 6628277.06 | D35: 714276 | E35: 1156205.28 | F35: 1010000 | G35: 1010000 | H35: 1010000 | I35: 600000 | J35: 0 | K35: 0 | L35: 0 | N35: =SUM(N36:N42) -> 0 | O35: 0 | P35: 0 | Q35: 0 | R35: 0 | S35: 0 | T35: 0 | U35: 0 | V35: 0 | W35: 0 | X35: 0
A36: ='Org structure'!E32 -> 05.1 - Community Services Admin | C36: 29400 | D36: 0 | E36: 1156205.28 | F36: 0 | G36: 0 | H36: 0 | I36: 0 | J36: =Q36+V36 -> 0 | K36: =U36+W36 -> 0 | L36: =X36 -> 0 | N36: 0 | O36: 0 | P36: 0 | Q36: =SUM(N36:P36) -> 0 | R36: 0 | S36: 0 | T36: 0 | U36: =SUM(R36:T36) -> 0 | V36: 0 | W36: 0 | X36: 0
A37: ='Org structure'!E33 -> 05.2 - Libraries | C37: 0 | D37: 0 | E37: 0 | F37: 0 | G37: 0 | H37: 0 | I37: 0 | J37: 0 | K37: 0 | L37: 0 | N37: 0 | O37: 0 | P37: 0 | Q37: 0 | R37: 0 | S37: 0 | T37: 0 | U37: 0 | V37: 0 | W37: 0 | X37: 0
A38: ='Org structure'!E34 -> 05.3 - Sports Recreation & Social Amenitie | C38: 6142854.28 | D38: 714276 | E38: 0 | F38: 700000 | G38: 700000 | H38: 700000 | I38: 600000 | J38: 0 | K38: 0 | L38: 0 | N38: 0 | O38: 0 | P38: 0 | Q38: 0 | R38: 0 | S38: 0 | T38: 0 | U38: 0 | V38: 0 | W38: 0 | X38: 0
A39: ='Org structure'!E35 -> 05.4 - Traffic Service | C39: 12013.03 | D39: 0 | E39: 0 | F39: 0 | G39: 0 | H39: 0 | I39: 0 | J39: 0 | K39: 0 | L39: 0 | N39: 0 | O39: 0 | P39: 0 | Q39: 0 | R39: 0 | S39: 0 | T39: 0 | U39: 0 | V39: 0 | W39: 0 | X39: 0
A40: ='Org structure'!E36 -> 05.5 - Traffic Service | C40: 0 | D40: 0 | E40: 0 | F40: 310000 | G40: 310000 | H40: 310000 | I40: 0 | J40: 0 | K40: 0 | L40: 0 | N40: 0 | O40: 0 | P40: 0 | Q40: 0 | R40: 0 | S40: 0 | T40: 0 | U40: 0 | V40: 0 | W40: 0 | X40: 0
A41: ='Org structure'!E37 -> 05.6 - Parks; Cemeteries | C41: 444009.75 | D41: 0 | E41: 0 | F41: 0 | G41: 0 | H41: 0 | I41: 0 | J41: 0 | K41: 0 | L41: 0 | N41: 0 | O41: 0 | P41: 0 | Q41: 0 | R41: 0 | S41: 0 | T41: 0 | U41: 0 | V41: 0 | W41: 0 | X41: 0
A42: ='Org structure'!E38 -> 05.7 - Refuse | C42: 0 | D42: 0 | E42: 0 | F42: 0 | G42: 0 | H42: 0 | I42: 0 | J42: 0 | K42: 0 | L42: 0 | N42: 0 | O42: 0 | P42: 0 | Q42: 0 | R42: 0 | S42: 0 | T42: 0 | U42: 0 | V42: 0 | W42: 0 | X42: 0
A43: ='Org structure'!A7 -> Vote 06 - Technical Services | C43: =SUM(C44:C51) -> 35579318.97 | D43: 36055534.08 | E43: 44102368.51 | F43: 59697793 | G43: 59047351 | H43: 59047351 | I43: 24732225.04 | J43: 45352400 | K43: 59485100 | L43: 65760440 | N43: =SUM(N44:N51) -> 45352400 | O43: 0 | P43: 0 | Q43: 45352400 | R43: 59485100 | S43: 0 | T43: 0 | U43: 59485100 | V43: 0 | W43: 0 | X43: 65760440
A44: ='Org structure'!E40 -> 06.1 - Mpac | C44: 0 | D44: 0 | E44: 0 | F44: 0 | G44: 0 | H44: 0 | I44: 0 | J44: =Q44+V44 -> 0 | K44: =U44+W44 -> 0 | L44: =X44 -> 0 | N44: 0 | O44: 0 | P44: 0 | Q44: =SUM(N44:P44) -> 0 | R44: 0 | S44: 0 | T44: 0 | U44: =SUM(R44:T44) -> 0 | V44: 0 | W44: 0 | X44: 0
A45: ='Org structure'!E41 -> 06.2 - Technical Services Admin | C45: 0 | D45: 0 | E45: 0 | F45: 0 | G45: 0 | H45: 0 | I45: 0 | J45: 0 | K45: 0 | L45: 0 | N45: 0 | O45: 0 | P45: 0 | Q45: 0 | R45: 0 | S45: 0 | T45: 0 | U45: 0 | V45: 0 | W45: 0 | X45: 0
A46: ='Org structure'!E42 -> 06.3 - Techn Serv-Roads: Admin | C46: 0 | D46: 0 | E46: 0 | F46: 0 | G46: 0 | H46: 0 | I46: 0 | J46: 0 | K46: 0 | L46: 0 | N46: 0 | O46: 0 | P46: 0 | Q46: 0 | R46: 0 | S46: 0 | T46: 0 | U46: 0 | V46: 0 | W46: 0 | X46: 0
A47: ='Org structure'!E43 -> 06.4 - Techn Serv-Stormwater: Admin | C47: 34264180.05 | D47: 32725678.08 | E47: 32308940.09 | F47: 43910000 | G47: 44172704 | H47: 44172704 | I47: 19945050.36 | J47: 40802400 | K47: 43885100 | L47: 51860440 | N47: 40802400 | O47: 0 | P47: 0 | Q47: 40802400 | R47: 43885100 | S47: 0 | T47: 0 | U47: 43885100 | V47: 0 | W47: 0 | X47: 51860440
A48: ='Org structure'!E44 -> 06.5 - Project Management Unit | C48: 0 | D48: 0 | E48: 0 | F48: 287793 | G48: 192500 | H48: 192500 | I48: 192500 | J48: 0 | K48: 0 | L48: 0 | N48: 0 | O48: 0 | P48: 0 | Q48: 0 | R48: 0 | S48: 0 | T48: 0 | U48: 0 | V48: 0 | W48: 0 | X48: 0
A49: ='Org structure'!E45 -> 06.6 - Electrical & Machinery | C49: 1315138.92 | D49: 3329856 | E49: 11793428.42 | F49: 15500000 | G49: 14682147 | H49: 14682147 | I49: 4594674.68 | J49: 4550000 | K49: 15600000 | L49: 13900000 | N49: 4550000 | O49: 0 | P49: 0 | Q49: 4550000 | R49: 15600000 | S49: 0 | T49: 0 | U49: 15600000 | V49: 0 | W49: 0 | X49: 13900000
A50: ='Org structure'!E46 -> 06.7 - Water | C50: 0 | D50: 0 | E50: 0 | F50: 0 | G50: 0 | H50: 0 | I50: 0 | J50: 0 | K50: 0 | L50: 0 | N50: 0 | O50: 0 | P50: 0 | Q50: 0 | R50: 0 | S50: 0 | T50: 0 | U50: 0 | V50: 0 | W50: 0 | X50: 0
A51: ='Org structure'!E47 -> 06.8 - Sanitation | C51: 0 | D51: 0 | E51: 0 | F51: 0 | G51: 0 | H51: 0 | I51: 0 | J51: 0 | K51: 0 | L51: 0 | N51: 0 | O51: 0 | P51: 0 | Q51: 0 | R51: 0 | S51: 0 | T51: 0 | U51: 0 | V51: 0 | W51: 0 | X51: 0
A52: ='Org structure'!A8 -> Vote 07 - | C52: 0 | D52: 0 | E52: 0 | F52: 0 | G52: 0 | H52: 0 | I52: 0 | J52: 0 | K52: 0 | L52: 0 | N52: 0 | O52: 0 | P52: 0 | Q52: 0 | R52: 0 | S52: 0 | T52: 0 | U52: 0 | V52: 0 | W52: 0
A53: ='Org structure'!A9 -> Vote 08 - | C53: 0 | D53: 0 | E53: 0 | F53: 0 | G53: 0 | H53: 0 | I53: 0 | J53: 0 | K53: 0 | L53: 0 | N53: 0 | O53: 0 | P53: 0 | Q53: 0 | R53: 0 | S53: 0 | T53: 0 | U53: 0 | V53: 0 | W53: 0
A54: ='Org structure'!A10 -> Vote 09 - | C54: 0 | D54: 0 | E54: 0 | F54: 0 | G54: 0 | H54: 0 | I54: 0 | J54: 0 | K54: 0 | L54: 0 | N54: 0 | O54: 0 | P54: 0 | Q54: 0 | R54: 0 | S54: 0 | T54: 0 | U54: 0 | V54: 0 | W54: 0
A55: ='Org structure'!A11 -> Vote 10 - | C55: 0 | D55: 0 | E55: 0 | F55: 0 | G55: 0 | H55: 0 | I55: 0 | J55: 0 | K55: 0 | L55: 0 | N55: 0 | O55: 0 | P55: 0 | Q55: 0 | R55: 0 | S55: 0 | T55: 0 | U55: 0 | V55: 0 | W55: 0
A56: ='Org structure'!A12 -> Vote 11 - | C56: 0 | D56: 0 | E56: 0 | F56: 0 | G56: 0 | H56: 0 | I56: 0 | J56: 0 | K56: 0 | L56: 0 | N56: 0 | O56: 0 | P56: 0 | Q56: 0 | R56: 0 | S56: 0 | T56: 0 | U56: 0 | V56: 0 | W56: 0
A57: ='Org structure'!A13 -> Vote 12 - | C57: 0 | D57: 0 | E57: 0 | F57: 0 | G57: 0 | H57: 0 | I57: 0 | J57: 0 | K57: 0 | L57: 0 | N57: 0 | O57: 0 | P57: 0 | Q57: 0 | R57: 0 | S57: 0 | T57: 0 | U57: 0 | V57: 0 | W57: 0
A58: ='Org structure'!A14 -> Vote 13 - | C58: 0 | D58: 0 | E58: 0 | F58: 0 | G58: 0 | H58: 0 | I58: 0 | J58: 0 | K58: 0 | L58: 0 | N58: 0 | O58: 0 | P58: 0 | Q58: 0 | R58: 0 | S58: 0 | T58: 0 | U58: 0 | V58: 0 | W58: 0
A59: ='Org structure'!A15 -> Vote 14 - | C59: 0 | D59: 0 | E59: 0 | F59: 0 | G59: 0 | H59: 0 | I59: 0 | J59: 0 | K59: 0 | L59: 0 | N59: 0 | O59: 0 | P59: 0 | Q59: 0 | R59: 0 | S59: 0 | T59: 0 | U59: 0 | V59: 0 | W59: 0
A60: ='Org structure'!A16 -> Vote 15 - Other | C60: 0 | D60: 0 | E60: 0 | F60: 0 | G60: 0 | H60: 0 | I60: 0 | J60: 0 | K60: 0 | L60: 0 | N60: 0 | O60: 0 | P60: 0 | Q60: 0 | R60: 0 | S60: 0 | T60: 0 | U60: 0 | V60: 0 | W60: 0
A61: Capital multi-year expenditure sub-total | C61: =C6+C15+C21+C27+C35+C43+C52+C53+C54+C55+C56+C57+C58+C59+C60 -> 45682357.98 | D61: 38284503.29 | E61: 50056507.07 | F61: 65393793 | G61: 64688807 | H61: 64688807 | I61: 27214699.18 | J61: 48852400 | K61: 61785100 | L61: 65760440 | N61: =N6+N15+N21+N27+N35+N43+N52+N53+N54+N55+N56+N57+N58+N59+N60 -> 48852400 | O61: 0 | P61: 0 | Q61: 48852400 | R61: 61785100 | S61: 0 | T61: 0 | U61: 61785100 | V61: 0 | W61: 0
A63: Capital expenditure - Municipal Vote
A64: Single-year expenditure appropriation | B64: 2
A65: ='Org structure'!A2 -> Vote 01 - Corporate Services | C65: =SUM(C66:C73) -> 0 | D65: 0 | E65: 0 | F65: 0 | G65: 0 | H65: 0 | I65: 0 | J65: 0 | K65: 0 | L65: 0
A66: ='Org structure'!E3 -> 01.1 - Corporate Services Admin | C66: 0 | D66: 0 | E66: 0 | F66: 0 | G66: 0 | H66: 0 | I66: 0 | J66: 0 | K66: 0 | L66: 0
A67: ='Org structure'!E4 -> 01.2 - Human Resources | C67: 0 | D67: 0 | E67: 0 | F67: 0 | G67: 0 | H67: 0 | I67: 0 | J67: 0 | K67: 0 | L67: 0
A68: ='Org structure'!E5 -> 01.3 - Information Technology Services | C68: 0 | D68: 0 | E68: 0 | F68: 0 | G68: 0 | H68: 0 | I68: 0 | J68: 0 | K68: 0 | L68: 0
A69: ='Org structure'!E6 -> 01.4 - Council Support | C69: 0 | D69: 0 | E69: 0 | F69: 0 | G69: 0 | H69: 0 | I69: 0 | J69: 0 | K69: 0 | L69: 0
A70: ='Org structure'!E7 -> 01.5 - Local Economic Development | C70: 0 | D70: 0 | E70: 0 | F70: 0 | G70: 0 | H70: 0 | I70: 0 | J70: 0 | K70: 0 | L70: 0
A71: ='Org structure'!E8 -> 01.6 - Municipal Planning Idp | C71: 0 | D71: 0 | E71: 0 | F71: 0 | G71: 0 | H71: 0 | I71: 0 | J71: 0 | K71: 0 | L71: 0
A72: ='Org structure'!E9 -> 01.7 - Town & Regional Planning | C72: 0 | D72: 0 | E72: 0 | F72: 0 | G72: 0 | H72: 0 | I72: 0 | J72: 0 | K72: 0 | L72: 0
A73: ='Org structure'!E10 -> 01.8 - Led Administration | C73: 0 | D73: 0 | E73: 0 | F73: 0 | G73: 0 | H73: 0 | I73: 0 | J73: 0 | K73: 0 | L73: 0
A74: ='Org structure'!A3 -> Vote 02 - Municipal Manager | C74: =SUM(C75:C79) -> 0 | D74: 0 | E74: 0 | F74: 0 | G74: 0 | H74: 0 | I74: 0 | J74: 0 | K74: 0 | L74: 0
A75: ='Org structure'!E12 -> 02.1 - Municipal Manager Admin | C75: 0 | D75: 0 | E75: 0 | F75: 0 | G75: 0 | H75: 0 | I75: 0 | J75: 0 | K75: 0 | L75: 0
A76: ='Org structure'!E13 -> 02.2 - Legal Services | C76: 0 | D76: 0 | E76: 0 | F76: 0 | G76: 0 | H76: 0 | I76: 0 | J76: 0 | K76: 0 | L76: 0
A77: ='Org structure'!E14 -> 02.3 - Political Office Beares | C77: 0 | D77: 0 | E77: 0 | F77: 0 | G77: 0 | H77: 0 | I77: 0 | J77: 0 | K77: 0 | L77: 0
A78: ='Org structure'!E15 -> 02.4 - Pms | C78: 0 | D78: 0 | E78: 0 | F78: 0 | G78: 0 | H78: 0 | I78: 0 | J78: 0 | K78: 0 | L78: 0
A79: ='Org structure'!E16 -> 02.5 - Internal Audit | C79: 0 | D79: 0 | E79: 0 | F79: 0 | G79: 0 | H79: 0 | I79: 0 | J79: 0 | K79: 0 | L79: 0
A80: ='Org structure'!A4 -> Vote 03 - Mayors Office | C80: =SUM(C81:C85) -> 0 | D80: 0 | E80: 0 | F80: 0 | G80: 0 | H80: 0 | I80: 0 | J80: 0 | K80: 0 | L80: 0
A81: ='Org structure'!E18 -> 03.1 - Mayors Office Admin | C81: 0 | D81: 0 | E81: 0 | F81: 0 | G81: 0 | H81: 0 | I81: 0 | J81: 0 | K81: 0 | L81: 0
A82: ='Org structure'!E19 -> 03.2 - Office Of The Speaker | C82: 0 | D82: 0 | E82: 0 | F82: 0 | G82: 0 | H82: 0 | I82: 0 | J82: 0 | K82: 0 | L82: 0
A83: ='Org structure'!E20 -> 03.3 - Office Of The Chief Whip | C83: 0 | D83: 0 | E83: 0 | F83: 0 | G83: 0 | H83: 0 | I83: 0 | J83: 0 | K83: 0 | L83: 0
A84: ='Org structure'!E21 -> 03.4 - Exco Members | C84: 0 | D84: 0 | E84: 0 | F84: 0 | G84: 0 | H84: 0 | I84: 0 | J84: 0 | K84: 0 | L84: 0
A85: ='Org structure'!E22 -> 03.5 - Council General Administration | C85: 0 | D85: 0 | E85: 0 | F85: 0 | G85: 0 | H85: 0 | I85: 0 | J85: 0 | K85: 0 | L85: 0
A86: ='Org structure'!A5 -> Vote 04 - Budget And Treasury | C86: =SUM(C87:C93) -> 0 | D86: 0 | E86: 0 | F86: 0 | G86: 0 | H86: 0 | I86: 0 | J86: 0 | K86: 0 | L86: 0
A87: ='Org structure'!E24 -> 04.1 - Budget And Treasury Admin | C87: 0 | D87: 0 | E87: 0 | F87: 0 | G87: 0 | H87: 0 | I87: 0 | J87: 0 | K87: 0 | L87: 0
A88: ='Org structure'!E25 -> 04.2 - Chief Financial Officer Admin | C88: 0 | D88: 0 | E88: 0 | F88: 0 | G88: 0 | H88: 0 | I88: 0 | J88: 0 | K88: 0 | L88: 0
A89: ='Org structure'!E26 -> 04.3 - Budget & Reporting | C89: 0 | D89: 0 | E89: 0 | F89: 0 | G89: 0 | H89: 0 | I89: 0 | J89: 0 | K89: 0 | L89: 0
A90: ='Org structure'!E27 -> 04.4 - Budget & Reporting | C90: 0 | D90: 0 | E90: 0 | F90: 0 | G90: 0 | H90: 0 | I90: 0 | J90: 0 | K90: 0 | L90: 0
A91: ='Org structure'!E28 -> 04.5 - Revenue Management | C91: 0 | D91: 0 | E91: 0 | F91: 0 | G91: 0 | H91: 0 | I91: 0 | J91: 0 | K91: 0 | L91: 0
A92: ='Org structure'!E29 -> 04.6 - Supply Chain Management | C92: 0 | D92: 0 | E92: 0 | F92: 0 | G92: 0 | H92: 0 | I92: 0 | J92: 0 | K92: 0 | L92: 0
A93: ='Org structure'!E30 -> 04.7 - Expenditure | C93: 0 | D93: 0 | E93: 0 | F93: 0 | G93: 0 | H93: 0 | I93: 0 | J93: 0 | K93: 0 | L93: 0
A94: ='Org structure'!A6 -> Vote 05 - Community Services | C94: =SUM(C95:C101) -> 0 | D94: 0 | E94: 0 | F94: 0 | G94: 0 | H94: 0 | I94: 0 | J94: 0 | K94: 0 | L94: 0
A95: ='Org structure'!E32 -> 05.1 - Community Services Admin | C95: 0 | D95: 0 | E95: 0 | F95: 0 | G95: 0 | H95: 0 | I95: 0 | J95: 0 | K95: 0 | L95: 0
A96: ='Org structure'!E33 -> 05.2 - Libraries | C96: 0 | D96: 0 | E96: 0 | F96: 0 | G96: 0 | H96: 0 | I96: 0 | J96: 0 | K96: 0 | L96: 0
A97: ='Org structure'!E34 -> 05.3 - Sports Recreation & Social Amenitie | C97: 0 | D97: 0 | E97: 0 | F97: 0 | G97: 0 | H97: 0 | I97: 0 | J97: 0 | K97: 0 | L97: 0
A98: ='Org structure'!E35 -> 05.4 - Traffic Service | C98: 0 | D98: 0 | E98: 0 | F98: 0 | G98: 0 | H98: 0 | I98: 0 | J98: 0 | K98: 0 | L98: 0
A99: ='Org structure'!E36 -> 05.5 - Traffic Service | C99: 0 | D99: 0 | E99: 0 | F99: 0 | G99: 0 | H99: 0 | I99: 0 | J99: 0 | K99: 0 | L99: 0
A100: ='Org structure'!E37 -> 05.6 - Parks; Cemeteries | C100: 0 | D100: 0 | E100: 0 | F100: 0 | G100: 0 | H100: 0 | I100: 0 | J100: 0 | K100: 0 | L100: 0
A101: ='Org structure'!E38 -> 05.7 - Refuse | C101: 0 | D101: 0 | E101: 0 | F101: 0 | G101: 0 | H101: 0 | I101: 0 | J101: 0 | K101: 0 | L101: 0
A102: ='Org structure'!A7 -> Vote 06 - Technical Services | C102: =SUM(C103:C110) -> 0 | D102: 0 | E102: 0 | F102: 0 | G102: 0 | H102: 0 | I102: 0 | J102: 0 | K102: 0 | L102: 0
A103: ='Org structure'!E40 -> 06.1 - Mpac | C103: 0 | D103: 0 | E103: 0 | F103: 0 | G103: 0 | H103: 0 | I103: 0 | J103: 0 | K103: 0 | L103: 0
A104: ='Org structure'!E41 -> 06.2 - Technical Services Admin | C104: 0 | D104: 0 | E104: 0 | F104: 0 | G104: 0 | H104: 0 | I104: 0 | J104: 0 | K104: 0 | L104: 0
A105: ='Org structure'!E42 -> 06.3 - Techn Serv-Roads: Admin | C105: 0 | D105: 0 | E105: 0 | F105: 0 | G105: 0 | H105: 0 | I105: 0 | J105: 0 | K105: 0 | L105: 0
A106: ='Org structure'!E43 -> 06.4 - Techn Serv-Stormwater: Admin | C106: 0 | D106: 0 | E106: 0 | F106: 0 | G106: 0 | H106: 0 | I106: 0 | J106: 0 | K106: 0 | L106: 0
A107: ='Org structure'!E44 -> 06.5 - Project Management Unit | C107: 0 | D107: 0 | E107: 0 | F107: 0 | G107: 0 | H107: 0 | I107: 0 | J107: 0 | K107: 0 | L107: 0
A108: ='Org structure'!E45 -> 06.6 - Electrical & Machinery | C108: 0 | D108: 0 | E108: 0 | F108: 0 | G108: 0 | H108: 0 | I108: 0 | J108: 0 | K108: 0 | L108: 0
A109: ='Org structure'!E46 -> 06.7 - Water | C109: 0 | D109: 0 | E109: 0 | F109: 0 | G109: 0 | H109: 0 | I109: 0 | J109: 0 | K109: 0 | L109: 0
A110: ='Org structure'!E47 -> 06.8 - Sanitation | C110: 0 | D110: 0 | E110: 0 | F110: 0 | G110: 0 | H110: 0 | I110: 0 | J110: 0 | K110: 0 | L110: 0
A111: ='Org structure'!A8 -> Vote 07 - | C111: 0 | D111: 0 | E111: 0 | F111: 0 | G111: 0 | H111: 0 | I111: 0 | J111: 0 | K111: 0 | L111: 0
A112: ='Org structure'!A9 -> Vote 08 - | C112: 0 | D112: 0 | E112: 0 | F112: 0 | G112: 0 | H112: 0 | I112: 0 | J112: 0 | K112: 0 | L112: 0
A113: ='Org structure'!A10 -> Vote 09 - | C113: 0 | D113: 0 | E113: 0 | F113: 0 | G113: 0 | H113: 0 | I113: 0 | J113: 0 | K113: 0 | L113: 0
A114: ='Org structure'!A11 -> Vote 10 - | C114: 0 | D114: 0 | E114: 0 | F114: 0 | G114: 0 | H114: 0 | I114: 0 | J114: 0 | K114: 0 | L114: 0
A115: ='Org structure'!A12 -> Vote 11 - | C115: 0 | D115: 0 | E115: 0 | F115: 0 | G115: 0 | H115: 0 | I115: 0 | J115: 0 | K115: 0 | L115: 0
A116: ='Org structure'!A13 -> Vote 12 - | C116: 0 | D116: 0 | E116: 0 | F116: 0 | G116: 0 | H116: 0 | I116: 0 | J116: 0 | K116: 0 | L116: 0
A117: ='Org structure'!A14 -> Vote 13 - | C117: 0 | D117: 0 | E117: 0 | F117: 0 | G117: 0 | H117: 0 | I117: 0 | J117: 0 | K117: 0 | L117: 0
A118: ='Org structure'!A15 -> Vote 14 - | C118: 0 | D118: 0 | E118: 0 | F118: 0 | G118: 0 | H118: 0 | I118: 0 | J118: 0 | K118: 0 | L118: 0
A119: ='Org structure'!A16 -> Vote 15 - Other | C119: 0 | D119: 0 | E119: 0 | F119: 0 | G119: 0 | H119: 0 | I119: 0 | J119: 0 | K119: 0 | L119: 0
A120: Capital single-year expenditure sub-total | C120: =C65+C74+C80+C86+C94+C102+C111+C112+C113+C114+C115+C116+C117+C118+C119 -> 0 | D120: 0 | E120: 0 | F120: 0 | G120: 0 | H120: 0 | I120: 0 | J120: 0 | K120: 0 | L120: 0
A121: Total Capital Expenditure | C121: =C61+C120 -> 45682357.98 | D121: 38284503.29 | E121: 50056507.07 | F121: 65393793 | G121: 64688807 | H121: 64688807 | I121: 27214699.18 | J121: 48852400 | K121: 61785100 | L121: 65760440

Sheet A6-FinPos
A1: =muni&" - "&Approve6 -> LIM353 Molemole - Table A6 Budgeted Financial Position
A2: =desc -> Description | B2: =head27 -> Ref | C2: =head1b -> 2018/19 | D2: =head1A -> 2019/20 | E2: =Head1 -> 2020/21 | F2: =Head2 -> Current Year 2021/22 | J2: =Head3 -> 2022/23 Medium Term Revenue & Expenditure Framework
A3: R thousand | C3: =Head5 -> Audited Outcome | D3: =Head5 -> Audited Outcome | E3: =Head5 -> Audited Outcome | F3: =Head6 -> Original Budget | G3: =Head7 -> Adjusted Budget | H3: =Head8 -> Full Year Forecast | I3: =Head5b -> Pre-audit outcome | J3: =Head9 -> Budget Year 2022/23 | K3: =Head10 -> Budget Year +1 2023/24 | L3: =Head11 -> Budget Year +2 2024/25
A4: ASSETS
A5: Current assets
A6: Cash | C6: 19363525.35 | D6: 23010965.15 | E6: 30532961.28 | F6: 23345252 | G6: 109264492 | H6: 109264492 | I6: 99917280.17 | J6: 108640985 | K6: 113624152 | L6: 116176077
A7: Call investment deposits | B7: 1 | C7: 0 | D7: 0 | E7: 60000000 | F7: 0 | G7: 0 | H7: 0 | I7: 100000000 | J7: 0 | K7: 0 | L7: 0
A8: Consumer debtors | B8: 1 | C8: ='SA3'!C14 -> 66463493.41 | D8: ='SA3'!D14 -> 73798915.68 | E8: ='SA3'!E14 -> 56895052.43 | F8: ='SA3'!F14 -> 117349897 | G8: ='SA3'!G14 -> 103034677 | H8: ='SA3'!H14 -> 103034677 | I8: ='SA3'!I14 -> 57668193.01 | J8: ='SA3'!J14 -> 96068030 | K8: ='SA3'!K14 -> 100770660 | L8: ='SA3'!L14 -> 105699793
A9: Other debtors | C9: 22890999.48 | D9: 20945910.46 | E9: 22087697.1 | F9: 20556399 | G9: 20556398 | H9: 20556398 | I9: 17513372.57 | J9: 22612040 | K9: 24873245 | L9: 27360570
A10: Current portion of long-term receivables | C10: 30849.58 | D10: 0 | E10: 0 | F10: 36611 | G10: 0 | H10: 0 | I10: 0 | J10: 0 | K10: 0 | L10: 0
A11: Inventory | B11: 2 | C11: ='SA3'!C115 -> 194483.45 | D11: ='SA3'!D115 -> 261304.43 | E11: ='SA3'!E115 -> 1052291.03 | F11: ='SA3'!F115 -> 1052291.03 | G11: ='SA3'!G115 -> 1052291.03 | H11: ='SA3'!H115 -> 1052291.03 | I11: ='SA3'!I115 -> 1292858.9 | J11: ='SA3'!J115 -> 1052291.03 | K11: ='SA3'!K115 -> 1052291.03 | L11: ='SA3'!L115 -> 1052291.03
A12: Total current assets | C12: =SUM(C6:C11) -> 108943351.3 | D12: 118017095.7 | E12: 170568001.8 | F12: 162340450 | G12: 233907858 | H12: 233907858 | I12: 276391704.6 | J12: 228373346 | K12: 240320348 | L12: 250288731
A14: Non current assets
A15: Long-term receivables
A16: Investments | C16: 0 | D16: 0 | E16: 0 | F16: 0 | G16: 0 | H16: 0 | I16: 0 | J16: 0 | K16: 0 | L16: 0
A17: Investment property | C17: 1701000.96 | D17: 1657667.59 | E17: 1614334.23 | F17: 1755951 | G17: 1755951 | H17: 1755951 | I17: 1588945.07 | J17: 1755951 | K17: 1755951 | L17: 1755951
A18: Investment in Associate
A19: Property, plant and equipment | B19: 3 | C19: ='SA3'!C121 -> 248697639.3 | D19: ='SA3'!D121 -> 270824813.6 | E19: ='SA3'!E121 -> 303421567.5 | F19: ='SA3'!F121 -> 372179452 | G19: ='SA3'!G121 -> 371474466 | H19: ='SA3'!H121 -> 371474466 | I19: ='SA3'!I121 -> 315718367.9 | J19: ='SA3'!J121 -> 333250105 | K19: ='SA3'!K121 -> 360925103 | L19: ='SA3'!L121 -> 380372271
A21: Biological
A22: Intangible | C22: 1949128.08 | D22: -69659.86 | E22: -3.9 | F22: 1635088 | G22: 1635088 | H22: 1635088 | I22: -156234.16 | J22: 1037819 | K22: 1007568 | L22: 975270
A23: Other non-current assets | C23: 368150 | D23: 368150 | E23: 380300 | F23: 368150 | G23: 368150 | H23: 368150 | I23: 380300 | J23: 368150 | K23: 368150 | L23: 368150
A24: Total non current assets | C24: =SUM(C15:C19)+SUM(C21:C23) -> 252715918.4 | D24: =SUM(D15:D19)+SUM(D21:D23) -> 272780971.3 | E24: 305416197.8 | F24: 375938641 | G24: 375233655 | H24: 375233655 | I24: 317531378.8 | J24: 336412025 | K24: 364056772 | L24: 383471642
A25: TOTAL ASSETS | C25: =C12+C24 -> 361659269.6 | D25: =D12+D24 -> 390798067.1 | E25: =E12+E24 -> 475984199.6 | F25: =F12+F24 -> 538279091 | G25: 609141513 | H25: 609141513 | I25: 593923083.4 | J25: 564785371 | K25: 604377120 | L25: 633760373
A27: LIABILITIES
A28: Current liabilities
A29: Bank overdraft | B29: 1
A30: Borrowing | B30: 4 | C30: ='SA3'!C127 -> 448189.46 | D30: ='SA3'!D127 -> 251667.55 | E30: ='SA3'!E127 -> 0 | F30: ='SA3'!F127 -> 75915 | G30: ='SA3'!G127 -> 75915 | H30: ='SA3'!H127 -> 75915 | I30: ='SA3'!I127 -> 0 | J30: ='SA3'!J127 -> 0 | K30: ='SA3'!K127 -> 0 | L30: ='SA3'!L127 -> 0
A31: Consumer deposits | C31: 503126.48 | D31: 504476.48 | E31: 505376.48 | F31: 686366 | G31: 596366 | H31: 596366 | I31: 507026.48 | J31: 530646 | K31: 530646 | L31: 530646
A32: Trade and other payables | B32: 4 | C32: ='SA3'!C134 -> 40831719.51 | D32: ='SA3'!D134 -> 40994726.19 | E32: ='SA3'!E134 -> 35684095.4 | F32: ='SA3'!F134 -> 50913046 | G32: ='SA3'!G134 -> 41023883 | H32: ='SA3'!H134 -> 41023883 | I32: ='SA3'!I134 -> 73413612.63 | J32: ='SA3'!J134 -> 35493520 | K32: ='SA3'!K134 -> 37268195 | L32: ='SA3'!L134 -> 39131602
A33: Provisions | C33: 826867 | D33: 205999.9 | E33: 346625.38 | F33: 575598 | G33: 575598 | H33: 575598 | I33: 291727.18 | J33: 854379 | K33: 897098 | L33: 941953
A34: Total current liabilities | C34: =SUM(C29:C33) -> 42609902.45 | D34: 41956870.12 | E34: 36536097.26 | F34: 52250925 | G34: 42271762 | H34: 42271762 | I34: 74212366.29 | J34: 36878545 | K34: 38695939 | L34: 40604201
A36: Non current liabilities
A37: Borrowing | C37: ='SA3'!C139 -> 65107.65 | D37: ='SA3'!D139 -> 0 | E37: ='SA3'!E139 -> 0 | F37: ='SA3'!F139 -> 0 | G37: ='SA3'!G139 -> 0 | H37: ='SA3'!H139 -> 0 | I37: ='SA3'!I139 -> 0 | J37: ='SA3'!J139 -> 0 | K37: ='SA3'!K139 -> 0 | L37: ='SA3'!L139 -> 0
A38: Provisions | C38: ='SA3'!C146 -> 23460556.29 | D38: ='SA3'!D146 -> 22965829.8 | E38: ='SA3'!E146 -> 26098177.59 | F38: ='SA3'!F146 -> 29939246 | G38: ='SA3'!G146 -> 29939246 | H38: ='SA3'!H146 -> 29939246 | I38: ='SA3'!I146 -> 26050432.59 | J38: ='SA3'!J146 -> 30007362 | K38: ='SA3'!K146 -> 31802038 | L38: ='SA3'!L146 -> 32885336
A39: Total non current liabilities | C39: =SUM(C37:C38) -> 23525663.94 | D39: =SUM(D37:D38) -> 22965829.8 | E39: =SUM(E37:E38) -> 26098177.59 | F39: =SUM(F37:F38) -> 29939246 | G39: 29939246 | H39: 29939246 | I39: 26050432.59 | J39: 30007362 | K39: =SUM(K37:K38) -> 31802038 | L39: 32885336
A40: TOTAL LIABILITIES | C40: =C34+C39 -> 66135566.39 | D40: =D34+D39 -> 64922699.92 | E40: =E34+E39 -> 62634274.85 | F40: =F34+F39 -> 82190171 | G40: 72211008 | H40: 72211008 | I40: 100262798.9 | J40: 66885907 | K40: =K34+K39 -> 70497977 | L40: 73489537
A42: NET ASSETS | B42: 5 | C42: =C25-C40 -> 295523703.2 | D42: 325875367.1 | E42: 413349924.8 | F42: 456088920 | G42: 536930505 | H42: 536930505 | I42: 493660284.6 | J42: 497899464 | K42: 533879143 | L42: 560270836
A44: COMMUNITY WEALTH/EQUITY
A45: Accumulated Surplus/(Deficit) | C45: ='SA3'!C158 -> 247704622.9 | D45: ='SA3'!D158 -> 280994141 | E45: ='SA3'!E158 -> 368235505.7 | F45: ='SA3'!F158 -> 399821514 | G45: ='SA3'!G158 -> 483386075 | H45: ='SA3'!H158 -> 483386075 | I45: ='SA3'!I158 -> 444091426.6 | J45: ='SA3'!J158 -> 447204445 | K45: ='SA3'!K158 -> 480799374 | L45: ='SA3'!L158 -> 504687077
A46: Reserves | B46: 4 | C46: ='SA3'!C165 -> 47614110.89 | D46: ='SA3'!D165 -> 47695019.87 | E46: ='SA3'!E165 -> 47695019.87 | F46: ='SA3'!F165 -> 55518054 | G46: ='SA3'!G165 -> 52518054 | H46: ='SA3'!H165 -> 52518054 | I46: ='SA3'!I165 -> 47695019.87 | J46: ='SA3'!J165 -> 50695020 | K46: ='SA3'!K165 -> 53079771 | L46: ='SA3'!L165 -> 55583760
A48: TOTAL COMMUNITY WEALTH/EQUITY | B48: 5 | C48: =SUM(C45:C46) -> 295318733.8 | D48: =SUM(D45:D46) -> 328689160.9 | E48: 415930525.6 | F48: 455339568 | G48: 535904129 | H48: 535904129 | I48: 491786446.4 | J48: 497899465 | K48: 533879145 | L48: 560270837
A49: =head27a -> References
A50: 1. Detail to be provided in Table SA3
A51: 2. Include completed low cost housing to be transferred to beneficiaries within 12 months
A52: 3. Include 'Construction-work-in-progress' (disclosed separately in annual financial statements)
A53: 4. Detail to be provided in Table SA3. Includes reserves to be funded by statute.
A54: 5. Net assets must balance with Total Community Wealth/Equity
A55: check balance | C55: =IF((C42-C48)=0,0,"Unbalanced") -> Unbalanced | D55: =IF((D42-D48)=0,0,"Unbalanced") -> Unbalanced | E55: Unbalanced | F55: Unbalanced | G55: Unbalanced | H55: Unbalanced | I55: Unbalanced | J55: Unbalanced | K55: Unbalanced | L55: Unbalanced

Sheet A7-CFlow
A1: =muni&" - "&Approve7 -> LIM353 Molemole - Table A7 Budgeted Cash Flows
A2: =desc -> Description | B2: =head27 -> Ref | C2: =head1b -> 2018/19 | D2: =head1A -> 2019/20 | E2: =Head1 -> 2020/21 | F2: =Head2 -> Current Year 2021/22 | J2: =Head3 -> 2022/23 Medium Term Revenue & Expenditure Framework
A3: R thousand | C3: =Head5 -> Audited Outcome | D3: =Head5 -> Audited Outcome | E3: =Head5 -> Audited Outcome | F3: =Head6 -> Original Budget | G3: =Head7 -> Adjusted Budget | H3: =Head8 -> Full Year Forecast | I3: =Head5b -> Pre-audit outcome | J3: =Head9 -> Budget Year 2022/23 | K3: =Head10 -> Budget Year +1 2023/24 | L3: =Head11 -> Budget Year +2 2024/25
A4: CASH FLOW FROM OPERATING ACTIVITIES
A5: Receipts
A6: Property rates | C6: 0 | D6: 0 | E6: 24783315.79 | F6: 0 | G6: -11278606 | H6: -11278606 | I6: 10669409.53 | J6: ='SA30'!N5 -> 39134584 | K6: ='SA30'!O5 -> 40856503 | L6: ='SA30'!P5 -> 42695048
A7: Service charges | C7: 0 | D7: 0 | E7: 913810.93 | F7: 0 | G7: -63225 | H7: -63225 | I7: 1457410.94 | J7: ='SA30'!N6+'SA30'!N7+'SA30'!N8+'SA30'!N9 -> 14220256 | K7: ='SA30'!O6+'SA30'!O7+'SA30'!O8+'SA30'!O9 -> 13974920 | L7: ='SA30'!P6+'SA30'!P7+'SA30'!P8+'SA30'!P9 -> 14618073
A8: Other revenue | C8: 0 | D8: 0 | E8: 136781059.7 | F8: 0 | G8: -11021361 | H8: -11021361 | I8: 353074945.9 | J8: ='SA30'!N11+'SA30'!N15+'SA30'!N16+'SA30'!N17+'SA30'!N19 -> 10714798 | K8: ='SA30'!O11+'SA30'!O15+'SA30'!O16+'SA30'!O17+'SA30'!O19 -> 15189279 | L8: ='SA30'!P11+'SA30'!P15+'SA30'!P16+'SA30'!P17+'SA30'!P19 -> 15858512
A9: Transfers and Subsidies - Operational | B9: 1 | C9: 0 | D9: 0 | E9: 429679.59 | F9: 0 | G9: 0 | H9: 0 | I9: 4301000 | J9: ='SA30'!N18 -> 174457600 | K9: ='SA30'!O18 -> 181751900 | L9: ='SA30'!P18 -> 191275600
A10: Transfers and Subsidies - Capital | B10: 1 | C10: 0 | D10: 0 | E10: 11396850 | F10: 0 | G10: 0 | H10: 0 | I10: 34408000 | J10: ='SA30'!N23+'SA30'!N24 -> 37802400 | K10: ='SA30'!O23+'SA30'!O24 -> 49385100 | L10: ='SA30'!P23+'SA30'!P24 -> 51070400
A11: Interest | C11: 0 | D11: 0 | E11: 765244.94 | F11: 0 | G11: 0 | H11: 0 | I11: 0 | J11: ='SA30'!N12+'SA30'!N13 -> 3000000 | K11: ='SA30'!O12+'SA30'!O13 -> 3132000 | L11: ='SA30'!P12+'SA30'!P13 -> 3272940
A12: Dividends | J12: ='SA30'!N14 -> 0 | K12: ='SA30'!O14 -> 0 | L12: ='SA30'!P14 -> 0
A13: Payments
A14: Suppliers and employees | C14: 0 | D14: 0 | E14: -114274482.4 | F14: 0 | G14: 17419644 | H14: 17419644 | I14: -189586569.7 | J14: =-('SA30'!N35+'SA30'!N36+'SA30'!N38+'SA30'!N39+'SA30'!N40+'SA30'!N41+'SA30'!N44+'SA30'!N50) -> -215183545 | K14: =-('SA30'!O35+'SA30'!O36+'SA30'!O38+'SA30'!O39+'SA30'!O40+'SA30'!O41+'SA30'!O44+'SA30'!O50) -> -220813524 | L14: =-('SA30'!P35+'SA30'!P36+'SA30'!P38+'SA30'!P39+'SA30'!P40+'SA30'!P41+'SA30'!P44+'SA30'!P50) -> -230281599
A15: Finance charges | J15: =-('SA30'!N37) -> 0 | K15: =-('SA30'!O37) -> 0 | L15: =-('SA30'!P37) -> 0
A16: Transfers and Grants | B16: 1 | J16: =-('SA30'!N42+'SA30'!N43) -> 0 | K16: =-('SA30'!O42+'SA30'!O43) -> 0 | L16: =-('SA30'!P42+'SA30'!P43) -> 0
A17: NET CASH FROM/(USED) OPERATING ACTIVITIES | C17: =SUM(C6:C12)+SUM(C14:C16) -> 0 | D17: 0 | E17: 60795478.6 | F17: 0 | G17: -4943548 | H17: -4943548 | I17: 214324196.6 | J17: 64146093 | K17: 83476178 | L17: 88508974
A19: CASH FLOWS FROM INVESTING ACTIVITIES
A20: Receipts
A21: Proceeds on disposal of PPE | J21: ='SA30'!N25 -> 0 | K21: ='SA30'!O25 -> 0 | L21: ='SA30'!P25 -> 0
A23: Decrease (increase) in non-current receivables | J23: ='SA30'!N30 -> 0 | K23: ='SA30'!O30 -> 0 | L23: ='SA30'!P30 -> 0
A24: Decrease (increase) in non-current investments | C24: 0 | D24: 0 | E24: 0 | F24: 0 | G24: 0 | H24: 0 | I24: 0 | J24: ='SA30'!N31 -> 0 | K24: ='SA30'!O31 -> 0 | L24: ='SA30'!P31 -> 0
A25: Payments
A26: Capital assets | C26: 0 | D26: 0 | E26: -26519736.97 | F26: 0 | G26: 704986 | H26: 704986 | I26: -26571676.58 | J26: =-('SA30'!N48) -> -48852400 | K26: =-('SA30'!O48) -> -61785100 | L26: =-('SA30'!P48) -> -65760440
A27: NET CASH FROM/(USED) INVESTING ACTIVITIES | C27: =+C21+C23+C24+C26 -> 0 | D27: =+D21+D23+D24+D26 -> 0 | E27: -26519736.97 | F27: 0 | G27: 704986 | H27: 704986 | I27: -26571676.58 | J27: -48852400 | K27: -61785100 | L27: -65760440
A29: CASH FLOWS FROM FINANCING ACTIVITIES
A30: Receipts
A31: Short term loans | J31: ='SA30'!N26 -> 0 | K31: ='SA30'!O26 -> 0 | L31: ='SA30'!P26 -> 0
A32: Borrowing long term/refinancing | J32: ='SA30'!N27 -> 0 | K32: ='SA30'!O27 -> 0 | L32: ='SA30'!P27 -> 0
A33: Increase (decrease) in consumer deposits | C33: -503126.48 | D33: -1350 | E33: -900 | F33: -180989.52 | G33: 90000 | H33: 90000 | I33: -1650 | J33: ='SA30'!N28 -> -65720 | K33: ='SA30'!O28 -> 0 | L33: ='SA30'!P28 -> 0
A34: Payments
A35: Repayment of borrowing | C35: 0 | D35: 0 | E35: 0 | F35: 0 | G35: 0 | H35: 0 | I35: 0 | J35: =-('SA30'!N49) -> 0 | K35: =-('SA30'!O49) -> 0 | L35: =-('SA30'!P49) -> 0
A36: NET CASH FROM/(USED) FINANCING ACTIVITIES | C36: =SUM(C31:C33)+C35 -> -503126.48 | D36: =SUM(D31:D33)+D35 -> -1350 | E36: -900 | F36: -180989.52 | G36: 90000 | H36: 90000 | I36: -1650 | J36: -65720 | K36: 0 | L36: 0
A38: NET INCREASE/ (DECREASE) IN CASH HELD | C38: =C17+C27+C36 -> -503126.48 | D38: =D17+D27+D36 -> -1350 | E38: 34274841.63 | F38: -180989.52 | G38: -4148562 | H38: -4148562 | I38: 187750870 | J38: 15227973 | K38: 21691078 | L38: 22748534
A39: Cash/cash equivalents at the year begin: | B39: 2 | C39: 41581133.75 | D39: 19363525.35 | E39: 23010965.15 | F39: 0 | G39: 89549144 | H39: 89549144 | I39: 0 | J39: ='SA30'!N54 -> 89549142 | K39: =J40 -> 104777115 | L39: =K40 -> 126468193
A40: Cash/cash equivalents at the year end: | B40: 2 | C40: =C38+C39 -> 41078007.27 | D40: =D38+D39 -> 19362175.35 | E40: =E38+E39 -> 57285806.78 | F40: =F38+F39 -> -180989.52 | G40: 85400582 | H40: 85400582 | I40: 187750870 | J40: 104777115 | K40: 126468193 | L40: 149216727
A41: =head27a -> References
A42: 1. Local/District municipalities to include transfers from/to District/Local Municipalities
A43: 2. Cash equivalents includes investments with maturities of 3 months or less
A44: 3. The MTREF is populated directly from SA30.
A45: Total receipts | C45: =SUM(C6:C12)+SUM(C21:C23) -> 0 | D45: 0 | E45: 175069961 | F45: 0 | G45: -22363192 | H45: -22363192 | I45: 403910766.3 | J45: 279329638 | K45: 304289702 | L45: 318790573
A46: Total payments | C46: =SUM(C14:C16)+C26 -> 0 | D46: =SUM(D14:D16)+D26 -> 0 | E46: -140794219.3 | F46: 0 | G46: 18124630 | H46: 18124630 | I46: -216158246.3 | J46: -264035945 | K46: -282598624 | L46: -296042039
C47: =C45+C46 -> 0 | D47: =D45+D46 -> 0 | E47: 34275741.63 | F47: 0 | G47: -4238562 | H47: -4238562 | I47: 187752520 | J47: 15293693 | K47: 21691078 | L47: 22748534
A48: Borrowings & investments & c.deposits | C48: =C24+C32+C33 -> -503126.48 | D48: =D24+D32+D33 -> -1350 | E48: -900 | F48: -180989.52 | G48: 90000 | H48: 90000 | I48: -1650 | J48: -65720 | K48: 0 | L48: 0
A49: =A35 -> Repayment of borrowing | C49: =C35 -> 0 | D49: =D35 -> 0 | E49: 0 | F49: 0 | G49: 0 | H49: 0 | I49: =I35 -> 0 | J49: 0 | K49: 0 | L49: 0
C50: =C47+C48+C49 -> -503126.48 | D50: =D47+D48+D49 -> -1350 | E50: 34274841.63 | F50: -180989.52 | G50: -4148562 | H50: -4148562 | I50: 187750870 | J50: 15227973 | K50: 21691078 | L50: 22748534
C51: =C38-C50 -> 0 | D51: 0 | E51: 0 | F51: 0 | G51: 0 | H51: 0 | I51: 0 | J51: 0 | K51: 0 | L51: 0

Sheet A8-ResRecon
A1: =muni&" - "&Approve8 -> LIM353 Molemole - Table A8 Cash backed reserves/accumulated surplus reconciliation
A2: =desc -> Description | B2: =head27 -> Ref | C2: =head1b -> 2018/19 | D2: =head1A -> 2019/20 | E2: =Head1 -> 2020/21 | F2: =Head2 -> Current Year 2021/22 | J2: =Head3 -> 2022/23 Medium Term Revenue & Expenditure Framework
A3: R thousand | C3: =Head5 -> Audited Outcome | D3: =Head5 -> Audited Outcome | E3: =Head5 -> Audited Outcome | F3: =Head6 -> Original Budget | G3: =Head7 -> Adjusted Budget | H3: =Head8 -> Full Year Forecast | I3: =Head5b -> Pre-audit outcome | J3: =Head9 -> Budget Year 2022/23 | K3: =Head10 -> Budget Year +1 2023/24 | L3: =Head11 -> Budget Year +2 2024/25
A4: Cash and investments available
A5: =LEFT('A7-CFlow'!A40,37) -> Cash/cash equivalents at the year end | B5: 1 | C5: ='A7-CFlow'!C40 -> 41078007.27 | D5: ='A7-CFlow'!D40 -> 19362175.35 | E5: ='A7-CFlow'!E40 -> 57285806.78 | F5: ='A7-CFlow'!F40 -> -180989.52 | G5: ='A7-CFlow'!G40 -> 85400582 | H5: ='A7-CFlow'!H40 -> 85400582 | I5: ='A7-CFlow'!I40 -> 187750870 | J5: ='A7-CFlow'!J40 -> 104777115 | K5: ='A7-CFlow'!K40 -> 126468193 | L5: ='A7-CFlow'!L40 -> 149216727
A6: Other current investments > 90 days | C6: ='A6-FinPos'!C6+'A6-FinPos'!C7-'A6-FinPos'!C29-'A8-ResRecon'!C5 -> -21714481.92 | D6: ='A6-FinPos'!D6+'A6-FinPos'!D7-'A6-FinPos'!D29-'A8-ResRecon'!D5 -> 3648789.8 | E6: ='A6-FinPos'!E6+'A6-FinPos'!E7-'A6-FinPos'!E29-'A8-ResRecon'!E5 -> 33247154.5 | F6: ='A6-FinPos'!F6+'A6-FinPos'!F7-'A6-FinPos'!F29-'A8-ResRecon'!F5 -> 23526241.52 | G6: ='A6-FinPos'!G6+'A6-FinPos'!G7-'A6-FinPos'!G29-'A8-ResRecon'!G5 -> 23863910 | H6: ='A6-FinPos'!H6+'A6-FinPos'!H7-'A6-FinPos'!H29-'A8-ResRecon'!H5 -> 23863910 | I6: ='A6-FinPos'!I6+'A6-FinPos'!I7-'A6-FinPos'!I29-'A8-ResRecon'!I5 -> 12166410.13 | J6: ='A6-FinPos'!J6+'A6-FinPos'!J7-'A6-FinPos'!J29-'A8-ResRecon'!J5 -> 3863870 | K6: ='A6-FinPos'!K6+'A6-FinPos'!K7-'A6-FinPos'!K29-'A8-ResRecon'!K5 -> -12844041 | L6: ='A6-FinPos'!L6+'A6-FinPos'!L7-'A6-FinPos'!L29-'A8-ResRecon'!L5 -> -33040650
A7: ='A6-FinPos'!A14&" - "&'A6-FinPos'!A16 -> Non current assets - Investments | B7: 1 | C7: ='A6-FinPos'!C16 -> 0 | D7: ='A6-FinPos'!D16 -> 0 | E7: ='A6-FinPos'!E16 -> 0 | F7: ='A6-FinPos'!F16 -> 0 | G7: ='A6-FinPos'!G16 -> 0 | H7: ='A6-FinPos'!H16 -> 0 | I7: ='A6-FinPos'!I16 -> 0 | J7: ='A6-FinPos'!J16 -> 0 | K7: ='A6-FinPos'!K16 -> 0 | L7: ='A6-FinPos'!L16 -> 0
A8: Cash and investments available: | C8: =SUM(C5:C7) -> 19363525.35 | D8: =SUM(D5:D7) -> 23010965.15 | E8: 90532961.28 | F8: 23345252 | G8: 109264492 | H8: 109264492 | I8: 199917280.2 | J8: 108640985 | K8: 113624152 | L8: 116176077
A10: Application of cash and investments
A11: ='SA3'!A132 -> Unspent conditional transfers | C11: ='SA3'!C132 -> 2125661.58 | D11: ='SA3'!D132 -> 1128322.73 | E11: ='SA3'!E132 -> 628749.91 | F11: ='SA3'!F132 -> 0 | G11: ='SA3'!G132 -> -1000000 | H11: ='SA3'!H132 -> -1000000 | I11: ='SA3'!I132 -> 27979325.38 | J11: ='SA3'!J132 -> 628750 | K11: ='SA3'!K132 -> 660188 | L11: ='SA3'!L132 -> 693198
A12: Unspent borrowing | C12: ='SA17'!C67 -> 0 | D12: ='SA17'!D67 -> 0 | E12: ='SA17'!E67 -> 0 | F12: ='SA17'!F67 -> 0 | G12: ='SA17'!G67 -> 0 | H12: ='SA17'!H67 -> 0 | J12: ='SA17'!I67 -> 0 | K12: ='SA17'!J67 -> 0 | L12: ='SA17'!K67 -> 0
A13: Statutory requirements | B13: 2
A14: Other working capital requirements | B14: 3 | C14: =-C32 -> 38370797.98 | D14: =-D32 -> 38715223.39 | E14: -152909467.6 | F14: =-F32 -> 50913046 | G14: 76366883 | H14: 76366883 | I14: -732044572.8 | J14: -74786045 | K14: -86650799 | L14: -92092491
A15: Other provisions
A16: Long term investments committed | B16: 4 | C16: =C42 -> 0 | D16: =D42 -> 0 | E16: 0 | F16: 0 | G16: 0 | H16: 0 | I16: 0 | J16: 0 | K16: 0 | L16: 0
A17: Reserves to be backed by cash/investments | B17: 5 | C17: =SUM(C44:C48) -> 47614110.89 | D17: 47695019.87 | E17: 47695019.87 | F17: 55518054 | G17: 52518054 | H17: 52518054 | I17: 47695019.87 | J17: 50695020 | K17: 53079771 | L17: 55583760
A18: ="Total "&A10&":" -> Total Application of cash and investments: | C18: =SUM(C11:C17) -> 88110570.45 | D18: =SUM(D11:D17) -> 87538565.99 | E18: -104585697.8 | F18: 106431100 | G18: 127884937 | H18: 127884937 | I18: -656370227.6 | J18: -23462275 | K18: -32910840 | L18: -35815533
A19: Surplus(shortfall) | C19: =C8-C18 -> -68747045.1 | D19: =D8-D18 -> -64527600.84 | E19: 195118659.1 | F19: -83085848 | G19: -18620445 | H19: -18620445 | I19: 856287507.7 | J19: 132103260 | K19: 146534992 | L19: 151991610
A20: =head27a -> References
A21: 1. Must reconcile with Budgeted Cash Flows
A22: 2. For example: VAT, taxation
A23: 3. Council approval for policy required - include sufficient working capital (e.g. allowing for a % of current debtors > 90 days as uncollectable)
A24: 4. For example: sinking fund requirements for borrowing
A25: 5. Council approval required for each reserve created and basis of cash backing of reserves
A28: Other working capital requirements
A29: Debtors | C29: =IF(ISERROR(ROUND(C35*C36,-3)),0,(ROUND(C35*C36,-3))) -> 0 | D29: =IF(ISERROR(ROUND(D35*D36,-3)),0,(ROUND(D35*D36,-3))) -> 0 | E29: 187525000 | F29: 0 | G29: -34343000 | H29: -34343000 | I29: 776470000 | J29: 109211000 | K29: 122797000 | L29: 130046000
A31: Creditors due | C31: ='SA3'!C130+'SA3'!C131 -> 38370797.98 | D31: ='SA3'!D130+'SA3'!D131 -> 38715223.39 | E31: ='SA3'!E130+'SA3'!E131 -> 34615532.41 | F31: ='SA3'!F130+'SA3'!F131 -> 50913046 | G31: ='SA3'!G130+'SA3'!G131 -> 42023883 | H31: ='SA3'!H130+'SA3'!H131 -> 42023883 | I31: ='SA3'!I130+'SA3'!I131 -> 44425427.18 | J31: ='SA3'!J130+'SA3'!J131 -> 34424955 | K31: ='SA3'!K130+'SA3'!K131 -> 36146201 | L31: ='SA3'!L130+'SA3'!L131 -> 37953509
A32: Total | C32: =C29-C31 -> -38370797.98 | D32: =D29-D31 -> -38715223.39 | E32: 152909467.6 | F32: -50913046 | G32: -76366883 | H32: -76366883 | I32: 732044572.8 | J32: 74786045 | K32: 86650799 | L32: 92092491
A34: Debtors collection assumptions
A35: Balance outstanding - debtors | C35: ='A6-FinPos'!C8+'A6-FinPos'!C9+'A6-FinPos'!C15 -> 89354492.89 | D35: ='A6-FinPos'!D8+'A6-FinPos'!D9+'A6-FinPos'!D15 -> 94744826.14 | E35: ='A6-FinPos'!E8+'A6-FinPos'!E9+'A6-FinPos'!E15 -> 78982749.53 | F35: ='A6-FinPos'!F8+'A6-FinPos'!F9+'A6-FinPos'!F15 -> 137906296 | G35: ='A6-FinPos'!G8+'A6-FinPos'!G9+'A6-FinPos'!G15 -> 123591075 | H35: ='A6-FinPos'!H8+'A6-FinPos'!H9+'A6-FinPos'!H15 -> 123591075 | I35: ='A6-FinPos'!I8+'A6-FinPos'!I9+'A6-FinPos'!I15 -> 75181565.58 | J35: ='A6-FinPos'!J8+'A6-FinPos'!J9+'A6-FinPos'!J15 -> 118680070 | K35: ='A6-FinPos'!K8+'A6-FinPos'!K9+'A6-FinPos'!K15 -> 125643905 | L35: ='A6-FinPos'!L8+'A6-FinPos'!L9+'A6-FinPos'!L15 -> 133060363
A36: Estimate of debtors collection rate | C36: =IF(ISERROR('SA10'!D10),0,('SA10'!D10)) -> 0 | D36: =IF(ISERROR('SA10'!E10),0,('SA10'!E10)) -> 0 | E36: =IF(ISERROR('SA10'!F10),0,('SA10'!F10)) -> 2.374248166 | F36: =IF(ISERROR('SA10'!G10),0,('SA10'!G10)) -> 0 | G36: =IF(ISERROR('SA10'!H10),0,('SA10'!H10)) -> -0.27787862 | H36: =IF(ISERROR('SA10'!I10),0,('SA10'!I10)) -> -0.27787862 | I36: =IF(ISERROR('SA10'!J10),0,('SA10'!J10)) -> 10.32792669 | J36: =IF(ISERROR('SA10'!K10),0,('SA10'!K10)) -> 0.9202116812 | K36: =IF(ISERROR('SA10'!L10),0,('SA10'!L10)) -> 0.9773416457 | L36: =IF(ISERROR('SA10'!M10),0,('SA10'!M10)) -> 0.9773463727
K39: `
A40: =A16 -> Long term investments committed
A41: Balance (Insert description; eg sinking fund)
C42: =SUM(C41:C41) -> 0 | D42: 0 | E42: 0 | F42: 0 | G42: 0 | H42: 0 | I42: 0 | J42: 0 | K42: 0 | L42: 0
A43: =A17 -> Reserves to be backed by cash/investments
A44: ='SA3'!A160 -> Housing Development Fund | C44: ='SA3'!C160 -> 0 | D44: ='SA3'!D160 -> 0 | E44: ='SA3'!E160 -> 0 | F44: ='SA3'!F160 -> 0 | G44: ='SA3'!G160 -> 0 | H44: ='SA3'!H160 -> 0 | I44: ='SA3'!I160 -> 0 | J44: ='SA3'!J160 -> 0 | K44: ='SA3'!K160 -> 0 | L44: ='SA3'!L160 -> 0
A45: ='SA3'!A161 -> Capital replacement | C45: ='SA3'!C161 -> 0 | D45: ='SA3'!D161 -> 0 | E45: ='SA3'!E161 -> 0 | F45: ='SA3'!F161 -> 0 | G45: ='SA3'!G161 -> 0 | H45: ='SA3'!H161 -> 0 | I45: ='SA3'!I161 -> 0 | J45: ='SA3'!J161 -> 0 | K45: ='SA3'!K161 -> 0 | L45: ='SA3'!L161 -> 0
A46: ='SA3'!A162 -> Self-insurance | C46: ='SA3'!C162 -> 0 | D46: ='SA3'!D162 -> 0 | E46: ='SA3'!E162 -> 0 | F46: ='SA3'!F162 -> 0 | G46: ='SA3'!G162 -> 0 | H46: ='SA3'!H162 -> 0 | I46: ='SA3'!I162 -> 0 | J46: ='SA3'!J162 -> 0 | K46: ='SA3'!K162 -> 0 | L46: ='SA3'!L162 -> 0
A47: ='SA3'!A163 -> Other reserves | C47: ='SA3'!C163 -> 0 | D47: ='SA3'!D163 -> 0 | E47: ='SA3'!E163 -> 0 | F47: ='SA3'!F163 -> 0 | G47: ='SA3'!G163 -> 0 | H47: ='SA3'!H163 -> 0 | I47: ='SA3'!I163 -> 0 | J47: ='SA3'!J163 -> 0 | K47: ='SA3'!K163 -> 0 | L47: ='SA3'!L163 -> 0
A48: ='SA3'!A164 -> Revaluation | C48: ='SA3'!C164 -> 47614110.89 | D48: ='SA3'!D164 -> 47695019.87 | E48: ='SA3'!E164 -> 47695019.87 | F48: ='SA3'!F164 -> 55518054 | G48: ='SA3'!G164 -> 52518054 | H48: ='SA3'!H164 -> 52518054 | I48: ='SA3'!I164 -> 47695019.87 | J48: ='SA3'!J164 -> 50695020 | K48: ='SA3'!K164 -> 53079771 | L48: ='SA3'!L164 -> 55583760
C49: =SUM(C44:C48) -> 47614110.89 | D49: 47695019.87 | E49: 47695019.87 | F49: 55518054 | G49: 52518054 | H49: 52518054 | I49: 47695019.87 | J49: 50695020 | K49: 53079771 | L49: 55583760

Sheet A9-Asset
A1: =muni&" - "&Approve9 -> LIM353 Molemole - Table A9 Asset Management
A2: =desc -> Description | B2: =head27 -> Ref | C2: =head1b -> 2018/19 | D2: =head1A -> 2019/20 | E2: =Head1 -> 2020/21 | F2: =Head2 -> Current Year 2021/22 | I2: =Head3 -> 2022/23 Medium Term Revenue & Expenditure Framework
A3: R thousand | C3: =Head5 -> Audited Outcome | D3: =Head5 -> Audited Outcome | E3: =Head5 -> Audited Outcome | F3: =Head6 -> Original Budget | G3: =Head7 -> Adjusted Budget | H3: =Head8 -> Full Year Forecast | I3: =Head9 -> Budget Year 2022/23 | J3: =Head10 -> Budget Year +1 2023/24 | K3: =Head11 -> Budget Year +2 2024/25
A4: CAPITAL EXPENDITURE
A5: Total New Assets | B5: 1 | C5: =C15+C18+C19+C22+C25+C26+SUM(C29:C35) -> 33940773.47 | D5: =D15+D18+D19+D22+D25+D26+SUM(D29:D35) -> 34761372.64 | E5: 43187914.29 | F5: 63583793 | G5: 63068807 | H5: 63068807 | I5: 39790419 | J5: 61785100 | K5: 47073659
A6: Roads Infrastructure | C6: =SA34a!C7 -> 27429389.41 | D6: =SA34a!D7 -> 29015957.46 | E6: =SA34a!E7 -> 28471825.76 | F6: =SA34a!F7 -> 42110000 | G6: =SA34a!G7 -> 41372704 | H6: =SA34a!H7 -> 41372704 | I6: =SA34a!I7 -> 32240419 | J6: =SA34a!J7 -> 43885100 | K6: =SA34a!K7 -> 27383619
A7: Storm water Infrastructure | C7: =SA34a!C12 -> 0 | D7: =SA34a!D12 -> 0 | E7: =SA34a!E12 -> 0 | F7: =SA34a!F12 -> 0 | G7: =SA34a!G12 -> 1000000 | H7: =SA34a!H12 -> 1000000 | I7: =SA34a!I12 -> 0 | J7: =SA34a!J12 -> 0 | K7: =SA34a!K12 -> 0
A8: Electrical Infrastructure | C8: =SA34a!C16 -> 0 | D8: =SA34a!D16 -> 2554266 | E8: =SA34a!E16 -> 11604393.62 | F8: =SA34a!F16 -> 14300000 | G8: =SA34a!G16 -> 13672147 | H8: =SA34a!H16 -> 13672147 | I8: =SA34a!I16 -> 4550000 | J8: =SA34a!J16 -> 15600000 | K8: =SA34a!K16 -> 13900000
A9: Water Supply Infrastructure | C9: =SA34a!C26 -> 0 | D9: =SA34a!D26 -> 0 | E9: =SA34a!E26 -> 0 | F9: =SA34a!F26 -> 0 | G9: =SA34a!G26 -> 0 | H9: =SA34a!H26 -> 0 | I9: =SA34a!I26 -> 0 | J9: =SA34a!J26 -> 0 | K9: =SA34a!K26 -> 0
A10: Sanitation Infrastructure | C10: =SA34a!C37 -> 0 | D10: =SA34a!D37 -> 0 | E10: =SA34a!E37 -> 0 | F10: =SA34a!F37 -> 0 | G10: =SA34a!G37 -> 0 | H10: =SA34a!H37 -> 0 | I10: =SA34a!I37 -> 0 | J10: =SA34a!J37 -> 0 | K10: =SA34a!K37 -> 0
A11: Solid Waste Infrastructure | C11: =SA34a!C44 -> 0 | D11: =SA34a!D44 -> 0 | E11: =SA34a!E44 -> 0 | F11: =SA34a!F44 -> 1800000 | G11: =SA34a!G44 -> 1800000 | H11: =SA34a!H44 -> 1800000 | I11: =SA34a!I44 -> 0 | J11: =SA34a!J44 -> 0 | K11: =SA34a!K44 -> 0
A12: Rail Infrastructure | C12: =SA34a!C52 -> 0 | D12: =SA34a!D52 -> 0 | E12: =SA34a!E52 -> 0 | F12: =SA34a!F52 -> 0 | G12: =SA34a!G52 -> 0 | H12: =SA34a!H52 -> 0 | I12: =SA34a!I52 -> 0 | J12: =SA34a!J52 -> 0 | K12: =SA34a!K52 -> 0
A13: Coastal Infrastructure | C13: =SA34a!C62 -> 0 | D13: =SA34a!D62 -> 0 | E13: =SA34a!E62 -> 0 | F13: =SA34a!F62 -> 0 | G13: =SA34a!G62 -> 0 | H13: =SA34a!H62 -> 0 | I13: =SA34a!I62 -> 0 | J13: =SA34a!J62 -> 0 | K13: =SA34a!K62 -> 0
A14: Information and Communication Infrastructure | C14: =SA34a!C68 -> 0 | D14: =SA34a!D68 -> 0 | E14: =SA34a!E68 -> 0 | F14: =SA34a!F68 -> 0 | G14: =SA34a!G68 -> 0 | H14: =SA34a!H68 -> 0 | I14: =SA34a!I68 -> 0 | J14: =SA34a!J68 -> 0 | K14: =SA34a!K68 -> 0
A15: Infrastructure | C15: =SUM(C6:C14) -> 27429389.41 | D15: =SUM(D6:D14) -> 31570223.46 | E15: 40076219.38 | F15: 58210000 | G15: 57844851 | H15: 57844851 | I15: 36790419 | J15: 59485100 | K15: 41283619
A16: Community Facilities | C16: =SA34a!C75 -> 1208203.68 | D16: =SA34a!D75 -> 0 | E16: =SA34a!E75 -> 0 | F16: =SA34a!F75 -> 0 | G16: =SA34a!G75 -> 0 | H16: =SA34a!H75 -> 0 | I16: =SA34a!I75 -> 0 | J16: =SA34a!J75 -> 0 | K16: =SA34a!K75 -> 0
A17: Sport and Recreation Facilities | C17: =SA34a!C98 -> 2374152.36 | D17: =SA34a!D98 -> 0 | E17: =SA34a!E98 -> 0 | F17: =SA34a!F98 -> 0 | G17: =SA34a!G98 -> 0 | H17: =SA34a!H98 -> 0 | I17: =SA34a!I98 -> 0 | J17: =SA34a!J98 -> 0 | K17: =SA34a!K98 -> 0
A18: Community Assets | C18: =SUM(C16:C17) -> 3582356.04 | D18: =SUM(D16:D17) -> 0 | E18: 0 | F18: 0 | G18: 0 | H18: 0 | I18: 0 | J18: 0 | K18: 0
A19: Heritage Assets | C19: =SA34a!C103 -> 0 | D19: =SA34a!D103 -> 0 | E19: =SA34a!E103 -> 0 | F19: =SA34a!F103 -> 0 | G19: =SA34a!G103 -> 0 | H19: =SA34a!H103 -> 0 | I19: =SA34a!I103 -> 0 | J19: =SA34a!J103 -> 0 | K19: =SA34a!K103 -> 0
A20: Revenue Generating | C20: =SA34a!C111 -> 0 | D20: =SA34a!D111 -> 0 | E20: =SA34a!E111 -> 0 | F20: =SA34a!F111 -> 0 | G20: =SA34a!G111 -> 0 | H20: =SA34a!H111 -> 0 | I20: =SA34a!I111 -> 0 | J20: =SA34a!J111 -> 0 | K20: =SA34a!K111 -> 0
A21: Non-revenue Generating | C21: =SA34a!C114 -> 0 | D21: =SA34a!D114 -> 0 | E21: =SA34a!E114 -> 0 | F21: =SA34a!F114 -> 0 | G21: =SA34a!G114 -> 0 | H21: =SA34a!H114 -> 0 | I21: =SA34a!I114 -> 0 | J21: =SA34a!J114 -> 0 | K21: =SA34a!K114 -> 0
A22: Investment properties | C22: =SUM(C20:C21) -> 0 | D22: =SUM(D20:D21) -> 0 | E22: 0 | F22: 0 | G22: 0 | H22: 0 | I22: 0 | J22: 0 | K22: 0
A23: Operational Buildings | C23: =SA34a!C119 -> 622910.5 | D23: =SA34a!D119 -> 94250 | E23: =SA34a!E119 -> 0 | F23: =SA34a!F119 -> 2000000 | G23: =SA34a!G119 -> 2000000 | H23: =SA34a!H119 -> 2000000 | I23: =SA34a!I119 -> 2000000 | J23: =SA34a!J119 -> 2000000 | K23: =SA34a!K119 -> 0
A24: Housing | C24: =SA34a!C131 -> 0 | D24: =SA34a!D131 -> 0 | E24: =SA34a!E131 -> 0 | F24: =SA34a!F131 -> 0 | G24: =SA34a!G131 -> 0 | H24: =SA34a!H131 -> 0 | I24: =SA34a!I131 -> 0 | J24: =SA34a!J131 -> 0 | K24: =SA34a!K131 -> 0
A25: Other Assets | C25: =SUM(C23:C24) -> 622910.5 | D25: =SUM(D23:D24) -> 94250 | E25: 0 | F25: 2000000 | G25: 2000000 | H25: 2000000 | I25: 2000000 | J25: 2000000 | K25: 0
A26: Biological or Cultivated Assets | C26: =SA34a!C136 -> 0 | D26: =SA34a!D136 -> 0 | E26: =SA34a!E136 -> 0 | F26: =SA34a!F136 -> 0 | G26: =SA34a!G136 -> 0 | H26: =SA34a!H136 -> 0 | I26: =SA34a!I136 -> 0 | J26: =SA34a!J136 -> 0 | K26: =SA34a!K136 -> 0
A27: Servitudes | C27: =SA34a!C140 -> 0 | D27: =SA34a!D140 -> 0 | E27: =SA34a!E140 -> 0 | F27: =SA34a!F140 -> 0 | G27: =SA34a!G140 -> 0 | H27: =SA34a!H140 -> 0 | I27: =SA34a!I140 -> 0 | J27: =SA34a!J140 -> 0 | K27: =SA34a!K140 -> 0
A28: Licences and Rights | C28: =SA34a!C141 -> 531721.74 | D28: =SA34a!D141 -> 58650 | E28: =SA34a!E141 -> 0 | F28: =SA34a!F141 -> 0 | G28: =SA34a!G141 -> 0 | H28: =SA34a!H141 -> 0 | I28: =SA34a!I141 -> 0 | J28: =SA34a!J141 -> 0 | K28: =SA34a!K141 -> 0
A29: Intangible Assets | C29: =SUM(C27:C28) -> 531721.74 | D29: =SUM(D27:D28) -> 58650 | E29: 0 | F29: 0 | G29: 0 | H29: 0 | I29: 0 | J29: 0 | K29: 0
A30: Computer Equipment | C30: =SA34a!C149 -> 129726.5 | D30: =SA34a!D149 -> 995346.52 | E30: =SA34a!E149 -> 1518852.17 | F30: =SA34a!F149 -> 723793 | G30: =SA34a!G149 -> 828500 | H30: =SA34a!H149 -> 828500 | I30: =SA34a!I149 -> 800000 | J30: =SA34a!J149 -> 0 | K30: =SA34a!K149 -> 0
A31: Furniture and Office Equipment | C31: =SA34a!C152 -> 434181.27 | D31: =SA34a!D152 -> 255048.69 | E31: =SA34a!E152 -> 299643.69 | F31: =SA34a!F152 -> 350000 | G31: =SA34a!G152 -> 300000 | H31: =SA34a!H152 -> 300000 | I31: =SA34a!I152 -> 200000 | J31: =SA34a!J152 -> 300000 | K31: =SA34a!K152 -> 0
A32: Machinery and Equipment | C32: =SA34a!C155 -> 580118.45 | D32: =SA34a!D155 -> 111398 | E32: =SA34a!E155 -> 437646.27 | F32: =SA34a!F155 -> 800000 | G32: =SA34a!G155 -> 790000 | H32: =SA34a!H155 -> 790000 | I32: =SA34a!I155 -> 0 | J32: =SA34a!J155 -> 0 | K32: =SA34a!K155 -> 0
A33: Transport Assets | C33: =SA34a!C158 -> 630369.56 | D33: =SA34a!D158 -> 1676455.97 | E33: =SA34a!E158 -> 855552.78 | F33: =SA34a!F158 -> 1500000 | G33: =SA34a!G158 -> 1305456 | H33: =SA34a!H158 -> 1305456 | I33: =SA34a!I158 -> 0 | J33: =SA34a!J158 -> 0 | K33: =SA34a!K158 -> 5790040
A34: Land | C34: =SA34a!C161 -> 0 | D34: =SA34a!D161 -> 0 | E34: =SA34a!E161 -> 0 | F34: =SA34a!F161 -> 0 | G34: =SA34a!G161 -> 0 | H34: =SA34a!H161 -> 0 | I34: =SA34a!I161 -> 0 | J34: =SA34a!J161 -> 0 | K34: =SA34a!K161 -> 0
A35: Zoo's, Marine and Non-biological Animals | C35: =SA34a!C164 -> 0 | D35: =SA34a!D164 -> 0 | E35: =SA34a!E164 -> 0 | F35: =SA34a!F164 -> 0 | G35: =SA34a!G164 -> 0 | H35: =SA34a!H164 -> 0 | I35: =SA34a!I164 -> 0 | J35: =SA34a!J164 -> 0 | K35: =SA34a!K164 -> 0
A37: Total Renewal of Existing Assets | B37: 2 | C37: =C47+C50+C51+C54+C57+C58+SUM(C61:C67) -> 11500370.73 | D37: =D47+D50+D51+D54+D57+D58+SUM(D61:D67) -> 3523130.65 | E37: 6868592.78 | F37: 1500000 | G37: 1310000 | H37: 1310000 | I37: 9061981 | J37: 0 | K37: 18686781
A38: Roads Infrastructure | C38: =SA34b!C7 -> 6834790.64 | D38: =SA34b!D7 -> 0 | E38: =SA34b!E7 -> 159302.6 | F38: =SA34b!F7 -> 0 | G38: =SA34b!G7 -> 0 | H38: =SA34b!H7 -> 0 | I38: =SA34b!I7 -> 8561981 | J38: =SA34b!J7 -> 0 | K38: =SA34b!K7 -> 18686781
A39: Storm water Infrastructure | C39: =SA34b!C12 -> 0 | D39: =SA34b!D12 -> 0 | E39: =SA34b!E12 -> 0 | F39: =SA34b!F12 -> 0 | G39: =SA34b!G12 -> 0 | H39: =SA34b!H12 -> 0 | I39: =SA34b!I12 -> 0 | J39: =SA34b!J12 -> 0 | K39: =SA34b!K12 -> 0
A40: Electrical Infrastructure | C40: =SA34b!C16 -> 282388.92 | D40: =SA34b!D16 -> 775590 | E40: =SA34b!E16 -> 189034.8 | F40: =SA34b!F16 -> 1200000 | G40: =SA34b!G16 -> 1010000 | H40: =SA34b!H16 -> 1010000 | I40: =SA34b!I16 -> 0 | J40: =SA34b!J16 -> 0 | K40: =SA34b!K16 -> 0
A41: Water Supply Infrastructure | C41: =SA34b!C26 -> 0 | D41: =SA34b!D26 -> 0 | E41: =SA34b!E26 -> 0 | F41: =SA34b!F26 -> 0 | G41: =SA34b!G26 -> 0 | H41: =SA34b!H26 -> 0 | I41: =SA34b!I26 -> 0 | J41: =SA34b!J26 -> 0 | K41: =SA34b!K26 -> 0
A42: Sanitation Infrastructure | C42: =SA34b!C37 -> 0 | D42: =SA34b!D37 -> 0 | E42: =SA34b!E37 -> 0 | F42: =SA34b!F37 -> 0 | G42: =SA34b!G37 -> 0 | H42: =SA34b!H37 -> 0 | I42: =SA34b!I37 -> 0 | J42: =SA34b!J37 -> 0 | K42: =SA34b!K37 -> 0
A43: Solid Waste Infrastructure | C43: =SA34b!C44 -> 0 | D43: =SA34b!D44 -> 0 | E43: =SA34b!E44 -> 0 | F43: =SA34b!F44 -> 0 | G43: =SA34b!G44 -> 0 | H43: =SA34b!H44 -> 0 | I43: =SA34b!I44 -> 0 | J43: =SA34b!J44 -> 0 | K43: =SA34b!K44 -> 0
A44: Rail Infrastructure | C44: =SA34b!C52 -> 1032750 | D44: =SA34b!D52 -> 0 | E44: =SA34b!E52 -> 0 | F44: =SA34b!F52 -> 0 | G44: =SA34b!G52 -> 0 | H44: =SA34b!H52 -> 0 | I44: =SA34b!I52 -> 0 | J44: =SA34b!J52 -> 0 | K44: =SA34b!K52 -> 0
A45: Coastal Infrastructure | C45: =SA34b!C62 -> 0 | D45: =SA34b!D62 -> 0 | E45: =SA34b!E62 -> 0 | F45: =SA34b!F62 -> 0 | G45: =SA34b!G62 -> 0 | H45: =SA34b!H62 -> 0 | I45: =SA34b!I62 -> 0 | J45: =SA34b!J62 -> 0 | K45: =SA34b!K62 -> 0
A46: Information and Communication Infrastructure | C46: =SA34b!C68 -> 0 | D46: =SA34b!D68 -> 0 | E46: =SA34b!E68 -> 0 | F46: =SA34b!F68 -> 0 | G46: =SA34b!G68 -> 0 | H46: =SA34b!H68 -> 0 | I46: =SA34b!I68 -> 0 | J46: =SA34b!J68 -> 0 | K46: =SA34b!K68 -> 0
A47: Infrastructure | C47: =SUM(C38:C46) -> 8149929.56 | D47: =SUM(D38:D46) -> 775590 | E47: 348337.4 | F47: 1200000 | G47: 1010000 | H47: 1010000 | I47: 8561981 | J47: 0 | K47: 18686781
A48: Community Facilities | C48: =SA34b!C75 -> 0 | D48: =SA34b!D75 -> 0 | E48: =SA34b!E75 -> 0 | F48: =SA34b!F75 -> 0 | G48: =SA34b!G75 -> 0 | H48: =SA34b!H75 -> 0 | I48: =SA34b!I75 -> 0 | J48: =SA34b!J75 -> 0 | K48: =SA34b!K75 -> 0
A49: Sport and Recreation Facilities | C49: =SA34b!C98 -> 3350441.17 | D49: =SA34b!D98 -> 898256.36 | E49: =SA34b!E98 -> 3677811.73 | F49: =SA34b!F98 -> 0 | G49: =SA34b!G98 -> 0 | H49: =SA34b!H98 -> 0 | I49: =SA34b!I98 -> 0 | J49: =SA34b!J98 -> 0 | K49: =SA34b!K98 -> 0
A50: Community Assets | C50: =SUM(C48:C49) -> 3350441.17 | D50: =SUM(D48:D49) -> 898256.36 | E50: 3677811.73 | F50: 0 | G50: 0 | H50: 0 | I50: 0 | J50: 0 | K50: 0
A51: Heritage Assets | C51: =SA34b!C103 -> 0 | D51: =SA34b!D103 -> 0 | E51: =SA34b!E103 -> 0 | F51: =SA34b!F103 -> 0 | G51: =SA34b!G103 -> 0 | H51: =SA34b!H103 -> 0 | I51: =SA34b!I103 -> 0 | J51: =SA34b!J103 -> 0 | K51: =SA34b!K103 -> 0
A52: Revenue Generating | C52: =SA34b!C111 -> 0 | D52: =SA34b!D111 -> 0 | E52: =SA34b!E111 -> 0 | F52: =SA34b!F111 -> 0 | G52: =SA34b!G111 -> 0 | H52: =SA34b!H111 -> 0 | I52: =SA34b!I111 -> 0 | J52: =SA34b!J111 -> 0 | K52: =SA34b!K111 -> 0
A53: Non-revenue Generating | C53: =SA34b!C114 -> 0 | D53: =SA34b!D114 -> 0 | E53: =SA34b!E114 -> 0 | F53: =SA34b!F114 -> 0 | G53: =SA34b!G114 -> 0 | H53: =SA34b!H114 -> 0 | I53: =SA34b!I114 -> 0 | J53: =SA34b!J114 -> 0 | K53: =SA34b!K114 -> 0
A54: Investment properties | C54: =SUM(C52:C53) -> 0 | D54: =SUM(D52:D53) -> 0 | E54: 0 | F54: 0 | G54: 0 | H54: 0 | I54: 0 | J54: 0 | K54: 0
A55: Operational Buildings | C55: =SA34b!C119 -> 0 | D55: =SA34b!D119 -> 1849284.29 | E55: =SA34b!E119 -> 0 | F55: =SA34b!F119 -> 0 | G55: =SA34b!G119 -> 0 | H55: =SA34b!H119 -> 0 | I55: =SA34b!I119 -> 0 | J55: =SA34b!J119 -> 0 | K55: =SA34b!K119 -> 0
A56: Housing | C56: =SA34b!C131 -> 0 | D56: =SA34b!D131 -> 0 | E56: =SA34b!E131 -> 0 | F56: =SA34b!F131 -> 0 | G56: =SA34b!G131 -> 0 | H56: =SA34b!H131 -> 0 | I56: =SA34b!I131 -> 0 | J56: =SA34b!J131 -> 0 | K56: =SA34b!K131 -> 0
A57: Other Assets | C57: =SUM(C55:C56) -> 0 | D57: =SUM(D55:D56) -> 1849284.29 | E57: 0 | F57: 0 | G57: 0 | H57: 0 | I57: 0 | J57: 0 | K57: 0
A58: Biological or Cultivated Assets | C58: =SA34b!C136 -> 0 | D58: =SA34b!D136 -> 0 | E58: =SA34b!E136 -> 0 | F58: =SA34b!F136 -> 0 | G58: =SA34b!G136 -> 0 | H58: =SA34b!H136 -> 0 | I58: =SA34b!I136 -> 0 | J58: =SA34b!J136 -> 0 | K58: =SA34b!K136 -> 0
A59: Servitudes | C59: =SA34b!C140 -> 0 | D59: =SA34b!D140 -> 0 | E59: =SA34b!E140 -> 0 | F59: =SA34b!F140 -> 0 | G59: =SA34b!G140 -> 0 | H59: =SA34b!H140 -> 0 | I59: =SA34b!I140 -> 0 | J59: =SA34b!J140 -> 0 | K59: =SA34b!K140 -> 0
A60: Licences and Rights | C60: =SA34b!C141 -> 0 | D60: =SA34b!D141 -> 0 | E60: =SA34b!E141 -> 0 | F60: =SA34b!F141 -> 0 | G60: =SA34b!G141 -> 0 | H60: =SA34b!H141 -> 0 | I60: =SA34b!I141 -> 0 | J60: =SA34b!J141 -> 0 | K60: =SA34b!K141 -> 0
A61: Intangible Assets | C61: =SUM(C59:C60) -> 0 | D61: =SUM(D59:D60) -> 0 | E61: 0 | F61: 0 | G61: 0 | H61: 0 | I61: 0 | J61: 0 | K61: 0
A62: Computer Equipment | C62: =SA34b!C149 -> 0 | D62: =SA34b!D149 -> 0 | E62: =SA34b!E149 -> 2842443.65 | F62: =SA34b!F149 -> 0 | G62: =SA34b!G149 -> 0 | H62: =SA34b!H149 -> 0 | I62: =SA34b!I149 -> 0 | J62: =SA34b!J149 -> 0 | K62: =SA34b!K149 -> 0
A63: Furniture and Office Equipment | C63: =SA34b!C152 -> 0 | D63: =SA34b!D152 -> 0 | E63: =SA34b!E152 -> 0 | F63: =SA34b!F152 -> 300000 | G63: =SA34b!G152 -> 300000 | H63: =SA34b!H152 -> 300000 | I63: =SA34b!I152 -> 500000 | J63: =SA34b!J152 -> 0 | K63: =SA34b!K152 -> 0
A64: Machinery and Equipment | C64: =SA34b!C155 -> 0 | D64: =SA34b!D155 -> 0 | E64: =SA34b!E155 -> 0 | F64: =SA34b!F155 -> 0 | G64: =SA34b!G155 -> 0 | H64: =SA34b!H155 -> 0 | I64: =SA34b!I155 -> 0 | J64: =SA34b!J155 -> 0 | K64: =SA34b!K155 -> 0
A65: Transport Assets | C65: =SA34b!C158 -> 0 | D65: =SA34b!D158 -> 0 | E65: =SA34b!E158 -> 0 | F65: =SA34b!F158 -> 0 | G65: =SA34b!G158 -> 0 | H65: =SA34b!H158 -> 0 | I65: =SA34b!I158 -> 0 | J65: =SA34b!J158 -> 0 | K65: =SA34b!K158 -> 0
A66: Land | C66: =SA34b!C161 -> 0 | D66: =SA34b!D161 -> 0 | E66: =SA34b!E161 -> 0 | F66: =SA34b!F161 -> 0 | G66: =SA34b!G161 -> 0 | H66: =SA34b!H161 -> 0 | I66: =SA34b!I161 -> 0 | J66: =SA34b!J161 -> 0 | K66: =SA34b!K161 -> 0
A67: Zoo's, Marine and Non-biological Animals | C67: =SA34b!C164 -> 0 | D67: =SA34b!D164 -> 0 | E67: =SA34b!E164 -> 0 | F67: =SA34b!F164 -> 0 | G67: =SA34b!G164 -> 0 | H67: =SA34b!H164 -> 0 | I67: =SA34b!I164 -> 0 | J67: =SA34b!J164 -> 0 | K67: =SA34b!K164 -> 0
A69: Total Upgrading of Existing Assets | B69: 6 | C69: =C79+C82+C83+C86+C89+C90+SUM(C93:C99) -> 241213.78 | D69: =D79+D82+D83+D86+D89+D90+SUM(D93:D99) -> 0 | E69: 0 | F69: 310000 | G69: 310000 | H69: 310000 | I69: 0 | J69: 0 | K69: 0
A70: Roads Infrastructure | C70: =SA34e!C7 -> 0 | D70: =SA34e!D7 -> 0 | E70: =SA34e!E7 -> 0 | F70: =SA34e!F7 -> 0 | G70: =SA34e!G7 -> 0 | H70: =SA34e!H7 -> 0 | I70: =SA34e!I7 -> 0 | J70: =SA34e!J7 -> 0 | K70: =SA34e!K7 -> 0
A71: Storm water Infrastructure | C71: =SA34e!C12 -> 0 | D71: =SA34e!D12 -> 0 | E71: =SA34e!E12 -> 0 | F71: =SA34e!F12 -> 0 | G71: =SA34e!G12 -> 0 | H71: =SA34e!H12 -> 0 | I71: =SA34e!I12 -> 0 | J71: =SA34e!J12 -> 0 | K71: =SA34e!K12 -> 0
A72: Electrical Infrastructure | C72: =SA34e!C16 -> 0 | D72: =SA34e!D16 -> 0 | E72: =SA34e!E16 -> 0 | F72: =SA34e!F16 -> 0 | G72: =SA34e!G16 -> 0 | H72: =SA34e!H16 -> 0 | I72: =SA34e!I16 -> 0 | J72: =SA34e!J16 -> 0 | K72: =SA34e!K16 -> 0
A73: Water Supply Infrastructure | C73: =SA34e!C26 -> 0 | D73: =SA34e!D26 -> 0 | E73: =SA34e!E26 -> 0 | F73: =SA34e!F26 -> 0 | G73: =SA34e!G26 -> 0 | H73: =SA34e!H26 -> 0 | I73: =SA34e!I26 -> 0 | J73: =SA34e!J26 -> 0 | K73: =SA34e!K26 -> 0
A74: Sanitation Infrastructure | C74: =SA34e!C37 -> 0 | D74: =SA34e!D37 -> 0 | E74: =SA34e!E37 -> 0 | F74: =SA34e!F37 -> 0 | G74: =SA34e!G37 -> 0 | H74: =SA34e!H37 -> 0 | I74: =SA34e!I37 -> 0 | J74: =SA34e!J37 -> 0 | K74: =SA34e!K37 -> 0
A75: Solid Waste Infrastructure | C75: =SA34e!C44 -> 0 | D75: =SA34e!D44 -> 0 | E75: =SA34e!E44 -> 0 | F75: =SA34e!F44 -> 0 | G75: =SA34e!G44 -> 0 | H75: =SA34e!H44 -> 0 | I75: =SA34e!I44 -> 0 | J75: =SA34e!J44 -> 0 | K75: =SA34e!K44 -> 0
A76: Rail Infrastructure | C76: =SA34e!C52 -> 0 | D76: =SA34e!D52 -> 0 | E76: =SA34e!E52 -> 0 | F76: =SA34e!F52 -> 0 | G76: =SA34e!G52 -> 0 | H76: =SA34e!H52 -> 0 | I76: =SA34e!I52 -> 0 | J76: =SA34e!J52 -> 0 | K76: =SA34e!K52 -> 0
A77: Coastal Infrastructure | C77: =SA34e!C62 -> 0 | D77: =SA34e!D62 -> 0 | E77: =SA34e!E62 -> 0 | F77: =SA34e!F62 -> 0 | G77: =SA34e!G62 -> 0 | H77: =SA34e!H62 -> 0 | I77: =SA34e!I62 -> 0 | J77: =SA34e!J62 -> 0 | K77: =SA34e!K62 -> 0
A78: Information and Communication Infrastructure | C78: =SA34e!C68 -> 0 | D78: =SA34e!D68 -> 0 | E78: =SA34e!E68 -> 0 | F78: =SA34e!F68 -> 0 | G78: =SA34e!G68 -> 0 | H78: =SA34e!H68 -> 0 | I78: =SA34e!I68 -> 0 | J78: =SA34e!J68 -> 0 | K78: =SA34e!K68 -> 0
A79: Infrastructure | C79: =SUM(C70:C78) -> 0 | D79: 0 | E79: 0 | F79: 0 | G79: 0 | H79: 0 | I79: 0 | J79: 0 | K79: 0
A80: Community Facilities | C80: =SA34e!C75 -> 0 | D80: =SA34e!D75 -> 0 | E80: =SA34e!E75 -> 0 | F80: =SA34e!F75 -> 0 | G80: =SA34e!G75 -> 0 | H80: =SA34e!H75 -> 0 | I80: =SA34e!I75 -> 0 | J80: =SA34e!J75 -> 0 | K80: =SA34e!K75 -> 0
A81: Sport and Recreation Facilities | C81: =SA34e!C98 -> 0 | D81: =SA34e!D98 -> 0 | E81: =SA34e!E98 -> 0 | F81: =SA34e!F98 -> 0 | G81: =SA34e!G98 -> 0 | H81: =SA34e!H98 -> 0 | I81: =SA34e!I98 -> 0 | J81: =SA34e!J98 -> 0 | K81: =SA34e!K98 -> 0
A82: Community Assets | C82: =SUM(C80:C81) -> 0 | D82: 0 | E82: 0 | F82: 0 | G82: 0 | H82: 0 | I82: 0 | J82: 0 | K82: 0
A83: Heritage Assets | C83: =SA34e!C103 -> 0 | D83: =SA34e!D103 -> 0 | E83: =SA34e!E103 -> 0 | F83: =SA34e!F103 -> 0 | G83: =SA34e!G103 -> 0 | H83: =SA34e!H103 -> 0 | I83: =SA34e!I103 -> 0 | J83: =SA34e!J103 -> 0 | K83: =SA34e!K103 -> 0
A84: Revenue Generating | C84: =SA34e!C111 -> 0 | D84: =SA34e!D111 -> 0 | E84: =SA34e!E111 -> 0 | F84: =SA34e!F111 -> 0 | G84: =SA34e!G111 -> 0 | H84: =SA34e!H111 -> 0 | I84: =SA34e!I111 -> 0 | J84: =SA34e!J111 -> 0 | K84: =SA34e!K111 -> 0
A85: Non-revenue Generating | C85: =SA34e!C114 -> 0 | D85: =SA34e!D114 -> 0 | E85: =SA34e!E114 -> 0 | F85: =SA34e!F114 -> 0 | G85: =SA34e!G114 -> 0 | H85: =SA34e!H114 -> 0 | I85: =SA34e!I114 -> 0 | J85: =SA34e!J114 -> 0 | K85: =SA34e!K114 -> 0
A86: Investment properties | C86: =SUM(C84:C85) -> 0 | D86: 0 | E86: 0 | F86: 0 | G86: 0 | H86: 0 | I86: 0 | J86: 0 | K86: 0
A87: Operational Buildings | C87: =SA34e!C119 -> 0 | D87: =SA34e!D119 -> 0 | E87: =SA34e!E119 -> 0 | F87: =SA34e!F119 -> 0 | G87: =SA34e!G119 -> 0 | H87: =SA34e!H119 -> 0 | I87: =SA34e!I119 -> 0 | J87: =SA34e!J119 -> 0 | K87: =SA34e!K119 -> 0
A88: Housing | C88: =SA34e!C131 -> 0 | D88: =SA34e!D131 -> 0 | E88: =SA34e!E131 -> 0 | F88: =SA34e!F131 -> 0 | G88: =SA34e!G131 -> 0 | H88: =SA34e!H131 -> 0 | I88: =SA34e!I131 -> 0 | J88: =SA34e!J131 -> 0 | K88: =SA34e!K131 -> 0
A89: Other Assets | C89: =SUM(C87:C88) -> 0 | D89: 0 | E89: 0 | F89: 0 | G89: 0 | H89: 0 | I89: 0 | J89: 0 | K89: 0
A90: Biological or Cultivated Assets | C90: =SA34e!C136 -> 0 | D90: =SA34e!D136 -> 0 | E90: =SA34e!E136 -> 0 | F90: =SA34e!F136 -> 0 | G90: =SA34e!G136 -> 0 | H90: =SA34e!H136 -> 0 | I90: =SA34e!I136 -> 0 | J90: =SA34e!J136 -> 0 | K90: =SA34e!K136 -> 0
A91: Servitudes | C91: =SA34e!C140 -> 0 | D91: =SA34e!D140 -> 0 | E91: =SA34e!E140 -> 0 | F91: =SA34e!F140 -> 0 | G91: =SA34e!G140 -> 0 | H91: =SA34e!H140 -> 0 | I91: =SA34e!I140 -> 0 | J91: =SA34e!J140 -> 0 | K91: =SA34e!K140 -> 0
A92: Licences and Rights | C92: =SA34e!C141 -> 0 | D92: =SA34e!D141 -> 0 | E92: =SA34e!E141 -> 0 | F92: =SA34e!F141 -> 0 | G92: =SA34e!G141 -> 0 | H92: =SA34e!H141 -> 0 | I92: =SA34e!I141 -> 0 | J92: =SA34e!J141 -> 0 | K92: =SA34e!K141 -> 0
A93: Intangible Assets | C93: =SUM(C91:C92) -> 0 | D93: 0 | E93: 0 | F93: 0 | G93: 0 | H93: 0 | I93: 0 | J93: 0 | K93: 0
A94: Computer Equipment | C94: =SA34e!C149 -> 0 | D94: =SA34e!D149 -> 0 | E94: =SA34e!E149 -> 0 | F94: =SA34e!F149 -> 0 | G94: =SA34e!G149 -> 0 | H94: =SA34e!H149 -> 0 | I94: =SA34e!I149 -> 0 | J94: =SA34e!J149 -> 0 | K94: =SA34e!K149 -> 0
A95: Furniture and Office Equipment | C95: =SA34e!C152 -> 0 | D95: =SA34e!D152 -> 0 | E95: =SA34e!E152 -> 0 | F95: =SA34e!F152 -> 0 | G95: =SA34e!G152 -> 0 | H95: =SA34e!H152 -> 0 | I95: =SA34e!I152 -> 0 | J95: =SA34e!J152 -> 0 | K95: =SA34e!K152 -> 0
A96: Machinery and Equipment | C96: =SA34e!C155 -> 241213.78 | D96: =SA34e!D155 -> 0 | E96: =SA34e!E155 -> 0 | F96: =SA34e!F155 -> 310000 | G96: =SA34e!G155 -> 310000 | H96: =SA34e!H155 -> 310000 | I96: =SA34e!I155 -> 0 | J96: =SA34e!J155 -> 0 | K96: =SA34e!K155 -> 0
A97: Transport Assets | C97: =SA34e!C158 -> 0 | D97: =SA34e!D158 -> 0 | E97: =SA34e!E158 -> 0 | F97: =SA34e!F158 -> 0 | G97: =SA34e!G158 -> 0 | H97: =SA34e!H158 -> 0 | I97: =SA34e!I158 -> 0 | J97: =SA34e!J158 -> 0 | K97: =SA34e!K158 -> 0
A98: Land | C98: =SA34e!C161 -> 0 | D98: =SA34e!D161 -> 0 | E98: =SA34e!E161 -> 0 | F98: =SA34e!F161 -> 0 | G98: =SA34e!G161 -> 0 | H98: =SA34e!H161 -> 0 | I98: =SA34e!I161 -> 0 | J98: =SA34e!J161 -> 0 | K98: =SA34e!K161 -> 0
A99: Zoo's, Marine and Non-biological Animals | C99: =SA34e!C164 -> 0 | D99: =SA34e!D164 -> 0 | E99: =SA34e!E164 -> 0 | F99: =SA34e!F164 -> 0 | G99: =SA34e!G164 -> 0 | H99: =SA34e!H164 -> 0 | I99: =SA34e!I164 -> 0 | J99: =SA34e!J164 -> 0 | K99: =SA34e!K164 -> 0
A101: Total Capital Expenditure | B101: 4 | C101: =+C5+C37+C69 -> 45682357.98 | D101: =+D5+D37+D69 -> 38284503.29 | E101: 50056507.07 | F101: 65393793 | G101: 64688807 | H101: 64688807 | I101: 48852400 | J101: 61785100 | K101: 65760440
A102: Roads Infrastructure | C102: =+C6+C38+C70 -> 34264180.05 | D102: =+D6+D38+D70 -> 29015957.46 | E102: 28631128.36 | F102: 42110000 | G102: 41372704 | H102: 41372704 | I102: 40802400 | J102: 43885100 | K102: 46070400
A103: Storm water Infrastructure | C103: =+C7+C39+C71 -> 0 | D103: 0 | E103: 0 | F103: 0 | G103: 1000000 | H103: 1000000 | I103: 0 | J103: 0 | K103: 0
A104: Electrical Infrastructure | C104: 282388.92 | D104: 3329856 | E104: 11793428.42 | F104: 15500000 | G104: 14682147 | H104: 14682147 | I104: 4550000 | J104: 15600000 | K104: 13900000
A105: Water Supply Infrastructure | C105: 0 | D105: 0 | E105: 0 | F105: 0 | G105: 0 | H105: 0 | I105: 0 | J105: 0 | K105: 0
A106: Sanitation Infrastructure | C106: 0 | D106: 0 | E106: 0 | F106: 0 | G106: 0 | H106: 0 | I106: 0 | J106: 0 | K106: 0
A107: Solid Waste Infrastructure | C107: 0 | D107: 0 | E107: 0 | F107: 1800000 | G107: 1800000 | H107: 1800000 | I107: 0 | J107: 0 | K107: 0
A108: Rail Infrastructure | C108: 1032750 | D108: 0 | E108: 0 | F108: 0 | G108: 0 | H108: 0 | I108: 0 | J108: 0 | K108: 0
A109: Coastal Infrastructure | C109: 0 | D109: 0 | E109: 0 | F109: 0 | G109: 0 | H109: 0 | I109: 0 | J109: 0 | K109: 0
A110: Information and Communication Infrastructure | C110: 0 | D110: 0 | E110: 0 | F110: 0 | G110: 0 | H110: 0 | I110: 0 | J110: 0 | K110: 0
A111: Infrastructure | C111: =SUM(C102:C110) -> 35579318.97 | D111: =SUM(D102:D110) -> 32345813.46 | E111: 40424556.78 | F111: 59410000 | G111: 58854851 | H111: 58854851 | I111: 45352400 | J111: 59485100 | K111: 59970400
A112: Community Facilities | C112: =+C16+C48+C80 -> 1208203.68 | D112: =+D16+D48+D80 -> 0 | E112: 0 | F112: 0 | G112: 0 | H112: 0 | I112: 0 | J112: 0 | K112: 0
A113: Sport and Recreation Facilities | C113: =+C17+C49+C81 -> 5724593.53 | D113: =+D17+D49+D81 -> 898256.36 | E113: 3677811.73 | F113: 0 | G113: 0 | H113: 0 | I113: 0 | J113: 0 | K113: 0
A114: Community Assets | C114: =SUM(C112:C113) -> 6932797.21 | D114: =SUM(D112:D113) -> 898256.36 | E114: 3677811.73 | F114: 0 | G114: 0 | H114: 0 | I114: 0 | J114: 0 | K114: 0
A115: Heritage Assets | C115: =+C19+C51+C83 -> 0 | D115: =+D19+D51+D83 -> 0 | E115: 0 | F115: 0 | G115: 0 | H115: 0 | I115: 0 | J115: 0 | K115: 0
A116: Revenue Generating | C116: =+C20+C52+C84 -> 0 | D116: =+D20+D52+D84 -> 0 | E116: 0 | F116: 0 | G116: 0 | H116: 0 | I116: 0 | J116: 0 | K116: 0
A117: Non-revenue Generating | C117: =+C21+C53+C85 -> 0 | D117: =+D21+D53+D85 -> 0 | E117: 0 | F117: 0 | G117: 0 | H117: 0 | I117: 0 | J117: 0 | K117: 0
A118: Investment properties | C118: =SUM(C116:C117) -> 0 | D118: =SUM(D116:D117) -> 0 | E118: 0 | F118: 0 | G118: 0 | H118: 0 | I118: 0 | J118: 0 | K118: 0
A119: Operational Buildings | C119: =+C23+C55+C87 -> 622910.5 | D119: =+D23+D55+D87 -> 1943534.29 | E119: 0 | F119: 2000000 | G119: 2000000 | H119: 2000000 | I119: 2000000 | J119: 2000000 | K119: 0
A120: Housing | C120: =+C24+C56+C88 -> 0 | D120: =+D24+D56+D88 -> 0 | E120: 0 | F120: 0 | G120: 0 | H120: 0 | I120: 0 | J120: 0 | K120: 0
A121: Other Assets | C121: =SUM(C119:C120) -> 622910.5 | D121: 1943534.29 | E121: 0 | F121: 2000000 | G121: 2000000 | H121: 2000000 | I121: 2000000 | J121: 2000000 | K121: 0
A122: Biological or Cultivated Assets | C122: =+C26+C58+C90 -> 0 | D122: =+D26+D58+D90 -> 0 | E122: 0 | F122: 0 | G122: 0 | H122: 0 | I122: 0 | J122: 0 | K122: 0
A123: Servitudes | C123: =+C27+C59+C91 -> 0 | D123: =+D27+D59+D91 -> 0 | E123: 0 | F123: 0 | G123: 0 | H123: 0 | I123: 0 | J123: 0 | K123: 0
A124: Licences and Rights | C124: =+C28+C60+C92 -> 531721.74 | D124: =+D28+D60+D92 -> 58650 | E124: 0 | F124: 0 | G124: 0 | H124: 0 | I124: 0 | J124: 0 | K124: 0
A125: Intangible Assets | C125: =SUM(C123:C124) -> 531721.74 | D125: =SUM(D123:D124) -> 58650 | E125: 0 | F125: 0 | G125: 0 | H125: 0 | I125: 0 | J125: 0 | K125: 0
A126: Computer Equipment | C126: =+C30+C62+C94 -> 129726.5 | D126: =+D30+D62+D94 -> 995346.52 | E126: 4361295.82 | F126: 723793 | G126: 828500 | H126: 828500 | I126: 800000 | J126: 0 | K126: 0
A127: Furniture and Office Equipment | C127: =+C31+C63+C95 -> 434181.27 | D127: 255048.69 | E127: 299643.69 | F127: 650000 | G127: 600000 | H127: 600000 | I127: 700000 | J127: 300000 | K127: 0
A128: Machinery and Equipment | C128: 821332.23 | D128: 111398 | E128: 437646.27 | F128: 1110000 | G128: 1100000 | H128: 1100000 | I128: 0 | J128: 0 | K128: 0
A129: Transport Assets | C129: 630369.56 | D129: 1676455.97 | E129: 855552.78 | F129: 1500000 | G129: 1305456 | H129: 1305456 | I129: 0 | J129: 0 | K129: 5790040
A130: Land | C130: 0 | D130: 0 | E130: 0 | F130: 0 | G130: 0 | H130: 0 | I130: 0 | J130: 0 | K130: 0
A131: Zoo's, Marine and Non-biological Animals | C131: 0 | D131: 0 | E131: 0 | F131: 0 | G131: 0 | H131: 0 | I131: 0 | J131: 0 | K131: 0
A132: TOTAL CAPITAL EXPENDITURE - Asset class | C132: =+C5+C37+C69 -> 45682357.98 | D132: =+D5+D37+D69 -> 38284503.29 | E132: 50056507.07 | F132: 65393793 | G132: 64688807 | H132: 64688807 | I132: 48852400 | J132: 61785100 | K132: 65760440
A134: ASSET REGISTER SUMMARY - PPE (WDV) | B134: 5 | C134: =C144+C147+C148+C151+C154+C155+C158+C159+C160+C161+C162+C163+C164 -> 243857294.8 | D134: =D144+D147+D148+D151+D154+D155+D158+D159+D160+D161+D162+D163+D164 -> 237053425.8 | E134: 299792338.4 | F134: 366194152 | G134: 365489166 | H134: 365489166 | I134: 330788165 | J134: 358151720 | K134: 377271337
A135: Roads Infrastructure | C135: 105531224.3 | D135: 112705309.9 | E135: 135506823.5 | F135: 186651326 | G135: 185914030 | H135: 185914030 | I135: 167158681 | J135: 177008984 | K135: 186300132
A136: Storm water Infrastructure | C136: 0 | D136: 0 | E136: 0 | F136: 0 | G136: 1000000 | H136: 1000000 | I136: 0 | J136: 0 | K136: 0
A137: Electrical Infrastructure | C137: 12407807.97 | D137: 14741544.4 | E137: 25810095.82 | F137: 32537438 | G137: 31719585 | H137: 31719585 | I137: 29490389 | J137: 41792629 | K137: 41406798
A138: Water Supply Infrastructure
A139: Sanitation Infrastructure
A140: Solid Waste Infrastructure | C140: 0 | D140: 0 | E140: 0 | F140: 1800000 | G140: 1800000 | H140: 1800000 | I140: 0 | J140: 0 | K140: 0
A141: Rail Infrastructure
A142: Coastal Infrastructure
A143: Information and Communication Infrastructure
A144: Infrastructure | C144: =SUM(C135:C143) -> 117939032.3 | D144: =SUM(D135:D143) -> 127446854.3 | E144: 161316919.3 | F144: 220988764 | G144: 220433615 | H144: 220433615 | I144: 196649070 | J144: 218801613 | K144: 227706930
A147: Community Assets | C147: 40769827.55 | D147: 25909165.43 | E147: 58970728.15 | F147: 44389641 | G147: 44389641 | H147: 44389641 | I147: 58085613 | J147: 61002194 | K147: 64064042
A148: Heritage Assets | C148: 368150 | D148: 368150 | E148: 380300 | F148: 368150 | G148: 368150 | H148: 368150 | I148: 368150 | J148: 368150 | K148: 368150
A151: Investment properties | C151: 1701000.96 | D151: 1657667.59 | E151: 1614334.23 | F151: 1755951 | G151: 1755951 | H151: 1755951 | I151: 1755951 | J151: 1755951 | K151: 1755951
A154: Other Assets | C154: 29209251.24 | D154: 29866316.33 | E154: 28654234.5 | F154: 33894364 | G154: 33894364 | H154: 33894364 | I154: 28727974 | J154: 30082184 | K154: 29502713
A155: Biological or Cultivated Assets
A158: Intangible Assets | C158: 1949128.08 | D158: -69659.86 | E158: -3.9 | F158: 1635088 | G158: 1635088 | H158: 1635088 | I158: 1037819 | J158: 1007568 | K158: 975270
A159: Computer Equipment | C159: 1696434.44 | D159: 592792.93 | E159: 5740653.84 | F159: 4070606 | G159: 4175313 | H159: 4175313 | I159: 5695313 | J159: 5145149 | K159: 5406819
A160: Furniture and Office Equipment | C160: 4223931.55 | D160: 3273097.42 | E160: 2787012.7 | F160: 2679543 | G160: 2629543 | H160: 2629543 | I160: 1556461 | J160: 1210866 | K160: 966495
A161: Machinery and Equipment | C161: 11103908 | D161: 10037363.47 | E161: 9822808.39 | F161: 17985361 | G161: 17975361 | H161: 17975361 | I161: 8308145 | J161: 8732785 | K161: 9177474
A162: Transport Assets | C162: 12727202.62 | D162: 12313850.34 | E162: 11716632.43 | F162: 13254608 | G162: 13060064 | H162: 13060064 | I162: 9814950 | J162: 10317104 | K162: 16632928
A163: Land | C163: 22169428.05 | D163: 25657827.81 | E163: 18788718.76 | F163: 25172076 | G163: 25172076 | H163: 25172076 | I163: 18788719 | J163: 19728156 | K163: 20714565
A164: Zoo's, Marine and Non-biological Animals
A165: TOTAL ASSET REGISTER SUMMARY - PPE (WDV) | B165: 5 | C165: =C144+C147+C148+C151+C154+C155+C158+C159+C160+C161+C162+C163+C164 -> 243857294.8 | D165: =D144+D147+D148+D151+D154+D155+D158+D159+D160+D161+D162+D163+D164 -> 237053425.8 | E165: 299792338.4 | F165: 366194152 | G165: 365489166 | H165: 365489166 | I165: 330788165 | J165: 358151720 | K165: 377271337
A167: EXPENDITURE OTHER ITEMS | C167: =SUM(C168:C169) -> 20139475.56 | D167: =SUM(D168:D169) -> 22160286.57 | E167: 30313859.18 | F167: 37072034 | G167: 36377034 | H167: 36377034 | I167: 32893629 | J167: 34340952 | K167: 35886295
A168: Depreciation | B168: 7 | C168: =SA34d!C167 -> 12277161.1 | D168: =SA34d!D167 -> 15880078.4 | E168: =SA34d!E167 -> 12114558.47 | F168: =SA34d!F167 -> 18994790 | G168: =SA34d!G167 -> 18994790 | H168: =SA34d!H167 -> 18994790 | I168: =SA34d!I167 -> 19754629 | J168: =SA34d!J167 -> 20623834 | K168: =SA34d!K167 -> 21551907
A169: Repairs and Maintenance by Asset Class | B169: 3 | C169: =C179+C182+C183+C186+C189+C190+SUM(C193:C199) -> 7862314.46 | D169: =D179+D182+D183+D186+D189+D190+SUM(D193:D199) -> 6280208.17 | E169: 18199300.71 | F169: 18077244 | G169: 17382244 | H169: 17382244 | I169: 13139000 | J169: 13717118 | K169: 14334388
A170: Roads Infrastructure | C170: =SA34c!C7 -> 2329378.06 | D170: =SA34c!D7 -> 1289849.36 | E170: =SA34c!E7 -> 7759768.58 | F170: =SA34c!F7 -> 7864718 | G170: =SA34c!G7 -> 5969718 | H170: =SA34c!H7 -> 5969718 | I170: =SA34c!I7 -> 3796660 | J170: =SA34c!J7 -> 3963714 | K170: =SA34c!K7 -> 4142081
A171: Storm water Infrastructure | C171: =SA34c!C12 -> 0 | D171: =SA34c!D12 -> 0 | E171: =SA34c!E12 -> 0 | F171: =SA34c!F12 -> 0 | G171: =SA34c!G12 -> 0 | H171: =SA34c!H12 -> 0 | I171: =SA34c!I12 -> 0 | J171: =SA34c!J12 -> 0 | K171: =SA34c!K12 -> 0
A172: Electrical Infrastructure | C172: =SA34c!C16 -> 0 | D172: =SA34c!D16 -> 0 | E172: =SA34c!E16 -> 0 | F172: =SA34c!F16 -> 0 | G172: =SA34c!G16 -> 0 | H172: =SA34c!H16 -> 0 | I172: =SA34c!I16 -> 0 | J172: =SA34c!J16 -> 0 | K172: =SA34c!K16 -> 0
A173: Water Supply Infrastructure | C173: =SA34c!C26 -> 0 | D173: =SA34c!D26 -> 0 | E173: =SA34c!E26 -> 0 | F173: =SA34c!F26 -> 0 | G173: =SA34c!G26 -> 0 | H173: =SA34c!H26 -> 0 | I173: =SA34c!I26 -> 0 | J173: =SA34c!J26 -> 0 | K173: =SA34c!K26 -> 0
A174: Sanitation Infrastructure | C174: =SA34c!C37 -> 0 | D174: =SA34c!D37 -> 0 | E174: =SA34c!E37 -> 0 | F174: =SA34c!F37 -> 0 | G174: =SA34c!G37 -> 0 | H174: =SA34c!H37 -> 0 | I174: =SA34c!I37 -> 0 | J174: =SA34c!J37 -> 0 | K174: =SA34c!K37 -> 0
A175: Solid Waste Infrastructure | C175: =SA34c!C44 -> 0 | D175: =SA34c!D44 -> 0 | E175: =SA34c!E44 -> 0 | F175: =SA34c!F44 -> 0 | G175: =SA34c!G44 -> 0 | H175: =SA34c!H44 -> 0 | I175: =SA34c!I44 -> 0 | J175: =SA34c!J44 -> 0 | K175: =SA34c!K44 -> 0
A176: Rail Infrastructure | C176: =SA34c!C52 -> 0 | D176: =SA34c!D52 -> 0 | E176: =SA34c!E52 -> 0 | F176: =SA34c!F52 -> 0 | G176: =SA34c!G52 -> 0 | H176: =SA34c!H52 -> 0 | I176: =SA34c!I52 -> 0 | J176: =SA34c!J52 -> 0 | K176: =SA34c!K52 -> 0
A177: Coastal Infrastructure | C177: =SA34c!C62 -> 0 | D177: =SA34c!D62 -> 0 | E177: =SA34c!E62 -> 0 | F177: =SA34c!F62 -> 0 | G177: =SA34c!G62 -> 0 | H177: =SA34c!H62 -> 0 | I177: =SA34c!I62 -> 0 | J177: =SA34c!J62 -> 0 | K177: =SA34c!K62 -> 0
A178: Information and Communication Infrastructure | C178: =SA34c!C68 -> 0 | D178: =SA34c!D68 -> 0 | E178: =SA34c!E68 -> 0 | F178: =SA34c!F68 -> 0 | G178: =SA34c!G68 -> 0 | H178: =SA34c!H68 -> 0 | I178: =SA34c!I68 -> 0 | J178: =SA34c!J68 -> 0 | K178: =SA34c!K68 -> 0
A179: Infrastructure | C179: =SUM(C170:C178) -> 2329378.06 | D179: =SUM(D170:D178) -> 1289849.36 | E179: 7759768.58 | F179: 7864718 | G179: 5969718 | H179: 5969718 | I179: 3796660 | J179: 3963714 | K179: 4142081
A180: Community Facilities | C180: =SA34c!C75 -> 99257.61 | D180: =SA34c!D75 -> 55600 | E180: =SA34c!E75 -> 88490 | F180: =SA34c!F75 -> 107800 | G180: =SA34c!G75 -> 107800 | H180: =SA34c!H75 -> 107800 | I180: =SA34c!I75 -> 112112 | J180: =SA34c!J75 -> 117045 | K180: =SA34c!K75 -> 122312
A181: Sport and Recreation Facilities | C181: =SA34c!C98 -> 0 | D181: =SA34c!D98 -> 0 | E181: =SA34c!E98 -> 0 | F181: =SA34c!F98 -> 0 | G181: =SA34c!G98 -> 0 | H181: =SA34c!H98 -> 0 | I181: =SA34c!I98 -> 0 | J181: =SA34c!J98 -> 0 | K181: =SA34c!K98 -> 0
A182: Community Assets | C182: =SUM(C180:C181) -> 99257.61 | D182: 55600 | E182: 88490 | F182: 107800 | G182: 107800 | H182: 107800 | I182: 112112 | J182: 117045 | K182: 122312
A183: Heritage Assets | C183: =SA34c!C103 -> 0 | D183: =SA34c!D103 -> 0 | E183: =SA34c!E103 -> 0 | F183: =SA34c!F103 -> 0 | G183: =SA34c!G103 -> 0 | H183: =SA34c!H103 -> 0 | I183: =SA34c!I103 -> 0 | J183: =SA34c!J103 -> 0 | K183: =SA34c!K103 -> 0
A184: Revenue Generating | C184: =SA34c!C111 -> 0 | D184: =SA34c!D111 -> 0 | E184: =SA34c!E111 -> 0 | F184: =SA34c!F111 -> 0 | G184: =SA34c!G111 -> 0 | H184: =SA34c!H111 -> 0 | I184: =SA34c!I111 -> 0 | J184: =SA34c!J111 -> 0 | K184: =SA34c!K111 -> 0
A185: Non-revenue Generating | C185: =SA34c!C114 -> 0 | D185: =SA34c!D114 -> 0 | E185: =SA34c!E114 -> 0 | F185: =SA34c!F114 -> 0 | G185: =SA34c!G114 -> 0 | H185: =SA34c!H114 -> 0 | I185: =SA34c!I114 -> 0 | J185: =SA34c!J114 -> 0 | K185: =SA34c!K114 -> 0
A186: Investment properties | C186: =SUM(C184:C185) -> 0 | D186: 0 | E186: 0 | F186: 0 | G186: 0 | H186: 0 | I186: 0 | J186: 0 | K186: 0
A187: Operational Buildings | C187: =SA34c!C119 -> 754287.3 | D187: =SA34c!D119 -> 555083.98 | E187: =SA34c!E119 -> 2242907.03 | F187: =SA34c!F119 -> 1531200 | G187: =SA34c!G119 -> 1531200 | H187: =SA34c!H119 -> 1531200 | I187: =SA34c!I119 -> 1100000 | J187: =SA34c!J119 -> 1148400 | K187: =SA34c!K119 -> 1200078
A188: Housing | C188: =SA34c!C131 -> 0 | D188: =SA34c!D131 -> 0 | E188: =SA34c!E131 -> 0 | F188: =SA34c!F131 -> 0 | G188: =SA34c!G131 -> 0 | H188: =SA34c!H131 -> 0 | I188: =SA34c!I131 -> 0 | J188: =SA34c!J131 -> 0 | K188: =SA34c!K131 -> 0
A189: Other Assets | C189: =SUM(C187:C188) -> 754287.3 | D189: 555083.98 | E189: 2242907.03 | F189: 1531200 | G189: 1531200 | H189: 1531200 | I189: 1100000 | J189: 1148400 | K189: 1200078
A190: Biological or Cultivated Assets | C190: =SA34c!C136 -> 0 | D190: =SA34c!D136 -> 0 | E190: =SA34c!E136 -> 0 | F190: =SA34c!F136 -> 0 | G190: =SA34c!G136 -> 0 | H190: =SA34c!H136 -> 0 | I190: =SA34c!I136 -> 0 | J190: =SA34c!J136 -> 0 | K190: =SA34c!K136 -> 0
A191: Servitudes | C191: =SA34c!C140 -> 0 | D191: =SA34c!D140 -> 0 | E191: =SA34c!E140 -> 0 | F191: =SA34c!F140 -> 0 | G191: =SA34c!G140 -> 0 | H191: =SA34c!H140 -> 0 | I191: =SA34c!I140 -> 0 | J191: =SA34c!J140 -> 0 | K191: =SA34c!K140 -> 0
A192: Licences and Rights | C192: =SA34c!C141 -> 0 | D192: =SA34c!D141 -> 0 | E192: =SA34c!E141 -> 0 | F192: =SA34c!F141 -> 0 | G192: =SA34c!G141 -> 0 | H192: =SA34c!H141 -> 0 | I192: =SA34c!I141 -> 0 | J192: =SA34c!J141 -> 0 | K192: =SA34c!K141 -> 0
A193: Intangible Assets | C193: =SUM(C191:C192) -> 0 | D193: 0 | E193: 0 | F193: 0 | G193: 0 | H193: 0 | I193: 0 | J193: 0 | K193: 0
A194: Computer Equipment | C194: =SA34c!C149 -> 802264.21 | D194: =SA34c!D149 -> 1005744.77 | E194: =SA34c!E149 -> 2361672.96 | F194: =SA34c!F149 -> 2631200 | G194: =SA34c!G149 -> 2531200 | H194: =SA34c!H149 -> 2531200 | I194: =SA34c!I149 -> 2064448 | J194: =SA34c!J149 -> 2155284 | K194: =SA34c!K149 -> 2252272
A195: Furniture and Office Equipment | C195: =SA34c!C152 -> 185209.83 | D195: =SA34c!D152 -> 70483.69 | E195: =SA34c!E152 -> 302729 | F195: =SA34c!F152 -> 200000 | G195: =SA34c!G152 -> 200000 | H195: =SA34c!H152 -> 200000 | I195: =SA34c!I152 -> 208000 | J195: =SA34c!J152 -> 217152 | K195: =SA34c!K152 -> 226924
A196: Machinery and Equipment | C196: =SA34c!C155 -> 2802665.98 | D196: =SA34c!D155 -> 2533127.48 | E196: =SA34c!E155 -> 3938580.38 | F196: =SA34c!F155 -> 4029704 | G196: =SA34c!G155 -> 5329704 | H196: =SA34c!H155 -> 5329704 | I196: =SA34c!I155 -> 4076653 | J196: =SA34c!J155 -> 4256026 | K196: =SA34c!K155 -> 4447547
A197: Transport Assets | C197: =SA34c!C158 -> 889251.47 | D197: =SA34c!D158 -> 770318.89 | E197: =SA34c!E158 -> 1505152.76 | F197: =SA34c!F158 -> 1712622 | G197: =SA34c!G158 -> 1712622 | H197: =SA34c!H158 -> 1712622 | I197: =SA34c!I158 -> 1781127 | J197: =SA34c!J158 -> 1859497 | K197: =SA34c!K158 -> 1943174
A198: Land | C198: =SA34c!C161 -> 0 | D198: =SA34c!D161 -> 0 | E198: =SA34c!E161 -> 0 | F198: =SA34c!F161 -> 0 | G198: =SA34c!G161 -> 0 | H198: =SA34c!H161 -> 0 | I198: =SA34c!I161 -> 0 | J198: =SA34c!J161 -> 0 | K198: =SA34c!K161 -> 0
A199: Zoo's, Marine and Non-biological Animals | C199: =SA34c!C164 -> 0 | D199: =SA34c!D164 -> 0 | E199: =SA34c!E164 -> 0 | F199: =SA34c!F164 -> 0 | G199: =SA34c!G164 -> 0 | H199: =SA34c!H164 -> 0 | I199: =SA34c!I164 -> 0 | J199: =SA34c!J164 -> 0 | K199: =SA34c!K164 -> 0
A201: TOTAL EXPENDITURE OTHER ITEMS | C201: =SUM(C168:C169) -> 20139475.56 | D201: 22160286.57 | E201: 30313859.18 | F201: 37072034 | G201: 36377034 | H201: 36377034 | I201: 32893629 | J201: 34340952 | K201: 35886295
A203: Renewal and upgrading of Existing Assets as % of total capex | C203: =IF(ISERROR((C37+C69)/C132),0,((C37+C69)/C132)) -> 0.2570266735 | D203: =IF(ISERROR((D37+D69)/D132),0,((D37+D69)/D132)) -> 0.09202498001 | E203: 0.1372167812 | F203: 0.02767846789 | G203: 0.02504297227 | H203: 0.02504297227 | I203: 0.1854971506 | J203: 0 | K203: 0.2841644764
A204: Renewal and upgrading of Existing Assets as % of deprecn | C204: =IF(ISERROR((C37+C69)/C168),0,((C37+C69)/C168)) -> 0.9563761862 | D204: =IF(ISERROR((D37+D69)/D168),0,((D37+D69)/D168)) -> 0.2218585174 | E204: 0.5669701291 | F204: 0.09528928722 | G204: 0.08528654436 | H204: 0.08528654436 | I204: 0.4587269647 | J204: 0 | K204: 0.8670592816
A205: R&M as a % of PPE | C205: =IF(ISERROR(ROUND(C169/'A6-FinPos'!C19,3)),0,(ROUND(C169/'A6-FinPos'!C19,3))) -> 0.032 | D205: =IF(ISERROR(ROUND(D169/'A6-FinPos'!D19,3)),0,(ROUND(D169/'A6-FinPos'!D19,3))) -> 0.023 | E205: =IF(ISERROR(ROUND(E169/'A6-FinPos'!E19,3)),0,(ROUND(E169/'A6-FinPos'!E19,3))) -> 0.06 | F205: =IF(ISERROR(ROUND(F169/'A6-FinPos'!F19,3)),0,(ROUND(F169/'A6-FinPos'!F19,3))) -> 0.049 | G205: =IF(ISERROR(ROUND(G169/'A6-FinPos'!G19,3)),0,(ROUND(G169/'A6-FinPos'!G19,3))) -> 0.047 | H205: =IF(ISERROR(ROUND(H169/'A6-FinPos'!H19,3)),0,(ROUND(H169/'A6-FinPos'!H19,3))) -> 0.047 | I205: =IF(ISERROR(ROUND(I169/'A6-FinPos'!J19,3)),0,(ROUND(I169/'A6-FinPos'!J19,3))) -> 0.039 | J205: =IF(ISERROR(ROUND(J169/'A6-FinPos'!K19,3)),0,(ROUND(J169/'A6-FinPos'!K19,3))) -> 0.038 | K205: =IF(ISERROR(ROUND(K169/'A6-FinPos'!L19,3)),0,(ROUND(K169/'A6-FinPos'!L19,3))) -> 0.038
A206: Renewal and upgrading and R&M as a % of PPE | C206: =IF(ISERROR(ROUND((C37+C69+C169)/C165,2)),0,(ROUND((C37+C69+C169)/C165,2))) -> 0.08 | D206: =IF(ISERROR(ROUND((D37+D69+D169)/D165,2)),0,(ROUND((D37+D69+D169)/D165,2))) -> 0.04 | E206: 0.08 | F206: 0.05 | G206: 0.05 | H206: 0.05 | I206: 0.07 | J206: 0.04 | K206: 0.09
A208: =head27a -> References
A209: 1. Detail of new assets provided in Table SA34a
A210: 2. Detail of renewal of existing assets provided in Table SA34b
A211: 3. Detail of Repairs and Maintenance by Asset Class provided in Table SA34c
A212: 4. Must reconcile to total capital expenditure on Budgeted Capital Expenditure
A213: 5. Must reconcile to 'Budgeted Financial Position' (written down value)
A214: 6. Detail of upgrading of existing assets provided in Table SA34e
A215: 7. Detail of depreciation provided in Table SA34d
A217: Check balance to A6 | C217: =C165-'A6-FinPos'!D17-'A6-FinPos'!D19-'A6-FinPos'!D20-'A6-FinPos'!D21-'A6-FinPos'!D22-C148 -> -28923676.52 | D217: =D165-'A6-FinPos'!E17-'A6-FinPos'!E19-'A6-FinPos'!E20-'A6-FinPos'!E21-'A6-FinPos'!E22-D148 -> -68350622.01 | E217: =E165-'A6-FinPos'!F17-'A6-FinPos'!F19-'A6-FinPos'!F20-'A6-FinPos'!F21-'A6-FinPos'!F22-E148 -> -76158452.59 | F217: =F165-'A6-FinPos'!G17-'A6-FinPos'!G19-'A6-FinPos'!G20-'A6-FinPos'!G21-'A6-FinPos'!G22-F148 -> -9039503 | G217: =G165-'A6-FinPos'!H17-'A6-FinPos'!H19-'A6-FinPos'!H20-'A6-FinPos'!H21-'A6-FinPos'!H22-G148 -> -9744489 | H217: =H165-'A6-FinPos'!I17-'A6-FinPos'!I19-'A6-FinPos'!I20-'A6-FinPos'!I21-'A6-FinPos'!I22-H148 -> 47969937.21 | I217: =I165-'A6-FinPos'!J17-'A6-FinPos'!J19-'A6-FinPos'!J20-'A6-FinPos'!J21-'A6-FinPos'!J22-I148 -> -5623860 | J217: =J165-'A6-FinPos'!K17-'A6-FinPos'!K19-'A6-FinPos'!K20-'A6-FinPos'!K21-'A6-FinPos'!K22-J148 -> -5905052 | K217: =K165-'A6-FinPos'!L17-'A6-FinPos'!L19-'A6-FinPos'!L20-'A6-FinPos'!L21-'A6-FinPos'!L22-K148 -> -6200305

Sheet A10-SerDel
A1: =muni&" - "&Approve10 -> LIM353 Molemole - Table A10 Basic service delivery measurement
A2: =desc -> Description | B2: =head27 -> Ref | C2: =head1b -> 2018/19 | D2: =head1A -> 2019/20 | E2: =Head1 -> 2020/21 | F2: =Head2 -> Current Year 2021/22 | I2: =Head3 -> 2022/23 Medium Term Revenue & Expenditure Framework
C3: =Head5A -> Outcome | D3: =Head5A -> Outcome | E3: =Head5A -> Outcome | F3: =Head6 -> Original Budget | G3: =Head7 -> Adjusted Budget | H3: =Head8 -> Full Year Forecast | I3: =Head9 -> Budget Year 2022/23 | J3: =Head10 -> Budget Year +1 2023/24 | K3: =Head11 -> Budget Year +2 2024/25
A4: Household service targets | B4: 1
A5: Water:
A6: Piped water inside dwelling | C6: ='SA9'!E67 -> 2823 | D6: ='SA9'!F67 -> 0 | E6: ='SA9'!G67 -> 0 | F6: ='SA9'!H67 -> 0 | G6: ='SA9'!I67 -> 0 | H6: ='SA9'!J67 -> 0 | I6: ='SA9'!K67 -> 0 | J6: ='SA9'!L67 -> 0 | K6: ='SA9'!M67 -> 0
A7: Piped water inside yard (but not in dwelling) | C7: ='SA9'!E68 -> 0 | D7: ='SA9'!F68 -> 0 | E7: ='SA9'!G68 -> 0 | F7: ='SA9'!H68 -> 0 | G7: ='SA9'!I68 -> 0 | H7: ='SA9'!J68 -> 0 | I7: ='SA9'!K68 -> 0 | J7: ='SA9'!L68 -> 0 | K7: ='SA9'!M68 -> 0
A8: Using public tap (at least min.service level) | B8: 2 | C8: ='SA9'!E69 -> 0 | D8: ='SA9'!F69 -> 0 | E8: ='SA9'!G69 -> 0 | F8: ='SA9'!H69 -> 0 | G8: ='SA9'!I69 -> 0 | H8: ='SA9'!J69 -> 0 | I8: ='SA9'!K69 -> 0 | J8: ='SA9'!L69 -> 0 | K8: ='SA9'!M69 -> 0
A9: Other water supply (at least min.service level) | B9: 4 | C9: ='SA9'!E70 -> 0 | D9: ='SA9'!F70 -> 0 | E9: ='SA9'!G70 -> 0 | F9: ='SA9'!H70 -> 0 | G9: ='SA9'!I70 -> 0 | H9: ='SA9'!J70 -> 0 | I9: ='SA9'!K70 -> 0 | J9: ='SA9'!L70 -> 0 | K9: ='SA9'!M70 -> 0
A10: Minimum Service Level and Above sub-total | C10: =SUM(C6:C9) -> 2823 | D10: =SUM(D6:D9) -> 0 | E10: 0 | F10: 0 | G10: 0 | H10: 0 | I10: 0 | J10: 0 | K10: 0
A11: Using public tap (< min.service level) | B11: 3 | C11: ='SA9'!E72 -> 0 | D11: ='SA9'!F72 -> 0 | E11: ='SA9'!G72 -> 0 | F11: ='SA9'!H72 -> 0 | G11: ='SA9'!I72 -> 0 | H11: ='SA9'!J72 -> 0 | I11: ='SA9'!K72 -> 0 | J11: ='SA9'!L72 -> 0 | K11: ='SA9'!M72 -> 0
A12: Other water supply (< min.service level) | B12: =B9 -> 4 | C12: ='SA9'!E73 -> 0 | D12: ='SA9'!F73 -> 0 | E12: ='SA9'!G73 -> 0 | F12: ='SA9'!H73 -> 0 | G12: ='SA9'!I73 -> 0 | H12: ='SA9'!J73 -> 0 | I12: ='SA9'!K73 -> 0 | J12: ='SA9'!L73 -> 0 | K12: ='SA9'!M73 -> 0
A13: No water supply | C13: ='SA9'!E74 -> 0 | D13: ='SA9'!F74 -> 0 | E13: ='SA9'!G74 -> 0 | F13: ='SA9'!H74 -> 0 | G13: ='SA9'!I74 -> 0 | H13: ='SA9'!J74 -> 0 | I13: ='SA9'!K74 -> 0 | J13: ='SA9'!L74 -> 0 | K13: ='SA9'!M74 -> 0
A14: Below Minimum Service Level sub-total | C14: =SUM(C11:C13) -> 0 | D14: =SUM(D11:D13) -> 0 | E14: 0 | F14: 0 | G14: 0 | H14: 0 | I14: 0 | J14: 0 | K14: 0
A15: Total number of households | B15: 5 | C15: =C10+C14 -> 2823 | D15: =D10+D14 -> 0 | E15: 0 | F15: 0 | G15: 0 | H15: 0 | I15: 0 | J15: 0 | K15: 0
A16: Sanitation/sewerage:
A17: Flush toilet (connected to sewerage) | C17: ='SA9'!E78 -> 0 | D17: ='SA9'!F78 -> 0 | E17: ='SA9'!G78 -> 0 | F17: ='SA9'!H78 -> 0 | G17: ='SA9'!I78 -> 0 | H17: ='SA9'!J78 -> 0 | I17: ='SA9'!K78 -> 0 | J17: ='SA9'!L78 -> 0 | K17: ='SA9'!M78 -> 0
A18: Flush toilet (with septic tank) | C18: ='SA9'!E79 -> 0 | D18: ='SA9'!F79 -> 0 | E18: ='SA9'!G79 -> 0 | F18: ='SA9'!H79 -> 0 | G18: ='SA9'!I79 -> 0 | H18: ='SA9'!J79 -> 0 | I18: ='SA9'!K79 -> 0 | J18: ='SA9'!L79 -> 0 | K18: ='SA9'!M79 -> 0
A19: Chemical toilet | C19: ='SA9'!E80 -> 0 | D19: ='SA9'!F80 -> 0 | E19: ='SA9'!G80 -> 0 | F19: ='SA9'!H80 -> 0 | G19: ='SA9'!I80 -> 0 | H19: ='SA9'!J80 -> 0 | I19: ='SA9'!K80 -> 0 | J19: ='SA9'!L80 -> 0 | K19: ='SA9'!M80 -> 0
A20: Pit toilet (ventilated) | C20: ='SA9'!E81 -> 0 | D20: ='SA9'!F81 -> 0 | E20: ='SA9'!G81 -> 0 | F20: ='SA9'!H81 -> 0 | G20: ='SA9'!I81 -> 0 | H20: ='SA9'!J81 -> 0 | I20: ='SA9'!K81 -> 0 | J20: ='SA9'!L81 -> 0 | K20: ='SA9'!M81 -> 0
A21: Other toilet provisions (> min.service level) | C21: ='SA9'!E82 -> 0 | D21: ='SA9'!F82 -> 0 | E21: ='SA9'!G82 -> 0 | F21: ='SA9'!H82 -> 0 | G21: ='SA9'!I82 -> 0 | H21: ='SA9'!J82 -> 0 | I21: ='SA9'!K82 -> 0 | J21: ='SA9'!L82 -> 0 | K21: ='SA9'!M82 -> 0
A22: =$A$10 -> Minimum Service Level and Above sub-total | C22: =SUM(C17:C21) -> 0 | D22: =SUM(D17:D21) -> 0 | E22: 0 | F22: 0 | G22: 0 | H22: 0 | I22: 0 | J22: 0 | K22: 0
A23: Bucket toilet | C23: ='SA9'!E84 -> 0 | D23: ='SA9'!F84 -> 0 | E23: ='SA9'!G84 -> 0 | F23: ='SA9'!H84 -> 0 | G23: ='SA9'!I84 -> 0 | H23: ='SA9'!J84 -> 0 | I23: ='SA9'!K84 -> 0 | J23: ='SA9'!L84 -> 0 | K23: ='SA9'!M84 -> 0
A24: Other toilet provisions (< min.service level) | C24: ='SA9'!E85 -> 0 | D24: ='SA9'!F85 -> 0 | E24: ='SA9'!G85 -> 0 | F24: ='SA9'!H85 -> 0 | G24: ='SA9'!I85 -> 0 | H24: ='SA9'!J85 -> 0 | I24: ='SA9'!K85 -> 0 | J24: ='SA9'!L85 -> 0 | K24: ='SA9'!M85 -> 0
A25: No toilet provisions | C25: ='SA9'!E86 -> 0 | D25: ='SA9'!F86 -> 0 | E25: ='SA9'!G86 -> 0 | F25: ='SA9'!H86 -> 0 | G25: ='SA9'!I86 -> 0 | H25: ='SA9'!J86 -> 0 | I25: ='SA9'!K86 -> 0 | J25: ='SA9'!L86 -> 0 | K25: ='SA9'!M86 -> 0
A26: =$A$14 -> Below Minimum Service Level sub-total | C26: =SUM(C23:C25) -> 0 | D26: =SUM(D23:D25) -> 0 | E26: 0 | F26: 0 | G26: 0 | H26: 0 | I26: 0 | J26: 0 | K26: 0
A27: =$A$15 -> Total number of households | B27: =$B$15 -> 5 | C27: =C22+C26 -> 0 | D27: =D22+D26 -> 0 | E27: 0 | F27: 0 | G27: 0 | H27: 0 | I27: 0 | J27: 0 | K27: 0
A28: Energy:
A29: Electricity (at least min.service level) | C29: ='SA9'!E90 -> 0 | D29: ='SA9'!F90 -> 0 | E29: ='SA9'!G90 -> 0 | F29: ='SA9'!H90 -> 0 | G29: ='SA9'!I90 -> 0 | H29: ='SA9'!J90 -> 0 | I29: ='SA9'!K90 -> 0 | J29: ='SA9'!L90 -> 0 | K29: ='SA9'!M90 -> 0
A30: Electricity - prepaid (min.service level) | C30: ='SA9'!E91 -> 0 | D30: ='SA9'!F91 -> 0 | E30: ='SA9'!G91 -> 0 | F30: ='SA9'!H91 -> 0 | G30: ='SA9'!I91 -> 0 | H30: ='SA9'!J91 -> 0 | I30: ='SA9'!K91 -> 0 | J30: ='SA9'!L91 -> 0 | K30: ='SA9'!M91 -> 0
A31: =$A$10 -> Minimum Service Level and Above sub-total | C31: =SUM(C29:C30) -> 0 | D31: =SUM(D29:D30) -> 0 | E31: 0 | F31: 0 | G31: 0 | H31: 0 | I31: 0 | J31: 0 | K31: 0
A32: Electricity (< min.service level) | C32: ='SA9'!E93 -> 0 | D32: ='SA9'!F93 -> 0 | E32: ='SA9'!G93 -> 0 | F32: ='SA9'!H93 -> 0 | G32: ='SA9'!I93 -> 0 | H32: ='SA9'!J93 -> 0 | I32: ='SA9'!K93 -> 0 | J32: ='SA9'!L93 -> 0 | K32: ='SA9'!M93 -> 0
A33: Electricity - prepaid (< min. service level) | C33: ='SA9'!E94 -> 0 | D33: ='SA9'!F94 -> 0 | E33: ='SA9'!G94 -> 0 | F33: ='SA9'!H94 -> 0 | G33: ='SA9'!I94 -> 0 | H33: ='SA9'!J94 -> 0 | I33: ='SA9'!K94 -> 0 | J33: ='SA9'!L94 -> 0 | K33: ='SA9'!M94 -> 0
A34: Other energy sources | C34: ='SA9'!E95 -> 0 | D34: ='SA9'!F95 -> 0 | E34: ='SA9'!G95 -> 0 | F34: ='SA9'!H95 -> 0 | G34: ='SA9'!I95 -> 0 | H34: ='SA9'!J95 -> 0 | I34: ='SA9'!K95 -> 0 | J34: ='SA9'!L95 -> 0 | K34: ='SA9'!M95 -> 0
A35: =$A$14 -> Below Minimum Service Level sub-total | C35: =SUM(C32:C34) -> 0 | D35: =SUM(D32:D34) -> 0 | E35: 0 | F35: 0 | G35: 0 | H35: 0 | I35: 0 | J35: 0 | K35: 0
A36: =$A$15 -> Total number of households | B36: =$B$15 -> 5 | C36: =C31+C35 -> 0 | D36: =D31+D35 -> 0 | E36: 0 | F36: 0 | G36: 0 | H36: 0 | I36: 0 | J36: 0 | K36: 0
A37: Refuse:
A38: Removed at least once a week | C38: ='SA9'!E99 -> 0 | D38: ='SA9'!F99 -> 0 | E38: ='SA9'!G99 -> 0 | F38: ='SA9'!H99 -> 0 | G38: ='SA9'!I99 -> 0 | H38: ='SA9'!J99 -> 0 | I38: ='SA9'!K99 -> 0 | J38: ='SA9'!L99 -> 0 | K38: ='SA9'!M99 -> 0
A39: =$A$10 -> Minimum Service Level and Above sub-total | C39: =SUM(C38) -> 0 | D39: =SUM(D38) -> 0 | E39: 0 | F39: 0 | G39: 0 | H39: 0 | I39: 0 | J39: 0 | K39: 0
A40: Removed less frequently than once a week | C40: ='SA9'!E101 -> 0 | D40: ='SA9'!F101 -> 0 | E40: ='SA9'!G101 -> 0 | F40: ='SA9'!H101 -> 0 | G40: ='SA9'!I101 -> 0 | H40: ='SA9'!J101 -> 0 | I40: ='SA9'!K101 -> 0 | J40: ='SA9'!L101 -> 0 | K40: ='SA9'!M101 -> 0
A41: Using communal refuse dump | C41: ='SA9'!E102 -> 0 | D41: ='SA9'!F102 -> 0 | E41: ='SA9'!G102 -> 0 | F41: ='SA9'!H102 -> 0 | G41: ='SA9'!I102 -> 0 | H41: ='SA9'!J102 -> 0 | I41: ='SA9'!K102 -> 0 | J41: ='SA9'!L102 -> 0 | K41: ='SA9'!M102 -> 0
A42: Using own refuse dump | C42: ='SA9'!E103 -> 0 | D42: ='SA9'!F103 -> 0 | E42: ='SA9'!G103 -> 0 | F42: ='SA9'!H103 -> 0 | G42: ='SA9'!I103 -> 0 | H42: ='SA9'!J103 -> 0 | I42: ='SA9'!K103 -> 0 | J42: ='SA9'!L103 -> 0 | K42: ='SA9'!M103 -> 0
A43: Other rubbish disposal | C43: ='SA9'!E104 -> 0 | D43: ='SA9'!F104 -> 0 | E43: ='SA9'!G104 -> 0 | F43: ='SA9'!H104 -> 0 | G43: ='SA9'!I104 -> 0 | H43: ='SA9'!J104 -> 0 | I43: ='SA9'!K104 -> 0 | J43: ='SA9'!L104 -> 0 | K43: ='SA9'!M104 -> 0
A44: No rubbish disposal | C44: ='SA9'!E105 -> 0 | D44: ='SA9'!F105 -> 0 | E44: ='SA9'!G105 -> 0 | F44: ='SA9'!H105 -> 0 | G44: ='SA9'!I105 -> 0 | H44: ='SA9'!J105 -> 0 | I44: ='SA9'!K105 -> 0 | J44: ='SA9'!L105 -> 0 | K44: ='SA9'!M105 -> 0
A45: =$A$14 -> Below Minimum Service Level sub-total | C45: =SUM(C40:C44) -> 0 | D45: 0 | E45: 0 | F45: 0 | G45: 0 | H45: 0 | I45: 0 | J45: 0 | K45: 0
A46: =$A$15 -> Total number of households | B46: =$B$15 -> 5 | C46: =C39+C45 -> 0 | D46: =D39+D45 -> 0 | E46: 0 | F46: 0 | G46: 0 | H46: 0 | I46: 0 | J46: 0 | K46: 0
A48: Households receiving Free Basic Service | B48: 7
A49: Water (6 kilolitres per household per month) | C49: ='SA9'!E263 -> 0 | D49: ='SA9'!F263 -> 0 | E49: ='SA9'!G263 -> 0 | F49: ='SA9'!H263 -> 0 | G49: ='SA9'!I263 -> 0 | H49: ='SA9'!J263 -> 0 | I49: ='SA9'!K263 -> 0 | J49: ='SA9'!L263 -> 0 | K49: ='SA9'!M263 -> 0
A50: Sanitation (free minimum level service) | C50: ='SA9'!E275 -> 0 | D50: ='SA9'!F275 -> 0 | E50: ='SA9'!G275 -> 0 | F50: ='SA9'!H275 -> 0 | G50: ='SA9'!I275 -> 0 | H50: ='SA9'!J275 -> 0 | I50: ='SA9'!K275 -> 0 | J50: ='SA9'!L275 -> 0 | K50: ='SA9'!M275 -> 0
A51: Electricity/other energy (50kwh per household per month) | C51: ='SA9'!E251 -> 0 | D51: ='SA9'!F251 -> 0 | E51: ='SA9'!G251 -> 0 | F51: ='SA9'!H251 -> 0 | G51: ='SA9'!I251 -> 0 | H51: ='SA9'!J251 -> 0 | I51: ='SA9'!K251 -> 0 | J51: ='SA9'!L251 -> 0 | K51: ='SA9'!M251 -> 0
A52: Refuse (removed at least once a week) | C52: ='SA9'!E287 -> 0 | D52: ='SA9'!F287 -> 0 | E52: ='SA9'!G287 -> 0 | F52: ='SA9'!H287 -> 0 | G52: ='SA9'!I287 -> 0 | H52: ='SA9'!J287 -> 0 | I52: ='SA9'!K287 -> 0 | J52: ='SA9'!L287 -> 0 | K52: ='SA9'!M287 -> 0
A54: Cost of Free Basic Services provided - Formal Settlements (R'000) | B54: 8
A55: Water (6 kilolitres per indigent household per month) | C55: ='SA1'!C20 -> 0 | D55: ='SA1'!D20 -> 0 | E55: ='SA1'!E20 -> 0 | F55: ='SA1'!F20 -> 0 | G55: ='SA1'!G20 -> 0 | H55: ='SA1'!H20 -> 0 | I55: ='SA1'!J20 -> 0 | J55: ='SA1'!K20 -> 0 | K55: ='SA1'!L20 -> 0
A56: Sanitation (free sanitation service to indigent households) | C56: ='SA1'!C26 -> 0 | D56: ='SA1'!D26 -> 0 | E56: ='SA1'!E26 -> 0 | F56: ='SA1'!F26 -> 0 | G56: ='SA1'!G26 -> 0 | H56: ='SA1'!H26 -> 0 | I56: ='SA1'!J26 -> 0 | J56: ='SA1'!K26 -> 0 | K56: ='SA1'!L26 -> 0
A57: Electricity/other energy (50kwh per indigent household per month) | C57: ='SA1'!C14 -> 0 | D57: ='SA1'!D14 -> -5930933.57 | E57: ='SA1'!E14 -> -6496579.78 | F57: ='SA1'!F14 -> -2894209 | G57: ='SA1'!G14 -> -2976721 | H57: ='SA1'!H14 -> -2976721 | I57: ='SA1'!J14 -> -3095790 | J57: ='SA1'!K14 -> -3232005 | K57: ='SA1'!L14 -> -3377445
A58: Refuse (removed once a week for indigent households) | C58: ='SA1'!C33 -> 0 | D58: ='SA1'!D33 -> 0 | E58: ='SA1'!E33 -> 0 | F58: ='SA1'!F33 -> 0 | G58: ='SA1'!G33 -> 0 | H58: ='SA1'!H33 -> 0 | I58: ='SA1'!J33 -> 0 | J58: ='SA1'!K33 -> 0 | K58: ='SA1'!L33 -> 0
A59: Cost of Free Basic Services provided - Informal Formal Settlements (R'000) | C59: ='SA9'!E260+'SA9'!E272+'SA9'!E284+'SA9'!E296 -> 0 | D59: ='SA9'!F260+'SA9'!F272+'SA9'!F284+'SA9'!F296 -> 0 | E59: ='SA9'!G260+'SA9'!G272+'SA9'!G284+'SA9'!G296 -> 0 | F59: ='SA9'!H260+'SA9'!H272+'SA9'!H284+'SA9'!H296 -> 0 | G59: ='SA9'!I260+'SA9'!I272+'SA9'!I284+'SA9'!I296 -> 0 | H59: ='SA9'!J260+'SA9'!J272+'SA9'!J284+'SA9'!J296 -> 0 | I59: ='SA9'!K260+'SA9'!K272+'SA9'!K284+'SA9'!K296 -> 0 | J59: ='SA9'!L260+'SA9'!L272+'SA9'!L284+'SA9'!L296 -> 0 | K59: ='SA9'!M260+'SA9'!M272+'SA9'!M284+'SA9'!M296 -> 0
A60: Total cost of FBS provided | C60: =SUM(C55:C59) -> 0 | D60: -5930933.57 | E60: -6496579.78 | F60: -2894209 | G60: -2976721 | H60: -2976721 | I60: -3095790 | J60: -3232005 | K60: -3377445
A62: Highest level of free service provided per household
A63: Property rates (R value threshold)
A64: Water (kilolitres per household per month)
A65: Sanitation (kilolitres per household per month)
A66: Sanitation (Rand per household per month)
A67: Electricity (kwh per household per month)
A68: Refuse (average litres per week)
A69: Revenue cost of subsidised services provided (R'000) | B69: 9
A70: Property rates (tariff adjustment) ( impermissable values per section 17 of MPRA)
A71: Property rates exemptions, reductions and rebates and impermissable values in excess of section 17 of MPRA) | C71: ='SA1'!C8 -> 5521868.3 | D71: ='SA1'!D8 -> 5894776.07 | E71: ='SA1'!E8 -> 6093885.48 | F71: ='SA1'!F8 -> 1853874 | G71: ='SA1'!G8 -> 1853874 | H71: ='SA1'!H8 -> 1853874 | I71: ='SA1'!J8 -> 1928029 | J71: ='SA1'!K8 -> 2012863 | K71: ='SA1'!L8 -> 2103442
A72: Water (in excess of 6 kilolitres per indigent household per month) | C72: ='SA1'!C19 -> 0 | D72: ='SA1'!D19 -> 0 | E72: ='SA1'!E19 -> 0 | F72: ='SA1'!F19 -> 0 | G72: ='SA1'!G19 -> 0 | H72: ='SA1'!H19 -> 0 | I72: ='SA1'!J19 -> 0 | J72: ='SA1'!K19 -> 0 | K72: ='SA1'!L19 -> 0
A73: Sanitation (in excess of free sanitation service to indigent households) | C73: ='SA1'!C25 -> 0 | D73: ='SA1'!D25 -> 0 | E73: ='SA1'!E25 -> 0 | F73: ='SA1'!F25 -> 0 | G73: ='SA1'!G25 -> 0 | H73: ='SA1'!H25 -> 0 | I73: ='SA1'!J25 -> 0 | J73: ='SA1'!K25 -> 0 | K73: ='SA1'!L25 -> 0
A74: Electricity/other energy (in excess of 50 kwh per indigent household per month) | C74: ='SA1'!C13 -> 0 | D74: ='SA1'!D13 -> 0 | E74: ='SA1'!E13 -> 0 | F74: ='SA1'!F13 -> 0 | G74: ='SA1'!G13 -> 0 | H74: ='SA1'!H13 -> 0 | I74: ='SA1'!J13 -> 0 | J74: ='SA1'!K13 -> 0 | K74: ='SA1'!L13 -> 0
A75: Refuse (in excess of one removal a week for indigent households) | C75: ='SA1'!C32 -> 0 | D75: ='SA1'!D32 -> 0 | E75: ='SA1'!E32 -> 0 | F75: ='SA1'!F32 -> 0 | G75: ='SA1'!G32 -> 0 | H75: ='SA1'!H32 -> 0 | I75: ='SA1'!J32 -> 0 | J75: ='SA1'!K32 -> 0 | K75: ='SA1'!L32 -> 0
A76: Municipal Housing - rental rebates
A77: Housing - top structure subsidies | B77: 6
A78: Other
A79: Total revenue cost of subsidised services provided | C79: =SUM(C70:C78) -> 5521868.3 | D79: =SUM(D70:D78) -> 5894776.07 | E79: 6093885.48 | F79: 1853874 | G79: 1853874 | H79: 1853874 | I79: 1928029 | J79: =SUM(J70:J78) -> 2012863 | K79: =SUM(K70:K78) -> 2103442
A80: =head27a -> References
A81: 1. Include services provided by another entity; e.g. Eskom
A82: 2. Stand distance <= 200m from dwelling
A83: 3. Stand distance > 200m from dwelling
A84: 4. Borehole, spring, rain-water tank etc.
A85: 5. Must agree to total number of households in municipal area (informal settlements receiving services must be included)
A86: 6. Include value of subsidy provided by municipality above provincial subsidy level
A87: 7. Show number of households receiving at least these levels of services completely free (informal settlements must be included)
A88: 8. Must reflect the cost to the municipality of providing the Free Basic Service
A89: 9. Reflect the cost to the municipality in terms of 'revenue foregone' of providing free services (note this will not equal 'Revenue Foregone' on SA1)

Sheet SA1
A1: =muni&" - "&TableA1 -> LIM353 Molemole - Supporting Table SA1 Supportinging detail to 'Budgeted Financial Performance'
A2: =desc -> Description | B2: =head27 -> Ref | C2: =head1b -> 2018/19 | D2: =head1A -> 2019/20 | E2: =Head1 -> 2020/21 | F2: =Head2 -> Current Year 2021/22 | J2: =Head3 -> 2022/23 Medium Term Revenue & Expenditure Framework
C3: =Head5 -> Audited Outcome | D3: =Head5 -> Audited Outcome | E3: =Head5 -> Audited Outcome | F3: =Head6 -> Original Budget | G3: =Head7 -> Adjusted Budget | H3: =Head8 -> Full Year Forecast | I3: =Head5b -> Pre-audit outcome | J3: =Head9 -> Budget Year 2022/23 | K3: =Head10 -> Budget Year +1 2023/24 | L3: =Head11 -> Budget Year +2 2024/25
A4: R thousand
A5: REVENUE ITEMS:
A6: ='A4-FinPerf RE'!A5 -> Property rates | B6: 6
A7: Total Property Rates | C7: 20100715.63 | D7: 25905661.7 | E7: 55651888.19 | F7: 53335943 | G7: 41463727 | H7: 41463727 | I7: 23659050.55 | J7: 43122279 | K7: 45019660 | L7: 47045544
A8: Less Revenue Foregone (exemptions, reductions and rebates and impermissable values in excess of section 17 of MPRA) | C8: 5521868.3 | D8: 5894776.07 | E8: 6093885.48 | F8: 1853874 | G8: 1853874 | H8: 1853874 | I8: 1054621.35 | J8: 1928029 | K8: 2012863 | L8: 2103442
A9: Net Property Rates | C9: =C7-C8 -> 14578847.33 | D9: =D7-D8 -> 20010885.63 | E9: 49558002.71 | F9: 51482069 | G9: 39609853 | H9: 39609853 | I9: 22604429.2 | J9: 41194250 | K9: 43006797 | L9: 44942102
A11: ='A4-FinPerf RE'!A6 -> Service charges - electricity revenue | B11: 6
A12: ="Total "&A11 -> Total Service charges - electricity revenue | C12: 2736711.65 | D12: 2353662.34 | E12: 1936455.45 | F12: 8817095 | G12: 8734583 | H12: 8734583 | I12: 314730.32 | J12: 10364939 | K12: 9776645 | L12: 10216234
A13: Less Revenue Foregone (in excess of 50 kwh per indigent household per month)
A14: Less Cost of Free Basis Services (50 kwh per indigent household per month) | C14: ='SA9'!E250 -> 0 | D14: ='SA9'!F250 -> -5930933.57 | E14: ='SA9'!G250 -> -6496579.78 | F14: ='SA9'!H250 -> -2894209 | G14: ='SA9'!I250 -> -2976721 | H14: ='SA9'!J250 -> -2976721 | J14: ='SA9'!K250 -> -3095790 | K14: ='SA9'!L250 -> -3232005 | L14: ='SA9'!M250 -> -3377445
A15: ="Net "& A11 -> Net Service charges - electricity revenue | C15: =C12-C13-C14 -> 2736711.65 | D15: =D12-D13-D14 -> 8284595.91 | E15: 8433035.23 | F15: 11711304 | G15: 11711304 | H15: 11711304 | I15: 314730.32 | J15: 13460729 | K15: 13008650 | L15: 13593679
A17: ='A4-FinPerf RE'!A7 -> Service charges - water revenue | B17: 6
A18: ="Total "&A17 -> Total Service charges - water revenue | C18: 0 | D18: 0 | E18: 0 | F18: 0 | G18: 0 | H18: 0 | I18: -7360.1 | J18: 0 | K18: 0 | L18: 0
A19: Less Revenue Foregone (in excess of 6 kilolitres per indigent household per month)
A20: Less Cost of Free Basis Services (6 kilolitres per indigent household per month) | C20: ='SA9'!E262 -> 0 | D20: ='SA9'!F262 -> 0 | E20: ='SA9'!G262 -> 0 | F20: ='SA9'!H262 -> 0 | G20: ='SA9'!I262 -> 0 | H20: ='SA9'!J262 -> 0 | J20: ='SA9'!K262 -> 0 | K20: ='SA9'!L262 -> 0 | L20: ='SA9'!M262 -> 0
A21: ="Net "& A17 -> Net Service charges - water revenue | C21: =C18-C19-C20 -> 0 | D21: =D18-D19-D20 -> 0 | E21: 0 | F21: 0 | G21: 0 | H21: 0 | I21: -7360.1 | J21: 0 | K21: 0 | L21: 0
A23: ='A4-FinPerf RE'!A8 -> Service charges - sanitation revenue
A24: ="Total "&A23 -> Total Service charges - sanitation revenue | C24: 0 | D24: 0 | E24: 0 | F24: 0 | G24: 0 | H24: 0 | I24: -1329.6 | J24: 0 | K24: 0 | L24: 0
A25: Less Revenue Foregone (in excess of free sanitation service to indigent households)
A26: Less Cost of Free Basis Services (free sanitation service to indigent households) | C26: ='SA9'!E274 -> 0 | D26: ='SA9'!F274 -> 0 | E26: ='SA9'!G274 -> 0 | F26: ='SA9'!H274 -> 0 | G26: ='SA9'!I274 -> 0 | H26: ='SA9'!J274 -> 0 | J26: ='SA9'!K274 -> 0 | K26: ='SA9'!L274 -> 0 | L26: ='SA9'!M274 -> 0
A27: ="Net "& A23 -> Net Service charges - sanitation revenue | C27: =C24-C25-C26 -> 0 | D27: =D24-D25-D26 -> 0 | E27: 0 | F27: 0 | G27: 0 | H27: 0 | I27: -1329.6 | J27: 0 | K27: 0 | L27: 0
A29: ='A4-FinPerf RE'!A9 -> Service charges - refuse revenue | B29: 6
A30: Total refuse removal revenue | C30: 1848066.44 | D30: 2218412.62 | E30: 2628852.44 | F30: 2484576 | G30: 2484576 | H30: 2484576 | I30: 1948598.62 | J30: 2583960 | K30: 2697654 | L30: 2819048
A31: Total landfill revenue
A32: Less Revenue Foregone (in excess of one removal a week to indigent households)
A33: Less Cost of Free Basis Services (removed once a week to indigent households) | C33: ='SA9'!E286 -> 0 | D33: ='SA9'!F286 -> 0 | E33: ='SA9'!G286 -> 0 | F33: ='SA9'!H286 -> 0 | G33: ='SA9'!I286 -> 0 | H33: ='SA9'!J286 -> 0 | J33: ='SA9'!K286 -> 0 | K33: ='SA9'!L286 -> 0 | L33: ='SA9'!M286 -> 0
A34: ="Net "& A29 -> Net Service charges - refuse revenue | C34: =SUM(C30:C31)-C32-C33 -> 1848066.44 | D34: =SUM(D30:D31)-D32-D33 -> 2218412.62 | E34: 2628852.44 | F34: 2484576 | G34: 2484576 | H34: 2484576 | I34: 1948598.62 | J34: 2583960 | K34: 2697654 | L34: 2819048
A36: Other Revenue by source
A37: Fuel Levy
A38: Other Revenue | C38: 319060.68 | D38: 248651.09 | E38: -46995.76 | F38: 27178038 | G38: 15156677 | H38: 15156677 | I38: 184565.41 | J38: 409450 | K38: 427465 | L38: 446701
A49: Total 'Other' Revenue | B49: 1 | C49: =SUM(C37:C38) -> 319060.68 | D49: =SUM(D37:D38) -> 248651.09 | E49: =SUM(E37:E38) -> -46995.76 | F49: 27178038 | G49: 15156677 | H49: 15156677 | I49: 184565.41 | J49: 409450 | K49: 427465 | L49: 446701
A51: EXPENDITURE ITEMS:
A52: ='A4-FinPerf RE'!A24 -> Employee related costs
A53: Basic Salaries and Wages | B53: 2 | C53: 50916924.3 | D53: 55485784.98 | E53: 58190710.75 | F53: 62332356 | G53: 58317945 | H53: 58317945 | I53: 41018440.05 | J53: 66025757 | K53: 68873842 | L53: 71914821
A54: Pension and UIF Contributions | C54: 9161752.35 | D54: 9874746.42 | E54: 10517235.36 | F54: 12467014 | G54: 11859050 | H54: 11859050 | I54: 7434001.41 | J54: 6988490 | K54: 7295993 | L54: 7624306
A55: Medical Aid Contributions | C55: 3721477.9 | D55: 4127157.03 | E55: 4453753.66 | F55: 5459279 | G55: 5003367 | H55: 5003367 | I55: 3159925.31 | J55: 5653297 | K55: 5931941 | L55: 6198877
A56: Overtime | C56: 0 | D56: 0 | E56: 0 | F56: 0 | G56: 0 | H56: 0 | I56: 0 | J56: 0 | K56: 0 | L56: 0
A57: Performance Bonus | C57: 5018154.56 | D57: 5333457.17 | E57: 4455561.78 | F57: 6380279 | G57: 6469727 | H57: 6469727 | I57: 3261740.43 | J57: 6208572 | K57: 6474129 | L57: 6756659
A58: Motor Vehicle Allowance | C58: 4791824.27 | D58: 5168040.83 | E58: 6020520.97 | F58: 7592845 | G58: 7335064 | H58: 7335064 | I58: 4674477.28 | J58: 7876509 | K58: 8155493 | L58: 8515279
A59: Cellphone Allowance | C59: 1166704.66 | D59: 1107676.23 | E59: 1153316.28 | F59: 1378828 | G59: 1310752 | H59: 1310752 | I59: 820769.9 | J59: 1356093 | K59: 1356093 | L59: 1355992
A60: Housing Allowances | C60: 150200.37 | D60: 182795.61 | E60: 177469.79 | F60: 397571 | G60: 260534 | H60: 260534 | I60: 123457.28 | J60: 175024 | K60: 175591 | L60: 176189
A61: Other benefits and allowances | C61: 1402133.79 | D61: 1408523.84 | E61: 1584219.77 | F61: 4273381 | G61: 2386331 | H61: 2386331 | I61: 1197475.69 | J61: 3728278 | K61: 3819814 | L61: 3918188
A62: Payments in lieu of leave | C62: 153670.48 | D62: 2399742.03 | E62: 1835352.93 | F62: 1933468 | G62: 1791769 | H62: 1791769 | I62: 141946.43 | J62: 1864646 | K62: 1948756 | L62: 2070523
A63: Long service awards | C63: 346236 | D63: 532895.01 | E63: 721000 | F63: 1272097 | G63: 1250256 | H63: 1250256 | I63: 220603.32 | J63: 1354793 | K63: 1425877 | L63: 1505338
A64: Post-retirement benefit obligations | B64: 4 | C64: 2159863 | D64: -1341122 | E64: 2546350.96 | F64: 2245158 | G64: 2245158 | H64: 2245158 | I64: 0 | J64: 2318646 | K64: 2423014 | L64: 2532048
A65: sub-total | B65: 5 | C65: =SUM(C53:C64) -> 78988941.68 | D65: =SUM(D53:D64) -> 84279697.15 | E65: 91655492.25 | F65: 105732276 | G65: 98229953 | H65: 98229953 | I65: 62052837.1 | J65: 103550105 | K65: 107880543 | L65: 112568220
A66: Less: Employees costs capitalised to PPE | C66: 0 | D66: 0 | E66: 0 | F66: 0 | G66: 0 | H66: 0 | I66: 0 | J66: 0 | K66: 0 | L66: 0
A67: ="Total "&A52 -> Total Employee related costs | B67: 1 | C67: =C65-C66 -> 78988941.68 | D67: =D65-D66 -> 84279697.15 | E67: 91655492.25 | F67: 105732276 | G67: 98229953 | H67: 98229953 | I67: 62052837.1 | J67: 103550105 | K67: 107880543 | L67: 112568220
A78: ='A4-FinPerf RE'!A27 -> Depreciation & asset impairment
A79: Depreciation of Property, Plant & Equipment | C79: 11459146.5 | D79: 14954739.37 | E79: 11896341.57 | F79: 18292135 | G79: 18292135 | H79: 18292135 | I79: 14943287.92 | J79: 19023866 | K79: 19860915 | L79: 20754657
A80: Lease amortisation | C80: 818014.6 | D80: 908264.46 | E80: 218216.9 | F80: 702655 | G80: 702655 | H80: 702655 | I80: 156230.26 | J80: 730763 | K80: 762919 | L80: 797250
A81: Capital asset impairment | C81: 0 | D81: 17074.57 | E81: 0 | F81: 0 | G81: 0 | H81: 0 | I81: 0 | J81: 0 | K81: 0 | L81: 0
A83: ="Total "&LEFT(A78,35) -> Total Depreciation & asset impairment | B83: 1 | C83: =SUM(C79:C81) -> 12277161.1 | D83: =SUM(D79:D81) -> 15880078.4 | E83: 12114558.47 | F83: 18994790 | G83: 18994790 | H83: 18994790 | I83: 15099518.18 | J83: 19754629 | K83: 20623834 | L83: 21551907
A85: Bulk purchases - electricity
A86: Electricity bulk purchases | C86: 9419062.61 | D86: 10107195.66 | E86: 11026472.76 | F86: 11468179 | G86: 11468179 | H86: 11468179 | I86: 10255638.59 | J86: 11926907 | K86: 12451691 | L86: 13012017
A88: Total bulk purchases | B88: 1 | C88: =SUM(C86:C87) -> 9419062.61 | D88: =SUM(D86:D87) -> 10107195.66 | E88: 11026472.76 | F88: 11468179 | G88: 11468179 | H88: 11468179 | I88: 10255638.59 | J88: 11926907 | K88: 12451691 | L88: 13012017
A90: Transfers and grants
A91: Cash transfers and grants | C91: ='SA21'!C32 -> 0 | D91: ='SA21'!D32 -> 0 | E91: ='SA21'!E32 -> 0 | F91: ='SA21'!F32 -> 0 | G91: ='SA21'!G32 -> 0 | H91: ='SA21'!H32 -> 0 | I91: ='SA21'!I32 -> 0 | J91: ='SA21'!J32 -> 0 | K91: ='SA21'!K32 -> 0 | L91: ='SA21'!L32 -> 0
A92: Non-cash transfers and grants | C92: ='SA21'!C63 -> 0 | D92: ='SA21'!D63 -> 0 | E92: ='SA21'!E63 -> 0 | F92: ='SA21'!F63 -> 0 | G92: ='SA21'!G63 -> 0 | H92: ='SA21'!H63 -> 0 | I92: ='SA21'!I63 -> 0 | J92: ='SA21'!J63 -> 0 | K92: ='SA21'!K63 -> 0 | L92: ='SA21'!L63 -> 0
A93: Total transfers and grants | B93: 1 | C93: =SUM(C91:C92) -> 0 | D93: =SUM(D91:D92) -> 0 | E93: 0 | F93: 0 | G93: 0 | H93: 0 | I93: 0 | J93: 0 | K93: 0 | L93: 0
A95: ='A4-FinPerf RE'!A31 -> Contracted services
A96: Outsourced Services | C96: 12121617.48 | D96: 12268703.28 | E96: 12062862.34 | F96: 17323079 | G96: 14467351 | H96: 14467351 | I96: 7068683.51 | J96: 15811209 | K96: 16486309 | L96: 17207136
A97: Consultants and Professional Services | C97: 5591441.41 | D97: 7280570.44 | E97: 7226954.11 | F97: 6632906 | G97: 6613156 | H97: 6613156 | I97: 4203553.4 | J97: 9659647 | K97: 9036430 | L97: 9438490
A98: Contractors | C98: 9609835.11 | D98: 7327192.44 | E98: 19829619.99 | F98: 19887756 | G98: 19322706 | H98: 19322706 | I98: 11832741.28 | J98: 14925247 | K98: 15533560 | L98: 16183070
A127: Total contracted services | C127: =SUM(C96:C98) -> 27322894 | D127: =SUM(D96:D98) -> 26876466.16 | E127: 39119436.44 | F127: 43843741 | G127: 40403213 | H127: 40403213 | I127: 23104978.19 | J127: 40396103 | K127: 41056299 | L127: 42828696
A129: Other Expenditure By Type
A130: Collection costs | C130: 1319606.35 | D130: 1952533.37 | E130: 6091648.58 | F130: 3220900 | G130: 2220900 | H130: 2220900 | I130: 2203612.47 | J130: 2349736 | K130: 2453125 | L130: 2563515
A131: Contributions to 'other' provisions
A133: Audit fees | C133: 2815461.65 | D133: 3313349.7 | E133: 3925775.89 | F133: 4415765 | G133: 4415765 | H133: 4415765 | I133: 3122750.2 | J133: 4592396 | K133: 4794462 | L133: 5010212
A136: Other Expenditure | C136: 38061121.65 | D136: 23604531.6 | E136: 24148680.94 | F136: 31259742 | G136: 28021241 | H136: 28021241 | I136: 7061903.5 | J136: 29666088 | K136: 30158310 | L136: 31433894
A157: Total 'Other' Expenditure | B157: 1 | C157: =+C130+C131+C133+C136 -> 42196189.65 | D157: =+D130+D131+D133+D136 -> 28870414.67 | E157: 34166105.41 | F157: 38896407 | G157: 34657906 | H157: 34657906 | I157: 12388266.17 | J157: 36608220 | K157: 37405897 | L157: 39007621
A159: Repairs and Maintenance by Expenditure Item | B159: 8
A160: Employee related costs
A161: Inventory Consumed (Project Maintenance) | C161: 170282.79 | D161: 0 | E161: 5353.45 | F161: 0 | G161: 0 | H161: 0 | I161: 0 | J161: 0 | K161: 0 | L161: 0
A162: Contracted Services | C162: 7692031.67 | D162: 6280208.17 | E162: 18193947.26 | F162: 18077244 | G162: 17382244 | H162: 17382244 | I162: 10868858.18 | J162: 13139000 | K162: 13717118 | L162: 14334388
A163: Other Expenditure
A164: Total Repairs and Maintenance Expenditure | B164: 9 | C164: =SUM(C160:C163) -> 7862314.46 | D164: =SUM(D160:D163) -> 6280208.17 | E164: 18199300.71 | F164: 18077244 | G164: 17382244 | H164: 17382244 | I164: 10868858.18 | J164: 13139000 | K164: 13717118 | L164: 14334388
A166: Inventory Consumed
A167: Inventory Consumed - Water | C167: =-'SA3'!C29 -> 0 | D167: =-'SA3'!D29 -> 0 | E167: =-'SA3'!E29 -> 0 | F167: =-'SA3'!F29 -> 0 | G167: =-'SA3'!G29 -> 0 | H167: =-'SA3'!H29 -> 0 | I167: =-'SA3'!I29 -> 0 | J167: =-'SA3'!J29 -> 0 | K167: =-'SA3'!K29 -> 0 | L167: =-'SA3'!L29 -> 0
A168: Inventory Consumed - Other | C168: =-'SA3'!C58-'SA3'!C67-'SA3'!C74-'SA3'!C82-'SA3'!C90 -> -33523.99 | D168: =-'SA3'!D58-'SA3'!D67-'SA3'!D74-'SA3'!D82-'SA3'!D90 -> 1056734.27 | E168: =-'SA3'!E58-'SA3'!E67-'SA3'!E74-'SA3'!E82-'SA3'!E90 -> 810564.36 | F168: =-'SA3'!F58-'SA3'!F67-'SA3'!F74-'SA3'!F82-'SA3'!F90 -> 6589473 | G168: =-'SA3'!G58-'SA3'!G67-'SA3'!G74-'SA3'!G82-'SA3'!G90 -> 6189473 | H168: =-'SA3'!H58-'SA3'!H67-'SA3'!H74-'SA3'!H82-'SA3'!H90 -> 6189473 | I168: =-'SA3'!I58-'SA3'!I67-'SA3'!I74-'SA3'!I82-'SA3'!I90 -> 0 | J168: =-'SA3'!J58-'SA3'!J67-'SA3'!J74-'SA3'!J82-'SA3'!J90 -> 6699202 | K168: =-'SA3'!K58-'SA3'!K67-'SA3'!K74-'SA3'!K82-'SA3'!K90 -> 6993966 | L168: =-'SA3'!L58-'SA3'!L67-'SA3'!L74-'SA3'!L82-'SA3'!L90 -> 7308696
A169: Total Inventory Consumed & Other Material | C169: =SUM(C167:C168) -> -33523.99 | D169: 1056734.27 | E169: 810564.36 | F169: 6589473 | G169: 6189473 | H169: 6189473 | I169: 0 | J169: 6699202 | K169: 6993966 | L169: 7308696
A171: check | C171: =C164-SA34c!C167 -> 0 | D171: =D164-SA34c!D167 -> 0 | E171: =E164-SA34c!E167 -> 0 | F171: =F164-SA34c!F167 -> 0 | G171: =G164-SA34c!G167 -> 0 | H171: =H164-SA34c!H167 -> 0 | J171: =J164-SA34c!I167 -> 0 | K171: =K164-SA34c!J167 -> 0 | L171: =L164-SA34c!K167 -> 0
A172: =head27a -> References
A173: 1. Must reconcile with 'Budgeted Financial Performance (Revenue and Expenditure)
